{"text_format":"1","workbook":"xlsx","n_sheets":2,"sheets":["Template","Moves"],"not_rendered":{"charts":0,"images":0,"macros":1,"external_links":0,"defined_names":26,"comments":0,"pivot_tables":0},"unopened":[],"bounds":{"document_bytes":16777216,"sheet_cells":100000,"rows_first":2000,"rows_last":500,"rows_between":2000,"halvings":0,"cell_chars":16384,"cell_head_chars":4096},"cells_cut":0,"cells_raw":0,"read":"whole","date_system":"1900"}

{"sheet":"Template","index":0,"n_rows":162,"n_cols":116,"rows_kept":162,"cut":false,"hidden":false,"merged":[[4,0,4,1],[4,3,4,4],[6,0,7,1],[6,3,6,6],[6,7,6,10],[5,0,5,1],[4,5,4,8],[4,9,4,10],[6,63,6,70],[6,71,6,78],[6,79,6,86],[6,87,6,94],[18,3,18,6],[18,7,18,10],[6,15,6,22],[6,23,6,30],[6,31,6,38],[6,39,6,46],[6,47,6,54],[6,55,6,62],[19,0,19,1],[19,3,19,6],[19,7,19,10],[20,0,20,1],[20,3,20,6],[20,7,20,10],[21,0,21,1],[21,3,21,6],[21,7,21,10],[22,0,22,1],[22,3,22,6],[22,7,22,10],[23,0,23,1],[23,3,23,6],[23,7,23,10],[24,0,24,1],[24,3,24,6],[24,7,24,10],[25,0,25,1],[25,3,25,6],[25,7,25,10],[26,0,26,1],[26,3,26,6],[26,7,26,10],[35,3,35,6],[35,7,35,10],[27,0,27,1],[27,3,27,6],[27,7,27,10],[28,0,28,1],[28,3,28,6],[28,7,28,10],[29,0,29,1],[29,3,29,6],[29,7,29,11],[34,3,34,6],[34,7,34,10]]}
[]
[]
["Advanced Intention Sheet"]
[]
["Gymnast Name:",null,"Gender:",null,null," Gymnast No:",null,null,null,null,null,"Club:"]
[]
["ELEMENTS",null,"EXECUTION","DIFFICULTY",null,null,null,"GROUP",null,null,null,"SPECIAL REQUIREMENTS","BONUS",null,null,"Validation 1",null,null,null,null,null,null,null,"Validation 2",null,null,null,null,null,null,null,"Validation 3",null,null,null,null,null,null,null,"Validation 4",null,null,null,null,null,null,null,"Validation 5",null,null,null,null,null,null,null,"Validation 6",null,null,null,null,null,null,null,"Validation 7",null,null,null,null,null,null,null,"Validation 8",null,null,null,null,null,null,null,"Validation 9",null,null,null,null,null,null,null,"Validation 10",null,null,null,null,null,null,null,"G1","Girls G2","Boys G2 H","Boys G2","MS","MS G","AS","FS","B1","B2","Crt met b4 B",null,null,null,null,null,null,null,"C skill","C Skill G","B1 G"]
[null,null,null,"A","B","C","D",1,2,3,4,null,null,null,null,"found","list",null,null,null,null,"count if","ofset","found","list",null,null,null,null,"count if","ofset","found","list",null,null,null,null,"count if","ofset","found","list",null,null,null,null,"count if","ofset","found","list",null,null,null,null,"count if","ofset","found","list",null,null,null,null,"count if","ofset","found","list",null,null,null,null,"count if","ofset","found","list",null,null,null,null,"count if","ofset","found","list",null,null,null,null,"count if","ofset","found","list",null,null,null,null,"count if","ofset",null,null,null,null,null,null,null,null,null,null,null,"A","B","C",1,2,3,4]
[1,null,null,{"$f":"IFERROR(IF(VLOOKUP(B9,Moves!$A$1:$D$150,2,FALSE)=\"A\",\"X\",\" \"),\"\")","v":""},{"$f":"IFERROR(IF(VLOOKUP(B9,Moves!$A$1:$D$150,2,FALSE)=\"B\",\"X\",\" \"),\"\")","v":""},{"$f":"IFERROR(IF(VLOOKUP(B9,Moves!$A$1:$D$150,2,FALSE)=\"C\",\"X\",\" \"),\"\")","v":""},{"$f":"IFERROR(IF(VLOOKUP(B9,Moves!$A$1:$D$150,2,FALSE)=\"D\",\"X\",\" \"),\"\")","v":""},{"$f":"IFERROR(IF(VLOOKUP(B9,Moves!$A$1:$D$150,3,FALSE)=1,\"X\",\" \"),\"\")","v":""},{"$f":"IFERROR(IF(VLOOKUP(B9,Moves!$A$1:$D$150,3,FALSE)=2,\"X\",\" \"),\"\")","v":""},{"$f":"IFERROR(IF(VLOOKUP(B9,Moves!$A$1:$D$150,3,FALSE)=3,\"X\",\" \"),\"\")","v":""},{"$f":"IFERROR(IF(VLOOKUP(B9,Moves!$A$1:$D$150,3,FALSE)=4,\"X\",\" \"),\"\")","v":""},null,null,null,null,{"$f":"IF(ISNUMBER(SEARCH($B$9,Q9)),MAX($P$8:P8)+1,0)","v":1},"Straight jump",null,null,{"$f":"IFERROR(VLOOKUP(ROWS($Q$9:Q9),$P$9:$Q$162,2,0),\"\")","v":"Straight jump"},null,{"$f":"COUNTIF(T9:T162,\"?*\")","v":154},{"$f":"OFFSET($T$9,,,COUNTIF($T$9:$T$162,\"?*\"))","v":"Straight jump"},{"$f":"IF(ISNUMBER(SEARCH($B$10,Y9)),MAX($X$8:X8)+1,0)","v":1},"Straight jump",null,null,{"$f":"IFERROR(VLOOKUP(ROWS($Y$9:Y9),$X$9:$Y$162,2,0),\"\")","v":"Straight jump"},null,{"$f":"COUNTIF(AB9:AB162,\"?*\")","v":154},{"$f":"OFFSET($AB$9,,,COUNTIF($AB$9:$AB$162,\"?*\"))","v":"Straight jump"},{"$f":"IF(ISNUMBER(SEARCH($B$11,AG9)),MAX($AF$8:AF8)+1,0)","v":1},"Straight jump",null,null,{"$f":"IFERROR(VLOOKUP(ROWS($AG$9:AG9),$AF$9:$AG$162,2,0),\"\")","v":"Straight jump"},null,{"$f":"COUNTIF(AJ9:AJ162,\"?*\")","v":154},{"$f":"OFFSET($AJ$9,,,COUNTIF($AJ$9:$AJ$162,\"?*\"))","v":"Straight jump"},{"$f":"IF(ISNUMBER(SEARCH($B$12,AO9)),MAX($AN$8:AN8)+1,0)","v":1},"Straight jump",null,null,{"$f":"IFERROR(VLOOKUP(ROWS($AO$9:AO9),$AN$9:$AO$162,2,0),\"\")","v":"Straight jump"},null,{"$f":"COUNTIF(AR9:AR162,\"?*\")","v":154},{"$f":"OFFSET($AR$9,,,COUNTIF($AR$9:$AR$162,\"?*\"))","v":"Straight jump"},{"$f":"IF(ISNUMBER(SEARCH($B$13,AW9)),MAX($AV$8:AV8)+1,0)","v":1},"Straight jump",null,null,{"$f":"IFERROR(VLOOKUP(ROWS($AW$9:AW9),$AV$9:$AW$162,2,0),\"\")","v":"Straight jump"},null,{"$f":"COUNTIF(AZ9:AZ162,\"?*\")","v":154},{"$f":"OFFSET($AZ$9,,,COUNTIF($AZ$9:$AZ$162,\"?*\"))","v":"Straight jump"},{"$f":"IF(ISNUMBER(SEARCH($B$14,BE9)),MAX($BD$8:BD8)+1,0)","v":1},"Straight jump",null,null,{"$f":"IFERROR(VLOOKUP(ROWS($BE$9:BE9),$BD$9:$BE$162,2,0),\"\")","v":"Straight jump"},null,{"$f":"COUNTIF(BH9:BH162,\"?*\")","v":154},{"$f":"OFFSET($BH$9,,,COUNTIF($BH$9:$BH$162,\"?*\"))","v":"Straight jump"},{"$f":"IF(ISNUMBER(SEARCH($B$15,BM9)),MAX($BL$8:BL8)+1,0)","v":1},"Straight jump",null,null,{"$f":"IFERROR(VLOOKUP(ROWS($BM$9:BM9),$BL$9:$BM$162,2,0),\"\")","v":"Straight jump"},null,{"$f":"COUNTIF(BP9:BP162,\"?*\")","v":154},{"$f":"OFFSET($BP$9,,,COUNTIF($BP$9:$BP$162,\"?*\"))","v":"Straight jump"},{"$f":"IF(ISNUMBER(SEARCH($B$16,BU9)),MAX($BT$8:BT8)+1,0)","v":1},"Straight jump",null,null,{"$f":"IFERROR(VLOOKUP(ROWS($BU$9:BU9),$BT$9:$BU$162,2,0),\"\")","v":"Straight jump"},null,{"$f":"COUNTIF(BX9:BX162,\"?*\")","v":154},{"$f":"OFFSET($BX$9,,,COUNTIF($BX$9:$BX$162,\"?*\"))","v":"Straight jump"},{"$f":"IF(ISNUMBER(SEARCH($B$17,CC9)),MAX($CB$8:CB8)+1,0)","v":1},"Straight jump",null,null,{"$f":"IFERROR(VLOOKUP(ROWS($CC$9:CC9),$CB$9:$CC$162,2,0),\"\")","v":"Straight jump"},null,{"$f":"COUNTIF(CF9:CF162,\"?*\")","v":154},{"$f":"OFFSET($CF$9,,,COUNTIF($CF$9:$CF$162,\"?*\"))","v":"Straight jump"},{"$f":"IF(ISNUMBER(SEARCH($B$18,CK9)),MAX($CJ$8:CJ8)+1,0)","v":1},"Straight jump",null,null,{"$f":"IFERROR(VLOOKUP(ROWS($CK$9:CK9),$CJ$9:$CK$162,2,0),\"\")","v":"Straight jump"},null,{"$f":"COUNTIF(CN9:CN162,\"?*\")","v":154},{"$f":"OFFSET($CN$9,,,COUNTIF($CN$9:$CN$162,\"?*\"))","v":"Straight jump"},{"$f":"IF(L9<>$L$37,\"\",IF(H9=\"X\",IF(E9=\"X\",\"Yes\",IF(F9=\"X\",\"Yes\",\"No\")),\"No\"))","v":""},{"$f":"IF($D$5=$L$33,IF(L9=$L$38,IF(I9=\"X\",\"Yes\",\"No\"),\"\"),\"\")","v":""},{"$f":"IF($D$5=\"Female\",\"\",IF(L9=$L$44,IF(I9=\"X\",\"Yes\",\"No\"),\"No\"))","v":"No"},{"$f":"IF($D$5=$L$34,IF(L9=$L$43,IF(I9=\"X\",\"Yes\",\"No\"),\"No\"),\"\")","v":""},{"$f":"IF(L9=\"Mixed series\",IF(H9=\"X\",\"Yes\",IF(H9<>\"X\",\"Yes\",\"No\")),\"\")","v":""},{"$f":"IF(CV9<>\"Yes\",\"\",IF(H9=\"X\",1,IF(I9=\"X\",2,IF(J9=\"X\",3,IF(K9=\"X\",4,\"No\")))))","v":""},{"$f":"IF(L9<>\"Acrobatic skill\",\"\",IF(VLOOKUP(B9,Moves!$A$1:$D$150,4,FALSE)=\"\",IF(J9=\"X\",\"Yes\",IF(K9=\"X\",\"Yes\",\"No\")),\"No\"))","v":""},{"$f":"IF(L9<>\"Flight skill/series\",\"\",IF(K9=\"X\",IF(VLOOKUP(B9,Moves!A1:D150,4,FALSE)<>\"\",\"Yes\",\"No\"),\"No\"))","v":""},{"$f":"IF(M9<>$M$32,\"\",IF(F9=\"X\",IF(H9=\"X\",\"Yes\",IF(I9=\"X\",\"Yes\",IF(J9=\"X\",\"Yes\",\"No\")))))","v":""},{"$f":"IF(M9<>$M$33,\"\",IF(G9<>\"X\",\"No\",IF(VLOOKUP(B9,Moves!$A$1:$D$150,3,FALSE)<>4,IF(H9=\"X\",\"Yes\",IF(I9=\"X\",\"Yes\",IF(J9=\"X\",\"Yes\"))))))","v":""},{"$f":"IF(COUNTIF(P9:DA9,\"Yes\")=2,\"No\",\"Yes\")","v":"Yes"},{"$f":"IF(D9=\"X\",IF(M9=\"Bonus - C Skill\",\"No\",IF(M9=\"Bonus - D Skill\",\"No\",\"Yes\")),\"\")","v":""},{"$f":"IF(E9=\"X\",IF(M9=\"Bonus - C Skill\",\"No\",IF(M9=\"Bonus - D Skill\",\"No\",\"Yes\")),\"\")","v":""},{"$f":"IF(F9=\"X\",IF(M9=\"Bonus - C Skill\",\"No\",IF(M9=\"Bonus - D Skill\",\"No\",\"Yes\")),\"\")","v":""},{"$f":"IF(H9=\"X\",IF(M9=\"Bonus - C Skill\",\"No\",IF(M9=\"Bonus - D Skill\",\"No\",\"Yes\")),\"\")","v":""},{"$f":"IF(I9=\"X\",IF(M9=\"Bonus - C Skill\",\"No\",IF(M9=\"Bonus - D Skill\",\"No\",\"Yes\")),\"\")","v":""},{"$f":"IF(J9=\"X\",IF(M9=\"Bonus - C Skill\",\"No\",IF(M9=\"Bonus - D Skill\",\"No\",\"Yes\")),\"\")","v":""},{"$f":"IF(K9=\"X\",IF(M9=\"Bonus - C Skill\",\"No\",IF(M9=\"Bonus - D Skill\",\"No\",\"Yes\")),\"\")","v":""},{"$f":"IF(M9=\"\",IF(F9=\"X\",\"Yes\",\"\"),\"\")","v":""},{"$f":"IF(DJ9<>\"Yes\",\"\",IF(H9=\"X\",1,IF(I9=\"X\",2,IF(J9=\"X\",3,IF(K9=\"X\",4,\"No\")))))","v":""},{"$f":"IF(CZ9<>\"Yes\",\"\",IF(H9=\"X\",1,IF(I9=\"X\",2,IF(J9=\"X\",3,IF(K9=\"X\",4,\"No\")))))","v":""}]
[2,null,null,{"$f":"IFERROR(IF(VLOOKUP(B10,Moves!$A$1:$D$150,2,FALSE)=\"A\",\"X\",\" \"),\"\")","v":""},{"$f":"IFERROR(IF(VLOOKUP(B10,Moves!$A$1:$D$150,2,FALSE)=\"B\",\"X\",\" \"),\"\")","v":""},{"$f":"IFERROR(IF(VLOOKUP(B10,Moves!$A$1:$D$150,2,FALSE)=\"C\",\"X\",\" \"),\"\")","v":""},{"$f":"IFERROR(IF(VLOOKUP(B10,Moves!$A$1:$D$150,2,FALSE)=\"D\",\"X\",\" \"),\"\")","v":""},{"$f":"IFERROR(IF(VLOOKUP(B10,Moves!$A$1:$D$150,3,FALSE)=1,\"X\",\" \"),\"\")","v":""},{"$f":"IFERROR(IF(VLOOKUP(B10,Moves!$A$1:$D$150,3,FALSE)=2,\"X\",\" \"),\"\")","v":""},{"$f":"IFERROR(IF(VLOOKUP(B10,Moves!$A$1:$D$150,3,FALSE)=3,\"X\",\" \"),\"\")","v":""},{"$f":"IFERROR(IF(VLOOKUP(B10,Moves!$A$1:$D$150,3,FALSE)=4,\"X\",\" \"),\"\")","v":""},null,null,null,null,{"$f":"IF(ISNUMBER(SEARCH($B$9,Q10)),MAX($P$8:P9)+1,0)","v":2},"Jump ½ turn ",null,null,{"$f":"IFERROR(VLOOKUP(ROWS($Q$9:Q10),$P$9:$Q$162,2,0),\"\")","v":"Jump ½ turn "},null,null,null,{"$f":"IF(ISNUMBER(SEARCH($B$10,Y10)),MAX($X$8:X9)+1,0)","v":2},"Jump ½ turn ",null,null,{"$f":"IFERROR(VLOOKUP(ROWS($Y$9:Y10),$X$9:$Y$162,2,0),\"\")","v":"Jump ½ turn "},null,null,null,{"$f":"IF(ISNUMBER(SEARCH($B$11,AG10)),MAX($AF$8:AF9)+1,0)","v":2},"Jump ½ turn ",null,null,{"$f":"IFERROR(VLOOKUP(ROWS($AG$9:AG10),$AF$9:$AG$162,2,0),\"\")","v":"Jump ½ turn "},null,null,null,{"$f":"IF(ISNUMBER(SEARCH($B$12,AO10)),MAX($AN$8:AN9)+1,0)","v":2},"Jump ½ turn ",null,null,{"$f":"IFERROR(VLOOKUP(ROWS($AO$9:AO10),$AN$9:$AO$162,2,0),\"\")","v":"Jump ½ turn "},null,null,null,{"$f":"IF(ISNUMBER(SEARCH($B$13,AW10)),MAX($AV$8:AV9)+1,0)","v":2},"Jump ½ turn ",null,null,{"$f":"IFERROR(VLOOKUP(ROWS($AW$9:AW10),$AV$9:$AW$162,2,0),\"\")","v":"Jump ½ turn "},null,null,null,{"$f":"IF(ISNUMBER(SEARCH($B$14,BE10)),MAX($BD$8:BD9)+1,0)","v":2},"Jump ½ turn ",null,null,{"$f":"IFERROR(VLOOKUP(ROWS($BE$9:BE10),$BD$9:$BE$162,2,0),\"\")","v":"Jump ½ turn "},null,null,null,{"$f":"IF(ISNUMBER(SEARCH($B$15,BM10)),MAX($BL$8:BL9)+1,0)","v":2},"Jump ½ turn ",null,null,{"$f":"IFERROR(VLOOKUP(ROWS($BM$9:BM10),$BL$9:$BM$162,2,0),\"\")","v":"Jump ½ turn "},null,null,null,{"$f":"IF(ISNUMBER(SEARCH($B$16,BU10)),MAX($BT$8:BT9)+1,0)","v":2},"Jump ½ turn ",null,null,{"$f":"IFERROR(VLOOKUP(ROWS($BU$9:BU10),$BT$9:$BU$162,2,0),\"\")","v":"Jump ½ turn "},null,null,null,{"$f":"IF(ISNUMBER(SEARCH($B$17,CC10)),MAX($CB$8:CB9)+1,0)","v":2},"Jump ½ turn ",null,null,{"$f":"IFERROR(VLOOKUP(ROWS($CC$9:CC10),$CB$9:$CC$162,2,0),\"\")","v":"Jump ½ turn "},null,null,null,{"$f":"IF(ISNUMBER(SEARCH($B$18,CK10)),MAX($CJ$8:CJ9)+1,0)","v":2},"Jump ½ turn ",null,null,{"$f":"IFERROR(VLOOKUP(ROWS($CK$9:CK10),$CJ$9:$CK$162,2,0),\"\")","v":"Jump ½ turn "},null,null,null,"","",{"$f":"IF($D$5=\"Female\",\"\",IF(L10=$L$44,IF(I10=\"X\",\"Yes\",\"No\"),\"No\"))","v":"No"},{"$f":"IF($D$5=$L$34,IF(L10=$L$43,IF(I10=\"X\",\"Yes\",\"No\"),\"No\"),\"\")","v":""},"","",{"$f":"IF(L10<>\"Acrobatic skill\",\"\",IF(VLOOKUP(B10,Moves!$A$1:$D$150,4,FALSE)=\"\",IF(J10=\"X\",\"Yes\",IF(K10=\"X\",\"Yes\",\"No\")),\"No\"))","v":""},{"$f":"IF(L10<>\"Flight skill/series\",\"\",IF(K10=\"X\",IF(VLOOKUP(B10,Moves!A2:D151,4,FALSE)<>\"\",\"Yes\",\"No\"),\"No\"))","v":""},"",{"$f":"IF(M10<>$M$33,\"\",IF(G10<>\"X\",\"No\",IF(VLOOKUP(B10,Moves!$A$1:$D$150,3,FALSE)<>4,IF(H10=\"X\",\"Yes\",IF(I10=\"X\",\"Yes\",IF(J10=\"X\",\"Yes\"))))))","v":""},"Yes","","","","","","","","","",""]
[3,null,null,{"$f":"IFERROR(IF(VLOOKUP(B11,Moves!$A$1:$D$150,2,FALSE)=\"A\",\"X\",\" \"),\"\")","v":""},{"$f":"IFERROR(IF(VLOOKUP(B11,Moves!$A$1:$D$150,2,FALSE)=\"B\",\"X\",\" \"),\"\")","v":""},{"$f":"IFERROR(IF(VLOOKUP(B11,Moves!$A$1:$D$150,2,FALSE)=\"C\",\"X\",\" \"),\"\")","v":""},{"$f":"IFERROR(IF(VLOOKUP(B11,Moves!$A$1:$D$150,2,FALSE)=\"D\",\"X\",\" \"),\"\")","v":""},{"$f":"IFERROR(IF(VLOOKUP(B11,Moves!$A$1:$D$150,3,FALSE)=1,\"X\",\" \"),\"\")","v":""},{"$f":"IFERROR(IF(VLOOKUP(B11,Moves!$A$1:$D$150,3,FALSE)=2,\"X\",\" \"),\"\")","v":""},{"$f":"IFERROR(IF(VLOOKUP(B11,Moves!$A$1:$D$150,3,FALSE)=3,\"X\",\" \"),\"\")","v":""},{"$f":"IFERROR(IF(VLOOKUP(B11,Moves!$A$1:$D$150,3,FALSE)=4,\"X\",\" \"),\"\")","v":""},null,null,null,null,{"$f":"IF(ISNUMBER(SEARCH($B$9,Q11)),MAX($P$8:P10)+1,0)","v":3},"Star jump ",null,null,{"$f":"IFERROR(VLOOKUP(ROWS($Q$9:Q11),$P$9:$Q$162,2,0),\"\")","v":"Star jump "},null,null,null,{"$f":"IF(ISNUMBER(SEARCH($B$10,Y11)),MAX($X$8:X10)+1,0)","v":3},"Star jump ",null,null,{"$f":"IFERROR(VLOOKUP(ROWS($Y$9:Y11),$X$9:$Y$162,2,0),\"\")","v":"Star jump "},null,null,null,{"$f":"IF(ISNUMBER(SEARCH($B$11,AG11)),MAX($AF$8:AF10)+1,0)","v":3},"Star jump ",null,null,{"$f":"IFERROR(VLOOKUP(ROWS($AG$9:AG11),$AF$9:$AG$162,2,0),\"\")","v":"Star jump "},null,null,null,{"$f":"IF(ISNUMBER(SEARCH($B$12,AO11)),MAX($AN$8:AN10)+1,0)","v":3},"Star jump ",null,null,{"$f":"IFERROR(VLOOKUP(ROWS($AO$9:AO11),$AN$9:$AO$162,2,0),\"\")","v":"Star jump "},null,null,null,{"$f":"IF(ISNUMBER(SEARCH($B$13,AW11)),MAX($AV$8:AV10)+1,0)","v":3},"Star jump ",null,null,{"$f":"IFERROR(VLOOKUP(ROWS($AW$9:AW11),$AV$9:$AW$162,2,0),\"\")","v":"Star jump "},null,null,null,{"$f":"IF(ISNUMBER(SEARCH($B$14,BE11)),MAX($BD$8:BD10)+1,0)","v":3},"Star jump ",null,null,{"$f":"IFERROR(VLOOKUP(ROWS($BE$9:BE11),$BD$9:$BE$162,2,0),\"\")","v":"Star jump "},null,null,null,{"$f":"IF(ISNUMBER(SEARCH($B$15,BM11)),MAX($BL$8:BL10)+1,0)","v":3},"Star jump ",null,null,{"$f":"IFERROR(VLOOKUP(ROWS($BM$9:BM11),$BL$9:$BM$162,2,0),\"\")","v":"Star jump "},null,null,null,{"$f":"IF(ISNUMBER(SEARCH($B$16,BU11)),MAX($BT$8:BT10)+1,0)","v":3},"Star jump ",null,null,{"$f":"IFERROR(VLOOKUP(ROWS($BU$9:BU11),$BT$9:$BU$162,2,0),\"\")","v":"Star jump "},null,null,null,{"$f":"IF(ISNUMBER(SEARCH($B$17,CC11)),MAX($CB$8:CB10)+1,0)","v":3},"Star jump ",null,null,{"$f":"IFERROR(VLOOKUP(ROWS($CC$9:CC11),$CB$9:$CC$162,2,0),\"\")","v":"Star jump "},null,null,null,{"$f":"IF(ISNUMBER(SEARCH($B$18,CK11)),MAX($CJ$8:CJ10)+1,0)","v":3},"Star jump ",null,null,{"$f":"IFERROR(VLOOKUP(ROWS($CK$9:CK11),$CJ$9:$CK$162,2,0),\"\")","v":"Star jump "},null,null,null,"","","No","","","",{"$f":"IF(L11<>\"Acrobatic skill\",\"\",IF(VLOOKUP(B11,Moves!$A$1:$D$150,4,FALSE)=\"\",IF(J11=\"X\",\"Yes\",IF(K11=\"X\",\"Yes\",\"No\")),\"No\"))","v":""},{"$f":"IF(L11<>\"Flight skill/series\",\"\",IF(K11=\"X\",IF(VLOOKUP(B11,Moves!A3:D152,4,FALSE)<>\"\",\"Yes\",\"No\"),\"No\"))","v":""},"",{"$f":"IF(M11<>$M$33,\"\",IF(G11<>\"X\",\"No\",IF(VLOOKUP(B11,Moves!$A$1:$D$150,3,FALSE)<>4,IF(H11=\"X\",\"Yes\",IF(I11=\"X\",\"Yes\",IF(J11=\"X\",\"Yes\"))))))","v":""},"Yes","","","","","","","","","",""]
[4,null,null,{"$f":"IFERROR(IF(VLOOKUP(B12,Moves!$A$1:$D$150,2,FALSE)=\"A\",\"X\",\" \"),\"\")","v":""},{"$f":"IFERROR(IF(VLOOKUP(B12,Moves!$A$1:$D$150,2,FALSE)=\"B\",\"X\",\" \"),\"\")","v":""},{"$f":"IFERROR(IF(VLOOKUP(B12,Moves!$A$1:$D$150,2,FALSE)=\"C\",\"X\",\" \"),\"\")","v":""},{"$f":"IFERROR(IF(VLOOKUP(B12,Moves!$A$1:$D$150,2,FALSE)=\"D\",\"X\",\" \"),\"\")","v":""},{"$f":"IFERROR(IF(VLOOKUP(B12,Moves!$A$1:$D$150,3,FALSE)=1,\"X\",\" \"),\"\")","v":""},{"$f":"IFERROR(IF(VLOOKUP(B12,Moves!$A$1:$D$150,3,FALSE)=2,\"X\",\" \"),\"\")","v":""},{"$f":"IFERROR(IF(VLOOKUP(B12,Moves!$A$1:$D$150,3,FALSE)=3,\"X\",\" \"),\"\")","v":""},{"$f":"IFERROR(IF(VLOOKUP(B12,Moves!$A$1:$D$150,3,FALSE)=4,\"X\",\" \"),\"\")","v":""},null,null,null,null,{"$f":"IF(ISNUMBER(SEARCH($B$9,Q12)),MAX($P$8:P11)+1,0)","v":4},"Tuck jump",null,null,{"$f":"IFERROR(VLOOKUP(ROWS($Q$9:Q12),$P$9:$Q$162,2,0),\"\")","v":"Tuck jump"},null,null,null,{"$f":"IF(ISNUMBER(SEARCH($B$10,Y12)),MAX($X$8:X11)+1,0)","v":4},"Tuck jump",null,null,{"$f":"IFERROR(VLOOKUP(ROWS($Y$9:Y12),$X$9:$Y$162,2,0),\"\")","v":"Tuck jump"},null,null,null,{"$f":"IF(ISNUMBER(SEARCH($B$11,AG12)),MAX($AF$8:AF11)+1,0)","v":4},"Tuck jump",null,null,{"$f":"IFERROR(VLOOKUP(ROWS($AG$9:AG12),$AF$9:$AG$162,2,0),\"\")","v":"Tuck jump"},null,null,null,{"$f":"IF(ISNUMBER(SEARCH($B$12,AO12)),MAX($AN$8:AN11)+1,0)","v":4},"Tuck jump",null,null,{"$f":"IFERROR(VLOOKUP(ROWS($AO$9:AO12),$AN$9:$AO$162,2,0),\"\")","v":"Tuck jump"},null,null,null,{"$f":"IF(ISNUMBER(SEARCH($B$13,AW12)),MAX($AV$8:AV11)+1,0)","v":4},"Tuck jump",null,null,{"$f":"IFERROR(VLOOKUP(ROWS($AW$9:AW12),$AV$9:$AW$162,2,0),\"\")","v":"Tuck jump"},null,null,null,{"$f":"IF(ISNUMBER(SEARCH($B$14,BE12)),MAX($BD$8:BD11)+1,0)","v":4},"Tuck jump",null,null,{"$f":"IFERROR(VLOOKUP(ROWS($BE$9:BE12),$BD$9:$BE$162,2,0),\"\")","v":"Tuck jump"},null,null,null,{"$f":"IF(ISNUMBER(SEARCH($B$15,BM12)),MAX($BL$8:BL11)+1,0)","v":4},"Tuck jump",null,null,{"$f":"IFERROR(VLOOKUP(ROWS($BM$9:BM12),$BL$9:$BM$162,2,0),\"\")","v":"Tuck jump"},null,null,null,{"$f":"IF(ISNUMBER(SEARCH($B$16,BU12)),MAX($BT$8:BT11)+1,0)","v":4},"Tuck jump",null,null,{"$f":"IFERROR(VLOOKUP(ROWS($BU$9:BU12),$BT$9:$BU$162,2,0),\"\")","v":"Tuck jump"},null,null,null,{"$f":"IF(ISNUMBER(SEARCH($B$17,CC12)),MAX($CB$8:CB11)+1,0)","v":4},"Tuck jump",null,null,{"$f":"IFERROR(VLOOKUP(ROWS($CC$9:CC12),$CB$9:$CC$162,2,0),\"\")","v":"Tuck jump"},null,null,null,{"$f":"IF(ISNUMBER(SEARCH($B$18,CK12)),MAX($CJ$8:CJ11)+1,0)","v":4},"Tuck jump",null,null,{"$f":"IFERROR(VLOOKUP(ROWS($CK$9:CK12),$CJ$9:$CK$162,2,0),\"\")","v":"Tuck jump"},null,null,null,"","","No","","","",{"$f":"IF(L12<>\"Acrobatic skill\",\"\",IF(VLOOKUP(B12,Moves!$A$1:$D$150,4,FALSE)=\"\",IF(J12=\"X\",\"Yes\",IF(K12=\"X\",\"Yes\",\"No\")),\"No\"))","v":""},{"$f":"IF(L12<>\"Flight skill/series\",\"\",IF(K12=\"X\",IF(VLOOKUP(B12,Moves!A4:D153,4,FALSE)<>\"\",\"Yes\",\"No\"),\"No\"))","v":""},"",{"$f":"IF(M12<>$M$33,\"\",IF(G12<>\"X\",\"No\",IF(VLOOKUP(B12,Moves!$A$1:$D$150,3,FALSE)<>4,IF(H12=\"X\",\"Yes\",IF(I12=\"X\",\"Yes\",IF(J12=\"X\",\"Yes\"))))))","v":""},"Yes","","","","","","","","","",""]
[5,null,null,{"$f":"IFERROR(IF(VLOOKUP(B13,Moves!$A$1:$D$150,2,FALSE)=\"A\",\"X\",\" \"),\"\")","v":""},{"$f":"IFERROR(IF(VLOOKUP(B13,Moves!$A$1:$D$150,2,FALSE)=\"B\",\"X\",\" \"),\"\")","v":""},{"$f":"IFERROR(IF(VLOOKUP(B13,Moves!$A$1:$D$150,2,FALSE)=\"C\",\"X\",\" \"),\"\")","v":""},{"$f":"IFERROR(IF(VLOOKUP(B13,Moves!$A$1:$D$150,2,FALSE)=\"D\",\"X\",\" \"),\"\")","v":""},{"$f":"IFERROR(IF(VLOOKUP(B13,Moves!$A$1:$D$150,3,FALSE)=1,\"X\",\" \"),\"\")","v":""},{"$f":"IFERROR(IF(VLOOKUP(B13,Moves!$A$1:$D$150,3,FALSE)=2,\"X\",\" \"),\"\")","v":""},{"$f":"IFERROR(IF(VLOOKUP(B13,Moves!$A$1:$D$150,3,FALSE)=3,\"X\",\" \"),\"\")","v":""},{"$f":"IFERROR(IF(VLOOKUP(B13,Moves!$A$1:$D$150,3,FALSE)=4,\"X\",\" \"),\"\")","v":""},null,null,null,null,{"$f":"IF(ISNUMBER(SEARCH($B$9,Q13)),MAX($P$8:P12)+1,0)","v":5},"2 x dynamic 1/2 turns on knees",null,null,{"$f":"IFERROR(VLOOKUP(ROWS($Q$9:Q13),$P$9:$Q$162,2,0),\"\")","v":"2 x dynamic 1/2 turns on knees"},null,null,null,{"$f":"IF(ISNUMBER(SEARCH($B$10,Y13)),MAX($X$8:X12)+1,0)","v":5},"2 x dynamic 1/2 turns on knees",null,null,{"$f":"IFERROR(VLOOKUP(ROWS($Y$9:Y13),$X$9:$Y$162,2,0),\"\")","v":"2 x dynamic 1/2 turns on knees"},null,null,null,{"$f":"IF(ISNUMBER(SEARCH($B$11,AG13)),MAX($AF$8:AF12)+1,0)","v":5},"2 x dynamic 1/2 turns on knees",null,null,{"$f":"IFERROR(VLOOKUP(ROWS($AG$9:AG13),$AF$9:$AG$162,2,0),\"\")","v":"2 x dynamic 1/2 turns on knees"},null,null,null,{"$f":"IF(ISNUMBER(SEARCH($B$12,AO13)),MAX($AN$8:AN12)+1,0)","v":5},"2 x dynamic 1/2 turns on knees",null,null,{"$f":"IFERROR(VLOOKUP(ROWS($AO$9:AO13),$AN$9:$AO$162,2,0),\"\")","v":"2 x dynamic 1/2 turns on knees"},null,null,null,{"$f":"IF(ISNUMBER(SEARCH($B$13,AW13)),MAX($AV$8:AV12)+1,0)","v":5},"2 x dynamic 1/2 turns on knees",null,null,{"$f":"IFERROR(VLOOKUP(ROWS($AW$9:AW13),$AV$9:$AW$162,2,0),\"\")","v":"2 x dynamic 1/2 turns on knees"},null,null,null,{"$f":"IF(ISNUMBER(SEARCH($B$14,BE13)),MAX($BD$8:BD12)+1,0)","v":5},"2 x dynamic 1/2 turns on knees",null,null,{"$f":"IFERROR(VLOOKUP(ROWS($BE$9:BE13),$BD$9:$BE$162,2,0),\"\")","v":"2 x dynamic 1/2 turns on knees"},null,null,null,{"$f":"IF(ISNUMBER(SEARCH($B$15,BM13)),MAX($BL$8:BL12)+1,0)","v":5},"2 x dynamic 1/2 turns on knees",null,null,{"$f":"IFERROR(VLOOKUP(ROWS($BM$9:BM13),$BL$9:$BM$162,2,0),\"\")","v":"2 x dynamic 1/2 turns on knees"},null,null,null,{"$f":"IF(ISNUMBER(SEARCH($B$16,BU13)),MAX($BT$8:BT12)+1,0)","v":5},"2 x dynamic 1/2 turns on knees",null,null,{"$f":"IFERROR(VLOOKUP(ROWS($BU$9:BU13),$BT$9:$BU$162,2,0),\"\")","v":"2 x dynamic 1/2 turns on knees"},null,null,null,{"$f":"IF(ISNUMBER(SEARCH($B$17,CC13)),MAX($CB$8:CB12)+1,0)","v":5},"2 x dynamic 1/2 turns on knees",null,null,{"$f":"IFERROR(VLOOKUP(ROWS($CC$9:CC13),$CB$9:$CC$162,2,0),\"\")","v":"2 x dynamic 1/2 turns on knees"},null,null,null,{"$f":"IF(ISNUMBER(SEARCH($B$18,CK13)),MAX($CJ$8:CJ12)+1,0)","v":5},"2 x dynamic 1/2 turns on knees",null,null,{"$f":"IFERROR(VLOOKUP(ROWS($CK$9:CK13),$CJ$9:$CK$162,2,0),\"\")","v":"2 x dynamic 1/2 turns on knees"},null,null,null,"","","No","","","",{"$f":"IF(L13<>\"Acrobatic skill\",\"\",IF(VLOOKUP(B13,Moves!$A$1:$D$150,4,FALSE)=\"\",IF(J13=\"X\",\"Yes\",IF(K13=\"X\",\"Yes\",\"No\")),\"No\"))","v":""},{"$f":"IF(L13<>\"Flight skill/series\",\"\",IF(K13=\"X\",IF(VLOOKUP(B13,Moves!A5:D154,4,FALSE)<>\"\",\"Yes\",\"No\"),\"No\"))","v":""},"",{"$f":"IF(M13<>$M$33,\"\",IF(G13<>\"X\",\"No\",IF(VLOOKUP(B13,Moves!$A$1:$D$150,3,FALSE)<>4,IF(H13=\"X\",\"Yes\",IF(I13=\"X\",\"Yes\",IF(J13=\"X\",\"Yes\"))))))","v":""},"Yes","","","","","","","","","",""]
[6,null,null,{"$f":"IFERROR(IF(VLOOKUP(B14,Moves!$A$1:$D$150,2,FALSE)=\"A\",\"X\",\" \"),\"\")","v":""},{"$f":"IFERROR(IF(VLOOKUP(B14,Moves!$A$1:$D$150,2,FALSE)=\"B\",\"X\",\" \"),\"\")","v":""},{"$f":"IFERROR(IF(VLOOKUP(B14,Moves!$A$1:$D$150,2,FALSE)=\"C\",\"X\",\" \"),\"\")","v":""},{"$f":"IFERROR(IF(VLOOKUP(B14,Moves!$A$1:$D$150,2,FALSE)=\"D\",\"X\",\" \"),\"\")","v":""},{"$f":"IFERROR(IF(VLOOKUP(B14,Moves!$A$1:$D$150,3,FALSE)=1,\"X\",\" \"),\"\")","v":""},{"$f":"IFERROR(IF(VLOOKUP(B14,Moves!$A$1:$D$150,3,FALSE)=2,\"X\",\" \"),\"\")","v":""},{"$f":"IFERROR(IF(VLOOKUP(B14,Moves!$A$1:$D$150,3,FALSE)=3,\"X\",\" \"),\"\")","v":""},{"$f":"IFERROR(IF(VLOOKUP(B14,Moves!$A$1:$D$150,3,FALSE)=4,\"X\",\" \"),\"\")","v":""},null,null,null,null,{"$f":"IF(ISNUMBER(SEARCH($B$9,Q14)),MAX($P$8:P13)+1,0)","v":6},"1 leg balance ",null,null,{"$f":"IFERROR(VLOOKUP(ROWS($Q$9:Q14),$P$9:$Q$162,2,0),\"\")","v":"1 leg balance "},null,null,null,{"$f":"IF(ISNUMBER(SEARCH($B$10,Y14)),MAX($X$8:X13)+1,0)","v":6},"1 leg balance ",null,null,{"$f":"IFERROR(VLOOKUP(ROWS($Y$9:Y14),$X$9:$Y$162,2,0),\"\")","v":"1 leg balance "},null,null,null,{"$f":"IF(ISNUMBER(SEARCH($B$11,AG14)),MAX($AF$8:AF13)+1,0)","v":6},"1 leg balance ",null,null,{"$f":"IFERROR(VLOOKUP(ROWS($AG$9:AG14),$AF$9:$AG$162,2,0),\"\")","v":"1 leg balance "},null,null,null,{"$f":"IF(ISNUMBER(SEARCH($B$12,AO14)),MAX($AN$8:AN13)+1,0)","v":6},"1 leg balance ",null,null,{"$f":"IFERROR(VLOOKUP(ROWS($AO$9:AO14),$AN$9:$AO$162,2,0),\"\")","v":"1 leg balance "},null,null,null,{"$f":"IF(ISNUMBER(SEARCH($B$13,AW14)),MAX($AV$8:AV13)+1,0)","v":6},"1 leg balance ",null,null,{"$f":"IFERROR(VLOOKUP(ROWS($AW$9:AW14),$AV$9:$AW$162,2,0),\"\")","v":"1 leg balance "},null,null,null,{"$f":"IF(ISNUMBER(SEARCH($B$14,BE14)),MAX($BD$8:BD13)+1,0)","v":6},"1 leg balance ",null,null,{"$f":"IFERROR(VLOOKUP(ROWS($BE$9:BE14),$BD$9:$BE$162,2,0),\"\")","v":"1 leg balance "},null,null,null,{"$f":"IF(ISNUMBER(SEARCH($B$15,BM14)),MAX($BL$8:BL13)+1,0)","v":6},"1 leg balance ",null,null,{"$f":"IFERROR(VLOOKUP(ROWS($BM$9:BM14),$BL$9:$BM$162,2,0),\"\")","v":"1 leg balance "},null,null,null,{"$f":"IF(ISNUMBER(SEARCH($B$16,BU14)),MAX($BT$8:BT13)+1,0)","v":6},"1 leg balance ",null,null,{"$f":"IFERROR(VLOOKUP(ROWS($BU$9:BU14),$BT$9:$BU$162,2,0),\"\")","v":"1 leg balance "},null,null,null,{"$f":"IF(ISNUMBER(SEARCH($B$17,CC14)),MAX($CB$8:CB13)+1,0)","v":6},"1 leg balance ",null,null,{"$f":"IFERROR(VLOOKUP(ROWS($CC$9:CC14),$CB$9:$CC$162,2,0),\"\")","v":"1 leg balance "},null,null,null,{"$f":"IF(ISNUMBER(SEARCH($B$18,CK14)),MAX($CJ$8:CJ13)+1,0)","v":6},"1 leg balance ",null,null,{"$f":"IFERROR(VLOOKUP(ROWS($CK$9:CK14),$CJ$9:$CK$162,2,0),\"\")","v":"1 leg balance "},null,null,null,"","","No","","","",{"$f":"IF(L14<>\"Acrobatic skill\",\"\",IF(VLOOKUP(B14,Moves!$A$1:$D$150,4,FALSE)=\"\",IF(J14=\"X\",\"Yes\",IF(K14=\"X\",\"Yes\",\"No\")),\"No\"))","v":""},{"$f":"IF(L14<>\"Flight skill/series\",\"\",IF(K14=\"X\",IF(VLOOKUP(B14,Moves!A6:D155,4,FALSE)<>\"\",\"Yes\",\"No\"),\"No\"))","v":""},"",{"$f":"IF(M14<>$M$33,\"\",IF(G14<>\"X\",\"No\",IF(VLOOKUP(B14,Moves!$A$1:$D$150,3,FALSE)<>4,IF(H14=\"X\",\"Yes\",IF(I14=\"X\",\"Yes\",IF(J14=\"X\",\"Yes\"))))))","v":""},"Yes","","","","","","","","","",""]
[7,null,null,{"$f":"IFERROR(IF(VLOOKUP(B15,Moves!$A$1:$D$150,2,FALSE)=\"A\",\"X\",\" \"),\"\")","v":""},{"$f":"IFERROR(IF(VLOOKUP(B15,Moves!$A$1:$D$150,2,FALSE)=\"B\",\"X\",\" \"),\"\")","v":""},{"$f":"IFERROR(IF(VLOOKUP(B15,Moves!$A$1:$D$150,2,FALSE)=\"C\",\"X\",\" \"),\"\")","v":""},{"$f":"IFERROR(IF(VLOOKUP(B15,Moves!$A$1:$D$150,2,FALSE)=\"D\",\"X\",\" \"),\"\")","v":""},{"$f":"IFERROR(IF(VLOOKUP(B15,Moves!$A$1:$D$150,3,FALSE)=1,\"X\",\" \"),\"\")","v":""},{"$f":"IFERROR(IF(VLOOKUP(B15,Moves!$A$1:$D$150,3,FALSE)=2,\"X\",\" \"),\"\")","v":""},{"$f":"IFERROR(IF(VLOOKUP(B15,Moves!$A$1:$D$150,3,FALSE)=3,\"X\",\" \"),\"\")","v":""},{"$f":"IFERROR(IF(VLOOKUP(B15,Moves!$A$1:$D$150,3,FALSE)=4,\"X\",\" \"),\"\")","v":""},null,null,null,null,{"$f":"IF(ISNUMBER(SEARCH($B$9,Q15)),MAX($P$8:P14)+1,0)","v":7},"Splits (F or S) ",null,null,{"$f":"IFERROR(VLOOKUP(ROWS($Q$9:Q15),$P$9:$Q$162,2,0),\"\")","v":"Splits (F or S) "},null,null,null,{"$f":"IF(ISNUMBER(SEARCH($B$10,Y15)),MAX($X$8:X14)+1,0)","v":7},"Splits (F or S) ",null,null,{"$f":"IFERROR(VLOOKUP(ROWS($Y$9:Y15),$X$9:$Y$162,2,0),\"\")","v":"Splits (F or S) "},null,null,null,{"$f":"IF(ISNUMBER(SEARCH($B$11,AG15)),MAX($AF$8:AF14)+1,0)","v":7},"Splits (F or S) ",null,null,{"$f":"IFERROR(VLOOKUP(ROWS($AG$9:AG15),$AF$9:$AG$162,2,0),\"\")","v":"Splits (F or S) "},null,null,null,{"$f":"IF(ISNUMBER(SEARCH($B$12,AO15)),MAX($AN$8:AN14)+1,0)","v":7},"Splits (F or S) ",null,null,{"$f":"IFERROR(VLOOKUP(ROWS($AO$9:AO15),$AN$9:$AO$162,2,0),\"\")","v":"Splits (F or S) "},null,null,null,{"$f":"IF(ISNUMBER(SEARCH($B$13,AW15)),MAX($AV$8:AV14)+1,0)","v":7},"Splits (F or S) ",null,null,{"$f":"IFERROR(VLOOKUP(ROWS($AW$9:AW15),$AV$9:$AW$162,2,0),\"\")","v":"Splits (F or S) "},null,null,null,{"$f":"IF(ISNUMBER(SEARCH($B$14,BE15)),MAX($BD$8:BD14)+1,0)","v":7},"Splits (F or S) ",null,null,{"$f":"IFERROR(VLOOKUP(ROWS($BE$9:BE15),$BD$9:$BE$162,2,0),\"\")","v":"Splits (F or S) "},null,null,null,{"$f":"IF(ISNUMBER(SEARCH($B$15,BM15)),MAX($BL$8:BL14)+1,0)","v":7},"Splits (F or S) ",null,null,{"$f":"IFERROR(VLOOKUP(ROWS($BM$9:BM15),$BL$9:$BM$162,2,0),\"\")","v":"Splits (F or S) "},null,null,null,{"$f":"IF(ISNUMBER(SEARCH($B$16,BU15)),MAX($BT$8:BT14)+1,0)","v":7},"Splits (F or S) ",null,null,{"$f":"IFERROR(VLOOKUP(ROWS($BU$9:BU15),$BT$9:$BU$162,2,0),\"\")","v":"Splits (F or S) "},null,null,null,{"$f":"IF(ISNUMBER(SEARCH($B$17,CC15)),MAX($CB$8:CB14)+1,0)","v":7},"Splits (F or S) ",null,null,{"$f":"IFERROR(VLOOKUP(ROWS($CC$9:CC15),$CB$9:$CC$162,2,0),\"\")","v":"Splits (F or S) "},null,null,null,{"$f":"IF(ISNUMBER(SEARCH($B$18,CK15)),MAX($CJ$8:CJ14)+1,0)","v":7},"Splits (F or S) ",null,null,{"$f":"IFERROR(VLOOKUP(ROWS($CK$9:CK15),$CJ$9:$CK$162,2,0),\"\")","v":"Splits (F or S) "},null,null,null,"","","No","","","",{"$f":"IF(L15<>\"Acrobatic skill\",\"\",IF(VLOOKUP(B15,Moves!$A$1:$D$150,4,FALSE)=\"\",IF(J15=\"X\",\"Yes\",IF(K15=\"X\",\"Yes\",\"No\")),\"No\"))","v":""},{"$f":"IF(L15<>\"Flight skill/series\",\"\",IF(K15=\"X\",IF(VLOOKUP(B15,Moves!A7:D156,4,FALSE)<>\"\",\"Yes\",\"No\"),\"No\"))","v":""},"",{"$f":"IF(M15<>$M$33,\"\",IF(G15<>\"X\",\"No\",IF(VLOOKUP(B15,Moves!$A$1:$D$150,3,FALSE)<>4,IF(H15=\"X\",\"Yes\",IF(I15=\"X\",\"Yes\",IF(J15=\"X\",\"Yes\"))))))","v":""},"Yes","","","","","","","","","",""]
[8,null,null,{"$f":"IFERROR(IF(VLOOKUP(B16,Moves!$A$1:$D$150,2,FALSE)=\"A\",\"X\",\" \"),\"\")","v":""},{"$f":"IFERROR(IF(VLOOKUP(B16,Moves!$A$1:$D$150,2,FALSE)=\"B\",\"X\",\" \"),\"\")","v":""},{"$f":"IFERROR(IF(VLOOKUP(B16,Moves!$A$1:$D$150,2,FALSE)=\"C\",\"X\",\" \"),\"\")","v":""},{"$f":"IFERROR(IF(VLOOKUP(B16,Moves!$A$1:$D$150,2,FALSE)=\"D\",\"X\",\" \"),\"\")","v":""},{"$f":"IFERROR(IF(VLOOKUP(B16,Moves!$A$1:$D$150,3,FALSE)=1,\"X\",\" \"),\"\")","v":""},{"$f":"IFERROR(IF(VLOOKUP(B16,Moves!$A$1:$D$150,3,FALSE)=2,\"X\",\" \"),\"\")","v":""},{"$f":"IFERROR(IF(VLOOKUP(B16,Moves!$A$1:$D$150,3,FALSE)=3,\"X\",\" \"),\"\")","v":""},{"$f":"IFERROR(IF(VLOOKUP(B16,Moves!$A$1:$D$150,3,FALSE)=4,\"X\",\" \"),\"\")","v":""},null,null,null,null,{"$f":"IF(ISNUMBER(SEARCH($B$9,Q16)),MAX($P$8:P15)+1,0)","v":8},"Japana (up to 45⁰ chest)",null,null,{"$f":"IFERROR(VLOOKUP(ROWS($Q$9:Q16),$P$9:$Q$162,2,0),\"\")","v":"Japana (up to 45⁰ chest)"},null,null,null,{"$f":"IF(ISNUMBER(SEARCH($B$10,Y16)),MAX($X$8:X15)+1,0)","v":8},"Japana (up to 45⁰ chest)",null,null,{"$f":"IFERROR(VLOOKUP(ROWS($Y$9:Y16),$X$9:$Y$162,2,0),\"\")","v":"Japana (up to 45⁰ chest)"},null,null,null,{"$f":"IF(ISNUMBER(SEARCH($B$11,AG16)),MAX($AF$8:AF15)+1,0)","v":8},"Japana (up to 45⁰ chest)",null,null,{"$f":"IFERROR(VLOOKUP(ROWS($AG$9:AG16),$AF$9:$AG$162,2,0),\"\")","v":"Japana (up to 45⁰ chest)"},null,null,null,{"$f":"IF(ISNUMBER(SEARCH($B$12,AO16)),MAX($AN$8:AN15)+1,0)","v":8},"Japana (up to 45⁰ chest)",null,null,{"$f":"IFERROR(VLOOKUP(ROWS($AO$9:AO16),$AN$9:$AO$162,2,0),\"\")","v":"Japana (up to 45⁰ chest)"},null,null,null,{"$f":"IF(ISNUMBER(SEARCH($B$13,AW16)),MAX($AV$8:AV15)+1,0)","v":8},"Japana (up to 45⁰ chest)",null,null,{"$f":"IFERROR(VLOOKUP(ROWS($AW$9:AW16),$AV$9:$AW$162,2,0),\"\")","v":"Japana (up to 45⁰ chest)"},null,null,null,{"$f":"IF(ISNUMBER(SEARCH($B$14,BE16)),MAX($BD$8:BD15)+1,0)","v":8},"Japana (up to 45⁰ chest)",null,null,{"$f":"IFERROR(VLOOKUP(ROWS($BE$9:BE16),$BD$9:$BE$162,2,0),\"\")","v":"Japana (up to 45⁰ chest)"},null,null,null,{"$f":"IF(ISNUMBER(SEARCH($B$15,BM16)),MAX($BL$8:BL15)+1,0)","v":8},"Japana (up to 45⁰ chest)",null,null,{"$f":"IFERROR(VLOOKUP(ROWS($BM$9:BM16),$BL$9:$BM$162,2,0),\"\")","v":"Japana (up to 45⁰ chest)"},null,null,null,{"$f":"IF(ISNUMBER(SEARCH($B$16,BU16)),MAX($BT$8:BT15)+1,0)","v":8},"Japana (up to 45⁰ chest)",null,null,{"$f":"IFERROR(VLOOKUP(ROWS($BU$9:BU16),$BT$9:$BU$162,2,0),\"\")","v":"Japana (up to 45⁰ chest)"},null,null,null,{"$f":"IF(ISNUMBER(SEARCH($B$17,CC16)),MAX($CB$8:CB15)+1,0)","v":8},"Japana (up to 45⁰ chest)",null,null,{"$f":"IFERROR(VLOOKUP(ROWS($CC$9:CC16),$CB$9:$CC$162,2,0),\"\")","v":"Japana (up to 45⁰ chest)"},null,null,null,{"$f":"IF(ISNUMBER(SEARCH($B$18,CK16)),MAX($CJ$8:CJ15)+1,0)","v":8},"Japana (up to 45⁰ chest)",null,null,{"$f":"IFERROR(VLOOKUP(ROWS($CK$9:CK16),$CJ$9:$CK$162,2,0),\"\")","v":"Japana (up to 45⁰ chest)"},null,null,null,"","","No","","","",{"$f":"IF(L16<>\"Acrobatic skill\",\"\",IF(VLOOKUP(B16,Moves!$A$1:$D$150,4,FALSE)=\"\",IF(J16=\"X\",\"Yes\",IF(K16=\"X\",\"Yes\",\"No\")),\"No\"))","v":""},{"$f":"IF(L16<>\"Flight skill/series\",\"\",IF(K16=\"X\",IF(VLOOKUP(B16,Moves!A8:D157,4,FALSE)<>\"\",\"Yes\",\"No\"),\"No\"))","v":""},"",{"$f":"IF(M16<>$M$33,\"\",IF(G16<>\"X\",\"No\",IF(VLOOKUP(B16,Moves!$A$1:$D$150,3,FALSE)<>4,IF(H16=\"X\",\"Yes\",IF(I16=\"X\",\"Yes\",IF(J16=\"X\",\"Yes\"))))))","v":""},"Yes","","","","","","","","","",""]
[9,null,null,{"$f":"IFERROR(IF(VLOOKUP(B17,Moves!$A$1:$D$150,2,FALSE)=\"A\",\"X\",\" \"),\"\")","v":""},{"$f":"IFERROR(IF(VLOOKUP(B17,Moves!$A$1:$D$150,2,FALSE)=\"B\",\"X\",\" \"),\"\")","v":""},{"$f":"IFERROR(IF(VLOOKUP(B17,Moves!$A$1:$D$150,2,FALSE)=\"C\",\"X\",\" \"),\"\")","v":""},{"$f":"IFERROR(IF(VLOOKUP(B17,Moves!$A$1:$D$150,2,FALSE)=\"D\",\"X\",\" \"),\"\")","v":""},{"$f":"IFERROR(IF(VLOOKUP(B17,Moves!$A$1:$D$150,3,FALSE)=1,\"X\",\" \"),\"\")","v":""},{"$f":"IFERROR(IF(VLOOKUP(B17,Moves!$A$1:$D$150,3,FALSE)=2,\"X\",\" \"),\"\")","v":""},{"$f":"IFERROR(IF(VLOOKUP(B17,Moves!$A$1:$D$150,3,FALSE)=3,\"X\",\" \"),\"\")","v":""},{"$f":"IFERROR(IF(VLOOKUP(B17,Moves!$A$1:$D$150,3,FALSE)=4,\"X\",\" \"),\"\")","v":""},null,null,null,null,{"$f":"IF(ISNUMBER(SEARCH($B$9,Q17)),MAX($P$8:P16)+1,0)","v":9},"D Shape",null,null,{"$f":"IFERROR(VLOOKUP(ROWS($Q$9:Q17),$P$9:$Q$162,2,0),\"\")","v":"D Shape"},null,null,null,{"$f":"IF(ISNUMBER(SEARCH($B$10,Y17)),MAX($X$8:X16)+1,0)","v":9},"D Shape",null,null,{"$f":"IFERROR(VLOOKUP(ROWS($Y$9:Y17),$X$9:$Y$162,2,0),\"\")","v":"D Shape"},null,null,null,{"$f":"IF(ISNUMBER(SEARCH($B$11,AG17)),MAX($AF$8:AF16)+1,0)","v":9},"D Shape",null,null,{"$f":"IFERROR(VLOOKUP(ROWS($AG$9:AG17),$AF$9:$AG$162,2,0),\"\")","v":"D Shape"},null,null,null,{"$f":"IF(ISNUMBER(SEARCH($B$12,AO17)),MAX($AN$8:AN16)+1,0)","v":9},"D Shape",null,null,{"$f":"IFERROR(VLOOKUP(ROWS($AO$9:AO17),$AN$9:$AO$162,2,0),\"\")","v":"D Shape"},null,null,null,{"$f":"IF(ISNUMBER(SEARCH($B$13,AW17)),MAX($AV$8:AV16)+1,0)","v":9},"D Shape",null,null,{"$f":"IFERROR(VLOOKUP(ROWS($AW$9:AW17),$AV$9:$AW$162,2,0),\"\")","v":"D Shape"},null,null,null,{"$f":"IF(ISNUMBER(SEARCH($B$14,BE17)),MAX($BD$8:BD16)+1,0)","v":9},"D Shape",null,null,{"$f":"IFERROR(VLOOKUP(ROWS($BE$9:BE17),$BD$9:$BE$162,2,0),\"\")","v":"D Shape"},null,null,null,{"$f":"IF(ISNUMBER(SEARCH($B$15,BM17)),MAX($BL$8:BL16)+1,0)","v":9},"D Shape",null,null,{"$f":"IFERROR(VLOOKUP(ROWS($BM$9:BM17),$BL$9:$BM$162,2,0),\"\")","v":"D Shape"},null,null,null,{"$f":"IF(ISNUMBER(SEARCH($B$16,BU17)),MAX($BT$8:BT16)+1,0)","v":9},"D Shape",null,null,{"$f":"IFERROR(VLOOKUP(ROWS($BU$9:BU17),$BT$9:$BU$162,2,0),\"\")","v":"D Shape"},null,null,null,{"$f":"IF(ISNUMBER(SEARCH($B$17,CC17)),MAX($CB$8:CB16)+1,0)","v":9},"D Shape",null,null,{"$f":"IFERROR(VLOOKUP(ROWS($CC$9:CC17),$CB$9:$CC$162,2,0),\"\")","v":"D Shape"},null,null,null,{"$f":"IF(ISNUMBER(SEARCH($B$18,CK17)),MAX($CJ$8:CJ16)+1,0)","v":9},"D Shape",null,null,{"$f":"IFERROR(VLOOKUP(ROWS($CK$9:CK17),$CJ$9:$CK$162,2,0),\"\")","v":"D Shape"},null,null,null,"","","No","","","",{"$f":"IF(L17<>\"Acrobatic skill\",\"\",IF(VLOOKUP(B17,Moves!$A$1:$D$150,4,FALSE)=\"\",IF(J17=\"X\",\"Yes\",IF(K17=\"X\",\"Yes\",\"No\")),\"No\"))","v":""},{"$f":"IF(L17<>\"Flight skill/series\",\"\",IF(K17=\"X\",IF(VLOOKUP(B17,Moves!A9:D158,4,FALSE)<>\"\",\"Yes\",\"No\"),\"No\"))","v":""},"",{"$f":"IF(M17<>$M$33,\"\",IF(G17<>\"X\",\"No\",IF(VLOOKUP(B17,Moves!$A$1:$D$150,3,FALSE)<>4,IF(H17=\"X\",\"Yes\",IF(I17=\"X\",\"Yes\",IF(J17=\"X\",\"Yes\"))))))","v":""},"Yes","","","","","","","","","",""]
[10,null,null,{"$f":"IFERROR(IF(VLOOKUP(B18,Moves!$A$1:$D$150,2,FALSE)=\"A\",\"X\",\" \"),\"\")","v":""},{"$f":"IFERROR(IF(VLOOKUP(B18,Moves!$A$1:$D$150,2,FALSE)=\"B\",\"X\",\" \"),\"\")","v":""},{"$f":"IFERROR(IF(VLOOKUP(B18,Moves!$A$1:$D$150,2,FALSE)=\"C\",\"X\",\" \"),\"\")","v":""},{"$f":"IFERROR(IF(VLOOKUP(B18,Moves!$A$1:$D$150,2,FALSE)=\"D\",\"X\",\" \"),\"\")","v":""},{"$f":"IFERROR(IF(VLOOKUP(B18,Moves!$A$1:$D$150,3,FALSE)=1,\"X\",\" \"),\"\")","v":""},{"$f":"IFERROR(IF(VLOOKUP(B18,Moves!$A$1:$D$150,3,FALSE)=2,\"X\",\" \"),\"\")","v":""},{"$f":"IFERROR(IF(VLOOKUP(B18,Moves!$A$1:$D$150,3,FALSE)=3,\"X\",\" \"),\"\")","v":""},{"$f":"IFERROR(IF(VLOOKUP(B18,Moves!$A$1:$D$150,3,FALSE)=4,\"X\",\" \"),\"\")","v":""},null,null,null,null,{"$f":"IF(ISNUMBER(SEARCH($B$9,Q18)),MAX($P$8:P17)+1,0)","v":10},"Bridge",null,null,{"$f":"IFERROR(VLOOKUP(ROWS($Q$9:Q18),$P$9:$Q$162,2,0),\"\")","v":"Bridge"},null,null,null,{"$f":"IF(ISNUMBER(SEARCH($B$10,Y18)),MAX($X$8:X17)+1,0)","v":10},"Bridge",null,null,{"$f":"IFERROR(VLOOKUP(ROWS($Y$9:Y18),$X$9:$Y$162,2,0),\"\")","v":"Bridge"},null,null,null,{"$f":"IF(ISNUMBER(SEARCH($B$11,AG18)),MAX($AF$8:AF17)+1,0)","v":10},"Bridge",null,null,{"$f":"IFERROR(VLOOKUP(ROWS($AG$9:AG18),$AF$9:$AG$162,2,0),\"\")","v":"Bridge"},null,null,null,{"$f":"IF(ISNUMBER(SEARCH($B$12,AO18)),MAX($AN$8:AN17)+1,0)","v":10},"Bridge",null,null,{"$f":"IFERROR(VLOOKUP(ROWS($AO$9:AO18),$AN$9:$AO$162,2,0),\"\")","v":"Bridge"},null,null,null,{"$f":"IF(ISNUMBER(SEARCH($B$13,AW18)),MAX($AV$8:AV17)+1,0)","v":10},"Bridge",null,null,{"$f":"IFERROR(VLOOKUP(ROWS($AW$9:AW18),$AV$9:$AW$162,2,0),\"\")","v":"Bridge"},null,null,null,{"$f":"IF(ISNUMBER(SEARCH($B$14,BE18)),MAX($BD$8:BD17)+1,0)","v":10},"Bridge",null,null,{"$f":"IFERROR(VLOOKUP(ROWS($BE$9:BE18),$BD$9:$BE$162,2,0),\"\")","v":"Bridge"},null,null,null,{"$f":"IF(ISNUMBER(SEARCH($B$15,BM18)),MAX($BL$8:BL17)+1,0)","v":10},"Bridge",null,null,{"$f":"IFERROR(VLOOKUP(ROWS($BM$9:BM18),$BL$9:$BM$162,2,0),\"\")","v":"Bridge"},null,null,null,{"$f":"IF(ISNUMBER(SEARCH($B$16,BU18)),MAX($BT$8:BT17)+1,0)","v":10},"Bridge",null,null,{"$f":"IFERROR(VLOOKUP(ROWS($BU$9:BU18),$BT$9:$BU$162,2,0),\"\")","v":"Bridge"},null,null,null,{"$f":"IF(ISNUMBER(SEARCH($B$17,CC18)),MAX($CB$8:CB17)+1,0)","v":10},"Bridge",null,null,{"$f":"IFERROR(VLOOKUP(ROWS($CC$9:CC18),$CB$9:$CC$162,2,0),\"\")","v":"Bridge"},null,null,null,{"$f":"IF(ISNUMBER(SEARCH($B$18,CK18)),MAX($CJ$8:CJ17)+1,0)","v":10},"Bridge",null,null,{"$f":"IFERROR(VLOOKUP(ROWS($CK$9:CK18),$CJ$9:$CK$162,2,0),\"\")","v":"Bridge"},null,null,null,"","","No","","","",{"$f":"IF(L18<>\"Acrobatic skill\",\"\",IF(VLOOKUP(B18,Moves!$A$1:$D$150,4,FALSE)=\"\",IF(J18=\"X\",\"Yes\",IF(K18=\"X\",\"Yes\",\"No\")),\"No\"))","v":""},{"$f":"IF(L18<>\"Flight skill/series\",\"\",IF(K18=\"X\",IF(VLOOKUP(B18,Moves!A10:D159,4,FALSE)<>\"\",\"Yes\",\"No\"),\"No\"))","v":""},"",{"$f":"IF(M18<>$M$33,\"\",IF(G18<>\"X\",\"No\",IF(VLOOKUP(B18,Moves!$A$1:$D$150,3,FALSE)<>4,IF(H18=\"X\",\"Yes\",IF(I18=\"X\",\"Yes\",IF(J18=\"X\",\"Yes\"))))))","v":""},"Yes","","","","","","","","","",""]
[null,null,null,null,null,null,null,null,null,null,null,null,null,null,null,{"$f":"IF(ISNUMBER(SEARCH($B$9,Q19)),MAX($P$8:P18)+1,0)","v":11},"F or B support (lower or push up) ",null,null,{"$f":"IFERROR(VLOOKUP(ROWS($Q$9:Q19),$P$9:$Q$162,2,0),\"\")","v":"F or B support (lower or push up) "},null,null,null,{"$f":"IF(ISNUMBER(SEARCH($B$10,Y19)),MAX($X$8:X18)+1,0)","v":11},"F or B support (lower or push up) ",null,null,{"$f":"IFERROR(VLOOKUP(ROWS($Y$9:Y19),$X$9:$Y$162,2,0),\"\")","v":"F or B support (lower or push up) "},null,null,null,{"$f":"IF(ISNUMBER(SEARCH($B$11,AG19)),MAX($AF$8:AF18)+1,0)","v":11},"F or B support (lower or push up) ",null,null,{"$f":"IFERROR(VLOOKUP(ROWS($AG$9:AG19),$AF$9:$AG$162,2,0),\"\")","v":"F or B support (lower or push up) "},null,null,null,{"$f":"IF(ISNUMBER(SEARCH($B$12,AO19)),MAX($AN$8:AN18)+1,0)","v":11},"F or B support (lower or push up) ",null,null,{"$f":"IFERROR(VLOOKUP(ROWS($AO$9:AO19),$AN$9:$AO$162,2,0),\"\")","v":"F or B support (lower or push up) "},null,null,null,{"$f":"IF(ISNUMBER(SEARCH($B$13,AW19)),MAX($AV$8:AV18)+1,0)","v":11},"F or B support (lower or push up) ",null,null,{"$f":"IFERROR(VLOOKUP(ROWS($AW$9:AW19),$AV$9:$AW$162,2,0),\"\")","v":"F or B support (lower or push up) "},null,null,null,{"$f":"IF(ISNUMBER(SEARCH($B$14,BE19)),MAX($BD$8:BD18)+1,0)","v":11},"F or B support (lower or push up) ",null,null,{"$f":"IFERROR(VLOOKUP(ROWS($BE$9:BE19),$BD$9:$BE$162,2,0),\"\")","v":"F or B support (lower or push up) "},null,null,null,{"$f":"IF(ISNUMBER(SEARCH($B$15,BM19)),MAX($BL$8:BL18)+1,0)","v":11},"F or B support (lower or push up) ",null,null,{"$f":"IFERROR(VLOOKUP(ROWS($BM$9:BM19),$BL$9:$BM$162,2,0),\"\")","v":"F or B support (lower or push up) "},null,null,null,{"$f":"IF(ISNUMBER(SEARCH($B$16,BU19)),MAX($BT$8:BT18)+1,0)","v":11},"F or B support (lower or push up) ",null,null,{"$f":"IFERROR(VLOOKUP(ROWS($BU$9:BU19),$BT$9:$BU$162,2,0),\"\")","v":"F or B support (lower or push up) "},null,null,null,{"$f":"IF(ISNUMBER(SEARCH($B$17,CC19)),MAX($CB$8:CB18)+1,0)","v":11},"F or B support (lower or push up) ",null,null,{"$f":"IFERROR(VLOOKUP(ROWS($CC$9:CC19),$CB$9:$CC$162,2,0),\"\")","v":"F or B support (lower or push up) "},null,null,null,{"$f":"IF(ISNUMBER(SEARCH($B$18,CK19)),MAX($CJ$8:CJ18)+1,0)","v":11},"F or B support (lower or push up) ",null,null,{"$f":"IFERROR(VLOOKUP(ROWS($CK$9:CK19),$CJ$9:$CK$162,2,0),\"\")","v":"F or B support (lower or push up) "},null,null,null,null,null,null,null,null,null,null,null,null,null,null,null,null,null,null,null,null,null,null,null,{"$f":"IF(ISERROR(MODE($DK$9:$DL$18)),\"Yes\",\"No\")","v":"Yes"}]
["Judges Section",null,null,"Difficulty",null,null,null,"Group Content",null,null,null,null,null,null,null,{"$f":"IF(ISNUMBER(SEARCH($B$9,Q20)),MAX($P$8:P19)+1,0)","v":12},"F Support turn to B Support",null,null,{"$f":"IFERROR(VLOOKUP(ROWS($Q$9:Q20),$P$9:$Q$162,2,0),\"\")","v":"F Support turn to B Support"},null,null,null,{"$f":"IF(ISNUMBER(SEARCH($B$10,Y20)),MAX($X$8:X19)+1,0)","v":12},"F Support turn to B Support",null,null,{"$f":"IFERROR(VLOOKUP(ROWS($Y$9:Y20),$X$9:$Y$162,2,0),\"\")","v":"F Support turn to B Support"},null,null,null,{"$f":"IF(ISNUMBER(SEARCH($B$11,AG20)),MAX($AF$8:AF19)+1,0)","v":12},"F Support turn to B Support",null,null,{"$f":"IFERROR(VLOOKUP(ROWS($AG$9:AG20),$AF$9:$AG$162,2,0),\"\")","v":"F Support turn to B Support"},null,null,null,{"$f":"IF(ISNUMBER(SEARCH($B$12,AO20)),MAX($AN$8:AN19)+1,0)","v":12},"F Support turn to B Support",null,null,{"$f":"IFERROR(VLOOKUP(ROWS($AO$9:AO20),$AN$9:$AO$162,2,0),\"\")","v":"F Support turn to B Support"},null,null,null,{"$f":"IF(ISNUMBER(SEARCH($B$13,AW20)),MAX($AV$8:AV19)+1,0)","v":12},"F Support turn to B Support",null,null,{"$f":"IFERROR(VLOOKUP(ROWS($AW$9:AW20),$AV$9:$AW$162,2,0),\"\")","v":"F Support turn to B Support"},null,null,null,{"$f":"IF(ISNUMBER(SEARCH($B$14,BE20)),MAX($BD$8:BD19)+1,0)","v":12},"F Support turn to B Support",null,null,{"$f":"IFERROR(VLOOKUP(ROWS($BE$9:BE20),$BD$9:$BE$162,2,0),\"\")","v":"F Support turn to B Support"},null,null,null,{"$f":"IF(ISNUMBER(SEARCH($B$15,BM20)),MAX($BL$8:BL19)+1,0)","v":12},"F Support turn to B Support",null,null,{"$f":"IFERROR(VLOOKUP(ROWS($BM$9:BM20),$BL$9:$BM$162,2,0),\"\")","v":"F Support turn to B Support"},null,null,null,{"$f":"IF(ISNUMBER(SEARCH($B$16,BU20)),MAX($BT$8:BT19)+1,0)","v":12},"F Support turn to B Support",null,null,{"$f":"IFERROR(VLOOKUP(ROWS($BU$9:BU20),$BT$9:$BU$162,2,0),\"\")","v":"F Support turn to B Support"},null,null,null,{"$f":"IF(ISNUMBER(SEARCH($B$17,CC20)),MAX($CB$8:CB19)+1,0)","v":12},"F Support turn to B Support",null,null,{"$f":"IFERROR(VLOOKUP(ROWS($CC$9:CC20),$CB$9:$CC$162,2,0),\"\")","v":"F Support turn to B Support"},null,null,null,{"$f":"IF(ISNUMBER(SEARCH($B$18,CK20)),MAX($CJ$8:CJ19)+1,0)","v":12},"F Support turn to B Support",null,null,{"$f":"IFERROR(VLOOKUP(ROWS($CK$9:CK20),$CJ$9:$CK$162,2,0),\"\")","v":"F Support turn to B Support"}]
[null,null,null,"3 x A = 0.60",null,null,null,"2 x Grp 1",null,null,null,"1 = 0.20","C Skill Gp  1,2 or 3 =0.50      ",null,null,{"$f":"IF(ISNUMBER(SEARCH($B$9,Q21)),MAX($P$8:P20)+1,0)","v":13},"Piked V sit (hand supp.)",null,null,{"$f":"IFERROR(VLOOKUP(ROWS($Q$9:Q21),$P$9:$Q$162,2,0),\"\")","v":"Piked V sit (hand supp.)"},null,null,null,{"$f":"IF(ISNUMBER(SEARCH($B$10,Y21)),MAX($X$8:X20)+1,0)","v":13},"Piked V sit (hand supp.)",null,null,{"$f":"IFERROR(VLOOKUP(ROWS($Y$9:Y21),$X$9:$Y$162,2,0),\"\")","v":"Piked V sit (hand supp.)"},null,null,null,{"$f":"IF(ISNUMBER(SEARCH($B$11,AG21)),MAX($AF$8:AF20)+1,0)","v":13},"Piked V sit (hand supp.)",null,null,{"$f":"IFERROR(VLOOKUP(ROWS($AG$9:AG21),$AF$9:$AG$162,2,0),\"\")","v":"Piked V sit (hand supp.)"},null,null,null,{"$f":"IF(ISNUMBER(SEARCH($B$12,AO21)),MAX($AN$8:AN20)+1,0)","v":13},"Piked V sit (hand supp.)",null,null,{"$f":"IFERROR(VLOOKUP(ROWS($AO$9:AO21),$AN$9:$AO$162,2,0),\"\")","v":"Piked V sit (hand supp.)"},null,null,null,{"$f":"IF(ISNUMBER(SEARCH($B$13,AW21)),MAX($AV$8:AV20)+1,0)","v":13},"Piked V sit (hand supp.)",null,null,{"$f":"IFERROR(VLOOKUP(ROWS($AW$9:AW21),$AV$9:$AW$162,2,0),\"\")","v":"Piked V sit (hand supp.)"},null,null,null,{"$f":"IF(ISNUMBER(SEARCH($B$14,BE21)),MAX($BD$8:BD20)+1,0)","v":13},"Piked V sit (hand supp.)",null,null,{"$f":"IFERROR(VLOOKUP(ROWS($BE$9:BE21),$BD$9:$BE$162,2,0),\"\")","v":"Piked V sit (hand supp.)"},null,null,null,{"$f":"IF(ISNUMBER(SEARCH($B$15,BM21)),MAX($BL$8:BL20)+1,0)","v":13},"Piked V sit (hand supp.)",null,null,{"$f":"IFERROR(VLOOKUP(ROWS($BM$9:BM21),$BL$9:$BM$162,2,0),\"\")","v":"Piked V sit (hand supp.)"},null,null,null,{"$f":"IF(ISNUMBER(SEARCH($B$16,BU21)),MAX($BT$8:BT20)+1,0)","v":13},"Piked V sit (hand supp.)",null,null,{"$f":"IFERROR(VLOOKUP(ROWS($BU$9:BU21),$BT$9:$BU$162,2,0),\"\")","v":"Piked V sit (hand supp.)"},null,null,null,{"$f":"IF(ISNUMBER(SEARCH($B$17,CC21)),MAX($CB$8:CB20)+1,0)","v":13},"Piked V sit (hand supp.)",null,null,{"$f":"IFERROR(VLOOKUP(ROWS($CC$9:CC21),$CB$9:$CC$162,2,0),\"\")","v":"Piked V sit (hand supp.)"},null,null,null,{"$f":"IF(ISNUMBER(SEARCH($B$18,CK21)),MAX($CJ$8:CJ20)+1,0)","v":13},"Piked V sit (hand supp.)",null,null,{"$f":"IFERROR(VLOOKUP(ROWS($CK$9:CK21),$CJ$9:$CK$162,2,0),\"\")","v":"Piked V sit (hand supp.)"}]
[null,null,null,"4 x B = 1.20",null,null,null,"2 x Grp 2",null,null,null,"2 = 0.20","Different group from other",null,null,{"$f":"IF(ISNUMBER(SEARCH($B$9,Q22)),MAX($P$8:P21)+1,0)","v":14},"½ lever (1 foot on floor)",null,null,{"$f":"IFERROR(VLOOKUP(ROWS($Q$9:Q22),$P$9:$Q$162,2,0),\"\")","v":"½ lever (1 foot on floor)"},null,null,null,{"$f":"IF(ISNUMBER(SEARCH($B$10,Y22)),MAX($X$8:X21)+1,0)","v":14},"½ lever (1 foot on floor)",null,null,{"$f":"IFERROR(VLOOKUP(ROWS($Y$9:Y22),$X$9:$Y$162,2,0),\"\")","v":"½ lever (1 foot on floor)"},null,null,null,{"$f":"IF(ISNUMBER(SEARCH($B$11,AG22)),MAX($AF$8:AF21)+1,0)","v":14},"½ lever (1 foot on floor)",null,null,{"$f":"IFERROR(VLOOKUP(ROWS($AG$9:AG22),$AF$9:$AG$162,2,0),\"\")","v":"½ lever (1 foot on floor)"},null,null,null,{"$f":"IF(ISNUMBER(SEARCH($B$12,AO22)),MAX($AN$8:AN21)+1,0)","v":14},"½ lever (1 foot on floor)",null,null,{"$f":"IFERROR(VLOOKUP(ROWS($AO$9:AO22),$AN$9:$AO$162,2,0),\"\")","v":"½ lever (1 foot on floor)"},null,null,null,{"$f":"IF(ISNUMBER(SEARCH($B$13,AW22)),MAX($AV$8:AV21)+1,0)","v":14},"½ lever (1 foot on floor)",null,null,{"$f":"IFERROR(VLOOKUP(ROWS($AW$9:AW22),$AV$9:$AW$162,2,0),\"\")","v":"½ lever (1 foot on floor)"},null,null,null,{"$f":"IF(ISNUMBER(SEARCH($B$14,BE22)),MAX($BD$8:BD21)+1,0)","v":14},"½ lever (1 foot on floor)",null,null,{"$f":"IFERROR(VLOOKUP(ROWS($BE$9:BE22),$BD$9:$BE$162,2,0),\"\")","v":"½ lever (1 foot on floor)"},null,null,null,{"$f":"IF(ISNUMBER(SEARCH($B$15,BM22)),MAX($BL$8:BL21)+1,0)","v":14},"½ lever (1 foot on floor)",null,null,{"$f":"IFERROR(VLOOKUP(ROWS($BM$9:BM22),$BL$9:$BM$162,2,0),\"\")","v":"½ lever (1 foot on floor)"},null,null,null,{"$f":"IF(ISNUMBER(SEARCH($B$16,BU22)),MAX($BT$8:BT21)+1,0)","v":14},"½ lever (1 foot on floor)",null,null,{"$f":"IFERROR(VLOOKUP(ROWS($BU$9:BU22),$BT$9:$BU$162,2,0),\"\")","v":"½ lever (1 foot on floor)"},null,null,null,{"$f":"IF(ISNUMBER(SEARCH($B$17,CC22)),MAX($CB$8:CB21)+1,0)","v":14},"½ lever (1 foot on floor)",null,null,{"$f":"IFERROR(VLOOKUP(ROWS($CC$9:CC22),$CB$9:$CC$162,2,0),\"\")","v":"½ lever (1 foot on floor)"},null,null,null,{"$f":"IF(ISNUMBER(SEARCH($B$18,CK22)),MAX($CJ$8:CJ21)+1,0)","v":14},"½ lever (1 foot on floor)",null,null,{"$f":"IFERROR(VLOOKUP(ROWS($CK$9:CK22),$CJ$9:$CK$162,2,0),\"\")","v":"½ lever (1 foot on floor)"}]
[null,null,null,"1x C = 0.50",null,null,null,"2 x Grp 3",null,null,null,"3 = 0.20","C skill",null,null,{"$f":"IF(ISNUMBER(SEARCH($B$9,Q23)),MAX($P$8:P22)+1,0)","v":15},"Headstand  (leg optional)",null,null,{"$f":"IFERROR(VLOOKUP(ROWS($Q$9:Q23),$P$9:$Q$162,2,0),\"\")","v":"Headstand  (leg optional)"},null,null,null,{"$f":"IF(ISNUMBER(SEARCH($B$10,Y23)),MAX($X$8:X22)+1,0)","v":15},"Headstand  (leg optional)",null,null,{"$f":"IFERROR(VLOOKUP(ROWS($Y$9:Y23),$X$9:$Y$162,2,0),\"\")","v":"Headstand  (leg optional)"},null,null,null,{"$f":"IF(ISNUMBER(SEARCH($B$11,AG23)),MAX($AF$8:AF22)+1,0)","v":15},"Headstand  (leg optional)",null,null,{"$f":"IFERROR(VLOOKUP(ROWS($AG$9:AG23),$AF$9:$AG$162,2,0),\"\")","v":"Headstand  (leg optional)"},null,null,null,{"$f":"IF(ISNUMBER(SEARCH($B$12,AO23)),MAX($AN$8:AN22)+1,0)","v":15},"Headstand  (leg optional)",null,null,{"$f":"IFERROR(VLOOKUP(ROWS($AO$9:AO23),$AN$9:$AO$162,2,0),\"\")","v":"Headstand  (leg optional)"},null,null,null,{"$f":"IF(ISNUMBER(SEARCH($B$13,AW23)),MAX($AV$8:AV22)+1,0)","v":15},"Headstand  (leg optional)",null,null,{"$f":"IFERROR(VLOOKUP(ROWS($AW$9:AW23),$AV$9:$AW$162,2,0),\"\")","v":"Headstand  (leg optional)"},null,null,null,{"$f":"IF(ISNUMBER(SEARCH($B$14,BE23)),MAX($BD$8:BD22)+1,0)","v":15},"Headstand  (leg optional)",null,null,{"$f":"IFERROR(VLOOKUP(ROWS($BE$9:BE23),$BD$9:$BE$162,2,0),\"\")","v":"Headstand  (leg optional)"},null,null,null,{"$f":"IF(ISNUMBER(SEARCH($B$15,BM23)),MAX($BL$8:BL22)+1,0)","v":15},"Headstand  (leg optional)",null,null,{"$f":"IFERROR(VLOOKUP(ROWS($BM$9:BM23),$BL$9:$BM$162,2,0),\"\")","v":"Headstand  (leg optional)"},null,null,null,{"$f":"IF(ISNUMBER(SEARCH($B$16,BU23)),MAX($BT$8:BT22)+1,0)","v":15},"Headstand  (leg optional)",null,null,{"$f":"IFERROR(VLOOKUP(ROWS($BU$9:BU23),$BT$9:$BU$162,2,0),\"\")","v":"Headstand  (leg optional)"},null,null,null,{"$f":"IF(ISNUMBER(SEARCH($B$17,CC23)),MAX($CB$8:CB22)+1,0)","v":15},"Headstand  (leg optional)",null,null,{"$f":"IFERROR(VLOOKUP(ROWS($CC$9:CC23),$CB$9:$CC$162,2,0),\"\")","v":"Headstand  (leg optional)"},null,null,null,{"$f":"IF(ISNUMBER(SEARCH($B$18,CK23)),MAX($CJ$8:CJ22)+1,0)","v":15},"Headstand  (leg optional)",null,null,{"$f":"IFERROR(VLOOKUP(ROWS($CK$9:CK23),$CJ$9:$CK$162,2,0),\"\")","v":"Headstand  (leg optional)"}]
[null,null,null,null,null,null,null,"2 x Grp 4",null,null,null,"4 = 0.20","D Skill Gp 1,2 or 3 = 0.70",null,null,{"$f":"IF(ISNUMBER(SEARCH($B$9,Q24)),MAX($P$8:P23)+1,0)","v":16},"Shoulder stand (hip supp)",null,null,{"$f":"IFERROR(VLOOKUP(ROWS($Q$9:Q24),$P$9:$Q$162,2,0),\"\")","v":"Shoulder stand (hip supp)"},null,null,null,{"$f":"IF(ISNUMBER(SEARCH($B$10,Y24)),MAX($X$8:X23)+1,0)","v":16},"Shoulder stand (hip supp)",null,null,{"$f":"IFERROR(VLOOKUP(ROWS($Y$9:Y24),$X$9:$Y$162,2,0),\"\")","v":"Shoulder stand (hip supp)"},null,null,null,{"$f":"IF(ISNUMBER(SEARCH($B$11,AG24)),MAX($AF$8:AF23)+1,0)","v":16},"Shoulder stand (hip supp)",null,null,{"$f":"IFERROR(VLOOKUP(ROWS($AG$9:AG24),$AF$9:$AG$162,2,0),\"\")","v":"Shoulder stand (hip supp)"},null,null,null,{"$f":"IF(ISNUMBER(SEARCH($B$12,AO24)),MAX($AN$8:AN23)+1,0)","v":16},"Shoulder stand (hip supp)",null,null,{"$f":"IFERROR(VLOOKUP(ROWS($AO$9:AO24),$AN$9:$AO$162,2,0),\"\")","v":"Shoulder stand (hip supp)"},null,null,null,{"$f":"IF(ISNUMBER(SEARCH($B$13,AW24)),MAX($AV$8:AV23)+1,0)","v":16},"Shoulder stand (hip supp)",null,null,{"$f":"IFERROR(VLOOKUP(ROWS($AW$9:AW24),$AV$9:$AW$162,2,0),\"\")","v":"Shoulder stand (hip supp)"},null,null,null,{"$f":"IF(ISNUMBER(SEARCH($B$14,BE24)),MAX($BD$8:BD23)+1,0)","v":16},"Shoulder stand (hip supp)",null,null,{"$f":"IFERROR(VLOOKUP(ROWS($BE$9:BE24),$BD$9:$BE$162,2,0),\"\")","v":"Shoulder stand (hip supp)"},null,null,null,{"$f":"IF(ISNUMBER(SEARCH($B$15,BM24)),MAX($BL$8:BL23)+1,0)","v":16},"Shoulder stand (hip supp)",null,null,{"$f":"IFERROR(VLOOKUP(ROWS($BM$9:BM24),$BL$9:$BM$162,2,0),\"\")","v":"Shoulder stand (hip supp)"},null,null,null,{"$f":"IF(ISNUMBER(SEARCH($B$16,BU24)),MAX($BT$8:BT23)+1,0)","v":16},"Shoulder stand (hip supp)",null,null,{"$f":"IFERROR(VLOOKUP(ROWS($BU$9:BU24),$BT$9:$BU$162,2,0),\"\")","v":"Shoulder stand (hip supp)"},null,null,null,{"$f":"IF(ISNUMBER(SEARCH($B$17,CC24)),MAX($CB$8:CB23)+1,0)","v":16},"Shoulder stand (hip supp)",null,null,{"$f":"IFERROR(VLOOKUP(ROWS($CC$9:CC24),$CB$9:$CC$162,2,0),\"\")","v":"Shoulder stand (hip supp)"},null,null,null,{"$f":"IF(ISNUMBER(SEARCH($B$18,CK24)),MAX($CJ$8:CJ23)+1,0)","v":16},"Shoulder stand (hip supp)",null,null,{"$f":"IFERROR(VLOOKUP(ROWS($CK$9:CK24),$CJ$9:$CK$162,2,0),\"\")","v":"Shoulder stand (hip supp)"}]
[null,null,null,null,null,null,null,null,null,null,null,"5 = 0.20",null,null,null,{"$f":"IF(ISNUMBER(SEARCH($B$9,Q25)),MAX($P$8:P24)+1,0)","v":17},"Forward Roll ",null,null,{"$f":"IFERROR(VLOOKUP(ROWS($Q$9:Q25),$P$9:$Q$162,2,0),\"\")","v":"Forward Roll "},null,null,null,{"$f":"IF(ISNUMBER(SEARCH($B$10,Y25)),MAX($X$8:X24)+1,0)","v":17},"Forward Roll ",null,null,{"$f":"IFERROR(VLOOKUP(ROWS($Y$9:Y25),$X$9:$Y$162,2,0),\"\")","v":"Forward Roll "},null,null,null,{"$f":"IF(ISNUMBER(SEARCH($B$11,AG25)),MAX($AF$8:AF24)+1,0)","v":17},"Forward Roll ",null,null,{"$f":"IFERROR(VLOOKUP(ROWS($AG$9:AG25),$AF$9:$AG$162,2,0),\"\")","v":"Forward Roll "},null,null,null,{"$f":"IF(ISNUMBER(SEARCH($B$12,AO25)),MAX($AN$8:AN24)+1,0)","v":17},"Forward Roll ",null,null,{"$f":"IFERROR(VLOOKUP(ROWS($AO$9:AO25),$AN$9:$AO$162,2,0),\"\")","v":"Forward Roll "},null,null,null,{"$f":"IF(ISNUMBER(SEARCH($B$13,AW25)),MAX($AV$8:AV24)+1,0)","v":17},"Forward Roll ",null,null,{"$f":"IFERROR(VLOOKUP(ROWS($AW$9:AW25),$AV$9:$AW$162,2,0),\"\")","v":"Forward Roll "},null,null,null,{"$f":"IF(ISNUMBER(SEARCH($B$14,BE25)),MAX($BD$8:BD24)+1,0)","v":17},"Forward Roll ",null,null,{"$f":"IFERROR(VLOOKUP(ROWS($BE$9:BE25),$BD$9:$BE$162,2,0),\"\")","v":"Forward Roll "},null,null,null,{"$f":"IF(ISNUMBER(SEARCH($B$15,BM25)),MAX($BL$8:BL24)+1,0)","v":17},"Forward Roll ",null,null,{"$f":"IFERROR(VLOOKUP(ROWS($BM$9:BM25),$BL$9:$BM$162,2,0),\"\")","v":"Forward Roll "},null,null,null,{"$f":"IF(ISNUMBER(SEARCH($B$16,BU25)),MAX($BT$8:BT24)+1,0)","v":17},"Forward Roll ",null,null,{"$f":"IFERROR(VLOOKUP(ROWS($BU$9:BU25),$BT$9:$BU$162,2,0),\"\")","v":"Forward Roll "},null,null,null,{"$f":"IF(ISNUMBER(SEARCH($B$17,CC25)),MAX($CB$8:CB24)+1,0)","v":17},"Forward Roll ",null,null,{"$f":"IFERROR(VLOOKUP(ROWS($CC$9:CC25),$CB$9:$CC$162,2,0),\"\")","v":"Forward Roll "},null,null,null,{"$f":"IF(ISNUMBER(SEARCH($B$18,CK25)),MAX($CJ$8:CJ24)+1,0)","v":17},"Forward Roll ",null,null,{"$f":"IFERROR(VLOOKUP(ROWS($CK$9:CK25),$CJ$9:$CK$162,2,0),\"\")","v":"Forward Roll "}]
[null,null,null,"Total = 2.30",null,null,null,null,null,null,null,"Total = 1.00","Total = 1.20",null,null,{"$f":"IF(ISNUMBER(SEARCH($B$9,Q26)),MAX($P$8:P25)+1,0)","v":18},"Back Roll & to straddle",null,null,{"$f":"IFERROR(VLOOKUP(ROWS($Q$9:Q26),$P$9:$Q$162,2,0),\"\")","v":"Back Roll & to straddle"},null,null,null,{"$f":"IF(ISNUMBER(SEARCH($B$10,Y26)),MAX($X$8:X25)+1,0)","v":18},"Back Roll & to straddle",null,null,{"$f":"IFERROR(VLOOKUP(ROWS($Y$9:Y26),$X$9:$Y$162,2,0),\"\")","v":"Back Roll & to straddle"},null,null,null,{"$f":"IF(ISNUMBER(SEARCH($B$11,AG26)),MAX($AF$8:AF25)+1,0)","v":18},"Back Roll & to straddle",null,null,{"$f":"IFERROR(VLOOKUP(ROWS($AG$9:AG26),$AF$9:$AG$162,2,0),\"\")","v":"Back Roll & to straddle"},null,null,null,{"$f":"IF(ISNUMBER(SEARCH($B$12,AO26)),MAX($AN$8:AN25)+1,0)","v":18},"Back Roll & to straddle",null,null,{"$f":"IFERROR(VLOOKUP(ROWS($AO$9:AO26),$AN$9:$AO$162,2,0),\"\")","v":"Back Roll & to straddle"},null,null,null,{"$f":"IF(ISNUMBER(SEARCH($B$13,AW26)),MAX($AV$8:AV25)+1,0)","v":18},"Back Roll & to straddle",null,null,{"$f":"IFERROR(VLOOKUP(ROWS($AW$9:AW26),$AV$9:$AW$162,2,0),\"\")","v":"Back Roll & to straddle"},null,null,null,{"$f":"IF(ISNUMBER(SEARCH($B$14,BE26)),MAX($BD$8:BD25)+1,0)","v":18},"Back Roll & to straddle",null,null,{"$f":"IFERROR(VLOOKUP(ROWS($BE$9:BE26),$BD$9:$BE$162,2,0),\"\")","v":"Back Roll & to straddle"},null,null,null,{"$f":"IF(ISNUMBER(SEARCH($B$15,BM26)),MAX($BL$8:BL25)+1,0)","v":18},"Back Roll & to straddle",null,null,{"$f":"IFERROR(VLOOKUP(ROWS($BM$9:BM26),$BL$9:$BM$162,2,0),\"\")","v":"Back Roll & to straddle"},null,null,null,{"$f":"IF(ISNUMBER(SEARCH($B$16,BU26)),MAX($BT$8:BT25)+1,0)","v":18},"Back Roll & to straddle",null,null,{"$f":"IFERROR(VLOOKUP(ROWS($BU$9:BU26),$BT$9:$BU$162,2,0),\"\")","v":"Back Roll & to straddle"},null,null,null,{"$f":"IF(ISNUMBER(SEARCH($B$17,CC26)),MAX($CB$8:CB25)+1,0)","v":18},"Back Roll & to straddle",null,null,{"$f":"IFERROR(VLOOKUP(ROWS($CC$9:CC26),$CB$9:$CC$162,2,0),\"\")","v":"Back Roll & to straddle"},null,null,null,{"$f":"IF(ISNUMBER(SEARCH($B$18,CK26)),MAX($CJ$8:CJ25)+1,0)","v":18},"Back Roll & to straddle",null,null,{"$f":"IFERROR(VLOOKUP(ROWS($CK$9:CK26),$CJ$9:$CK$162,2,0),\"\")","v":"Back Roll & to straddle"}]
[null,null,null,null,null,null,null,null,null,null,null,null,null,null,null,{"$f":"IF(ISNUMBER(SEARCH($B$9,Q27)),MAX($P$8:P26)+1,0)","v":19},"Circle (‘teddy bear’) roll",null,null,{"$f":"IFERROR(VLOOKUP(ROWS($Q$9:Q27),$P$9:$Q$162,2,0),\"\")","v":"Circle (‘teddy bear’) roll"},null,null,null,{"$f":"IF(ISNUMBER(SEARCH($B$10,Y27)),MAX($X$8:X26)+1,0)","v":19},"Circle (‘teddy bear’) roll",null,null,{"$f":"IFERROR(VLOOKUP(ROWS($Y$9:Y27),$X$9:$Y$162,2,0),\"\")","v":"Circle (‘teddy bear’) roll"},null,null,null,{"$f":"IF(ISNUMBER(SEARCH($B$11,AG27)),MAX($AF$8:AF26)+1,0)","v":19},"Circle (‘teddy bear’) roll",null,null,{"$f":"IFERROR(VLOOKUP(ROWS($AG$9:AG27),$AF$9:$AG$162,2,0),\"\")","v":"Circle (‘teddy bear’) roll"},null,null,null,{"$f":"IF(ISNUMBER(SEARCH($B$12,AO27)),MAX($AN$8:AN26)+1,0)","v":19},"Circle (‘teddy bear’) roll",null,null,{"$f":"IFERROR(VLOOKUP(ROWS($AO$9:AO27),$AN$9:$AO$162,2,0),\"\")","v":"Circle (‘teddy bear’) roll"},null,null,null,{"$f":"IF(ISNUMBER(SEARCH($B$13,AW27)),MAX($AV$8:AV26)+1,0)","v":19},"Circle (‘teddy bear’) roll",null,null,{"$f":"IFERROR(VLOOKUP(ROWS($AW$9:AW27),$AV$9:$AW$162,2,0),\"\")","v":"Circle (‘teddy bear’) roll"},null,null,null,{"$f":"IF(ISNUMBER(SEARCH($B$14,BE27)),MAX($BD$8:BD26)+1,0)","v":19},"Circle (‘teddy bear’) roll",null,null,{"$f":"IFERROR(VLOOKUP(ROWS($BE$9:BE27),$BD$9:$BE$162,2,0),\"\")","v":"Circle (‘teddy bear’) roll"},null,null,null,{"$f":"IF(ISNUMBER(SEARCH($B$15,BM27)),MAX($BL$8:BL26)+1,0)","v":19},"Circle (‘teddy bear’) roll",null,null,{"$f":"IFERROR(VLOOKUP(ROWS($BM$9:BM27),$BL$9:$BM$162,2,0),\"\")","v":"Circle (‘teddy bear’) roll"},null,null,null,{"$f":"IF(ISNUMBER(SEARCH($B$16,BU27)),MAX($BT$8:BT26)+1,0)","v":19},"Circle (‘teddy bear’) roll",null,null,{"$f":"IFERROR(VLOOKUP(ROWS($BU$9:BU27),$BT$9:$BU$162,2,0),\"\")","v":"Circle (‘teddy bear’) roll"},null,null,null,{"$f":"IF(ISNUMBER(SEARCH($B$17,CC27)),MAX($CB$8:CB26)+1,0)","v":19},"Circle (‘teddy bear’) roll",null,null,{"$f":"IFERROR(VLOOKUP(ROWS($CC$9:CC27),$CB$9:$CC$162,2,0),\"\")","v":"Circle (‘teddy bear’) roll"},null,null,null,{"$f":"IF(ISNUMBER(SEARCH($B$18,CK27)),MAX($CJ$8:CJ26)+1,0)","v":19},"Circle (‘teddy bear’) roll",null,null,{"$f":"IFERROR(VLOOKUP(ROWS($CK$9:CK27),$CJ$9:$CK$162,2,0),\"\")","v":"Circle (‘teddy bear’) roll"}]
["Execution",null,null,5,null,null,null,null,null,null,null,null,null,null,null,{"$f":"IF(ISNUMBER(SEARCH($B$9,Q28)),MAX($P$8:P27)+1,0)","v":20},"Side Roll (various shapes)",null,null,{"$f":"IFERROR(VLOOKUP(ROWS($Q$9:Q28),$P$9:$Q$162,2,0),\"\")","v":"Side Roll (various shapes)"},null,null,null,{"$f":"IF(ISNUMBER(SEARCH($B$10,Y28)),MAX($X$8:X27)+1,0)","v":20},"Side Roll (various shapes)",null,null,{"$f":"IFERROR(VLOOKUP(ROWS($Y$9:Y28),$X$9:$Y$162,2,0),\"\")","v":"Side Roll (various shapes)"},null,null,null,{"$f":"IF(ISNUMBER(SEARCH($B$11,AG28)),MAX($AF$8:AF27)+1,0)","v":20},"Side Roll (various shapes)",null,null,{"$f":"IFERROR(VLOOKUP(ROWS($AG$9:AG28),$AF$9:$AG$162,2,0),\"\")","v":"Side Roll (various shapes)"},null,null,null,{"$f":"IF(ISNUMBER(SEARCH($B$12,AO28)),MAX($AN$8:AN27)+1,0)","v":20},"Side Roll (various shapes)",null,null,{"$f":"IFERROR(VLOOKUP(ROWS($AO$9:AO28),$AN$9:$AO$162,2,0),\"\")","v":"Side Roll (various shapes)"},null,null,null,{"$f":"IF(ISNUMBER(SEARCH($B$13,AW28)),MAX($AV$8:AV27)+1,0)","v":20},"Side Roll (various shapes)",null,null,{"$f":"IFERROR(VLOOKUP(ROWS($AW$9:AW28),$AV$9:$AW$162,2,0),\"\")","v":"Side Roll (various shapes)"},null,null,null,{"$f":"IF(ISNUMBER(SEARCH($B$14,BE28)),MAX($BD$8:BD27)+1,0)","v":20},"Side Roll (various shapes)",null,null,{"$f":"IFERROR(VLOOKUP(ROWS($BE$9:BE28),$BD$9:$BE$162,2,0),\"\")","v":"Side Roll (various shapes)"},null,null,null,{"$f":"IF(ISNUMBER(SEARCH($B$15,BM28)),MAX($BL$8:BL27)+1,0)","v":20},"Side Roll (various shapes)",null,null,{"$f":"IFERROR(VLOOKUP(ROWS($BM$9:BM28),$BL$9:$BM$162,2,0),\"\")","v":"Side Roll (various shapes)"},null,null,null,{"$f":"IF(ISNUMBER(SEARCH($B$16,BU28)),MAX($BT$8:BT27)+1,0)","v":20},"Side Roll (various shapes)",null,null,{"$f":"IFERROR(VLOOKUP(ROWS($BU$9:BU28),$BT$9:$BU$162,2,0),\"\")","v":"Side Roll (various shapes)"},null,null,null,{"$f":"IF(ISNUMBER(SEARCH($B$17,CC28)),MAX($CB$8:CB27)+1,0)","v":20},"Side Roll (various shapes)",null,null,{"$f":"IFERROR(VLOOKUP(ROWS($CC$9:CC28),$CB$9:$CC$162,2,0),\"\")","v":"Side Roll (various shapes)"},null,null,null,{"$f":"IF(ISNUMBER(SEARCH($B$18,CK28)),MAX($CJ$8:CJ27)+1,0)","v":20},"Side Roll (various shapes)",null,null,{"$f":"IFERROR(VLOOKUP(ROWS($CK$9:CK28),$CJ$9:$CK$162,2,0),\"\")","v":"Side Roll (various shapes)"}]
["Artistry / Linkage",null,null,0.4,null,null,null,null,null,null,null,null,null,null,null,{"$f":"IF(ISNUMBER(SEARCH($B$9,Q29)),MAX($P$8:P28)+1,0)","v":21},"Egg roll (leg shape optional)",null,null,{"$f":"IFERROR(VLOOKUP(ROWS($Q$9:Q29),$P$9:$Q$162,2,0),\"\")","v":"Egg roll (leg shape optional)"},null,null,null,{"$f":"IF(ISNUMBER(SEARCH($B$10,Y29)),MAX($X$8:X28)+1,0)","v":21},"Egg roll (leg shape optional)",null,null,{"$f":"IFERROR(VLOOKUP(ROWS($Y$9:Y29),$X$9:$Y$162,2,0),\"\")","v":"Egg roll (leg shape optional)"},null,null,null,{"$f":"IF(ISNUMBER(SEARCH($B$11,AG29)),MAX($AF$8:AF28)+1,0)","v":21},"Egg roll (leg shape optional)",null,null,{"$f":"IFERROR(VLOOKUP(ROWS($AG$9:AG29),$AF$9:$AG$162,2,0),\"\")","v":"Egg roll (leg shape optional)"},null,null,null,{"$f":"IF(ISNUMBER(SEARCH($B$12,AO29)),MAX($AN$8:AN28)+1,0)","v":21},"Egg roll (leg shape optional)",null,null,{"$f":"IFERROR(VLOOKUP(ROWS($AO$9:AO29),$AN$9:$AO$162,2,0),\"\")","v":"Egg roll (leg shape optional)"},null,null,null,{"$f":"IF(ISNUMBER(SEARCH($B$13,AW29)),MAX($AV$8:AV28)+1,0)","v":21},"Egg roll (leg shape optional)",null,null,{"$f":"IFERROR(VLOOKUP(ROWS($AW$9:AW29),$AV$9:$AW$162,2,0),\"\")","v":"Egg roll (leg shape optional)"},null,null,null,{"$f":"IF(ISNUMBER(SEARCH($B$14,BE29)),MAX($BD$8:BD28)+1,0)","v":21},"Egg roll (leg shape optional)",null,null,{"$f":"IFERROR(VLOOKUP(ROWS($BE$9:BE29),$BD$9:$BE$162,2,0),\"\")","v":"Egg roll (leg shape optional)"},null,null,null,{"$f":"IF(ISNUMBER(SEARCH($B$15,BM29)),MAX($BL$8:BL28)+1,0)","v":21},"Egg roll (leg shape optional)",null,null,{"$f":"IFERROR(VLOOKUP(ROWS($BM$9:BM29),$BL$9:$BM$162,2,0),\"\")","v":"Egg roll (leg shape optional)"},null,null,null,{"$f":"IF(ISNUMBER(SEARCH($B$16,BU29)),MAX($BT$8:BT28)+1,0)","v":21},"Egg roll (leg shape optional)",null,null,{"$f":"IFERROR(VLOOKUP(ROWS($BU$9:BU29),$BT$9:$BU$162,2,0),\"\")","v":"Egg roll (leg shape optional)"},null,null,null,{"$f":"IF(ISNUMBER(SEARCH($B$17,CC29)),MAX($CB$8:CB28)+1,0)","v":21},"Egg roll (leg shape optional)",null,null,{"$f":"IFERROR(VLOOKUP(ROWS($CC$9:CC29),$CB$9:$CC$162,2,0),\"\")","v":"Egg roll (leg shape optional)"},null,null,null,{"$f":"IF(ISNUMBER(SEARCH($B$18,CK29)),MAX($CJ$8:CJ28)+1,0)","v":21},"Egg roll (leg shape optional)",null,null,{"$f":"IFERROR(VLOOKUP(ROWS($CK$9:CK29),$CJ$9:$CK$162,2,0),\"\")","v":"Egg roll (leg shape optional)"}]
["Total Start Value:",null,null,null,null,null,null,"Total Execution:",null,null,null,null,null,null,null,{"$f":"IF(ISNUMBER(SEARCH($B$9,Q30)),MAX($P$8:P29)+1,0)","v":22},"Tuck Bunny Hop to Handstand ",null,null,{"$f":"IFERROR(VLOOKUP(ROWS($Q$9:Q30),$P$9:$Q$162,2,0),\"\")","v":"Tuck Bunny Hop to Handstand "},null,null,null,{"$f":"IF(ISNUMBER(SEARCH($B$10,Y30)),MAX($X$8:X29)+1,0)","v":22},"Tuck Bunny Hop to Handstand ",null,null,{"$f":"IFERROR(VLOOKUP(ROWS($Y$9:Y30),$X$9:$Y$162,2,0),\"\")","v":"Tuck Bunny Hop to Handstand "},null,null,null,{"$f":"IF(ISNUMBER(SEARCH($B$11,AG30)),MAX($AF$8:AF29)+1,0)","v":22},"Tuck Bunny Hop to Handstand ",null,null,{"$f":"IFERROR(VLOOKUP(ROWS($AG$9:AG30),$AF$9:$AG$162,2,0),\"\")","v":"Tuck Bunny Hop to Handstand "},null,null,null,{"$f":"IF(ISNUMBER(SEARCH($B$12,AO30)),MAX($AN$8:AN29)+1,0)","v":22},"Tuck Bunny Hop to Handstand ",null,null,{"$f":"IFERROR(VLOOKUP(ROWS($AO$9:AO30),$AN$9:$AO$162,2,0),\"\")","v":"Tuck Bunny Hop to Handstand "},null,null,null,{"$f":"IF(ISNUMBER(SEARCH($B$13,AW30)),MAX($AV$8:AV29)+1,0)","v":22},"Tuck Bunny Hop to Handstand ",null,null,{"$f":"IFERROR(VLOOKUP(ROWS($AW$9:AW30),$AV$9:$AW$162,2,0),\"\")","v":"Tuck Bunny Hop to Handstand "},null,null,null,{"$f":"IF(ISNUMBER(SEARCH($B$14,BE30)),MAX($BD$8:BD29)+1,0)","v":22},"Tuck Bunny Hop to Handstand ",null,null,{"$f":"IFERROR(VLOOKUP(ROWS($BE$9:BE30),$BD$9:$BE$162,2,0),\"\")","v":"Tuck Bunny Hop to Handstand "},null,null,null,{"$f":"IF(ISNUMBER(SEARCH($B$15,BM30)),MAX($BL$8:BL29)+1,0)","v":22},"Tuck Bunny Hop to Handstand ",null,null,{"$f":"IFERROR(VLOOKUP(ROWS($BM$9:BM30),$BL$9:$BM$162,2,0),\"\")","v":"Tuck Bunny Hop to Handstand "},null,null,null,{"$f":"IF(ISNUMBER(SEARCH($B$16,BU30)),MAX($BT$8:BT29)+1,0)","v":22},"Tuck Bunny Hop to Handstand ",null,null,{"$f":"IFERROR(VLOOKUP(ROWS($BU$9:BU30),$BT$9:$BU$162,2,0),\"\")","v":"Tuck Bunny Hop to Handstand "},null,null,null,{"$f":"IF(ISNUMBER(SEARCH($B$17,CC30)),MAX($CB$8:CB29)+1,0)","v":22},"Tuck Bunny Hop to Handstand ",null,null,{"$f":"IFERROR(VLOOKUP(ROWS($CC$9:CC30),$CB$9:$CC$162,2,0),\"\")","v":"Tuck Bunny Hop to Handstand "},null,null,null,{"$f":"IF(ISNUMBER(SEARCH($B$18,CK30)),MAX($CJ$8:CJ29)+1,0)","v":22},"Tuck Bunny Hop to Handstand ",null,null,{"$f":"IFERROR(VLOOKUP(ROWS($CK$9:CK30),$CJ$9:$CK$162,2,0),\"\")","v":"Tuck Bunny Hop to Handstand "}]
[null,null,null,null,null,null,null,null,null,null,null,null,null,null,null,{"$f":"IF(ISNUMBER(SEARCH($B$9,Q31)),MAX($P$8:P30)+1,0)","v":23},"Handstand return to feet",null,null,{"$f":"IFERROR(VLOOKUP(ROWS($Q$9:Q31),$P$9:$Q$162,2,0),\"\")","v":"Handstand return to feet"},null,null,null,{"$f":"IF(ISNUMBER(SEARCH($B$10,Y31)),MAX($X$8:X30)+1,0)","v":23},"Handstand return to feet",null,null,{"$f":"IFERROR(VLOOKUP(ROWS($Y$9:Y31),$X$9:$Y$162,2,0),\"\")","v":"Handstand return to feet"},null,null,null,{"$f":"IF(ISNUMBER(SEARCH($B$11,AG31)),MAX($AF$8:AF30)+1,0)","v":23},"Handstand return to feet",null,null,{"$f":"IFERROR(VLOOKUP(ROWS($AG$9:AG31),$AF$9:$AG$162,2,0),\"\")","v":"Handstand return to feet"},null,null,null,{"$f":"IF(ISNUMBER(SEARCH($B$12,AO31)),MAX($AN$8:AN30)+1,0)","v":23},"Handstand return to feet",null,null,{"$f":"IFERROR(VLOOKUP(ROWS($AO$9:AO31),$AN$9:$AO$162,2,0),\"\")","v":"Handstand return to feet"},null,null,null,{"$f":"IF(ISNUMBER(SEARCH($B$13,AW31)),MAX($AV$8:AV30)+1,0)","v":23},"Handstand return to feet",null,null,{"$f":"IFERROR(VLOOKUP(ROWS($AW$9:AW31),$AV$9:$AW$162,2,0),\"\")","v":"Handstand return to feet"},null,null,null,{"$f":"IF(ISNUMBER(SEARCH($B$14,BE31)),MAX($BD$8:BD30)+1,0)","v":23},"Handstand return to feet",null,null,{"$f":"IFERROR(VLOOKUP(ROWS($BE$9:BE31),$BD$9:$BE$162,2,0),\"\")","v":"Handstand return to feet"},null,null,null,{"$f":"IF(ISNUMBER(SEARCH($B$15,BM31)),MAX($BL$8:BL30)+1,0)","v":23},"Handstand return to feet",null,null,{"$f":"IFERROR(VLOOKUP(ROWS($BM$9:BM31),$BL$9:$BM$162,2,0),\"\")","v":"Handstand return to feet"},null,null,null,{"$f":"IF(ISNUMBER(SEARCH($B$16,BU31)),MAX($BT$8:BT30)+1,0)","v":23},"Handstand return to feet",null,null,{"$f":"IFERROR(VLOOKUP(ROWS($BU$9:BU31),$BT$9:$BU$162,2,0),\"\")","v":"Handstand return to feet"},null,null,null,{"$f":"IF(ISNUMBER(SEARCH($B$17,CC31)),MAX($CB$8:CB30)+1,0)","v":23},"Handstand return to feet",null,null,{"$f":"IFERROR(VLOOKUP(ROWS($CC$9:CC31),$CB$9:$CC$162,2,0),\"\")","v":"Handstand return to feet"},null,null,null,{"$f":"IF(ISNUMBER(SEARCH($B$18,CK31)),MAX($CJ$8:CJ30)+1,0)","v":23},"Handstand return to feet",null,null,{"$f":"IFERROR(VLOOKUP(ROWS($CK$9:CK31),$CJ$9:$CK$162,2,0),\"\")","v":"Handstand return to feet"}]
[null,null,null,"A","B","C",null,1,2,3,4,"Sex","Bonus - C Skill",null,null,{"$f":"IF(ISNUMBER(SEARCH($B$9,Q32)),MAX($P$8:P31)+1,0)","v":24},"Cartwheel",null,null,{"$f":"IFERROR(VLOOKUP(ROWS($Q$9:Q32),$P$9:$Q$162,2,0),\"\")","v":"Cartwheel"},null,null,null,{"$f":"IF(ISNUMBER(SEARCH($B$10,Y32)),MAX($X$8:X31)+1,0)","v":24},"Cartwheel",null,null,{"$f":"IFERROR(VLOOKUP(ROWS($Y$9:Y32),$X$9:$Y$162,2,0),\"\")","v":"Cartwheel"},null,null,null,{"$f":"IF(ISNUMBER(SEARCH($B$11,AG32)),MAX($AF$8:AF31)+1,0)","v":24},"Cartwheel",null,null,{"$f":"IFERROR(VLOOKUP(ROWS($AG$9:AG32),$AF$9:$AG$162,2,0),\"\")","v":"Cartwheel"},null,null,null,{"$f":"IF(ISNUMBER(SEARCH($B$12,AO32)),MAX($AN$8:AN31)+1,0)","v":24},"Cartwheel",null,null,{"$f":"IFERROR(VLOOKUP(ROWS($AO$9:AO32),$AN$9:$AO$162,2,0),\"\")","v":"Cartwheel"},null,null,null,{"$f":"IF(ISNUMBER(SEARCH($B$13,AW32)),MAX($AV$8:AV31)+1,0)","v":24},"Cartwheel",null,null,{"$f":"IFERROR(VLOOKUP(ROWS($AW$9:AW32),$AV$9:$AW$162,2,0),\"\")","v":"Cartwheel"},null,null,null,{"$f":"IF(ISNUMBER(SEARCH($B$14,BE32)),MAX($BD$8:BD31)+1,0)","v":24},"Cartwheel",null,null,{"$f":"IFERROR(VLOOKUP(ROWS($BE$9:BE32),$BD$9:$BE$162,2,0),\"\")","v":"Cartwheel"},null,null,null,{"$f":"IF(ISNUMBER(SEARCH($B$15,BM32)),MAX($BL$8:BL31)+1,0)","v":24},"Cartwheel",null,null,{"$f":"IFERROR(VLOOKUP(ROWS($BM$9:BM32),$BL$9:$BM$162,2,0),\"\")","v":"Cartwheel"},null,null,null,{"$f":"IF(ISNUMBER(SEARCH($B$16,BU32)),MAX($BT$8:BT31)+1,0)","v":24},"Cartwheel",null,null,{"$f":"IFERROR(VLOOKUP(ROWS($BU$9:BU32),$BT$9:$BU$162,2,0),\"\")","v":"Cartwheel"},null,null,null,{"$f":"IF(ISNUMBER(SEARCH($B$17,CC32)),MAX($CB$8:CB31)+1,0)","v":24},"Cartwheel",null,null,{"$f":"IFERROR(VLOOKUP(ROWS($CC$9:CC32),$CB$9:$CC$162,2,0),\"\")","v":"Cartwheel"},null,null,null,{"$f":"IF(ISNUMBER(SEARCH($B$18,CK32)),MAX($CJ$8:CJ31)+1,0)","v":24},"Cartwheel",null,null,{"$f":"IFERROR(VLOOKUP(ROWS($CK$9:CK32),$CJ$9:$CK$162,2,0),\"\")","v":"Cartwheel"}]
[null,null,null,{"$f":"IF(COUNTIF(DC9:DC18,\"Yes\")>=3,\"Yes\",\"No\")","v":"No"},{"$f":"IF(COUNTIF(DD9:DD18,\"Yes\")>=4,\"Yes\",\"No\")","v":"No"},{"$f":"IF(COUNTIF(DE9:DE18,\"Yes\")>=1,\"Yes\",\"No\")","v":"No"},null,{"$f":"IF(COUNTIF(H9:H18,\"X\")>=2,IF(COUNTIF(H9:H18,\"X\")<=4,\"Yes\",\"No\"),\"No\")","v":"No"},{"$f":"IF(COUNTIF(I9:I18,\"X\")>=2,IF(COUNTIF(I9:I18,\"X\")<=4,\"Yes\",\"No\"),\"No\")","v":"No"},"No","No","Female","Bonus - D Skill",null,null,{"$f":"IF(ISNUMBER(SEARCH($B$9,Q33)),MAX($P$8:P32)+1,0)","v":25},"Bunny Hop / Jump - (Long)",null,null,{"$f":"IFERROR(VLOOKUP(ROWS($Q$9:Q33),$P$9:$Q$162,2,0),\"\")","v":"Bunny Hop / Jump - (Long)"},null,null,null,{"$f":"IF(ISNUMBER(SEARCH($B$10,Y33)),MAX($X$8:X32)+1,0)","v":25},"Bunny Hop / Jump - (Long)",null,null,{"$f":"IFERROR(VLOOKUP(ROWS($Y$9:Y33),$X$9:$Y$162,2,0),\"\")","v":"Bunny Hop / Jump - (Long)"},null,null,null,{"$f":"IF(ISNUMBER(SEARCH($B$11,AG33)),MAX($AF$8:AF32)+1,0)","v":25},"Bunny Hop / Jump - (Long)",null,null,{"$f":"IFERROR(VLOOKUP(ROWS($AG$9:AG33),$AF$9:$AG$162,2,0),\"\")","v":"Bunny Hop / Jump - (Long)"},null,null,null,{"$f":"IF(ISNUMBER(SEARCH($B$12,AO33)),MAX($AN$8:AN32)+1,0)","v":25},"Bunny Hop / Jump - (Long)",null,null,{"$f":"IFERROR(VLOOKUP(ROWS($AO$9:AO33),$AN$9:$AO$162,2,0),\"\")","v":"Bunny Hop / Jump - (Long)"},null,null,null,{"$f":"IF(ISNUMBER(SEARCH($B$13,AW33)),MAX($AV$8:AV32)+1,0)","v":25},"Bunny Hop / Jump - (Long)",null,null,{"$f":"IFERROR(VLOOKUP(ROWS($AW$9:AW33),$AV$9:$AW$162,2,0),\"\")","v":"Bunny Hop / Jump - (Long)"},null,null,null,{"$f":"IF(ISNUMBER(SEARCH($B$14,BE33)),MAX($BD$8:BD32)+1,0)","v":25},"Bunny Hop / Jump - (Long)",null,null,{"$f":"IFERROR(VLOOKUP(ROWS($BE$9:BE33),$BD$9:$BE$162,2,0),\"\")","v":"Bunny Hop / Jump - (Long)"},null,null,null,{"$f":"IF(ISNUMBER(SEARCH($B$15,BM33)),MAX($BL$8:BL32)+1,0)","v":25},"Bunny Hop / Jump - (Long)",null,null,{"$f":"IFERROR(VLOOKUP(ROWS($BM$9:BM33),$BL$9:$BM$162,2,0),\"\")","v":"Bunny Hop / Jump - (Long)"},null,null,null,{"$f":"IF(ISNUMBER(SEARCH($B$16,BU33)),MAX($BT$8:BT32)+1,0)","v":25},"Bunny Hop / Jump - (Long)",null,null,{"$f":"IFERROR(VLOOKUP(ROWS($BU$9:BU33),$BT$9:$BU$162,2,0),\"\")","v":"Bunny Hop / Jump - (Long)"},null,null,null,{"$f":"IF(ISNUMBER(SEARCH($B$17,CC33)),MAX($CB$8:CB32)+1,0)","v":25},"Bunny Hop / Jump - (Long)",null,null,{"$f":"IFERROR(VLOOKUP(ROWS($CC$9:CC33),$CB$9:$CC$162,2,0),\"\")","v":"Bunny Hop / Jump - (Long)"},null,null,null,{"$f":"IF(ISNUMBER(SEARCH($B$18,CK33)),MAX($CJ$8:CJ32)+1,0)","v":25},"Bunny Hop / Jump - (Long)",null,null,{"$f":"IFERROR(VLOOKUP(ROWS($CK$9:CK33),$CJ$9:$CK$162,2,0),\"\")","v":"Bunny Hop / Jump - (Long)"}]
[null,null,null,null,null,null,null,null,null,null,null,"Male","C Skill ",null,null,{"$f":"IF(ISNUMBER(SEARCH($B$9,Q34)),MAX($P$8:P33)+1,0)","v":26},"Bunny Hop / Jump - (High)",null,null,{"$f":"IFERROR(VLOOKUP(ROWS($Q$9:Q34),$P$9:$Q$162,2,0),\"\")","v":"Bunny Hop / Jump - (High)"},null,null,null,{"$f":"IF(ISNUMBER(SEARCH($B$10,Y34)),MAX($X$8:X33)+1,0)","v":26},"Bunny Hop / Jump - (High)",null,null,{"$f":"IFERROR(VLOOKUP(ROWS($Y$9:Y34),$X$9:$Y$162,2,0),\"\")","v":"Bunny Hop / Jump - (High)"},null,null,null,{"$f":"IF(ISNUMBER(SEARCH($B$11,AG34)),MAX($AF$8:AF33)+1,0)","v":26},"Bunny Hop / Jump - (High)",null,null,{"$f":"IFERROR(VLOOKUP(ROWS($AG$9:AG34),$AF$9:$AG$162,2,0),\"\")","v":"Bunny Hop / Jump - (High)"},null,null,null,{"$f":"IF(ISNUMBER(SEARCH($B$12,AO34)),MAX($AN$8:AN33)+1,0)","v":26},"Bunny Hop / Jump - (High)",null,null,{"$f":"IFERROR(VLOOKUP(ROWS($AO$9:AO34),$AN$9:$AO$162,2,0),\"\")","v":"Bunny Hop / Jump - (High)"},null,null,null,{"$f":"IF(ISNUMBER(SEARCH($B$13,AW34)),MAX($AV$8:AV33)+1,0)","v":26},"Bunny Hop / Jump - (High)",null,null,{"$f":"IFERROR(VLOOKUP(ROWS($AW$9:AW34),$AV$9:$AW$162,2,0),\"\")","v":"Bunny Hop / Jump - (High)"},null,null,null,{"$f":"IF(ISNUMBER(SEARCH($B$14,BE34)),MAX($BD$8:BD33)+1,0)","v":26},"Bunny Hop / Jump - (High)",null,null,{"$f":"IFERROR(VLOOKUP(ROWS($BE$9:BE34),$BD$9:$BE$162,2,0),\"\")","v":"Bunny Hop / Jump - (High)"},null,null,null,{"$f":"IF(ISNUMBER(SEARCH($B$15,BM34)),MAX($BL$8:BL33)+1,0)","v":26},"Bunny Hop / Jump - (High)",null,null,{"$f":"IFERROR(VLOOKUP(ROWS($BM$9:BM34),$BL$9:$BM$162,2,0),\"\")","v":"Bunny Hop / Jump - (High)"},null,null,null,{"$f":"IF(ISNUMBER(SEARCH($B$16,BU34)),MAX($BT$8:BT33)+1,0)","v":26},"Bunny Hop / Jump - (High)",null,null,{"$f":"IFERROR(VLOOKUP(ROWS($BU$9:BU34),$BT$9:$BU$162,2,0),\"\")","v":"Bunny Hop / Jump - (High)"},null,null,null,{"$f":"IF(ISNUMBER(SEARCH($B$17,CC34)),MAX($CB$8:CB33)+1,0)","v":26},"Bunny Hop / Jump - (High)",null,null,{"$f":"IFERROR(VLOOKUP(ROWS($CC$9:CC34),$CB$9:$CC$162,2,0),\"\")","v":"Bunny Hop / Jump - (High)"},null,null,null,{"$f":"IF(ISNUMBER(SEARCH($B$18,CK34)),MAX($CJ$8:CJ33)+1,0)","v":26},"Bunny Hop / Jump - (High)",null,null,{"$f":"IFERROR(VLOOKUP(ROWS($CK$9:CK34),$CJ$9:$CK$162,2,0),\"\")","v":"Bunny Hop / Jump - (High)"}]
[null,null,null,"Achieved",null,null,null,"Achieved",null,null,null,null,{"$f":"IF(COUNTIF(DB9:DB18,\"Yes\")=10,IF(COUNTIF(CZ9:CZ18,\"Yes\")=1,IF(DL19=\"Yes\",\"Yes\",\"No\"),\"No\"),\"No\")","v":"No"},null,null,{"$f":"IF(ISNUMBER(SEARCH($B$9,Q35)),MAX($P$8:P34)+1,0)","v":27},"Split leap / jump (120° )",null,null,{"$f":"IFERROR(VLOOKUP(ROWS($Q$9:Q35),$P$9:$Q$162,2,0),\"\")","v":"Split leap / jump (120° )"},null,null,null,{"$f":"IF(ISNUMBER(SEARCH($B$10,Y35)),MAX($X$8:X34)+1,0)","v":27},"Split leap / jump (120° )",null,null,{"$f":"IFERROR(VLOOKUP(ROWS($Y$9:Y35),$X$9:$Y$162,2,0),\"\")","v":"Split leap / jump (120° )"},null,null,null,{"$f":"IF(ISNUMBER(SEARCH($B$11,AG35)),MAX($AF$8:AF34)+1,0)","v":27},"Split leap / jump (120° )",null,null,{"$f":"IFERROR(VLOOKUP(ROWS($AG$9:AG35),$AF$9:$AG$162,2,0),\"\")","v":"Split leap / jump (120° )"},null,null,null,{"$f":"IF(ISNUMBER(SEARCH($B$12,AO35)),MAX($AN$8:AN34)+1,0)","v":27},"Split leap / jump (120° )",null,null,{"$f":"IFERROR(VLOOKUP(ROWS($AO$9:AO35),$AN$9:$AO$162,2,0),\"\")","v":"Split leap / jump (120° )"},null,null,null,{"$f":"IF(ISNUMBER(SEARCH($B$13,AW35)),MAX($AV$8:AV34)+1,0)","v":27},"Split leap / jump (120° )",null,null,{"$f":"IFERROR(VLOOKUP(ROWS($AW$9:AW35),$AV$9:$AW$162,2,0),\"\")","v":"Split leap / jump (120° )"},null,null,null,{"$f":"IF(ISNUMBER(SEARCH($B$14,BE35)),MAX($BD$8:BD34)+1,0)","v":27},"Split leap / jump (120° )",null,null,{"$f":"IFERROR(VLOOKUP(ROWS($BE$9:BE35),$BD$9:$BE$162,2,0),\"\")","v":"Split leap / jump (120° )"},null,null,null,{"$f":"IF(ISNUMBER(SEARCH($B$15,BM35)),MAX($BL$8:BL34)+1,0)","v":27},"Split leap / jump (120° )",null,null,{"$f":"IFERROR(VLOOKUP(ROWS($BM$9:BM35),$BL$9:$BM$162,2,0),\"\")","v":"Split leap / jump (120° )"},null,null,null,{"$f":"IF(ISNUMBER(SEARCH($B$16,BU35)),MAX($BT$8:BT34)+1,0)","v":27},"Split leap / jump (120° )",null,null,{"$f":"IFERROR(VLOOKUP(ROWS($BU$9:BU35),$BT$9:$BU$162,2,0),\"\")","v":"Split leap / jump (120° )"},null,null,null,{"$f":"IF(ISNUMBER(SEARCH($B$17,CC35)),MAX($CB$8:CB34)+1,0)","v":27},"Split leap / jump (120° )",null,null,{"$f":"IFERROR(VLOOKUP(ROWS($CC$9:CC35),$CB$9:$CC$162,2,0),\"\")","v":"Split leap / jump (120° )"},null,null,null,{"$f":"IF(ISNUMBER(SEARCH($B$18,CK35)),MAX($CJ$8:CJ34)+1,0)","v":27},"Split leap / jump (120° )",null,null,{"$f":"IFERROR(VLOOKUP(ROWS($CK$9:CK35),$CJ$9:$CK$162,2,0),\"\")","v":"Split leap / jump (120° )"}]
[null,null,null,{"$f":"IF(COUNTIF(D33:F33,\"Yes\")=3,\"Yes\",\"No\")","v":"No"},null,null,null,{"$f":"IF(COUNTIF(H33:K33,\"Yes\")=4,\"Yes\",\"No\")","v":"No"},null,null,null,"GIRLS",null,null,null,{"$f":"IF(ISNUMBER(SEARCH($B$9,Q36)),MAX($P$8:P35)+1,0)","v":28},"Stag leap or jump ",null,null,{"$f":"IFERROR(VLOOKUP(ROWS($Q$9:Q36),$P$9:$Q$162,2,0),\"\")","v":"Stag leap or jump "},null,null,null,{"$f":"IF(ISNUMBER(SEARCH($B$10,Y36)),MAX($X$8:X35)+1,0)","v":28},"Stag leap or jump ",null,null,{"$f":"IFERROR(VLOOKUP(ROWS($Y$9:Y36),$X$9:$Y$162,2,0),\"\")","v":"Stag leap or jump "},null,null,null,{"$f":"IF(ISNUMBER(SEARCH($B$11,AG36)),MAX($AF$8:AF35)+1,0)","v":28},"Stag leap or jump ",null,null,{"$f":"IFERROR(VLOOKUP(ROWS($AG$9:AG36),$AF$9:$AG$162,2,0),\"\")","v":"Stag leap or jump "},null,null,null,{"$f":"IF(ISNUMBER(SEARCH($B$12,AO36)),MAX($AN$8:AN35)+1,0)","v":28},"Stag leap or jump ",null,null,{"$f":"IFERROR(VLOOKUP(ROWS($AO$9:AO36),$AN$9:$AO$162,2,0),\"\")","v":"Stag leap or jump "},null,null,null,{"$f":"IF(ISNUMBER(SEARCH($B$13,AW36)),MAX($AV$8:AV35)+1,0)","v":28},"Stag leap or jump ",null,null,{"$f":"IFERROR(VLOOKUP(ROWS($AW$9:AW36),$AV$9:$AW$162,2,0),\"\")","v":"Stag leap or jump "},null,null,null,{"$f":"IF(ISNUMBER(SEARCH($B$14,BE36)),MAX($BD$8:BD35)+1,0)","v":28},"Stag leap or jump ",null,null,{"$f":"IFERROR(VLOOKUP(ROWS($BE$9:BE36),$BD$9:$BE$162,2,0),\"\")","v":"Stag leap or jump "},null,null,null,{"$f":"IF(ISNUMBER(SEARCH($B$15,BM36)),MAX($BL$8:BL35)+1,0)","v":28},"Stag leap or jump ",null,null,{"$f":"IFERROR(VLOOKUP(ROWS($BM$9:BM36),$BL$9:$BM$162,2,0),\"\")","v":"Stag leap or jump "},null,null,null,{"$f":"IF(ISNUMBER(SEARCH($B$16,BU36)),MAX($BT$8:BT35)+1,0)","v":28},"Stag leap or jump ",null,null,{"$f":"IFERROR(VLOOKUP(ROWS($BU$9:BU36),$BT$9:$BU$162,2,0),\"\")","v":"Stag leap or jump "},null,null,null,{"$f":"IF(ISNUMBER(SEARCH($B$17,CC36)),MAX($CB$8:CB35)+1,0)","v":28},"Stag leap or jump ",null,null,{"$f":"IFERROR(VLOOKUP(ROWS($CC$9:CC36),$CB$9:$CC$162,2,0),\"\")","v":"Stag leap or jump "},null,null,null,{"$f":"IF(ISNUMBER(SEARCH($B$18,CK36)),MAX($CJ$8:CJ35)+1,0)","v":28},"Stag leap or jump ",null,null,{"$f":"IFERROR(VLOOKUP(ROWS($CK$9:CK36),$CJ$9:$CK$162,2,0),\"\")","v":"Stag leap or jump "}]
[null,null,null,null,null,null,null,null,null,null,null,"Group 1 skill","D Skill ",null,null,{"$f":"IF(ISNUMBER(SEARCH($B$9,Q37)),MAX($P$8:P36)+1,0)","v":29},"Cat leap",null,null,{"$f":"IFERROR(VLOOKUP(ROWS($Q$9:Q37),$P$9:$Q$162,2,0),\"\")","v":"Cat leap"},null,null,null,{"$f":"IF(ISNUMBER(SEARCH($B$10,Y37)),MAX($X$8:X36)+1,0)","v":29},"Cat leap",null,null,{"$f":"IFERROR(VLOOKUP(ROWS($Y$9:Y37),$X$9:$Y$162,2,0),\"\")","v":"Cat leap"},null,null,null,{"$f":"IF(ISNUMBER(SEARCH($B$11,AG37)),MAX($AF$8:AF36)+1,0)","v":29},"Cat leap",null,null,{"$f":"IFERROR(VLOOKUP(ROWS($AG$9:AG37),$AF$9:$AG$162,2,0),\"\")","v":"Cat leap"},null,null,null,{"$f":"IF(ISNUMBER(SEARCH($B$12,AO37)),MAX($AN$8:AN36)+1,0)","v":29},"Cat leap",null,null,{"$f":"IFERROR(VLOOKUP(ROWS($AO$9:AO37),$AN$9:$AO$162,2,0),\"\")","v":"Cat leap"},null,null,null,{"$f":"IF(ISNUMBER(SEARCH($B$13,AW37)),MAX($AV$8:AV36)+1,0)","v":29},"Cat leap",null,null,{"$f":"IFERROR(VLOOKUP(ROWS($AW$9:AW37),$AV$9:$AW$162,2,0),\"\")","v":"Cat leap"},null,null,null,{"$f":"IF(ISNUMBER(SEARCH($B$14,BE37)),MAX($BD$8:BD36)+1,0)","v":29},"Cat leap",null,null,{"$f":"IFERROR(VLOOKUP(ROWS($BE$9:BE37),$BD$9:$BE$162,2,0),\"\")","v":"Cat leap"},null,null,null,{"$f":"IF(ISNUMBER(SEARCH($B$15,BM37)),MAX($BL$8:BL36)+1,0)","v":29},"Cat leap",null,null,{"$f":"IFERROR(VLOOKUP(ROWS($BM$9:BM37),$BL$9:$BM$162,2,0),\"\")","v":"Cat leap"},null,null,null,{"$f":"IF(ISNUMBER(SEARCH($B$16,BU37)),MAX($BT$8:BT36)+1,0)","v":29},"Cat leap",null,null,{"$f":"IFERROR(VLOOKUP(ROWS($BU$9:BU37),$BT$9:$BU$162,2,0),\"\")","v":"Cat leap"},null,null,null,{"$f":"IF(ISNUMBER(SEARCH($B$17,CC37)),MAX($CB$8:CB36)+1,0)","v":29},"Cat leap",null,null,{"$f":"IFERROR(VLOOKUP(ROWS($CC$9:CC37),$CB$9:$CC$162,2,0),\"\")","v":"Cat leap"},null,null,null,{"$f":"IF(ISNUMBER(SEARCH($B$18,CK37)),MAX($CJ$8:CJ36)+1,0)","v":29},"Cat leap",null,null,{"$f":"IFERROR(VLOOKUP(ROWS($CK$9:CK37),$CJ$9:$CK$162,2,0),\"\")","v":"Cat leap"}]
[null,null,null,null,null,null,null,null,null,null,null,"Group 2 skill - Held",{"$f":"IF(COUNTIF(DB9:DB18,\"Yes\")=10,IF(COUNTIF(DA9:DA18,\"Yes\")=1,\"Yes\",\"No\"),\"No\")","v":"No"},null,null,{"$f":"IF(ISNUMBER(SEARCH($B$9,Q38)),MAX($P$8:P37)+1,0)","v":30},"Jump full turn ",null,null,{"$f":"IFERROR(VLOOKUP(ROWS($Q$9:Q38),$P$9:$Q$162,2,0),\"\")","v":"Jump full turn "},null,null,null,{"$f":"IF(ISNUMBER(SEARCH($B$10,Y38)),MAX($X$8:X37)+1,0)","v":30},"Jump full turn ",null,null,{"$f":"IFERROR(VLOOKUP(ROWS($Y$9:Y38),$X$9:$Y$162,2,0),\"\")","v":"Jump full turn "},null,null,null,{"$f":"IF(ISNUMBER(SEARCH($B$11,AG38)),MAX($AF$8:AF37)+1,0)","v":30},"Jump full turn ",null,null,{"$f":"IFERROR(VLOOKUP(ROWS($AG$9:AG38),$AF$9:$AG$162,2,0),\"\")","v":"Jump full turn "},null,null,null,{"$f":"IF(ISNUMBER(SEARCH($B$12,AO38)),MAX($AN$8:AN37)+1,0)","v":30},"Jump full turn ",null,null,{"$f":"IFERROR(VLOOKUP(ROWS($AO$9:AO38),$AN$9:$AO$162,2,0),\"\")","v":"Jump full turn "},null,null,null,{"$f":"IF(ISNUMBER(SEARCH($B$13,AW38)),MAX($AV$8:AV37)+1,0)","v":30},"Jump full turn ",null,null,{"$f":"IFERROR(VLOOKUP(ROWS($AW$9:AW38),$AV$9:$AW$162,2,0),\"\")","v":"Jump full turn "},null,null,null,{"$f":"IF(ISNUMBER(SEARCH($B$14,BE38)),MAX($BD$8:BD37)+1,0)","v":30},"Jump full turn ",null,null,{"$f":"IFERROR(VLOOKUP(ROWS($BE$9:BE38),$BD$9:$BE$162,2,0),\"\")","v":"Jump full turn "},null,null,null,{"$f":"IF(ISNUMBER(SEARCH($B$15,BM38)),MAX($BL$8:BL37)+1,0)","v":30},"Jump full turn ",null,null,{"$f":"IFERROR(VLOOKUP(ROWS($BM$9:BM38),$BL$9:$BM$162,2,0),\"\")","v":"Jump full turn "},null,null,null,{"$f":"IF(ISNUMBER(SEARCH($B$16,BU38)),MAX($BT$8:BT37)+1,0)","v":30},"Jump full turn ",null,null,{"$f":"IFERROR(VLOOKUP(ROWS($BU$9:BU38),$BT$9:$BU$162,2,0),\"\")","v":"Jump full turn "},null,null,null,{"$f":"IF(ISNUMBER(SEARCH($B$17,CC38)),MAX($CB$8:CB37)+1,0)","v":30},"Jump full turn ",null,null,{"$f":"IFERROR(VLOOKUP(ROWS($CC$9:CC38),$CB$9:$CC$162,2,0),\"\")","v":"Jump full turn "},null,null,null,{"$f":"IF(ISNUMBER(SEARCH($B$18,CK38)),MAX($CJ$8:CJ37)+1,0)","v":30},"Jump full turn ",null,null,{"$f":"IFERROR(VLOOKUP(ROWS($CK$9:CK38),$CJ$9:$CK$162,2,0),\"\")","v":"Jump full turn "}]
[null,null,null,null,null,null,null,null,null,null,null,"Mixed series",null,null,null,{"$f":"IF(ISNUMBER(SEARCH($B$9,Q39)),MAX($P$8:P38)+1,0)","v":31},"Scissor jump ",null,null,{"$f":"IFERROR(VLOOKUP(ROWS($Q$9:Q39),$P$9:$Q$162,2,0),\"\")","v":"Scissor jump "},null,null,null,{"$f":"IF(ISNUMBER(SEARCH($B$10,Y39)),MAX($X$8:X38)+1,0)","v":31},"Scissor jump ",null,null,{"$f":"IFERROR(VLOOKUP(ROWS($Y$9:Y39),$X$9:$Y$162,2,0),\"\")","v":"Scissor jump "},null,null,null,{"$f":"IF(ISNUMBER(SEARCH($B$11,AG39)),MAX($AF$8:AF38)+1,0)","v":31},"Scissor jump ",null,null,{"$f":"IFERROR(VLOOKUP(ROWS($AG$9:AG39),$AF$9:$AG$162,2,0),\"\")","v":"Scissor jump "},null,null,null,{"$f":"IF(ISNUMBER(SEARCH($B$12,AO39)),MAX($AN$8:AN38)+1,0)","v":31},"Scissor jump ",null,null,{"$f":"IFERROR(VLOOKUP(ROWS($AO$9:AO39),$AN$9:$AO$162,2,0),\"\")","v":"Scissor jump "},null,null,null,{"$f":"IF(ISNUMBER(SEARCH($B$13,AW39)),MAX($AV$8:AV38)+1,0)","v":31},"Scissor jump ",null,null,{"$f":"IFERROR(VLOOKUP(ROWS($AW$9:AW39),$AV$9:$AW$162,2,0),\"\")","v":"Scissor jump "},null,null,null,{"$f":"IF(ISNUMBER(SEARCH($B$14,BE39)),MAX($BD$8:BD38)+1,0)","v":31},"Scissor jump ",null,null,{"$f":"IFERROR(VLOOKUP(ROWS($BE$9:BE39),$BD$9:$BE$162,2,0),\"\")","v":"Scissor jump "},null,null,null,{"$f":"IF(ISNUMBER(SEARCH($B$15,BM39)),MAX($BL$8:BL38)+1,0)","v":31},"Scissor jump ",null,null,{"$f":"IFERROR(VLOOKUP(ROWS($BM$9:BM39),$BL$9:$BM$162,2,0),\"\")","v":"Scissor jump "},null,null,null,{"$f":"IF(ISNUMBER(SEARCH($B$16,BU39)),MAX($BT$8:BT38)+1,0)","v":31},"Scissor jump ",null,null,{"$f":"IFERROR(VLOOKUP(ROWS($BU$9:BU39),$BT$9:$BU$162,2,0),\"\")","v":"Scissor jump "},null,null,null,{"$f":"IF(ISNUMBER(SEARCH($B$17,CC39)),MAX($CB$8:CB38)+1,0)","v":31},"Scissor jump ",null,null,{"$f":"IFERROR(VLOOKUP(ROWS($CC$9:CC39),$CB$9:$CC$162,2,0),\"\")","v":"Scissor jump "},null,null,null,{"$f":"IF(ISNUMBER(SEARCH($B$18,CK39)),MAX($CJ$8:CJ38)+1,0)","v":31},"Scissor jump ",null,null,{"$f":"IFERROR(VLOOKUP(ROWS($CK$9:CK39),$CJ$9:$CK$162,2,0),\"\")","v":"Scissor jump "}]
[null,null,null,null,null,null,null,null,null,null,null,"Acrobatic skill","Criteria met before bonus",null,null,{"$f":"IF(ISNUMBER(SEARCH($B$9,Q40)),MAX($P$8:P39)+1,0)","v":32},"W jump",null,null,{"$f":"IFERROR(VLOOKUP(ROWS($Q$9:Q40),$P$9:$Q$162,2,0),\"\")","v":"W jump"},null,null,null,{"$f":"IF(ISNUMBER(SEARCH($B$10,Y40)),MAX($X$8:X39)+1,0)","v":32},"W jump",null,null,{"$f":"IFERROR(VLOOKUP(ROWS($Y$9:Y40),$X$9:$Y$162,2,0),\"\")","v":"W jump"},null,null,null,{"$f":"IF(ISNUMBER(SEARCH($B$11,AG40)),MAX($AF$8:AF39)+1,0)","v":32},"W jump",null,null,{"$f":"IFERROR(VLOOKUP(ROWS($AG$9:AG40),$AF$9:$AG$162,2,0),\"\")","v":"W jump"},null,null,null,{"$f":"IF(ISNUMBER(SEARCH($B$12,AO40)),MAX($AN$8:AN39)+1,0)","v":32},"W jump",null,null,{"$f":"IFERROR(VLOOKUP(ROWS($AO$9:AO40),$AN$9:$AO$162,2,0),\"\")","v":"W jump"},null,null,null,{"$f":"IF(ISNUMBER(SEARCH($B$13,AW40)),MAX($AV$8:AV39)+1,0)","v":32},"W jump",null,null,{"$f":"IFERROR(VLOOKUP(ROWS($AW$9:AW40),$AV$9:$AW$162,2,0),\"\")","v":"W jump"},null,null,null,{"$f":"IF(ISNUMBER(SEARCH($B$14,BE40)),MAX($BD$8:BD39)+1,0)","v":32},"W jump",null,null,{"$f":"IFERROR(VLOOKUP(ROWS($BE$9:BE40),$BD$9:$BE$162,2,0),\"\")","v":"W jump"},null,null,null,{"$f":"IF(ISNUMBER(SEARCH($B$15,BM40)),MAX($BL$8:BL39)+1,0)","v":32},"W jump",null,null,{"$f":"IFERROR(VLOOKUP(ROWS($BM$9:BM40),$BL$9:$BM$162,2,0),\"\")","v":"W jump"},null,null,null,{"$f":"IF(ISNUMBER(SEARCH($B$16,BU40)),MAX($BT$8:BT39)+1,0)","v":32},"W jump",null,null,{"$f":"IFERROR(VLOOKUP(ROWS($BU$9:BU40),$BT$9:$BU$162,2,0),\"\")","v":"W jump"},null,null,null,{"$f":"IF(ISNUMBER(SEARCH($B$17,CC40)),MAX($CB$8:CB39)+1,0)","v":32},"W jump",null,null,{"$f":"IFERROR(VLOOKUP(ROWS($CC$9:CC40),$CB$9:$CC$162,2,0),\"\")","v":"W jump"},null,null,null,{"$f":"IF(ISNUMBER(SEARCH($B$18,CK40)),MAX($CJ$8:CJ39)+1,0)","v":32},"W jump",null,null,{"$f":"IFERROR(VLOOKUP(ROWS($CK$9:CK40),$CJ$9:$CK$162,2,0),\"\")","v":"W jump"}]
[null,null,null,null,null,null,null,null,null,null,null,"Flight skill/series",{"$f":"IF(D36=\"Yes\",IF(H36=\"Yes\",IF(L75=\"Yes\",\"Yes\",\"No\"),\"No\"),\"No\")","v":"No"},null,null,{"$f":"IF(ISNUMBER(SEARCH($B$9,Q41)),MAX($P$8:P40)+1,0)","v":33},"Arabesque",null,null,{"$f":"IFERROR(VLOOKUP(ROWS($Q$9:Q41),$P$9:$Q$162,2,0),\"\")","v":"Arabesque"},null,null,null,{"$f":"IF(ISNUMBER(SEARCH($B$10,Y41)),MAX($X$8:X40)+1,0)","v":33},"Arabesque",null,null,{"$f":"IFERROR(VLOOKUP(ROWS($Y$9:Y41),$X$9:$Y$162,2,0),\"\")","v":"Arabesque"},null,null,null,{"$f":"IF(ISNUMBER(SEARCH($B$11,AG41)),MAX($AF$8:AF40)+1,0)","v":33},"Arabesque",null,null,{"$f":"IFERROR(VLOOKUP(ROWS($AG$9:AG41),$AF$9:$AG$162,2,0),\"\")","v":"Arabesque"},null,null,null,{"$f":"IF(ISNUMBER(SEARCH($B$12,AO41)),MAX($AN$8:AN40)+1,0)","v":33},"Arabesque",null,null,{"$f":"IFERROR(VLOOKUP(ROWS($AO$9:AO41),$AN$9:$AO$162,2,0),\"\")","v":"Arabesque"},null,null,null,{"$f":"IF(ISNUMBER(SEARCH($B$13,AW41)),MAX($AV$8:AV40)+1,0)","v":33},"Arabesque",null,null,{"$f":"IFERROR(VLOOKUP(ROWS($AW$9:AW41),$AV$9:$AW$162,2,0),\"\")","v":"Arabesque"},null,null,null,{"$f":"IF(ISNUMBER(SEARCH($B$14,BE41)),MAX($BD$8:BD40)+1,0)","v":33},"Arabesque",null,null,{"$f":"IFERROR(VLOOKUP(ROWS($BE$9:BE41),$BD$9:$BE$162,2,0),\"\")","v":"Arabesque"},null,null,null,{"$f":"IF(ISNUMBER(SEARCH($B$15,BM41)),MAX($BL$8:BL40)+1,0)","v":33},"Arabesque",null,null,{"$f":"IFERROR(VLOOKUP(ROWS($BM$9:BM41),$BL$9:$BM$162,2,0),\"\")","v":"Arabesque"},null,null,null,{"$f":"IF(ISNUMBER(SEARCH($B$16,BU41)),MAX($BT$8:BT40)+1,0)","v":33},"Arabesque",null,null,{"$f":"IFERROR(VLOOKUP(ROWS($BU$9:BU41),$BT$9:$BU$162,2,0),\"\")","v":"Arabesque"},null,null,null,{"$f":"IF(ISNUMBER(SEARCH($B$17,CC41)),MAX($CB$8:CB40)+1,0)","v":33},"Arabesque",null,null,{"$f":"IFERROR(VLOOKUP(ROWS($CC$9:CC41),$CB$9:$CC$162,2,0),\"\")","v":"Arabesque"},null,null,null,{"$f":"IF(ISNUMBER(SEARCH($B$18,CK41)),MAX($CJ$8:CJ40)+1,0)","v":33},"Arabesque",null,null,{"$f":"IFERROR(VLOOKUP(ROWS($CK$9:CK41),$CJ$9:$CK$162,2,0),\"\")","v":"Arabesque"}]
[null,null,null,null,null,null,null,null,null,null,null,"BOYS",null,null,null,{"$f":"IF(ISNUMBER(SEARCH($B$9,Q42)),MAX($P$8:P41)+1,0)","v":34},"Japana (flat back, chest to floor)",null,null,{"$f":"IFERROR(VLOOKUP(ROWS($Q$9:Q42),$P$9:$Q$162,2,0),\"\")","v":"Japana (flat back, chest to floor)"},null,null,null,{"$f":"IF(ISNUMBER(SEARCH($B$10,Y42)),MAX($X$8:X41)+1,0)","v":34},"Japana (flat back, chest to floor)",null,null,{"$f":"IFERROR(VLOOKUP(ROWS($Y$9:Y42),$X$9:$Y$162,2,0),\"\")","v":"Japana (flat back, chest to floor)"},null,null,null,{"$f":"IF(ISNUMBER(SEARCH($B$11,AG42)),MAX($AF$8:AF41)+1,0)","v":34},"Japana (flat back, chest to floor)",null,null,{"$f":"IFERROR(VLOOKUP(ROWS($AG$9:AG42),$AF$9:$AG$162,2,0),\"\")","v":"Japana (flat back, chest to floor)"},null,null,null,{"$f":"IF(ISNUMBER(SEARCH($B$12,AO42)),MAX($AN$8:AN41)+1,0)","v":34},"Japana (flat back, chest to floor)",null,null,{"$f":"IFERROR(VLOOKUP(ROWS($AO$9:AO42),$AN$9:$AO$162,2,0),\"\")","v":"Japana (flat back, chest to floor)"},null,null,null,{"$f":"IF(ISNUMBER(SEARCH($B$13,AW42)),MAX($AV$8:AV41)+1,0)","v":34},"Japana (flat back, chest to floor)",null,null,{"$f":"IFERROR(VLOOKUP(ROWS($AW$9:AW42),$AV$9:$AW$162,2,0),\"\")","v":"Japana (flat back, chest to floor)"},null,null,null,{"$f":"IF(ISNUMBER(SEARCH($B$14,BE42)),MAX($BD$8:BD41)+1,0)","v":34},"Japana (flat back, chest to floor)",null,null,{"$f":"IFERROR(VLOOKUP(ROWS($BE$9:BE42),$BD$9:$BE$162,2,0),\"\")","v":"Japana (flat back, chest to floor)"},null,null,null,{"$f":"IF(ISNUMBER(SEARCH($B$15,BM42)),MAX($BL$8:BL41)+1,0)","v":34},"Japana (flat back, chest to floor)",null,null,{"$f":"IFERROR(VLOOKUP(ROWS($BM$9:BM42),$BL$9:$BM$162,2,0),\"\")","v":"Japana (flat back, chest to floor)"},null,null,null,{"$f":"IF(ISNUMBER(SEARCH($B$16,BU42)),MAX($BT$8:BT41)+1,0)","v":34},"Japana (flat back, chest to floor)",null,null,{"$f":"IFERROR(VLOOKUP(ROWS($BU$9:BU42),$BT$9:$BU$162,2,0),\"\")","v":"Japana (flat back, chest to floor)"},null,null,null,{"$f":"IF(ISNUMBER(SEARCH($B$17,CC42)),MAX($CB$8:CB41)+1,0)","v":34},"Japana (flat back, chest to floor)",null,null,{"$f":"IFERROR(VLOOKUP(ROWS($CC$9:CC42),$CB$9:$CC$162,2,0),\"\")","v":"Japana (flat back, chest to floor)"},null,null,null,{"$f":"IF(ISNUMBER(SEARCH($B$18,CK42)),MAX($CJ$8:CJ41)+1,0)","v":34},"Japana (flat back, chest to floor)",null,null,{"$f":"IFERROR(VLOOKUP(ROWS($CK$9:CK42),$CJ$9:$CK$162,2,0),\"\")","v":"Japana (flat back, chest to floor)"}]
[null,null,null,null,null,null,null,null,null,null,null,"Group 2 skill","Achieved",null,null,{"$f":"IF(ISNUMBER(SEARCH($B$9,Q43)),MAX($P$8:P42)+1,0)","v":35},"Fall to prone push to Front Support",null,null,{"$f":"IFERROR(VLOOKUP(ROWS($Q$9:Q43),$P$9:$Q$162,2,0),\"\")","v":"Fall to prone push to Front Support"},null,null,null,{"$f":"IF(ISNUMBER(SEARCH($B$10,Y43)),MAX($X$8:X42)+1,0)","v":35},"Fall to prone push to Front Support",null,null,{"$f":"IFERROR(VLOOKUP(ROWS($Y$9:Y43),$X$9:$Y$162,2,0),\"\")","v":"Fall to prone push to Front Support"},null,null,null,{"$f":"IF(ISNUMBER(SEARCH($B$11,AG43)),MAX($AF$8:AF42)+1,0)","v":35},"Fall to prone push to Front Support",null,null,{"$f":"IFERROR(VLOOKUP(ROWS($AG$9:AG43),$AF$9:$AG$162,2,0),\"\")","v":"Fall to prone push to Front Support"},null,null,null,{"$f":"IF(ISNUMBER(SEARCH($B$12,AO43)),MAX($AN$8:AN42)+1,0)","v":35},"Fall to prone push to Front Support",null,null,{"$f":"IFERROR(VLOOKUP(ROWS($AO$9:AO43),$AN$9:$AO$162,2,0),\"\")","v":"Fall to prone push to Front Support"},null,null,null,{"$f":"IF(ISNUMBER(SEARCH($B$13,AW43)),MAX($AV$8:AV42)+1,0)","v":35},"Fall to prone push to Front Support",null,null,{"$f":"IFERROR(VLOOKUP(ROWS($AW$9:AW43),$AV$9:$AW$162,2,0),\"\")","v":"Fall to prone push to Front Support"},null,null,null,{"$f":"IF(ISNUMBER(SEARCH($B$14,BE43)),MAX($BD$8:BD42)+1,0)","v":35},"Fall to prone push to Front Support",null,null,{"$f":"IFERROR(VLOOKUP(ROWS($BE$9:BE43),$BD$9:$BE$162,2,0),\"\")","v":"Fall to prone push to Front Support"},null,null,null,{"$f":"IF(ISNUMBER(SEARCH($B$15,BM43)),MAX($BL$8:BL42)+1,0)","v":35},"Fall to prone push to Front Support",null,null,{"$f":"IFERROR(VLOOKUP(ROWS($BM$9:BM43),$BL$9:$BM$162,2,0),\"\")","v":"Fall to prone push to Front Support"},null,null,null,{"$f":"IF(ISNUMBER(SEARCH($B$16,BU43)),MAX($BT$8:BT42)+1,0)","v":35},"Fall to prone push to Front Support",null,null,{"$f":"IFERROR(VLOOKUP(ROWS($BU$9:BU43),$BT$9:$BU$162,2,0),\"\")","v":"Fall to prone push to Front Support"},null,null,null,{"$f":"IF(ISNUMBER(SEARCH($B$17,CC43)),MAX($CB$8:CB42)+1,0)","v":35},"Fall to prone push to Front Support",null,null,{"$f":"IFERROR(VLOOKUP(ROWS($CC$9:CC43),$CB$9:$CC$162,2,0),\"\")","v":"Fall to prone push to Front Support"},null,null,null,{"$f":"IF(ISNUMBER(SEARCH($B$18,CK43)),MAX($CJ$8:CJ42)+1,0)","v":35},"Fall to prone push to Front Support",null,null,{"$f":"IFERROR(VLOOKUP(ROWS($CK$9:CK43),$CJ$9:$CK$162,2,0),\"\")","v":"Fall to prone push to Front Support"}]
[null,null,null,null,null,null,null,null,null,null,null,"Group 2 skill - Held",{"$f":"IF(M41=\"Yes\",IF(M35=\"Yes\",IF(M38=\"Yes\",\"Yes\",\"No\"),\"No\"),\"No\")","v":"No"},null,null,{"$f":"IF(ISNUMBER(SEARCH($B$9,Q44)),MAX($P$8:P43)+1,0)","v":36},"Swedish Fall",null,null,{"$f":"IFERROR(VLOOKUP(ROWS($Q$9:Q44),$P$9:$Q$162,2,0),\"\")","v":"Swedish Fall"},null,null,null,{"$f":"IF(ISNUMBER(SEARCH($B$10,Y44)),MAX($X$8:X43)+1,0)","v":36},"Swedish Fall",null,null,{"$f":"IFERROR(VLOOKUP(ROWS($Y$9:Y44),$X$9:$Y$162,2,0),\"\")","v":"Swedish Fall"},null,null,null,{"$f":"IF(ISNUMBER(SEARCH($B$11,AG44)),MAX($AF$8:AF43)+1,0)","v":36},"Swedish Fall",null,null,{"$f":"IFERROR(VLOOKUP(ROWS($AG$9:AG44),$AF$9:$AG$162,2,0),\"\")","v":"Swedish Fall"},null,null,null,{"$f":"IF(ISNUMBER(SEARCH($B$12,AO44)),MAX($AN$8:AN43)+1,0)","v":36},"Swedish Fall",null,null,{"$f":"IFERROR(VLOOKUP(ROWS($AO$9:AO44),$AN$9:$AO$162,2,0),\"\")","v":"Swedish Fall"},null,null,null,{"$f":"IF(ISNUMBER(SEARCH($B$13,AW44)),MAX($AV$8:AV43)+1,0)","v":36},"Swedish Fall",null,null,{"$f":"IFERROR(VLOOKUP(ROWS($AW$9:AW44),$AV$9:$AW$162,2,0),\"\")","v":"Swedish Fall"},null,null,null,{"$f":"IF(ISNUMBER(SEARCH($B$14,BE44)),MAX($BD$8:BD43)+1,0)","v":36},"Swedish Fall",null,null,{"$f":"IFERROR(VLOOKUP(ROWS($BE$9:BE44),$BD$9:$BE$162,2,0),\"\")","v":"Swedish Fall"},null,null,null,{"$f":"IF(ISNUMBER(SEARCH($B$15,BM44)),MAX($BL$8:BL43)+1,0)","v":36},"Swedish Fall",null,null,{"$f":"IFERROR(VLOOKUP(ROWS($BM$9:BM44),$BL$9:$BM$162,2,0),\"\")","v":"Swedish Fall"},null,null,null,{"$f":"IF(ISNUMBER(SEARCH($B$16,BU44)),MAX($BT$8:BT43)+1,0)","v":36},"Swedish Fall",null,null,{"$f":"IFERROR(VLOOKUP(ROWS($BU$9:BU44),$BT$9:$BU$162,2,0),\"\")","v":"Swedish Fall"},null,null,null,{"$f":"IF(ISNUMBER(SEARCH($B$17,CC44)),MAX($CB$8:CB43)+1,0)","v":36},"Swedish Fall",null,null,{"$f":"IFERROR(VLOOKUP(ROWS($CC$9:CC44),$CB$9:$CC$162,2,0),\"\")","v":"Swedish Fall"},null,null,null,{"$f":"IF(ISNUMBER(SEARCH($B$18,CK44)),MAX($CJ$8:CJ43)+1,0)","v":36},"Swedish Fall",null,null,{"$f":"IFERROR(VLOOKUP(ROWS($CK$9:CK44),$CJ$9:$CK$162,2,0),\"\")","v":"Swedish Fall"}]
[null,null,null,null,null,null,null,null,null,null,null,"Mixed series",null,null,null,{"$f":"IF(ISNUMBER(SEARCH($B$9,Q45)),MAX($P$8:P44)+1,0)","v":37},"Piked V sit (no supp.)",null,null,{"$f":"IFERROR(VLOOKUP(ROWS($Q$9:Q45),$P$9:$Q$162,2,0),\"\")","v":"Piked V sit (no supp.)"},null,null,null,{"$f":"IF(ISNUMBER(SEARCH($B$10,Y45)),MAX($X$8:X44)+1,0)","v":37},"Piked V sit (no supp.)",null,null,{"$f":"IFERROR(VLOOKUP(ROWS($Y$9:Y45),$X$9:$Y$162,2,0),\"\")","v":"Piked V sit (no supp.)"},null,null,null,{"$f":"IF(ISNUMBER(SEARCH($B$11,AG45)),MAX($AF$8:AF44)+1,0)","v":37},"Piked V sit (no supp.)",null,null,{"$f":"IFERROR(VLOOKUP(ROWS($AG$9:AG45),$AF$9:$AG$162,2,0),\"\")","v":"Piked V sit (no supp.)"},null,null,null,{"$f":"IF(ISNUMBER(SEARCH($B$12,AO45)),MAX($AN$8:AN44)+1,0)","v":37},"Piked V sit (no supp.)",null,null,{"$f":"IFERROR(VLOOKUP(ROWS($AO$9:AO45),$AN$9:$AO$162,2,0),\"\")","v":"Piked V sit (no supp.)"},null,null,null,{"$f":"IF(ISNUMBER(SEARCH($B$13,AW45)),MAX($AV$8:AV44)+1,0)","v":37},"Piked V sit (no supp.)",null,null,{"$f":"IFERROR(VLOOKUP(ROWS($AW$9:AW45),$AV$9:$AW$162,2,0),\"\")","v":"Piked V sit (no supp.)"},null,null,null,{"$f":"IF(ISNUMBER(SEARCH($B$14,BE45)),MAX($BD$8:BD44)+1,0)","v":37},"Piked V sit (no supp.)",null,null,{"$f":"IFERROR(VLOOKUP(ROWS($BE$9:BE45),$BD$9:$BE$162,2,0),\"\")","v":"Piked V sit (no supp.)"},null,null,null,{"$f":"IF(ISNUMBER(SEARCH($B$15,BM45)),MAX($BL$8:BL44)+1,0)","v":37},"Piked V sit (no supp.)",null,null,{"$f":"IFERROR(VLOOKUP(ROWS($BM$9:BM45),$BL$9:$BM$162,2,0),\"\")","v":"Piked V sit (no supp.)"},null,null,null,{"$f":"IF(ISNUMBER(SEARCH($B$16,BU45)),MAX($BT$8:BT44)+1,0)","v":37},"Piked V sit (no supp.)",null,null,{"$f":"IFERROR(VLOOKUP(ROWS($BU$9:BU45),$BT$9:$BU$162,2,0),\"\")","v":"Piked V sit (no supp.)"},null,null,null,{"$f":"IF(ISNUMBER(SEARCH($B$17,CC45)),MAX($CB$8:CB44)+1,0)","v":37},"Piked V sit (no supp.)",null,null,{"$f":"IFERROR(VLOOKUP(ROWS($CC$9:CC45),$CB$9:$CC$162,2,0),\"\")","v":"Piked V sit (no supp.)"},null,null,null,{"$f":"IF(ISNUMBER(SEARCH($B$18,CK45)),MAX($CJ$8:CJ44)+1,0)","v":37},"Piked V sit (no supp.)",null,null,{"$f":"IFERROR(VLOOKUP(ROWS($CK$9:CK45),$CJ$9:$CK$162,2,0),\"\")","v":"Piked V sit (no supp.)"}]
[null,null,null,null,null,null,null,null,null,null,null,"Acrobatic skill",null,null,null,{"$f":"IF(ISNUMBER(SEARCH($B$9,Q46)),MAX($P$8:P45)+1,0)","v":38},"1/2 lever shown (straight or straddled) ",null,null,{"$f":"IFERROR(VLOOKUP(ROWS($Q$9:Q46),$P$9:$Q$162,2,0),\"\")","v":"1/2 lever shown (straight or straddled) "},null,null,null,{"$f":"IF(ISNUMBER(SEARCH($B$10,Y46)),MAX($X$8:X45)+1,0)","v":38},"1/2 lever shown (straight or straddled) ",null,null,{"$f":"IFERROR(VLOOKUP(ROWS($Y$9:Y46),$X$9:$Y$162,2,0),\"\")","v":"1/2 lever shown (straight or straddled) "},null,null,null,{"$f":"IF(ISNUMBER(SEARCH($B$11,AG46)),MAX($AF$8:AF45)+1,0)","v":38},"1/2 lever shown (straight or straddled) ",null,null,{"$f":"IFERROR(VLOOKUP(ROWS($AG$9:AG46),$AF$9:$AG$162,2,0),\"\")","v":"1/2 lever shown (straight or straddled) "},null,null,null,{"$f":"IF(ISNUMBER(SEARCH($B$12,AO46)),MAX($AN$8:AN45)+1,0)","v":38},"1/2 lever shown (straight or straddled) ",null,null,{"$f":"IFERROR(VLOOKUP(ROWS($AO$9:AO46),$AN$9:$AO$162,2,0),\"\")","v":"1/2 lever shown (straight or straddled) "},null,null,null,{"$f":"IF(ISNUMBER(SEARCH($B$13,AW46)),MAX($AV$8:AV45)+1,0)","v":38},"1/2 lever shown (straight or straddled) ",null,null,{"$f":"IFERROR(VLOOKUP(ROWS($AW$9:AW46),$AV$9:$AW$162,2,0),\"\")","v":"1/2 lever shown (straight or straddled) "},null,null,null,{"$f":"IF(ISNUMBER(SEARCH($B$14,BE46)),MAX($BD$8:BD45)+1,0)","v":38},"1/2 lever shown (straight or straddled) ",null,null,{"$f":"IFERROR(VLOOKUP(ROWS($BE$9:BE46),$BD$9:$BE$162,2,0),\"\")","v":"1/2 lever shown (straight or straddled) "},null,null,null,{"$f":"IF(ISNUMBER(SEARCH($B$15,BM46)),MAX($BL$8:BL45)+1,0)","v":38},"1/2 lever shown (straight or straddled) ",null,null,{"$f":"IFERROR(VLOOKUP(ROWS($BM$9:BM46),$BL$9:$BM$162,2,0),\"\")","v":"1/2 lever shown (straight or straddled) "},null,null,null,{"$f":"IF(ISNUMBER(SEARCH($B$16,BU46)),MAX($BT$8:BT45)+1,0)","v":38},"1/2 lever shown (straight or straddled) ",null,null,{"$f":"IFERROR(VLOOKUP(ROWS($BU$9:BU46),$BT$9:$BU$162,2,0),\"\")","v":"1/2 lever shown (straight or straddled) "},null,null,null,{"$f":"IF(ISNUMBER(SEARCH($B$17,CC46)),MAX($CB$8:CB45)+1,0)","v":38},"1/2 lever shown (straight or straddled) ",null,null,{"$f":"IFERROR(VLOOKUP(ROWS($CC$9:CC46),$CB$9:$CC$162,2,0),\"\")","v":"1/2 lever shown (straight or straddled) "},null,null,null,{"$f":"IF(ISNUMBER(SEARCH($B$18,CK46)),MAX($CJ$8:CJ45)+1,0)","v":38},"1/2 lever shown (straight or straddled) ",null,null,{"$f":"IFERROR(VLOOKUP(ROWS($CK$9:CK46),$CJ$9:$CK$162,2,0),\"\")","v":"1/2 lever shown (straight or straddled) "}]
[null,null,null,null,null,null,null,null,null,null,null,"Flight skill/series",null,null,null,{"$f":"IF(ISNUMBER(SEARCH($B$9,Q47)),MAX($P$8:P46)+1,0)","v":39},"Shoulder stand (no support)",null,null,{"$f":"IFERROR(VLOOKUP(ROWS($Q$9:Q47),$P$9:$Q$162,2,0),\"\")","v":"Shoulder stand (no support)"},null,null,null,{"$f":"IF(ISNUMBER(SEARCH($B$10,Y47)),MAX($X$8:X46)+1,0)","v":39},"Shoulder stand (no support)",null,null,{"$f":"IFERROR(VLOOKUP(ROWS($Y$9:Y47),$X$9:$Y$162,2,0),\"\")","v":"Shoulder stand (no support)"},null,null,null,{"$f":"IF(ISNUMBER(SEARCH($B$11,AG47)),MAX($AF$8:AF46)+1,0)","v":39},"Shoulder stand (no support)",null,null,{"$f":"IFERROR(VLOOKUP(ROWS($AG$9:AG47),$AF$9:$AG$162,2,0),\"\")","v":"Shoulder stand (no support)"},null,null,null,{"$f":"IF(ISNUMBER(SEARCH($B$12,AO47)),MAX($AN$8:AN46)+1,0)","v":39},"Shoulder stand (no support)",null,null,{"$f":"IFERROR(VLOOKUP(ROWS($AO$9:AO47),$AN$9:$AO$162,2,0),\"\")","v":"Shoulder stand (no support)"},null,null,null,{"$f":"IF(ISNUMBER(SEARCH($B$13,AW47)),MAX($AV$8:AV46)+1,0)","v":39},"Shoulder stand (no support)",null,null,{"$f":"IFERROR(VLOOKUP(ROWS($AW$9:AW47),$AV$9:$AW$162,2,0),\"\")","v":"Shoulder stand (no support)"},null,null,null,{"$f":"IF(ISNUMBER(SEARCH($B$14,BE47)),MAX($BD$8:BD46)+1,0)","v":39},"Shoulder stand (no support)",null,null,{"$f":"IFERROR(VLOOKUP(ROWS($BE$9:BE47),$BD$9:$BE$162,2,0),\"\")","v":"Shoulder stand (no support)"},null,null,null,{"$f":"IF(ISNUMBER(SEARCH($B$15,BM47)),MAX($BL$8:BL46)+1,0)","v":39},"Shoulder stand (no support)",null,null,{"$f":"IFERROR(VLOOKUP(ROWS($BM$9:BM47),$BL$9:$BM$162,2,0),\"\")","v":"Shoulder stand (no support)"},null,null,null,{"$f":"IF(ISNUMBER(SEARCH($B$16,BU47)),MAX($BT$8:BT46)+1,0)","v":39},"Shoulder stand (no support)",null,null,{"$f":"IFERROR(VLOOKUP(ROWS($BU$9:BU47),$BT$9:$BU$162,2,0),\"\")","v":"Shoulder stand (no support)"},null,null,null,{"$f":"IF(ISNUMBER(SEARCH($B$17,CC47)),MAX($CB$8:CB46)+1,0)","v":39},"Shoulder stand (no support)",null,null,{"$f":"IFERROR(VLOOKUP(ROWS($CC$9:CC47),$CB$9:$CC$162,2,0),\"\")","v":"Shoulder stand (no support)"},null,null,null,{"$f":"IF(ISNUMBER(SEARCH($B$18,CK47)),MAX($CJ$8:CJ46)+1,0)","v":39},"Shoulder stand (no support)",null,null,{"$f":"IFERROR(VLOOKUP(ROWS($CK$9:CK47),$CJ$9:$CK$162,2,0),\"\")","v":"Shoulder stand (no support)"}]
[null,null,null,null,null,null,null,null,null,null,null,null,null,null,null,{"$f":"IF(ISNUMBER(SEARCH($B$9,Q48)),MAX($P$8:P47)+1,0)","v":40},"F Roll to straddle stand",null,null,{"$f":"IFERROR(VLOOKUP(ROWS($Q$9:Q48),$P$9:$Q$162,2,0),\"\")","v":"F Roll to straddle stand"},null,null,null,{"$f":"IF(ISNUMBER(SEARCH($B$10,Y48)),MAX($X$8:X47)+1,0)","v":40},"F Roll to straddle stand",null,null,{"$f":"IFERROR(VLOOKUP(ROWS($Y$9:Y48),$X$9:$Y$162,2,0),\"\")","v":"F Roll to straddle stand"},null,null,null,{"$f":"IF(ISNUMBER(SEARCH($B$11,AG48)),MAX($AF$8:AF47)+1,0)","v":40},"F Roll to straddle stand",null,null,{"$f":"IFERROR(VLOOKUP(ROWS($AG$9:AG48),$AF$9:$AG$162,2,0),\"\")","v":"F Roll to straddle stand"},null,null,null,{"$f":"IF(ISNUMBER(SEARCH($B$12,AO48)),MAX($AN$8:AN47)+1,0)","v":40},"F Roll to straddle stand",null,null,{"$f":"IFERROR(VLOOKUP(ROWS($AO$9:AO48),$AN$9:$AO$162,2,0),\"\")","v":"F Roll to straddle stand"},null,null,null,{"$f":"IF(ISNUMBER(SEARCH($B$13,AW48)),MAX($AV$8:AV47)+1,0)","v":40},"F Roll to straddle stand",null,null,{"$f":"IFERROR(VLOOKUP(ROWS($AW$9:AW48),$AV$9:$AW$162,2,0),\"\")","v":"F Roll to straddle stand"},null,null,null,{"$f":"IF(ISNUMBER(SEARCH($B$14,BE48)),MAX($BD$8:BD47)+1,0)","v":40},"F Roll to straddle stand",null,null,{"$f":"IFERROR(VLOOKUP(ROWS($BE$9:BE48),$BD$9:$BE$162,2,0),\"\")","v":"F Roll to straddle stand"},null,null,null,{"$f":"IF(ISNUMBER(SEARCH($B$15,BM48)),MAX($BL$8:BL47)+1,0)","v":40},"F Roll to straddle stand",null,null,{"$f":"IFERROR(VLOOKUP(ROWS($BM$9:BM48),$BL$9:$BM$162,2,0),\"\")","v":"F Roll to straddle stand"},null,null,null,{"$f":"IF(ISNUMBER(SEARCH($B$16,BU48)),MAX($BT$8:BT47)+1,0)","v":40},"F Roll to straddle stand",null,null,{"$f":"IFERROR(VLOOKUP(ROWS($BU$9:BU48),$BT$9:$BU$162,2,0),\"\")","v":"F Roll to straddle stand"},null,null,null,{"$f":"IF(ISNUMBER(SEARCH($B$17,CC48)),MAX($CB$8:CB47)+1,0)","v":40},"F Roll to straddle stand",null,null,{"$f":"IFERROR(VLOOKUP(ROWS($CC$9:CC48),$CB$9:$CC$162,2,0),\"\")","v":"F Roll to straddle stand"},null,null,null,{"$f":"IF(ISNUMBER(SEARCH($B$18,CK48)),MAX($CJ$8:CJ47)+1,0)","v":40},"F Roll to straddle stand",null,null,{"$f":"IFERROR(VLOOKUP(ROWS($CK$9:CK48),$CJ$9:$CK$162,2,0),\"\")","v":"F Roll to straddle stand"}]
[null,null,null,null,null,null,null,null,null,null,null,1,null,null,null,{"$f":"IF(ISNUMBER(SEARCH($B$9,Q49)),MAX($P$8:P48)+1,0)","v":41},"Handstand F roll ",null,null,{"$f":"IFERROR(VLOOKUP(ROWS($Q$9:Q49),$P$9:$Q$162,2,0),\"\")","v":"Handstand F roll "},null,null,null,{"$f":"IF(ISNUMBER(SEARCH($B$10,Y49)),MAX($X$8:X48)+1,0)","v":41},"Handstand F roll ",null,null,{"$f":"IFERROR(VLOOKUP(ROWS($Y$9:Y49),$X$9:$Y$162,2,0),\"\")","v":"Handstand F roll "},null,null,null,{"$f":"IF(ISNUMBER(SEARCH($B$11,AG49)),MAX($AF$8:AF48)+1,0)","v":41},"Handstand F roll ",null,null,{"$f":"IFERROR(VLOOKUP(ROWS($AG$9:AG49),$AF$9:$AG$162,2,0),\"\")","v":"Handstand F roll "},null,null,null,{"$f":"IF(ISNUMBER(SEARCH($B$12,AO49)),MAX($AN$8:AN48)+1,0)","v":41},"Handstand F roll ",null,null,{"$f":"IFERROR(VLOOKUP(ROWS($AO$9:AO49),$AN$9:$AO$162,2,0),\"\")","v":"Handstand F roll "},null,null,null,{"$f":"IF(ISNUMBER(SEARCH($B$13,AW49)),MAX($AV$8:AV48)+1,0)","v":41},"Handstand F roll ",null,null,{"$f":"IFERROR(VLOOKUP(ROWS($AW$9:AW49),$AV$9:$AW$162,2,0),\"\")","v":"Handstand F roll "},null,null,null,{"$f":"IF(ISNUMBER(SEARCH($B$14,BE49)),MAX($BD$8:BD48)+1,0)","v":41},"Handstand F roll ",null,null,{"$f":"IFERROR(VLOOKUP(ROWS($BE$9:BE49),$BD$9:$BE$162,2,0),\"\")","v":"Handstand F roll "},null,null,null,{"$f":"IF(ISNUMBER(SEARCH($B$15,BM49)),MAX($BL$8:BL48)+1,0)","v":41},"Handstand F roll ",null,null,{"$f":"IFERROR(VLOOKUP(ROWS($BM$9:BM49),$BL$9:$BM$162,2,0),\"\")","v":"Handstand F roll "},null,null,null,{"$f":"IF(ISNUMBER(SEARCH($B$16,BU49)),MAX($BT$8:BT48)+1,0)","v":41},"Handstand F roll ",null,null,{"$f":"IFERROR(VLOOKUP(ROWS($BU$9:BU49),$BT$9:$BU$162,2,0),\"\")","v":"Handstand F roll "},null,null,null,{"$f":"IF(ISNUMBER(SEARCH($B$17,CC49)),MAX($CB$8:CB48)+1,0)","v":41},"Handstand F roll ",null,null,{"$f":"IFERROR(VLOOKUP(ROWS($CC$9:CC49),$CB$9:$CC$162,2,0),\"\")","v":"Handstand F roll "},null,null,null,{"$f":"IF(ISNUMBER(SEARCH($B$18,CK49)),MAX($CJ$8:CJ48)+1,0)","v":41},"Handstand F roll ",null,null,{"$f":"IFERROR(VLOOKUP(ROWS($CK$9:CK49),$CJ$9:$CK$162,2,0),\"\")","v":"Handstand F roll "}]
[null,null,null,null,null,null,null,null,null,null,null,"Girls G1",null,null,null,{"$f":"IF(ISNUMBER(SEARCH($B$9,Q50)),MAX($P$8:P49)+1,0)","v":42},"B Roll to pike stand",null,null,{"$f":"IFERROR(VLOOKUP(ROWS($Q$9:Q50),$P$9:$Q$162,2,0),\"\")","v":"B Roll to pike stand"},null,null,null,{"$f":"IF(ISNUMBER(SEARCH($B$10,Y50)),MAX($X$8:X49)+1,0)","v":42},"B Roll to pike stand",null,null,{"$f":"IFERROR(VLOOKUP(ROWS($Y$9:Y50),$X$9:$Y$162,2,0),\"\")","v":"B Roll to pike stand"},null,null,null,{"$f":"IF(ISNUMBER(SEARCH($B$11,AG50)),MAX($AF$8:AF49)+1,0)","v":42},"B Roll to pike stand",null,null,{"$f":"IFERROR(VLOOKUP(ROWS($AG$9:AG50),$AF$9:$AG$162,2,0),\"\")","v":"B Roll to pike stand"},null,null,null,{"$f":"IF(ISNUMBER(SEARCH($B$12,AO50)),MAX($AN$8:AN49)+1,0)","v":42},"B Roll to pike stand",null,null,{"$f":"IFERROR(VLOOKUP(ROWS($AO$9:AO50),$AN$9:$AO$162,2,0),\"\")","v":"B Roll to pike stand"},null,null,null,{"$f":"IF(ISNUMBER(SEARCH($B$13,AW50)),MAX($AV$8:AV49)+1,0)","v":42},"B Roll to pike stand",null,null,{"$f":"IFERROR(VLOOKUP(ROWS($AW$9:AW50),$AV$9:$AW$162,2,0),\"\")","v":"B Roll to pike stand"},null,null,null,{"$f":"IF(ISNUMBER(SEARCH($B$14,BE50)),MAX($BD$8:BD49)+1,0)","v":42},"B Roll to pike stand",null,null,{"$f":"IFERROR(VLOOKUP(ROWS($BE$9:BE50),$BD$9:$BE$162,2,0),\"\")","v":"B Roll to pike stand"},null,null,null,{"$f":"IF(ISNUMBER(SEARCH($B$15,BM50)),MAX($BL$8:BL49)+1,0)","v":42},"B Roll to pike stand",null,null,{"$f":"IFERROR(VLOOKUP(ROWS($BM$9:BM50),$BL$9:$BM$162,2,0),\"\")","v":"B Roll to pike stand"},null,null,null,{"$f":"IF(ISNUMBER(SEARCH($B$16,BU50)),MAX($BT$8:BT49)+1,0)","v":42},"B Roll to pike stand",null,null,{"$f":"IFERROR(VLOOKUP(ROWS($BU$9:BU50),$BT$9:$BU$162,2,0),\"\")","v":"B Roll to pike stand"},null,null,null,{"$f":"IF(ISNUMBER(SEARCH($B$17,CC50)),MAX($CB$8:CB49)+1,0)","v":42},"B Roll to pike stand",null,null,{"$f":"IFERROR(VLOOKUP(ROWS($CC$9:CC50),$CB$9:$CC$162,2,0),\"\")","v":"B Roll to pike stand"},null,null,null,{"$f":"IF(ISNUMBER(SEARCH($B$18,CK50)),MAX($CJ$8:CJ49)+1,0)","v":42},"B Roll to pike stand",null,null,{"$f":"IFERROR(VLOOKUP(ROWS($CK$9:CK50),$CJ$9:$CK$162,2,0),\"\")","v":"B Roll to pike stand"}]
[null,null,null,null,null,null,null,null,null,null,null,{"$f":"IF(D5=\"Female\",IF(COUNTIF(CR9:CR18,\"Yes\")>=1,\"Yes\",\"No\"),\"Yes\")","v":"Yes"},null,null,null,{"$f":"IF(ISNUMBER(SEARCH($B$9,Q51)),MAX($P$8:P50)+1,0)","v":43},"Handstand ½ turn",null,null,{"$f":"IFERROR(VLOOKUP(ROWS($Q$9:Q51),$P$9:$Q$162,2,0),\"\")","v":"Handstand ½ turn"},null,null,null,{"$f":"IF(ISNUMBER(SEARCH($B$10,Y51)),MAX($X$8:X50)+1,0)","v":43},"Handstand ½ turn",null,null,{"$f":"IFERROR(VLOOKUP(ROWS($Y$9:Y51),$X$9:$Y$162,2,0),\"\")","v":"Handstand ½ turn"},null,null,null,{"$f":"IF(ISNUMBER(SEARCH($B$11,AG51)),MAX($AF$8:AF50)+1,0)","v":43},"Handstand ½ turn",null,null,{"$f":"IFERROR(VLOOKUP(ROWS($AG$9:AG51),$AF$9:$AG$162,2,0),\"\")","v":"Handstand ½ turn"},null,null,null,{"$f":"IF(ISNUMBER(SEARCH($B$12,AO51)),MAX($AN$8:AN50)+1,0)","v":43},"Handstand ½ turn",null,null,{"$f":"IFERROR(VLOOKUP(ROWS($AO$9:AO51),$AN$9:$AO$162,2,0),\"\")","v":"Handstand ½ turn"},null,null,null,{"$f":"IF(ISNUMBER(SEARCH($B$13,AW51)),MAX($AV$8:AV50)+1,0)","v":43},"Handstand ½ turn",null,null,{"$f":"IFERROR(VLOOKUP(ROWS($AW$9:AW51),$AV$9:$AW$162,2,0),\"\")","v":"Handstand ½ turn"},null,null,null,{"$f":"IF(ISNUMBER(SEARCH($B$14,BE51)),MAX($BD$8:BD50)+1,0)","v":43},"Handstand ½ turn",null,null,{"$f":"IFERROR(VLOOKUP(ROWS($BE$9:BE51),$BD$9:$BE$162,2,0),\"\")","v":"Handstand ½ turn"},null,null,null,{"$f":"IF(ISNUMBER(SEARCH($B$15,BM51)),MAX($BL$8:BL50)+1,0)","v":43},"Handstand ½ turn",null,null,{"$f":"IFERROR(VLOOKUP(ROWS($BM$9:BM51),$BL$9:$BM$162,2,0),\"\")","v":"Handstand ½ turn"},null,null,null,{"$f":"IF(ISNUMBER(SEARCH($B$16,BU51)),MAX($BT$8:BT50)+1,0)","v":43},"Handstand ½ turn",null,null,{"$f":"IFERROR(VLOOKUP(ROWS($BU$9:BU51),$BT$9:$BU$162,2,0),\"\")","v":"Handstand ½ turn"},null,null,null,{"$f":"IF(ISNUMBER(SEARCH($B$17,CC51)),MAX($CB$8:CB50)+1,0)","v":43},"Handstand ½ turn",null,null,{"$f":"IFERROR(VLOOKUP(ROWS($CC$9:CC51),$CB$9:$CC$162,2,0),\"\")","v":"Handstand ½ turn"},null,null,null,{"$f":"IF(ISNUMBER(SEARCH($B$18,CK51)),MAX($CJ$8:CJ50)+1,0)","v":43},"Handstand ½ turn",null,null,{"$f":"IFERROR(VLOOKUP(ROWS($CK$9:CK51),$CJ$9:$CK$162,2,0),\"\")","v":"Handstand ½ turn"}]
[null,null,null,null,null,null,null,null,null,null,null,"Boys G2",null,null,null,{"$f":"IF(ISNUMBER(SEARCH($B$9,Q52)),MAX($P$8:P51)+1,0)","v":44},"Straddle Bunny Hop to Handstand",null,null,{"$f":"IFERROR(VLOOKUP(ROWS($Q$9:Q52),$P$9:$Q$162,2,0),\"\")","v":"Straddle Bunny Hop to Handstand"},null,null,null,{"$f":"IF(ISNUMBER(SEARCH($B$10,Y52)),MAX($X$8:X51)+1,0)","v":44},"Straddle Bunny Hop to Handstand",null,null,{"$f":"IFERROR(VLOOKUP(ROWS($Y$9:Y52),$X$9:$Y$162,2,0),\"\")","v":"Straddle Bunny Hop to Handstand"},null,null,null,{"$f":"IF(ISNUMBER(SEARCH($B$11,AG52)),MAX($AF$8:AF51)+1,0)","v":44},"Straddle Bunny Hop to Handstand",null,null,{"$f":"IFERROR(VLOOKUP(ROWS($AG$9:AG52),$AF$9:$AG$162,2,0),\"\")","v":"Straddle Bunny Hop to Handstand"},null,null,null,{"$f":"IF(ISNUMBER(SEARCH($B$12,AO52)),MAX($AN$8:AN51)+1,0)","v":44},"Straddle Bunny Hop to Handstand",null,null,{"$f":"IFERROR(VLOOKUP(ROWS($AO$9:AO52),$AN$9:$AO$162,2,0),\"\")","v":"Straddle Bunny Hop to Handstand"},null,null,null,{"$f":"IF(ISNUMBER(SEARCH($B$13,AW52)),MAX($AV$8:AV51)+1,0)","v":44},"Straddle Bunny Hop to Handstand",null,null,{"$f":"IFERROR(VLOOKUP(ROWS($AW$9:AW52),$AV$9:$AW$162,2,0),\"\")","v":"Straddle Bunny Hop to Handstand"},null,null,null,{"$f":"IF(ISNUMBER(SEARCH($B$14,BE52)),MAX($BD$8:BD51)+1,0)","v":44},"Straddle Bunny Hop to Handstand",null,null,{"$f":"IFERROR(VLOOKUP(ROWS($BE$9:BE52),$BD$9:$BE$162,2,0),\"\")","v":"Straddle Bunny Hop to Handstand"},null,null,null,{"$f":"IF(ISNUMBER(SEARCH($B$15,BM52)),MAX($BL$8:BL51)+1,0)","v":44},"Straddle Bunny Hop to Handstand",null,null,{"$f":"IFERROR(VLOOKUP(ROWS($BM$9:BM52),$BL$9:$BM$162,2,0),\"\")","v":"Straddle Bunny Hop to Handstand"},null,null,null,{"$f":"IF(ISNUMBER(SEARCH($B$16,BU52)),MAX($BT$8:BT51)+1,0)","v":44},"Straddle Bunny Hop to Handstand",null,null,{"$f":"IFERROR(VLOOKUP(ROWS($BU$9:BU52),$BT$9:$BU$162,2,0),\"\")","v":"Straddle Bunny Hop to Handstand"},null,null,null,{"$f":"IF(ISNUMBER(SEARCH($B$17,CC52)),MAX($CB$8:CB51)+1,0)","v":44},"Straddle Bunny Hop to Handstand",null,null,{"$f":"IFERROR(VLOOKUP(ROWS($CC$9:CC52),$CB$9:$CC$162,2,0),\"\")","v":"Straddle Bunny Hop to Handstand"},null,null,null,{"$f":"IF(ISNUMBER(SEARCH($B$18,CK52)),MAX($CJ$8:CJ51)+1,0)","v":44},"Straddle Bunny Hop to Handstand",null,null,{"$f":"IFERROR(VLOOKUP(ROWS($CK$9:CK52),$CJ$9:$CK$162,2,0),\"\")","v":"Straddle Bunny Hop to Handstand"}]
[null,null,null,null,null,null,null,null,null,null,null,{"$f":"IF(COUNTIF(CU9:CU18,\"Yes\")=1,\"Yes\",\"No\")","v":"No"},null,null,null,{"$f":"IF(ISNUMBER(SEARCH($B$9,Q53)),MAX($P$8:P52)+1,0)","v":45},"Single Leg Circle",null,null,{"$f":"IFERROR(VLOOKUP(ROWS($Q$9:Q53),$P$9:$Q$162,2,0),\"\")","v":"Single Leg Circle"},null,null,null,{"$f":"IF(ISNUMBER(SEARCH($B$10,Y53)),MAX($X$8:X52)+1,0)","v":45},"Single Leg Circle",null,null,{"$f":"IFERROR(VLOOKUP(ROWS($Y$9:Y53),$X$9:$Y$162,2,0),\"\")","v":"Single Leg Circle"},null,null,null,{"$f":"IF(ISNUMBER(SEARCH($B$11,AG53)),MAX($AF$8:AF52)+1,0)","v":45},"Single Leg Circle",null,null,{"$f":"IFERROR(VLOOKUP(ROWS($AG$9:AG53),$AF$9:$AG$162,2,0),\"\")","v":"Single Leg Circle"},null,null,null,{"$f":"IF(ISNUMBER(SEARCH($B$12,AO53)),MAX($AN$8:AN52)+1,0)","v":45},"Single Leg Circle",null,null,{"$f":"IFERROR(VLOOKUP(ROWS($AO$9:AO53),$AN$9:$AO$162,2,0),\"\")","v":"Single Leg Circle"},null,null,null,{"$f":"IF(ISNUMBER(SEARCH($B$13,AW53)),MAX($AV$8:AV52)+1,0)","v":45},"Single Leg Circle",null,null,{"$f":"IFERROR(VLOOKUP(ROWS($AW$9:AW53),$AV$9:$AW$162,2,0),\"\")","v":"Single Leg Circle"},null,null,null,{"$f":"IF(ISNUMBER(SEARCH($B$14,BE53)),MAX($BD$8:BD52)+1,0)","v":45},"Single Leg Circle",null,null,{"$f":"IFERROR(VLOOKUP(ROWS($BE$9:BE53),$BD$9:$BE$162,2,0),\"\")","v":"Single Leg Circle"},null,null,null,{"$f":"IF(ISNUMBER(SEARCH($B$15,BM53)),MAX($BL$8:BL52)+1,0)","v":45},"Single Leg Circle",null,null,{"$f":"IFERROR(VLOOKUP(ROWS($BM$9:BM53),$BL$9:$BM$162,2,0),\"\")","v":"Single Leg Circle"},null,null,null,{"$f":"IF(ISNUMBER(SEARCH($B$16,BU53)),MAX($BT$8:BT52)+1,0)","v":45},"Single Leg Circle",null,null,{"$f":"IFERROR(VLOOKUP(ROWS($BU$9:BU53),$BT$9:$BU$162,2,0),\"\")","v":"Single Leg Circle"},null,null,null,{"$f":"IF(ISNUMBER(SEARCH($B$17,CC53)),MAX($CB$8:CB52)+1,0)","v":45},"Single Leg Circle",null,null,{"$f":"IFERROR(VLOOKUP(ROWS($CC$9:CC53),$CB$9:$CC$162,2,0),\"\")","v":"Single Leg Circle"},null,null,null,{"$f":"IF(ISNUMBER(SEARCH($B$18,CK53)),MAX($CJ$8:CJ52)+1,0)","v":45},"Single Leg Circle",null,null,{"$f":"IFERROR(VLOOKUP(ROWS($CK$9:CK53),$CJ$9:$CK$162,2,0),\"\")","v":"Single Leg Circle"}]
[null,null,null,null,null,null,null,null,null,null,null,{"$f":"IF(D5=\"Female\",IF(L51=\"Yes\",\"Yes\",\"No\"),IF(D5=\"Male\",IF(L53=\"Yes\",\"Yes\",\"No\"),\"No\"))","v":"No"},null,null,null,{"$f":"IF(ISNUMBER(SEARCH($B$9,Q54)),MAX($P$8:P53)+1,0)","v":46},"Backward walkover",null,null,{"$f":"IFERROR(VLOOKUP(ROWS($Q$9:Q54),$P$9:$Q$162,2,0),\"\")","v":"Backward walkover"},null,null,null,{"$f":"IF(ISNUMBER(SEARCH($B$10,Y54)),MAX($X$8:X53)+1,0)","v":46},"Backward walkover",null,null,{"$f":"IFERROR(VLOOKUP(ROWS($Y$9:Y54),$X$9:$Y$162,2,0),\"\")","v":"Backward walkover"},null,null,null,{"$f":"IF(ISNUMBER(SEARCH($B$11,AG54)),MAX($AF$8:AF53)+1,0)","v":46},"Backward walkover",null,null,{"$f":"IFERROR(VLOOKUP(ROWS($AG$9:AG54),$AF$9:$AG$162,2,0),\"\")","v":"Backward walkover"},null,null,null,{"$f":"IF(ISNUMBER(SEARCH($B$12,AO54)),MAX($AN$8:AN53)+1,0)","v":46},"Backward walkover",null,null,{"$f":"IFERROR(VLOOKUP(ROWS($AO$9:AO54),$AN$9:$AO$162,2,0),\"\")","v":"Backward walkover"},null,null,null,{"$f":"IF(ISNUMBER(SEARCH($B$13,AW54)),MAX($AV$8:AV53)+1,0)","v":46},"Backward walkover",null,null,{"$f":"IFERROR(VLOOKUP(ROWS($AW$9:AW54),$AV$9:$AW$162,2,0),\"\")","v":"Backward walkover"},null,null,null,{"$f":"IF(ISNUMBER(SEARCH($B$14,BE54)),MAX($BD$8:BD53)+1,0)","v":46},"Backward walkover",null,null,{"$f":"IFERROR(VLOOKUP(ROWS($BE$9:BE54),$BD$9:$BE$162,2,0),\"\")","v":"Backward walkover"},null,null,null,{"$f":"IF(ISNUMBER(SEARCH($B$15,BM54)),MAX($BL$8:BL53)+1,0)","v":46},"Backward walkover",null,null,{"$f":"IFERROR(VLOOKUP(ROWS($BM$9:BM54),$BL$9:$BM$162,2,0),\"\")","v":"Backward walkover"},null,null,null,{"$f":"IF(ISNUMBER(SEARCH($B$16,BU54)),MAX($BT$8:BT53)+1,0)","v":46},"Backward walkover",null,null,{"$f":"IFERROR(VLOOKUP(ROWS($BU$9:BU54),$BT$9:$BU$162,2,0),\"\")","v":"Backward walkover"},null,null,null,{"$f":"IF(ISNUMBER(SEARCH($B$17,CC54)),MAX($CB$8:CB53)+1,0)","v":46},"Backward walkover",null,null,{"$f":"IFERROR(VLOOKUP(ROWS($CC$9:CC54),$CB$9:$CC$162,2,0),\"\")","v":"Backward walkover"},null,null,null,{"$f":"IF(ISNUMBER(SEARCH($B$18,CK54)),MAX($CJ$8:CJ53)+1,0)","v":46},"Backward walkover",null,null,{"$f":"IFERROR(VLOOKUP(ROWS($CK$9:CK54),$CJ$9:$CK$162,2,0),\"\")","v":"Backward walkover"}]
[null,null,null,null,null,null,null,null,null,null,null,null,null,null,null,{"$f":"IF(ISNUMBER(SEARCH($B$9,Q55)),MAX($P$8:P54)+1,0)","v":47},"Cartwheel ¼ turn in (Front to Back)↓",null,null,{"$f":"IFERROR(VLOOKUP(ROWS($Q$9:Q55),$P$9:$Q$162,2,0),\"\")","v":"Cartwheel ¼ turn in (Front to Back)↓"},null,null,null,{"$f":"IF(ISNUMBER(SEARCH($B$10,Y55)),MAX($X$8:X54)+1,0)","v":47},"Cartwheel ¼ turn in (Front to Back)↓",null,null,{"$f":"IFERROR(VLOOKUP(ROWS($Y$9:Y55),$X$9:$Y$162,2,0),\"\")","v":"Cartwheel ¼ turn in (Front to Back)↓"},null,null,null,{"$f":"IF(ISNUMBER(SEARCH($B$11,AG55)),MAX($AF$8:AF54)+1,0)","v":47},"Cartwheel ¼ turn in (Front to Back)↓",null,null,{"$f":"IFERROR(VLOOKUP(ROWS($AG$9:AG55),$AF$9:$AG$162,2,0),\"\")","v":"Cartwheel ¼ turn in (Front to Back)↓"},null,null,null,{"$f":"IF(ISNUMBER(SEARCH($B$12,AO55)),MAX($AN$8:AN54)+1,0)","v":47},"Cartwheel ¼ turn in (Front to Back)↓",null,null,{"$f":"IFERROR(VLOOKUP(ROWS($AO$9:AO55),$AN$9:$AO$162,2,0),\"\")","v":"Cartwheel ¼ turn in (Front to Back)↓"},null,null,null,{"$f":"IF(ISNUMBER(SEARCH($B$13,AW55)),MAX($AV$8:AV54)+1,0)","v":47},"Cartwheel ¼ turn in (Front to Back)↓",null,null,{"$f":"IFERROR(VLOOKUP(ROWS($AW$9:AW55),$AV$9:$AW$162,2,0),\"\")","v":"Cartwheel ¼ turn in (Front to Back)↓"},null,null,null,{"$f":"IF(ISNUMBER(SEARCH($B$14,BE55)),MAX($BD$8:BD54)+1,0)","v":47},"Cartwheel ¼ turn in (Front to Back)↓",null,null,{"$f":"IFERROR(VLOOKUP(ROWS($BE$9:BE55),$BD$9:$BE$162,2,0),\"\")","v":"Cartwheel ¼ turn in (Front to Back)↓"},null,null,null,{"$f":"IF(ISNUMBER(SEARCH($B$15,BM55)),MAX($BL$8:BL54)+1,0)","v":47},"Cartwheel ¼ turn in (Front to Back)↓",null,null,{"$f":"IFERROR(VLOOKUP(ROWS($BM$9:BM55),$BL$9:$BM$162,2,0),\"\")","v":"Cartwheel ¼ turn in (Front to Back)↓"},null,null,null,{"$f":"IF(ISNUMBER(SEARCH($B$16,BU55)),MAX($BT$8:BT54)+1,0)","v":47},"Cartwheel ¼ turn in (Front to Back)↓",null,null,{"$f":"IFERROR(VLOOKUP(ROWS($BU$9:BU55),$BT$9:$BU$162,2,0),\"\")","v":"Cartwheel ¼ turn in (Front to Back)↓"},null,null,null,{"$f":"IF(ISNUMBER(SEARCH($B$17,CC55)),MAX($CB$8:CB54)+1,0)","v":47},"Cartwheel ¼ turn in (Front to Back)↓",null,null,{"$f":"IFERROR(VLOOKUP(ROWS($CC$9:CC55),$CB$9:$CC$162,2,0),\"\")","v":"Cartwheel ¼ turn in (Front to Back)↓"},null,null,null,{"$f":"IF(ISNUMBER(SEARCH($B$18,CK55)),MAX($CJ$8:CJ54)+1,0)","v":47},"Cartwheel ¼ turn in (Front to Back)↓",null,null,{"$f":"IFERROR(VLOOKUP(ROWS($CK$9:CK55),$CJ$9:$CK$162,2,0),\"\")","v":"Cartwheel ¼ turn in (Front to Back)↓"}]
[null,null,null,null,null,null,null,null,null,null,null,2,null,null,null,{"$f":"IF(ISNUMBER(SEARCH($B$9,Q56)),MAX($P$8:P55)+1,0)","v":48},"Cartwheel ¼ turn out",null,null,{"$f":"IFERROR(VLOOKUP(ROWS($Q$9:Q56),$P$9:$Q$162,2,0),\"\")","v":"Cartwheel ¼ turn out"},null,null,null,{"$f":"IF(ISNUMBER(SEARCH($B$10,Y56)),MAX($X$8:X55)+1,0)","v":48},"Cartwheel ¼ turn out",null,null,{"$f":"IFERROR(VLOOKUP(ROWS($Y$9:Y56),$X$9:$Y$162,2,0),\"\")","v":"Cartwheel ¼ turn out"},null,null,null,{"$f":"IF(ISNUMBER(SEARCH($B$11,AG56)),MAX($AF$8:AF55)+1,0)","v":48},"Cartwheel ¼ turn out",null,null,{"$f":"IFERROR(VLOOKUP(ROWS($AG$9:AG56),$AF$9:$AG$162,2,0),\"\")","v":"Cartwheel ¼ turn out"},null,null,null,{"$f":"IF(ISNUMBER(SEARCH($B$12,AO56)),MAX($AN$8:AN55)+1,0)","v":48},"Cartwheel ¼ turn out",null,null,{"$f":"IFERROR(VLOOKUP(ROWS($AO$9:AO56),$AN$9:$AO$162,2,0),\"\")","v":"Cartwheel ¼ turn out"},null,null,null,{"$f":"IF(ISNUMBER(SEARCH($B$13,AW56)),MAX($AV$8:AV55)+1,0)","v":48},"Cartwheel ¼ turn out",null,null,{"$f":"IFERROR(VLOOKUP(ROWS($AW$9:AW56),$AV$9:$AW$162,2,0),\"\")","v":"Cartwheel ¼ turn out"},null,null,null,{"$f":"IF(ISNUMBER(SEARCH($B$14,BE56)),MAX($BD$8:BD55)+1,0)","v":48},"Cartwheel ¼ turn out",null,null,{"$f":"IFERROR(VLOOKUP(ROWS($BE$9:BE56),$BD$9:$BE$162,2,0),\"\")","v":"Cartwheel ¼ turn out"},null,null,null,{"$f":"IF(ISNUMBER(SEARCH($B$15,BM56)),MAX($BL$8:BL55)+1,0)","v":48},"Cartwheel ¼ turn out",null,null,{"$f":"IFERROR(VLOOKUP(ROWS($BM$9:BM56),$BL$9:$BM$162,2,0),\"\")","v":"Cartwheel ¼ turn out"},null,null,null,{"$f":"IF(ISNUMBER(SEARCH($B$16,BU56)),MAX($BT$8:BT55)+1,0)","v":48},"Cartwheel ¼ turn out",null,null,{"$f":"IFERROR(VLOOKUP(ROWS($BU$9:BU56),$BT$9:$BU$162,2,0),\"\")","v":"Cartwheel ¼ turn out"},null,null,null,{"$f":"IF(ISNUMBER(SEARCH($B$17,CC56)),MAX($CB$8:CB55)+1,0)","v":48},"Cartwheel ¼ turn out",null,null,{"$f":"IFERROR(VLOOKUP(ROWS($CC$9:CC56),$CB$9:$CC$162,2,0),\"\")","v":"Cartwheel ¼ turn out"},null,null,null,{"$f":"IF(ISNUMBER(SEARCH($B$18,CK56)),MAX($CJ$8:CJ55)+1,0)","v":48},"Cartwheel ¼ turn out",null,null,{"$f":"IFERROR(VLOOKUP(ROWS($CK$9:CK56),$CJ$9:$CK$162,2,0),\"\")","v":"Cartwheel ¼ turn out"}]
[null,null,null,null,null,null,null,null,null,null,null,"Gilrs G2",null,null,null,{"$f":"IF(ISNUMBER(SEARCH($B$9,Q57)),MAX($P$8:P56)+1,0)","v":49},"1 Arm Cartwheel ",null,null,{"$f":"IFERROR(VLOOKUP(ROWS($Q$9:Q57),$P$9:$Q$162,2,0),\"\")","v":"1 Arm Cartwheel "},null,null,null,{"$f":"IF(ISNUMBER(SEARCH($B$10,Y57)),MAX($X$8:X56)+1,0)","v":49},"1 Arm Cartwheel ",null,null,{"$f":"IFERROR(VLOOKUP(ROWS($Y$9:Y57),$X$9:$Y$162,2,0),\"\")","v":"1 Arm Cartwheel "},null,null,null,{"$f":"IF(ISNUMBER(SEARCH($B$11,AG57)),MAX($AF$8:AF56)+1,0)","v":49},"1 Arm Cartwheel ",null,null,{"$f":"IFERROR(VLOOKUP(ROWS($AG$9:AG57),$AF$9:$AG$162,2,0),\"\")","v":"1 Arm Cartwheel "},null,null,null,{"$f":"IF(ISNUMBER(SEARCH($B$12,AO57)),MAX($AN$8:AN56)+1,0)","v":49},"1 Arm Cartwheel ",null,null,{"$f":"IFERROR(VLOOKUP(ROWS($AO$9:AO57),$AN$9:$AO$162,2,0),\"\")","v":"1 Arm Cartwheel "},null,null,null,{"$f":"IF(ISNUMBER(SEARCH($B$13,AW57)),MAX($AV$8:AV56)+1,0)","v":49},"1 Arm Cartwheel ",null,null,{"$f":"IFERROR(VLOOKUP(ROWS($AW$9:AW57),$AV$9:$AW$162,2,0),\"\")","v":"1 Arm Cartwheel "},null,null,null,{"$f":"IF(ISNUMBER(SEARCH($B$14,BE57)),MAX($BD$8:BD56)+1,0)","v":49},"1 Arm Cartwheel ",null,null,{"$f":"IFERROR(VLOOKUP(ROWS($BE$9:BE57),$BD$9:$BE$162,2,0),\"\")","v":"1 Arm Cartwheel "},null,null,null,{"$f":"IF(ISNUMBER(SEARCH($B$15,BM57)),MAX($BL$8:BL56)+1,0)","v":49},"1 Arm Cartwheel ",null,null,{"$f":"IFERROR(VLOOKUP(ROWS($BM$9:BM57),$BL$9:$BM$162,2,0),\"\")","v":"1 Arm Cartwheel "},null,null,null,{"$f":"IF(ISNUMBER(SEARCH($B$16,BU57)),MAX($BT$8:BT56)+1,0)","v":49},"1 Arm Cartwheel ",null,null,{"$f":"IFERROR(VLOOKUP(ROWS($BU$9:BU57),$BT$9:$BU$162,2,0),\"\")","v":"1 Arm Cartwheel "},null,null,null,{"$f":"IF(ISNUMBER(SEARCH($B$17,CC57)),MAX($CB$8:CB56)+1,0)","v":49},"1 Arm Cartwheel ",null,null,{"$f":"IFERROR(VLOOKUP(ROWS($CC$9:CC57),$CB$9:$CC$162,2,0),\"\")","v":"1 Arm Cartwheel "},null,null,null,{"$f":"IF(ISNUMBER(SEARCH($B$18,CK57)),MAX($CJ$8:CJ56)+1,0)","v":49},"1 Arm Cartwheel ",null,null,{"$f":"IFERROR(VLOOKUP(ROWS($CK$9:CK57),$CJ$9:$CK$162,2,0),\"\")","v":"1 Arm Cartwheel "}]
[null,null,null,null,null,null,null,null,null,null,null,{"$f":"IF(COUNTIF(CS9:CS18,\"Yes\")>=1,\"Yes\",\"No\")","v":"No"},null,null,null,{"$f":"IF(ISNUMBER(SEARCH($B$9,Q58)),MAX($P$8:P57)+1,0)","v":50},"2 x side C/wheels (opt. entry / exit)",null,null,{"$f":"IFERROR(VLOOKUP(ROWS($Q$9:Q58),$P$9:$Q$162,2,0),\"\")","v":"2 x side C/wheels (opt. entry / exit)"},null,null,null,{"$f":"IF(ISNUMBER(SEARCH($B$10,Y58)),MAX($X$8:X57)+1,0)","v":50},"2 x side C/wheels (opt. entry / exit)",null,null,{"$f":"IFERROR(VLOOKUP(ROWS($Y$9:Y58),$X$9:$Y$162,2,0),\"\")","v":"2 x side C/wheels (opt. entry / exit)"},null,null,null,{"$f":"IF(ISNUMBER(SEARCH($B$11,AG58)),MAX($AF$8:AF57)+1,0)","v":50},"2 x side C/wheels (opt. entry / exit)",null,null,{"$f":"IFERROR(VLOOKUP(ROWS($AG$9:AG58),$AF$9:$AG$162,2,0),\"\")","v":"2 x side C/wheels (opt. entry / exit)"},null,null,null,{"$f":"IF(ISNUMBER(SEARCH($B$12,AO58)),MAX($AN$8:AN57)+1,0)","v":50},"2 x side C/wheels (opt. entry / exit)",null,null,{"$f":"IFERROR(VLOOKUP(ROWS($AO$9:AO58),$AN$9:$AO$162,2,0),\"\")","v":"2 x side C/wheels (opt. entry / exit)"},null,null,null,{"$f":"IF(ISNUMBER(SEARCH($B$13,AW58)),MAX($AV$8:AV57)+1,0)","v":50},"2 x side C/wheels (opt. entry / exit)",null,null,{"$f":"IFERROR(VLOOKUP(ROWS($AW$9:AW58),$AV$9:$AW$162,2,0),\"\")","v":"2 x side C/wheels (opt. entry / exit)"},null,null,null,{"$f":"IF(ISNUMBER(SEARCH($B$14,BE58)),MAX($BD$8:BD57)+1,0)","v":50},"2 x side C/wheels (opt. entry / exit)",null,null,{"$f":"IFERROR(VLOOKUP(ROWS($BE$9:BE58),$BD$9:$BE$162,2,0),\"\")","v":"2 x side C/wheels (opt. entry / exit)"},null,null,null,{"$f":"IF(ISNUMBER(SEARCH($B$15,BM58)),MAX($BL$8:BL57)+1,0)","v":50},"2 x side C/wheels (opt. entry / exit)",null,null,{"$f":"IFERROR(VLOOKUP(ROWS($BM$9:BM58),$BL$9:$BM$162,2,0),\"\")","v":"2 x side C/wheels (opt. entry / exit)"},null,null,null,{"$f":"IF(ISNUMBER(SEARCH($B$16,BU58)),MAX($BT$8:BT57)+1,0)","v":50},"2 x side C/wheels (opt. entry / exit)",null,null,{"$f":"IFERROR(VLOOKUP(ROWS($BU$9:BU58),$BT$9:$BU$162,2,0),\"\")","v":"2 x side C/wheels (opt. entry / exit)"},null,null,null,{"$f":"IF(ISNUMBER(SEARCH($B$17,CC58)),MAX($CB$8:CB57)+1,0)","v":50},"2 x side C/wheels (opt. entry / exit)",null,null,{"$f":"IFERROR(VLOOKUP(ROWS($CC$9:CC58),$CB$9:$CC$162,2,0),\"\")","v":"2 x side C/wheels (opt. entry / exit)"},null,null,null,{"$f":"IF(ISNUMBER(SEARCH($B$18,CK58)),MAX($CJ$8:CJ57)+1,0)","v":50},"2 x side C/wheels (opt. entry / exit)",null,null,{"$f":"IFERROR(VLOOKUP(ROWS($CK$9:CK58),$CJ$9:$CK$162,2,0),\"\")","v":"2 x side C/wheels (opt. entry / exit)"}]
[null,null,null,null,null,null,null,null,null,null,null,"Boys G2 H",null,null,null,{"$f":"IF(ISNUMBER(SEARCH($B$9,Q59)),MAX($P$8:P58)+1,0)","v":51},"Dive C/wheel (must show flight)",null,null,{"$f":"IFERROR(VLOOKUP(ROWS($Q$9:Q59),$P$9:$Q$162,2,0),\"\")","v":"Dive C/wheel (must show flight)"},null,null,null,{"$f":"IF(ISNUMBER(SEARCH($B$10,Y59)),MAX($X$8:X58)+1,0)","v":51},"Dive C/wheel (must show flight)",null,null,{"$f":"IFERROR(VLOOKUP(ROWS($Y$9:Y59),$X$9:$Y$162,2,0),\"\")","v":"Dive C/wheel (must show flight)"},null,null,null,{"$f":"IF(ISNUMBER(SEARCH($B$11,AG59)),MAX($AF$8:AF58)+1,0)","v":51},"Dive C/wheel (must show flight)",null,null,{"$f":"IFERROR(VLOOKUP(ROWS($AG$9:AG59),$AF$9:$AG$162,2,0),\"\")","v":"Dive C/wheel (must show flight)"},null,null,null,{"$f":"IF(ISNUMBER(SEARCH($B$12,AO59)),MAX($AN$8:AN58)+1,0)","v":51},"Dive C/wheel (must show flight)",null,null,{"$f":"IFERROR(VLOOKUP(ROWS($AO$9:AO59),$AN$9:$AO$162,2,0),\"\")","v":"Dive C/wheel (must show flight)"},null,null,null,{"$f":"IF(ISNUMBER(SEARCH($B$13,AW59)),MAX($AV$8:AV58)+1,0)","v":51},"Dive C/wheel (must show flight)",null,null,{"$f":"IFERROR(VLOOKUP(ROWS($AW$9:AW59),$AV$9:$AW$162,2,0),\"\")","v":"Dive C/wheel (must show flight)"},null,null,null,{"$f":"IF(ISNUMBER(SEARCH($B$14,BE59)),MAX($BD$8:BD58)+1,0)","v":51},"Dive C/wheel (must show flight)",null,null,{"$f":"IFERROR(VLOOKUP(ROWS($BE$9:BE59),$BD$9:$BE$162,2,0),\"\")","v":"Dive C/wheel (must show flight)"},null,null,null,{"$f":"IF(ISNUMBER(SEARCH($B$15,BM59)),MAX($BL$8:BL58)+1,0)","v":51},"Dive C/wheel (must show flight)",null,null,{"$f":"IFERROR(VLOOKUP(ROWS($BM$9:BM59),$BL$9:$BM$162,2,0),\"\")","v":"Dive C/wheel (must show flight)"},null,null,null,{"$f":"IF(ISNUMBER(SEARCH($B$16,BU59)),MAX($BT$8:BT58)+1,0)","v":51},"Dive C/wheel (must show flight)",null,null,{"$f":"IFERROR(VLOOKUP(ROWS($BU$9:BU59),$BT$9:$BU$162,2,0),\"\")","v":"Dive C/wheel (must show flight)"},null,null,null,{"$f":"IF(ISNUMBER(SEARCH($B$17,CC59)),MAX($CB$8:CB58)+1,0)","v":51},"Dive C/wheel (must show flight)",null,null,{"$f":"IFERROR(VLOOKUP(ROWS($CC$9:CC59),$CB$9:$CC$162,2,0),\"\")","v":"Dive C/wheel (must show flight)"},null,null,null,{"$f":"IF(ISNUMBER(SEARCH($B$18,CK59)),MAX($CJ$8:CJ58)+1,0)","v":51},"Dive C/wheel (must show flight)",null,null,{"$f":"IFERROR(VLOOKUP(ROWS($CK$9:CK59),$CJ$9:$CK$162,2,0),\"\")","v":"Dive C/wheel (must show flight)"}]
[null,null,null,null,null,null,null,null,null,null,null,{"$f":"IF(COUNTIF(CT9:CT18,\"Yes\")=1,\"Yes\",\"No\")","v":"No"},null,null,null,{"$f":"IF(ISNUMBER(SEARCH($B$9,Q60)),MAX($P$8:P59)+1,0)","v":52},"Roundoff",null,null,{"$f":"IFERROR(VLOOKUP(ROWS($Q$9:Q60),$P$9:$Q$162,2,0),\"\")","v":"Roundoff"},null,null,null,{"$f":"IF(ISNUMBER(SEARCH($B$10,Y60)),MAX($X$8:X59)+1,0)","v":52},"Roundoff",null,null,{"$f":"IFERROR(VLOOKUP(ROWS($Y$9:Y60),$X$9:$Y$162,2,0),\"\")","v":"Roundoff"},null,null,null,{"$f":"IF(ISNUMBER(SEARCH($B$11,AG60)),MAX($AF$8:AF59)+1,0)","v":52},"Roundoff",null,null,{"$f":"IFERROR(VLOOKUP(ROWS($AG$9:AG60),$AF$9:$AG$162,2,0),\"\")","v":"Roundoff"},null,null,null,{"$f":"IF(ISNUMBER(SEARCH($B$12,AO60)),MAX($AN$8:AN59)+1,0)","v":52},"Roundoff",null,null,{"$f":"IFERROR(VLOOKUP(ROWS($AO$9:AO60),$AN$9:$AO$162,2,0),\"\")","v":"Roundoff"},null,null,null,{"$f":"IF(ISNUMBER(SEARCH($B$13,AW60)),MAX($AV$8:AV59)+1,0)","v":52},"Roundoff",null,null,{"$f":"IFERROR(VLOOKUP(ROWS($AW$9:AW60),$AV$9:$AW$162,2,0),\"\")","v":"Roundoff"},null,null,null,{"$f":"IF(ISNUMBER(SEARCH($B$14,BE60)),MAX($BD$8:BD59)+1,0)","v":52},"Roundoff",null,null,{"$f":"IFERROR(VLOOKUP(ROWS($BE$9:BE60),$BD$9:$BE$162,2,0),\"\")","v":"Roundoff"},null,null,null,{"$f":"IF(ISNUMBER(SEARCH($B$15,BM60)),MAX($BL$8:BL59)+1,0)","v":52},"Roundoff",null,null,{"$f":"IFERROR(VLOOKUP(ROWS($BM$9:BM60),$BL$9:$BM$162,2,0),\"\")","v":"Roundoff"},null,null,null,{"$f":"IF(ISNUMBER(SEARCH($B$16,BU60)),MAX($BT$8:BT59)+1,0)","v":52},"Roundoff",null,null,{"$f":"IFERROR(VLOOKUP(ROWS($BU$9:BU60),$BT$9:$BU$162,2,0),\"\")","v":"Roundoff"},null,null,null,{"$f":"IF(ISNUMBER(SEARCH($B$17,CC60)),MAX($CB$8:CB59)+1,0)","v":52},"Roundoff",null,null,{"$f":"IFERROR(VLOOKUP(ROWS($CC$9:CC60),$CB$9:$CC$162,2,0),\"\")","v":"Roundoff"},null,null,null,{"$f":"IF(ISNUMBER(SEARCH($B$18,CK60)),MAX($CJ$8:CJ59)+1,0)","v":52},"Roundoff",null,null,{"$f":"IFERROR(VLOOKUP(ROWS($CK$9:CK60),$CJ$9:$CK$162,2,0),\"\")","v":"Roundoff"}]
[null,null,null,null,null,null,null,null,null,null,null,{"$f":"IF(D5=\"Female\",IF(L58=\"Yes\",\"Yes\",\"No\"),IF(D5=\"Male\",IF(L60=\"Yes\",\"Yes\",\"No\"),\"No\"))","v":"No"},null,null,null,{"$f":"IF(ISNUMBER(SEARCH($B$9,Q61)),MAX($P$8:P60)+1,0)","v":53},"Roundoff jump (optional shape)",null,null,{"$f":"IFERROR(VLOOKUP(ROWS($Q$9:Q61),$P$9:$Q$162,2,0),\"\")","v":"Roundoff jump (optional shape)"},null,null,null,{"$f":"IF(ISNUMBER(SEARCH($B$10,Y61)),MAX($X$8:X60)+1,0)","v":53},"Roundoff jump (optional shape)",null,null,{"$f":"IFERROR(VLOOKUP(ROWS($Y$9:Y61),$X$9:$Y$162,2,0),\"\")","v":"Roundoff jump (optional shape)"},null,null,null,{"$f":"IF(ISNUMBER(SEARCH($B$11,AG61)),MAX($AF$8:AF60)+1,0)","v":53},"Roundoff jump (optional shape)",null,null,{"$f":"IFERROR(VLOOKUP(ROWS($AG$9:AG61),$AF$9:$AG$162,2,0),\"\")","v":"Roundoff jump (optional shape)"},null,null,null,{"$f":"IF(ISNUMBER(SEARCH($B$12,AO61)),MAX($AN$8:AN60)+1,0)","v":53},"Roundoff jump (optional shape)",null,null,{"$f":"IFERROR(VLOOKUP(ROWS($AO$9:AO61),$AN$9:$AO$162,2,0),\"\")","v":"Roundoff jump (optional shape)"},null,null,null,{"$f":"IF(ISNUMBER(SEARCH($B$13,AW61)),MAX($AV$8:AV60)+1,0)","v":53},"Roundoff jump (optional shape)",null,null,{"$f":"IFERROR(VLOOKUP(ROWS($AW$9:AW61),$AV$9:$AW$162,2,0),\"\")","v":"Roundoff jump (optional shape)"},null,null,null,{"$f":"IF(ISNUMBER(SEARCH($B$14,BE61)),MAX($BD$8:BD60)+1,0)","v":53},"Roundoff jump (optional shape)",null,null,{"$f":"IFERROR(VLOOKUP(ROWS($BE$9:BE61),$BD$9:$BE$162,2,0),\"\")","v":"Roundoff jump (optional shape)"},null,null,null,{"$f":"IF(ISNUMBER(SEARCH($B$15,BM61)),MAX($BL$8:BL60)+1,0)","v":53},"Roundoff jump (optional shape)",null,null,{"$f":"IFERROR(VLOOKUP(ROWS($BM$9:BM61),$BL$9:$BM$162,2,0),\"\")","v":"Roundoff jump (optional shape)"},null,null,null,{"$f":"IF(ISNUMBER(SEARCH($B$16,BU61)),MAX($BT$8:BT60)+1,0)","v":53},"Roundoff jump (optional shape)",null,null,{"$f":"IFERROR(VLOOKUP(ROWS($BU$9:BU61),$BT$9:$BU$162,2,0),\"\")","v":"Roundoff jump (optional shape)"},null,null,null,{"$f":"IF(ISNUMBER(SEARCH($B$17,CC61)),MAX($CB$8:CB60)+1,0)","v":53},"Roundoff jump (optional shape)",null,null,{"$f":"IFERROR(VLOOKUP(ROWS($CC$9:CC61),$CB$9:$CC$162,2,0),\"\")","v":"Roundoff jump (optional shape)"},null,null,null,{"$f":"IF(ISNUMBER(SEARCH($B$18,CK61)),MAX($CJ$8:CJ60)+1,0)","v":53},"Roundoff jump (optional shape)",null,null,{"$f":"IFERROR(VLOOKUP(ROWS($CK$9:CK61),$CJ$9:$CK$162,2,0),\"\")","v":"Roundoff jump (optional shape)"}]
[null,null,null,null,null,null,null,null,null,null,null,null,null,null,null,{"$f":"IF(ISNUMBER(SEARCH($B$9,Q62)),MAX($P$8:P61)+1,0)","v":54},"Split leap or jump (150°)",null,null,{"$f":"IFERROR(VLOOKUP(ROWS($Q$9:Q62),$P$9:$Q$162,2,0),\"\")","v":"Split leap or jump (150°)"},null,null,null,{"$f":"IF(ISNUMBER(SEARCH($B$10,Y62)),MAX($X$8:X61)+1,0)","v":54},"Split leap or jump (150°)",null,null,{"$f":"IFERROR(VLOOKUP(ROWS($Y$9:Y62),$X$9:$Y$162,2,0),\"\")","v":"Split leap or jump (150°)"},null,null,null,{"$f":"IF(ISNUMBER(SEARCH($B$11,AG62)),MAX($AF$8:AF61)+1,0)","v":54},"Split leap or jump (150°)",null,null,{"$f":"IFERROR(VLOOKUP(ROWS($AG$9:AG62),$AF$9:$AG$162,2,0),\"\")","v":"Split leap or jump (150°)"},null,null,null,{"$f":"IF(ISNUMBER(SEARCH($B$12,AO62)),MAX($AN$8:AN61)+1,0)","v":54},"Split leap or jump (150°)",null,null,{"$f":"IFERROR(VLOOKUP(ROWS($AO$9:AO62),$AN$9:$AO$162,2,0),\"\")","v":"Split leap or jump (150°)"},null,null,null,{"$f":"IF(ISNUMBER(SEARCH($B$13,AW62)),MAX($AV$8:AV61)+1,0)","v":54},"Split leap or jump (150°)",null,null,{"$f":"IFERROR(VLOOKUP(ROWS($AW$9:AW62),$AV$9:$AW$162,2,0),\"\")","v":"Split leap or jump (150°)"},null,null,null,{"$f":"IF(ISNUMBER(SEARCH($B$14,BE62)),MAX($BD$8:BD61)+1,0)","v":54},"Split leap or jump (150°)",null,null,{"$f":"IFERROR(VLOOKUP(ROWS($BE$9:BE62),$BD$9:$BE$162,2,0),\"\")","v":"Split leap or jump (150°)"},null,null,null,{"$f":"IF(ISNUMBER(SEARCH($B$15,BM62)),MAX($BL$8:BL61)+1,0)","v":54},"Split leap or jump (150°)",null,null,{"$f":"IFERROR(VLOOKUP(ROWS($BM$9:BM62),$BL$9:$BM$162,2,0),\"\")","v":"Split leap or jump (150°)"},null,null,null,{"$f":"IF(ISNUMBER(SEARCH($B$16,BU62)),MAX($BT$8:BT61)+1,0)","v":54},"Split leap or jump (150°)",null,null,{"$f":"IFERROR(VLOOKUP(ROWS($BU$9:BU62),$BT$9:$BU$162,2,0),\"\")","v":"Split leap or jump (150°)"},null,null,null,{"$f":"IF(ISNUMBER(SEARCH($B$17,CC62)),MAX($CB$8:CB61)+1,0)","v":54},"Split leap or jump (150°)",null,null,{"$f":"IFERROR(VLOOKUP(ROWS($CC$9:CC62),$CB$9:$CC$162,2,0),\"\")","v":"Split leap or jump (150°)"},null,null,null,{"$f":"IF(ISNUMBER(SEARCH($B$18,CK62)),MAX($CJ$8:CJ61)+1,0)","v":54},"Split leap or jump (150°)",null,null,{"$f":"IFERROR(VLOOKUP(ROWS($CK$9:CK62),$CJ$9:$CK$162,2,0),\"\")","v":"Split leap or jump (150°)"}]
[null,null,null,null,null,null,null,null,null,null,null,3,null,null,null,{"$f":"IF(ISNUMBER(SEARCH($B$9,Q63)),MAX($P$8:P62)+1,0)","v":55},"Fouette Turn",null,null,{"$f":"IFERROR(VLOOKUP(ROWS($Q$9:Q63),$P$9:$Q$162,2,0),\"\")","v":"Fouette Turn"},null,null,null,{"$f":"IF(ISNUMBER(SEARCH($B$10,Y63)),MAX($X$8:X62)+1,0)","v":55},"Fouette Turn",null,null,{"$f":"IFERROR(VLOOKUP(ROWS($Y$9:Y63),$X$9:$Y$162,2,0),\"\")","v":"Fouette Turn"},null,null,null,{"$f":"IF(ISNUMBER(SEARCH($B$11,AG63)),MAX($AF$8:AF62)+1,0)","v":55},"Fouette Turn",null,null,{"$f":"IFERROR(VLOOKUP(ROWS($AG$9:AG63),$AF$9:$AG$162,2,0),\"\")","v":"Fouette Turn"},null,null,null,{"$f":"IF(ISNUMBER(SEARCH($B$12,AO63)),MAX($AN$8:AN62)+1,0)","v":55},"Fouette Turn",null,null,{"$f":"IFERROR(VLOOKUP(ROWS($AO$9:AO63),$AN$9:$AO$162,2,0),\"\")","v":"Fouette Turn"},null,null,null,{"$f":"IF(ISNUMBER(SEARCH($B$13,AW63)),MAX($AV$8:AV62)+1,0)","v":55},"Fouette Turn",null,null,{"$f":"IFERROR(VLOOKUP(ROWS($AW$9:AW63),$AV$9:$AW$162,2,0),\"\")","v":"Fouette Turn"},null,null,null,{"$f":"IF(ISNUMBER(SEARCH($B$14,BE63)),MAX($BD$8:BD62)+1,0)","v":55},"Fouette Turn",null,null,{"$f":"IFERROR(VLOOKUP(ROWS($BE$9:BE63),$BD$9:$BE$162,2,0),\"\")","v":"Fouette Turn"},null,null,null,{"$f":"IF(ISNUMBER(SEARCH($B$15,BM63)),MAX($BL$8:BL62)+1,0)","v":55},"Fouette Turn",null,null,{"$f":"IFERROR(VLOOKUP(ROWS($BM$9:BM63),$BL$9:$BM$162,2,0),\"\")","v":"Fouette Turn"},null,null,null,{"$f":"IF(ISNUMBER(SEARCH($B$16,BU63)),MAX($BT$8:BT62)+1,0)","v":55},"Fouette Turn",null,null,{"$f":"IFERROR(VLOOKUP(ROWS($BU$9:BU63),$BT$9:$BU$162,2,0),\"\")","v":"Fouette Turn"},null,null,null,{"$f":"IF(ISNUMBER(SEARCH($B$17,CC63)),MAX($CB$8:CB62)+1,0)","v":55},"Fouette Turn",null,null,{"$f":"IFERROR(VLOOKUP(ROWS($CC$9:CC63),$CB$9:$CC$162,2,0),\"\")","v":"Fouette Turn"},null,null,null,{"$f":"IF(ISNUMBER(SEARCH($B$18,CK63)),MAX($CJ$8:CJ62)+1,0)","v":55},"Fouette Turn",null,null,{"$f":"IFERROR(VLOOKUP(ROWS($CK$9:CK63),$CJ$9:$CK$162,2,0),\"\")","v":"Fouette Turn"}]
[null,null,null,null,null,null,null,null,null,null,null,"Mix Series",null,null,null,{"$f":"IF(ISNUMBER(SEARCH($B$9,Q64)),MAX($P$8:P63)+1,0)","v":56},"Cat leap ½ turn",null,null,{"$f":"IFERROR(VLOOKUP(ROWS($Q$9:Q64),$P$9:$Q$162,2,0),\"\")","v":"Cat leap ½ turn"},null,null,null,{"$f":"IF(ISNUMBER(SEARCH($B$10,Y64)),MAX($X$8:X63)+1,0)","v":56},"Cat leap ½ turn",null,null,{"$f":"IFERROR(VLOOKUP(ROWS($Y$9:Y64),$X$9:$Y$162,2,0),\"\")","v":"Cat leap ½ turn"},null,null,null,{"$f":"IF(ISNUMBER(SEARCH($B$11,AG64)),MAX($AF$8:AF63)+1,0)","v":56},"Cat leap ½ turn",null,null,{"$f":"IFERROR(VLOOKUP(ROWS($AG$9:AG64),$AF$9:$AG$162,2,0),\"\")","v":"Cat leap ½ turn"},null,null,null,{"$f":"IF(ISNUMBER(SEARCH($B$12,AO64)),MAX($AN$8:AN63)+1,0)","v":56},"Cat leap ½ turn",null,null,{"$f":"IFERROR(VLOOKUP(ROWS($AO$9:AO64),$AN$9:$AO$162,2,0),\"\")","v":"Cat leap ½ turn"},null,null,null,{"$f":"IF(ISNUMBER(SEARCH($B$13,AW64)),MAX($AV$8:AV63)+1,0)","v":56},"Cat leap ½ turn",null,null,{"$f":"IFERROR(VLOOKUP(ROWS($AW$9:AW64),$AV$9:$AW$162,2,0),\"\")","v":"Cat leap ½ turn"},null,null,null,{"$f":"IF(ISNUMBER(SEARCH($B$14,BE64)),MAX($BD$8:BD63)+1,0)","v":56},"Cat leap ½ turn",null,null,{"$f":"IFERROR(VLOOKUP(ROWS($BE$9:BE64),$BD$9:$BE$162,2,0),\"\")","v":"Cat leap ½ turn"},null,null,null,{"$f":"IF(ISNUMBER(SEARCH($B$15,BM64)),MAX($BL$8:BL63)+1,0)","v":56},"Cat leap ½ turn",null,null,{"$f":"IFERROR(VLOOKUP(ROWS($BM$9:BM64),$BL$9:$BM$162,2,0),\"\")","v":"Cat leap ½ turn"},null,null,null,{"$f":"IF(ISNUMBER(SEARCH($B$16,BU64)),MAX($BT$8:BT63)+1,0)","v":56},"Cat leap ½ turn",null,null,{"$f":"IFERROR(VLOOKUP(ROWS($BU$9:BU64),$BT$9:$BU$162,2,0),\"\")","v":"Cat leap ½ turn"},null,null,null,{"$f":"IF(ISNUMBER(SEARCH($B$17,CC64)),MAX($CB$8:CB63)+1,0)","v":56},"Cat leap ½ turn",null,null,{"$f":"IFERROR(VLOOKUP(ROWS($CC$9:CC64),$CB$9:$CC$162,2,0),\"\")","v":"Cat leap ½ turn"},null,null,null,{"$f":"IF(ISNUMBER(SEARCH($B$18,CK64)),MAX($CJ$8:CJ63)+1,0)","v":56},"Cat leap ½ turn",null,null,{"$f":"IFERROR(VLOOKUP(ROWS($CK$9:CK64),$CJ$9:$CK$162,2,0),\"\")","v":"Cat leap ½ turn"}]
[null,null,null,null,null,null,null,null,null,null,null,{"$f":"IF(COUNTIF(CW9:CW18,1)=1,IF(COUNTIF(CW9:CW18,2)=1,\"Yes\",IF(COUNTIF(CW9:CW18,3)=1,\"Yes\",IF(COUNTIF(CW9:CW18,4)=1,\"Yes\",\"No\"))),\"No\")","v":"No"},null,null,null,{"$f":"IF(ISNUMBER(SEARCH($B$9,Q65)),MAX($P$8:P64)+1,0)","v":57},"Jump 1 ½  turn ",null,null,{"$f":"IFERROR(VLOOKUP(ROWS($Q$9:Q65),$P$9:$Q$162,2,0),\"\")","v":"Jump 1 ½  turn "},null,null,null,{"$f":"IF(ISNUMBER(SEARCH($B$10,Y65)),MAX($X$8:X64)+1,0)","v":57},"Jump 1 ½  turn ",null,null,{"$f":"IFERROR(VLOOKUP(ROWS($Y$9:Y65),$X$9:$Y$162,2,0),\"\")","v":"Jump 1 ½  turn "},null,null,null,{"$f":"IF(ISNUMBER(SEARCH($B$11,AG65)),MAX($AF$8:AF64)+1,0)","v":57},"Jump 1 ½  turn ",null,null,{"$f":"IFERROR(VLOOKUP(ROWS($AG$9:AG65),$AF$9:$AG$162,2,0),\"\")","v":"Jump 1 ½  turn "},null,null,null,{"$f":"IF(ISNUMBER(SEARCH($B$12,AO65)),MAX($AN$8:AN64)+1,0)","v":57},"Jump 1 ½  turn ",null,null,{"$f":"IFERROR(VLOOKUP(ROWS($AO$9:AO65),$AN$9:$AO$162,2,0),\"\")","v":"Jump 1 ½  turn "},null,null,null,{"$f":"IF(ISNUMBER(SEARCH($B$13,AW65)),MAX($AV$8:AV64)+1,0)","v":57},"Jump 1 ½  turn ",null,null,{"$f":"IFERROR(VLOOKUP(ROWS($AW$9:AW65),$AV$9:$AW$162,2,0),\"\")","v":"Jump 1 ½  turn "},null,null,null,{"$f":"IF(ISNUMBER(SEARCH($B$14,BE65)),MAX($BD$8:BD64)+1,0)","v":57},"Jump 1 ½  turn ",null,null,{"$f":"IFERROR(VLOOKUP(ROWS($BE$9:BE65),$BD$9:$BE$162,2,0),\"\")","v":"Jump 1 ½  turn "},null,null,null,{"$f":"IF(ISNUMBER(SEARCH($B$15,BM65)),MAX($BL$8:BL64)+1,0)","v":57},"Jump 1 ½  turn ",null,null,{"$f":"IFERROR(VLOOKUP(ROWS($BM$9:BM65),$BL$9:$BM$162,2,0),\"\")","v":"Jump 1 ½  turn "},null,null,null,{"$f":"IF(ISNUMBER(SEARCH($B$16,BU65)),MAX($BT$8:BT64)+1,0)","v":57},"Jump 1 ½  turn ",null,null,{"$f":"IFERROR(VLOOKUP(ROWS($BU$9:BU65),$BT$9:$BU$162,2,0),\"\")","v":"Jump 1 ½  turn "},null,null,null,{"$f":"IF(ISNUMBER(SEARCH($B$17,CC65)),MAX($CB$8:CB64)+1,0)","v":57},"Jump 1 ½  turn ",null,null,{"$f":"IFERROR(VLOOKUP(ROWS($CC$9:CC65),$CB$9:$CC$162,2,0),\"\")","v":"Jump 1 ½  turn "},null,null,null,{"$f":"IF(ISNUMBER(SEARCH($B$18,CK65)),MAX($CJ$8:CJ64)+1,0)","v":57},"Jump 1 ½  turn ",null,null,{"$f":"IFERROR(VLOOKUP(ROWS($CK$9:CK65),$CJ$9:$CK$162,2,0),\"\")","v":"Jump 1 ½  turn "}]
[null,null,null,null,null,null,null,null,null,null,null,null,null,null,null,{"$f":"IF(ISNUMBER(SEARCH($B$9,Q66)),MAX($P$8:P65)+1,0)","v":58},"Straddle jump",null,null,{"$f":"IFERROR(VLOOKUP(ROWS($Q$9:Q66),$P$9:$Q$162,2,0),\"\")","v":"Straddle jump"},null,null,null,{"$f":"IF(ISNUMBER(SEARCH($B$10,Y66)),MAX($X$8:X65)+1,0)","v":58},"Straddle jump",null,null,{"$f":"IFERROR(VLOOKUP(ROWS($Y$9:Y66),$X$9:$Y$162,2,0),\"\")","v":"Straddle jump"},null,null,null,{"$f":"IF(ISNUMBER(SEARCH($B$11,AG66)),MAX($AF$8:AF65)+1,0)","v":58},"Straddle jump",null,null,{"$f":"IFERROR(VLOOKUP(ROWS($AG$9:AG66),$AF$9:$AG$162,2,0),\"\")","v":"Straddle jump"},null,null,null,{"$f":"IF(ISNUMBER(SEARCH($B$12,AO66)),MAX($AN$8:AN65)+1,0)","v":58},"Straddle jump",null,null,{"$f":"IFERROR(VLOOKUP(ROWS($AO$9:AO66),$AN$9:$AO$162,2,0),\"\")","v":"Straddle jump"},null,null,null,{"$f":"IF(ISNUMBER(SEARCH($B$13,AW66)),MAX($AV$8:AV65)+1,0)","v":58},"Straddle jump",null,null,{"$f":"IFERROR(VLOOKUP(ROWS($AW$9:AW66),$AV$9:$AW$162,2,0),\"\")","v":"Straddle jump"},null,null,null,{"$f":"IF(ISNUMBER(SEARCH($B$14,BE66)),MAX($BD$8:BD65)+1,0)","v":58},"Straddle jump",null,null,{"$f":"IFERROR(VLOOKUP(ROWS($BE$9:BE66),$BD$9:$BE$162,2,0),\"\")","v":"Straddle jump"},null,null,null,{"$f":"IF(ISNUMBER(SEARCH($B$15,BM66)),MAX($BL$8:BL65)+1,0)","v":58},"Straddle jump",null,null,{"$f":"IFERROR(VLOOKUP(ROWS($BM$9:BM66),$BL$9:$BM$162,2,0),\"\")","v":"Straddle jump"},null,null,null,{"$f":"IF(ISNUMBER(SEARCH($B$16,BU66)),MAX($BT$8:BT65)+1,0)","v":58},"Straddle jump",null,null,{"$f":"IFERROR(VLOOKUP(ROWS($BU$9:BU66),$BT$9:$BU$162,2,0),\"\")","v":"Straddle jump"},null,null,null,{"$f":"IF(ISNUMBER(SEARCH($B$17,CC66)),MAX($CB$8:CB65)+1,0)","v":58},"Straddle jump",null,null,{"$f":"IFERROR(VLOOKUP(ROWS($CC$9:CC66),$CB$9:$CC$162,2,0),\"\")","v":"Straddle jump"},null,null,null,{"$f":"IF(ISNUMBER(SEARCH($B$18,CK66)),MAX($CJ$8:CJ65)+1,0)","v":58},"Straddle jump",null,null,{"$f":"IFERROR(VLOOKUP(ROWS($CK$9:CK66),$CJ$9:$CK$162,2,0),\"\")","v":"Straddle jump"}]
[null,null,null,null,null,null,null,null,null,null,null,4,null,null,null,{"$f":"IF(ISNUMBER(SEARCH($B$9,Q67)),MAX($P$8:P66)+1,0)","v":59},"Tuck jump ½ turn",null,null,{"$f":"IFERROR(VLOOKUP(ROWS($Q$9:Q67),$P$9:$Q$162,2,0),\"\")","v":"Tuck jump ½ turn"},null,null,null,{"$f":"IF(ISNUMBER(SEARCH($B$10,Y67)),MAX($X$8:X66)+1,0)","v":59},"Tuck jump ½ turn",null,null,{"$f":"IFERROR(VLOOKUP(ROWS($Y$9:Y67),$X$9:$Y$162,2,0),\"\")","v":"Tuck jump ½ turn"},null,null,null,{"$f":"IF(ISNUMBER(SEARCH($B$11,AG67)),MAX($AF$8:AF66)+1,0)","v":59},"Tuck jump ½ turn",null,null,{"$f":"IFERROR(VLOOKUP(ROWS($AG$9:AG67),$AF$9:$AG$162,2,0),\"\")","v":"Tuck jump ½ turn"},null,null,null,{"$f":"IF(ISNUMBER(SEARCH($B$12,AO67)),MAX($AN$8:AN66)+1,0)","v":59},"Tuck jump ½ turn",null,null,{"$f":"IFERROR(VLOOKUP(ROWS($AO$9:AO67),$AN$9:$AO$162,2,0),\"\")","v":"Tuck jump ½ turn"},null,null,null,{"$f":"IF(ISNUMBER(SEARCH($B$13,AW67)),MAX($AV$8:AV66)+1,0)","v":59},"Tuck jump ½ turn",null,null,{"$f":"IFERROR(VLOOKUP(ROWS($AW$9:AW67),$AV$9:$AW$162,2,0),\"\")","v":"Tuck jump ½ turn"},null,null,null,{"$f":"IF(ISNUMBER(SEARCH($B$14,BE67)),MAX($BD$8:BD66)+1,0)","v":59},"Tuck jump ½ turn",null,null,{"$f":"IFERROR(VLOOKUP(ROWS($BE$9:BE67),$BD$9:$BE$162,2,0),\"\")","v":"Tuck jump ½ turn"},null,null,null,{"$f":"IF(ISNUMBER(SEARCH($B$15,BM67)),MAX($BL$8:BL66)+1,0)","v":59},"Tuck jump ½ turn",null,null,{"$f":"IFERROR(VLOOKUP(ROWS($BM$9:BM67),$BL$9:$BM$162,2,0),\"\")","v":"Tuck jump ½ turn"},null,null,null,{"$f":"IF(ISNUMBER(SEARCH($B$16,BU67)),MAX($BT$8:BT66)+1,0)","v":59},"Tuck jump ½ turn",null,null,{"$f":"IFERROR(VLOOKUP(ROWS($BU$9:BU67),$BT$9:$BU$162,2,0),\"\")","v":"Tuck jump ½ turn"},null,null,null,{"$f":"IF(ISNUMBER(SEARCH($B$17,CC67)),MAX($CB$8:CB66)+1,0)","v":59},"Tuck jump ½ turn",null,null,{"$f":"IFERROR(VLOOKUP(ROWS($CC$9:CC67),$CB$9:$CC$162,2,0),\"\")","v":"Tuck jump ½ turn"},null,null,null,{"$f":"IF(ISNUMBER(SEARCH($B$18,CK67)),MAX($CJ$8:CJ66)+1,0)","v":59},"Tuck jump ½ turn",null,null,{"$f":"IFERROR(VLOOKUP(ROWS($CK$9:CK67),$CJ$9:$CK$162,2,0),\"\")","v":"Tuck jump ½ turn"}]
[null,null,null,null,null,null,null,null,null,null,null,"AS",null,null,null,{"$f":"IF(ISNUMBER(SEARCH($B$9,Q68)),MAX($P$8:P67)+1,0)","v":60},"Full Spin",null,null,{"$f":"IFERROR(VLOOKUP(ROWS($Q$9:Q68),$P$9:$Q$162,2,0),\"\")","v":"Full Spin"},null,null,null,{"$f":"IF(ISNUMBER(SEARCH($B$10,Y68)),MAX($X$8:X67)+1,0)","v":60},"Full Spin",null,null,{"$f":"IFERROR(VLOOKUP(ROWS($Y$9:Y68),$X$9:$Y$162,2,0),\"\")","v":"Full Spin"},null,null,null,{"$f":"IF(ISNUMBER(SEARCH($B$11,AG68)),MAX($AF$8:AF67)+1,0)","v":60},"Full Spin",null,null,{"$f":"IFERROR(VLOOKUP(ROWS($AG$9:AG68),$AF$9:$AG$162,2,0),\"\")","v":"Full Spin"},null,null,null,{"$f":"IF(ISNUMBER(SEARCH($B$12,AO68)),MAX($AN$8:AN67)+1,0)","v":60},"Full Spin",null,null,{"$f":"IFERROR(VLOOKUP(ROWS($AO$9:AO68),$AN$9:$AO$162,2,0),\"\")","v":"Full Spin"},null,null,null,{"$f":"IF(ISNUMBER(SEARCH($B$13,AW68)),MAX($AV$8:AV67)+1,0)","v":60},"Full Spin",null,null,{"$f":"IFERROR(VLOOKUP(ROWS($AW$9:AW68),$AV$9:$AW$162,2,0),\"\")","v":"Full Spin"},null,null,null,{"$f":"IF(ISNUMBER(SEARCH($B$14,BE68)),MAX($BD$8:BD67)+1,0)","v":60},"Full Spin",null,null,{"$f":"IFERROR(VLOOKUP(ROWS($BE$9:BE68),$BD$9:$BE$162,2,0),\"\")","v":"Full Spin"},null,null,null,{"$f":"IF(ISNUMBER(SEARCH($B$15,BM68)),MAX($BL$8:BL67)+1,0)","v":60},"Full Spin",null,null,{"$f":"IFERROR(VLOOKUP(ROWS($BM$9:BM68),$BL$9:$BM$162,2,0),\"\")","v":"Full Spin"},null,null,null,{"$f":"IF(ISNUMBER(SEARCH($B$16,BU68)),MAX($BT$8:BT67)+1,0)","v":60},"Full Spin",null,null,{"$f":"IFERROR(VLOOKUP(ROWS($BU$9:BU68),$BT$9:$BU$162,2,0),\"\")","v":"Full Spin"},null,null,null,{"$f":"IF(ISNUMBER(SEARCH($B$17,CC68)),MAX($CB$8:CB67)+1,0)","v":60},"Full Spin",null,null,{"$f":"IFERROR(VLOOKUP(ROWS($CC$9:CC68),$CB$9:$CC$162,2,0),\"\")","v":"Full Spin"},null,null,null,{"$f":"IF(ISNUMBER(SEARCH($B$18,CK68)),MAX($CJ$8:CJ67)+1,0)","v":60},"Full Spin",null,null,{"$f":"IFERROR(VLOOKUP(ROWS($CK$9:CK68),$CJ$9:$CK$162,2,0),\"\")","v":"Full Spin"}]
[null,null,null,null,null,null,null,null,null,null,null,{"$f":"IF(COUNTIF(CX9:CX18,\"Yes\")=1,\"Yes\",\"No\")","v":"No"},null,null,null,{"$f":"IF(ISNUMBER(SEARCH($B$9,Q69)),MAX($P$8:P68)+1,0)","v":61},"Y scale (leg above waist height) ",null,null,{"$f":"IFERROR(VLOOKUP(ROWS($Q$9:Q69),$P$9:$Q$162,2,0),\"\")","v":"Y scale (leg above waist height) "},null,null,null,{"$f":"IF(ISNUMBER(SEARCH($B$10,Y69)),MAX($X$8:X68)+1,0)","v":61},"Y scale (leg above waist height) ",null,null,{"$f":"IFERROR(VLOOKUP(ROWS($Y$9:Y69),$X$9:$Y$162,2,0),\"\")","v":"Y scale (leg above waist height) "},null,null,null,{"$f":"IF(ISNUMBER(SEARCH($B$11,AG69)),MAX($AF$8:AF68)+1,0)","v":61},"Y scale (leg above waist height) ",null,null,{"$f":"IFERROR(VLOOKUP(ROWS($AG$9:AG69),$AF$9:$AG$162,2,0),\"\")","v":"Y scale (leg above waist height) "},null,null,null,{"$f":"IF(ISNUMBER(SEARCH($B$12,AO69)),MAX($AN$8:AN68)+1,0)","v":61},"Y scale (leg above waist height) ",null,null,{"$f":"IFERROR(VLOOKUP(ROWS($AO$9:AO69),$AN$9:$AO$162,2,0),\"\")","v":"Y scale (leg above waist height) "},null,null,null,{"$f":"IF(ISNUMBER(SEARCH($B$13,AW69)),MAX($AV$8:AV68)+1,0)","v":61},"Y scale (leg above waist height) ",null,null,{"$f":"IFERROR(VLOOKUP(ROWS($AW$9:AW69),$AV$9:$AW$162,2,0),\"\")","v":"Y scale (leg above waist height) "},null,null,null,{"$f":"IF(ISNUMBER(SEARCH($B$14,BE69)),MAX($BD$8:BD68)+1,0)","v":61},"Y scale (leg above waist height) ",null,null,{"$f":"IFERROR(VLOOKUP(ROWS($BE$9:BE69),$BD$9:$BE$162,2,0),\"\")","v":"Y scale (leg above waist height) "},null,null,null,{"$f":"IF(ISNUMBER(SEARCH($B$15,BM69)),MAX($BL$8:BL68)+1,0)","v":61},"Y scale (leg above waist height) ",null,null,{"$f":"IFERROR(VLOOKUP(ROWS($BM$9:BM69),$BL$9:$BM$162,2,0),\"\")","v":"Y scale (leg above waist height) "},null,null,null,{"$f":"IF(ISNUMBER(SEARCH($B$16,BU69)),MAX($BT$8:BT68)+1,0)","v":61},"Y scale (leg above waist height) ",null,null,{"$f":"IFERROR(VLOOKUP(ROWS($BU$9:BU69),$BT$9:$BU$162,2,0),\"\")","v":"Y scale (leg above waist height) "},null,null,null,{"$f":"IF(ISNUMBER(SEARCH($B$17,CC69)),MAX($CB$8:CB68)+1,0)","v":61},"Y scale (leg above waist height) ",null,null,{"$f":"IFERROR(VLOOKUP(ROWS($CC$9:CC69),$CB$9:$CC$162,2,0),\"\")","v":"Y scale (leg above waist height) "},null,null,null,{"$f":"IF(ISNUMBER(SEARCH($B$18,CK69)),MAX($CJ$8:CJ68)+1,0)","v":61},"Y scale (leg above waist height) ",null,null,{"$f":"IFERROR(VLOOKUP(ROWS($CK$9:CK69),$CJ$9:$CK$162,2,0),\"\")","v":"Y scale (leg above waist height) "}]
[null,null,null,null,null,null,null,null,null,null,null,null,null,null,null,{"$f":"IF(ISNUMBER(SEARCH($B$9,Q70)),MAX($P$8:P69)+1,0)","v":62},"2 way Splits",null,null,{"$f":"IFERROR(VLOOKUP(ROWS($Q$9:Q70),$P$9:$Q$162,2,0),\"\")","v":"2 way Splits"},null,null,null,{"$f":"IF(ISNUMBER(SEARCH($B$10,Y70)),MAX($X$8:X69)+1,0)","v":62},"2 way Splits",null,null,{"$f":"IFERROR(VLOOKUP(ROWS($Y$9:Y70),$X$9:$Y$162,2,0),\"\")","v":"2 way Splits"},null,null,null,{"$f":"IF(ISNUMBER(SEARCH($B$11,AG70)),MAX($AF$8:AF69)+1,0)","v":62},"2 way Splits",null,null,{"$f":"IFERROR(VLOOKUP(ROWS($AG$9:AG70),$AF$9:$AG$162,2,0),\"\")","v":"2 way Splits"},null,null,null,{"$f":"IF(ISNUMBER(SEARCH($B$12,AO70)),MAX($AN$8:AN69)+1,0)","v":62},"2 way Splits",null,null,{"$f":"IFERROR(VLOOKUP(ROWS($AO$9:AO70),$AN$9:$AO$162,2,0),\"\")","v":"2 way Splits"},null,null,null,{"$f":"IF(ISNUMBER(SEARCH($B$13,AW70)),MAX($AV$8:AV69)+1,0)","v":62},"2 way Splits",null,null,{"$f":"IFERROR(VLOOKUP(ROWS($AW$9:AW70),$AV$9:$AW$162,2,0),\"\")","v":"2 way Splits"},null,null,null,{"$f":"IF(ISNUMBER(SEARCH($B$14,BE70)),MAX($BD$8:BD69)+1,0)","v":62},"2 way Splits",null,null,{"$f":"IFERROR(VLOOKUP(ROWS($BE$9:BE70),$BD$9:$BE$162,2,0),\"\")","v":"2 way Splits"},null,null,null,{"$f":"IF(ISNUMBER(SEARCH($B$15,BM70)),MAX($BL$8:BL69)+1,0)","v":62},"2 way Splits",null,null,{"$f":"IFERROR(VLOOKUP(ROWS($BM$9:BM70),$BL$9:$BM$162,2,0),\"\")","v":"2 way Splits"},null,null,null,{"$f":"IF(ISNUMBER(SEARCH($B$16,BU70)),MAX($BT$8:BT69)+1,0)","v":62},"2 way Splits",null,null,{"$f":"IFERROR(VLOOKUP(ROWS($BU$9:BU70),$BT$9:$BU$162,2,0),\"\")","v":"2 way Splits"},null,null,null,{"$f":"IF(ISNUMBER(SEARCH($B$17,CC70)),MAX($CB$8:CB69)+1,0)","v":62},"2 way Splits",null,null,{"$f":"IFERROR(VLOOKUP(ROWS($CC$9:CC70),$CB$9:$CC$162,2,0),\"\")","v":"2 way Splits"},null,null,null,{"$f":"IF(ISNUMBER(SEARCH($B$18,CK70)),MAX($CJ$8:CJ69)+1,0)","v":62},"2 way Splits",null,null,{"$f":"IFERROR(VLOOKUP(ROWS($CK$9:CK70),$CJ$9:$CK$162,2,0),\"\")","v":"2 way Splits"}]
[null,null,null,null,null,null,null,null,null,null,null,"AF",null,null,null,{"$f":"IF(ISNUMBER(SEARCH($B$9,Q71)),MAX($P$8:P70)+1,0)","v":63},"Japana Swim Through",null,null,{"$f":"IFERROR(VLOOKUP(ROWS($Q$9:Q71),$P$9:$Q$162,2,0),\"\")","v":"Japana Swim Through"},null,null,null,{"$f":"IF(ISNUMBER(SEARCH($B$10,Y71)),MAX($X$8:X70)+1,0)","v":63},"Japana Swim Through",null,null,{"$f":"IFERROR(VLOOKUP(ROWS($Y$9:Y71),$X$9:$Y$162,2,0),\"\")","v":"Japana Swim Through"},null,null,null,{"$f":"IF(ISNUMBER(SEARCH($B$11,AG71)),MAX($AF$8:AF70)+1,0)","v":63},"Japana Swim Through",null,null,{"$f":"IFERROR(VLOOKUP(ROWS($AG$9:AG71),$AF$9:$AG$162,2,0),\"\")","v":"Japana Swim Through"},null,null,null,{"$f":"IF(ISNUMBER(SEARCH($B$12,AO71)),MAX($AN$8:AN70)+1,0)","v":63},"Japana Swim Through",null,null,{"$f":"IFERROR(VLOOKUP(ROWS($AO$9:AO71),$AN$9:$AO$162,2,0),\"\")","v":"Japana Swim Through"},null,null,null,{"$f":"IF(ISNUMBER(SEARCH($B$13,AW71)),MAX($AV$8:AV70)+1,0)","v":63},"Japana Swim Through",null,null,{"$f":"IFERROR(VLOOKUP(ROWS($AW$9:AW71),$AV$9:$AW$162,2,0),\"\")","v":"Japana Swim Through"},null,null,null,{"$f":"IF(ISNUMBER(SEARCH($B$14,BE71)),MAX($BD$8:BD70)+1,0)","v":63},"Japana Swim Through",null,null,{"$f":"IFERROR(VLOOKUP(ROWS($BE$9:BE71),$BD$9:$BE$162,2,0),\"\")","v":"Japana Swim Through"},null,null,null,{"$f":"IF(ISNUMBER(SEARCH($B$15,BM71)),MAX($BL$8:BL70)+1,0)","v":63},"Japana Swim Through",null,null,{"$f":"IFERROR(VLOOKUP(ROWS($BM$9:BM71),$BL$9:$BM$162,2,0),\"\")","v":"Japana Swim Through"},null,null,null,{"$f":"IF(ISNUMBER(SEARCH($B$16,BU71)),MAX($BT$8:BT70)+1,0)","v":63},"Japana Swim Through",null,null,{"$f":"IFERROR(VLOOKUP(ROWS($BU$9:BU71),$BT$9:$BU$162,2,0),\"\")","v":"Japana Swim Through"},null,null,null,{"$f":"IF(ISNUMBER(SEARCH($B$17,CC71)),MAX($CB$8:CB70)+1,0)","v":63},"Japana Swim Through",null,null,{"$f":"IFERROR(VLOOKUP(ROWS($CC$9:CC71),$CB$9:$CC$162,2,0),\"\")","v":"Japana Swim Through"},null,null,null,{"$f":"IF(ISNUMBER(SEARCH($B$18,CK71)),MAX($CJ$8:CJ70)+1,0)","v":63},"Japana Swim Through",null,null,{"$f":"IFERROR(VLOOKUP(ROWS($CK$9:CK71),$CJ$9:$CK$162,2,0),\"\")","v":"Japana Swim Through"}]
[null,null,null,null,null,null,null,null,null,null,null,{"$f":"IF(COUNTIF(CY9:CY18,\"Yes\")=1,\"Yes\",\"No\")","v":"No"},null,null,null,{"$f":"IF(ISNUMBER(SEARCH($B$9,Q72)),MAX($P$8:P71)+1,0)","v":64},"Fall to Prone Jump to Straddle Stand",null,null,{"$f":"IFERROR(VLOOKUP(ROWS($Q$9:Q72),$P$9:$Q$162,2,0),\"\")","v":"Fall to Prone Jump to Straddle Stand"},null,null,null,{"$f":"IF(ISNUMBER(SEARCH($B$10,Y72)),MAX($X$8:X71)+1,0)","v":64},"Fall to Prone Jump to Straddle Stand",null,null,{"$f":"IFERROR(VLOOKUP(ROWS($Y$9:Y72),$X$9:$Y$162,2,0),\"\")","v":"Fall to Prone Jump to Straddle Stand"},null,null,null,{"$f":"IF(ISNUMBER(SEARCH($B$11,AG72)),MAX($AF$8:AF71)+1,0)","v":64},"Fall to Prone Jump to Straddle Stand",null,null,{"$f":"IFERROR(VLOOKUP(ROWS($AG$9:AG72),$AF$9:$AG$162,2,0),\"\")","v":"Fall to Prone Jump to Straddle Stand"},null,null,null,{"$f":"IF(ISNUMBER(SEARCH($B$12,AO72)),MAX($AN$8:AN71)+1,0)","v":64},"Fall to Prone Jump to Straddle Stand",null,null,{"$f":"IFERROR(VLOOKUP(ROWS($AO$9:AO72),$AN$9:$AO$162,2,0),\"\")","v":"Fall to Prone Jump to Straddle Stand"},null,null,null,{"$f":"IF(ISNUMBER(SEARCH($B$13,AW72)),MAX($AV$8:AV71)+1,0)","v":64},"Fall to Prone Jump to Straddle Stand",null,null,{"$f":"IFERROR(VLOOKUP(ROWS($AW$9:AW72),$AV$9:$AW$162,2,0),\"\")","v":"Fall to Prone Jump to Straddle Stand"},null,null,null,{"$f":"IF(ISNUMBER(SEARCH($B$14,BE72)),MAX($BD$8:BD71)+1,0)","v":64},"Fall to Prone Jump to Straddle Stand",null,null,{"$f":"IFERROR(VLOOKUP(ROWS($BE$9:BE72),$BD$9:$BE$162,2,0),\"\")","v":"Fall to Prone Jump to Straddle Stand"},null,null,null,{"$f":"IF(ISNUMBER(SEARCH($B$15,BM72)),MAX($BL$8:BL71)+1,0)","v":64},"Fall to Prone Jump to Straddle Stand",null,null,{"$f":"IFERROR(VLOOKUP(ROWS($BM$9:BM72),$BL$9:$BM$162,2,0),\"\")","v":"Fall to Prone Jump to Straddle Stand"},null,null,null,{"$f":"IF(ISNUMBER(SEARCH($B$16,BU72)),MAX($BT$8:BT71)+1,0)","v":64},"Fall to Prone Jump to Straddle Stand",null,null,{"$f":"IFERROR(VLOOKUP(ROWS($BU$9:BU72),$BT$9:$BU$162,2,0),\"\")","v":"Fall to Prone Jump to Straddle Stand"},null,null,null,{"$f":"IF(ISNUMBER(SEARCH($B$17,CC72)),MAX($CB$8:CB71)+1,0)","v":64},"Fall to Prone Jump to Straddle Stand",null,null,{"$f":"IFERROR(VLOOKUP(ROWS($CC$9:CC72),$CB$9:$CC$162,2,0),\"\")","v":"Fall to Prone Jump to Straddle Stand"},null,null,null,{"$f":"IF(ISNUMBER(SEARCH($B$18,CK72)),MAX($CJ$8:CJ71)+1,0)","v":64},"Fall to Prone Jump to Straddle Stand",null,null,{"$f":"IFERROR(VLOOKUP(ROWS($CK$9:CK72),$CJ$9:$CK$162,2,0),\"\")","v":"Fall to Prone Jump to Straddle Stand"}]
[null,null,null,null,null,null,null,null,null,null,null,null,null,null,null,{"$f":"IF(ISNUMBER(SEARCH($B$9,Q73)),MAX($P$8:P72)+1,0)","v":65},"F Supp jump legs through straddle -",null,null,{"$f":"IFERROR(VLOOKUP(ROWS($Q$9:Q73),$P$9:$Q$162,2,0),\"\")","v":"F Supp jump legs through straddle -"},null,null,null,{"$f":"IF(ISNUMBER(SEARCH($B$10,Y73)),MAX($X$8:X72)+1,0)","v":65},"F Supp jump legs through straddle -",null,null,{"$f":"IFERROR(VLOOKUP(ROWS($Y$9:Y73),$X$9:$Y$162,2,0),\"\")","v":"F Supp jump legs through straddle -"},null,null,null,{"$f":"IF(ISNUMBER(SEARCH($B$11,AG73)),MAX($AF$8:AF72)+1,0)","v":65},"F Supp jump legs through straddle -",null,null,{"$f":"IFERROR(VLOOKUP(ROWS($AG$9:AG73),$AF$9:$AG$162,2,0),\"\")","v":"F Supp jump legs through straddle -"},null,null,null,{"$f":"IF(ISNUMBER(SEARCH($B$12,AO73)),MAX($AN$8:AN72)+1,0)","v":65},"F Supp jump legs through straddle -",null,null,{"$f":"IFERROR(VLOOKUP(ROWS($AO$9:AO73),$AN$9:$AO$162,2,0),\"\")","v":"F Supp jump legs through straddle -"},null,null,null,{"$f":"IF(ISNUMBER(SEARCH($B$13,AW73)),MAX($AV$8:AV72)+1,0)","v":65},"F Supp jump legs through straddle -",null,null,{"$f":"IFERROR(VLOOKUP(ROWS($AW$9:AW73),$AV$9:$AW$162,2,0),\"\")","v":"F Supp jump legs through straddle -"},null,null,null,{"$f":"IF(ISNUMBER(SEARCH($B$14,BE73)),MAX($BD$8:BD72)+1,0)","v":65},"F Supp jump legs through straddle -",null,null,{"$f":"IFERROR(VLOOKUP(ROWS($BE$9:BE73),$BD$9:$BE$162,2,0),\"\")","v":"F Supp jump legs through straddle -"},null,null,null,{"$f":"IF(ISNUMBER(SEARCH($B$15,BM73)),MAX($BL$8:BL72)+1,0)","v":65},"F Supp jump legs through straddle -",null,null,{"$f":"IFERROR(VLOOKUP(ROWS($BM$9:BM73),$BL$9:$BM$162,2,0),\"\")","v":"F Supp jump legs through straddle -"},null,null,null,{"$f":"IF(ISNUMBER(SEARCH($B$16,BU73)),MAX($BT$8:BT72)+1,0)","v":65},"F Supp jump legs through straddle -",null,null,{"$f":"IFERROR(VLOOKUP(ROWS($BU$9:BU73),$BT$9:$BU$162,2,0),\"\")","v":"F Supp jump legs through straddle -"},null,null,null,{"$f":"IF(ISNUMBER(SEARCH($B$17,CC73)),MAX($CB$8:CB72)+1,0)","v":65},"F Supp jump legs through straddle -",null,null,{"$f":"IFERROR(VLOOKUP(ROWS($CC$9:CC73),$CB$9:$CC$162,2,0),\"\")","v":"F Supp jump legs through straddle -"},null,null,null,{"$f":"IF(ISNUMBER(SEARCH($B$18,CK73)),MAX($CJ$8:CJ72)+1,0)","v":65},"F Supp jump legs through straddle -",null,null,{"$f":"IFERROR(VLOOKUP(ROWS($CK$9:CK73),$CJ$9:$CK$162,2,0),\"\")","v":"F Supp jump legs through straddle -"}]
[null,null,null,null,null,null,null,null,null,null,null,"Achieved",null,null,null,{"$f":"IF(ISNUMBER(SEARCH($B$9,Q74)),MAX($P$8:P73)+1,0)","v":66},"Tuck ‘Russian’ Lever",null,null,{"$f":"IFERROR(VLOOKUP(ROWS($Q$9:Q74),$P$9:$Q$162,2,0),\"\")","v":"Tuck ‘Russian’ Lever"},null,null,null,{"$f":"IF(ISNUMBER(SEARCH($B$10,Y74)),MAX($X$8:X73)+1,0)","v":66},"Tuck ‘Russian’ Lever",null,null,{"$f":"IFERROR(VLOOKUP(ROWS($Y$9:Y74),$X$9:$Y$162,2,0),\"\")","v":"Tuck ‘Russian’ Lever"},null,null,null,{"$f":"IF(ISNUMBER(SEARCH($B$11,AG74)),MAX($AF$8:AF73)+1,0)","v":66},"Tuck ‘Russian’ Lever",null,null,{"$f":"IFERROR(VLOOKUP(ROWS($AG$9:AG74),$AF$9:$AG$162,2,0),\"\")","v":"Tuck ‘Russian’ Lever"},null,null,null,{"$f":"IF(ISNUMBER(SEARCH($B$12,AO74)),MAX($AN$8:AN73)+1,0)","v":66},"Tuck ‘Russian’ Lever",null,null,{"$f":"IFERROR(VLOOKUP(ROWS($AO$9:AO74),$AN$9:$AO$162,2,0),\"\")","v":"Tuck ‘Russian’ Lever"},null,null,null,{"$f":"IF(ISNUMBER(SEARCH($B$13,AW74)),MAX($AV$8:AV73)+1,0)","v":66},"Tuck ‘Russian’ Lever",null,null,{"$f":"IFERROR(VLOOKUP(ROWS($AW$9:AW74),$AV$9:$AW$162,2,0),\"\")","v":"Tuck ‘Russian’ Lever"},null,null,null,{"$f":"IF(ISNUMBER(SEARCH($B$14,BE74)),MAX($BD$8:BD73)+1,0)","v":66},"Tuck ‘Russian’ Lever",null,null,{"$f":"IFERROR(VLOOKUP(ROWS($BE$9:BE74),$BD$9:$BE$162,2,0),\"\")","v":"Tuck ‘Russian’ Lever"},null,null,null,{"$f":"IF(ISNUMBER(SEARCH($B$15,BM74)),MAX($BL$8:BL73)+1,0)","v":66},"Tuck ‘Russian’ Lever",null,null,{"$f":"IFERROR(VLOOKUP(ROWS($BM$9:BM74),$BL$9:$BM$162,2,0),\"\")","v":"Tuck ‘Russian’ Lever"},null,null,null,{"$f":"IF(ISNUMBER(SEARCH($B$16,BU74)),MAX($BT$8:BT73)+1,0)","v":66},"Tuck ‘Russian’ Lever",null,null,{"$f":"IFERROR(VLOOKUP(ROWS($BU$9:BU74),$BT$9:$BU$162,2,0),\"\")","v":"Tuck ‘Russian’ Lever"},null,null,null,{"$f":"IF(ISNUMBER(SEARCH($B$17,CC74)),MAX($CB$8:CB73)+1,0)","v":66},"Tuck ‘Russian’ Lever",null,null,{"$f":"IFERROR(VLOOKUP(ROWS($CC$9:CC74),$CB$9:$CC$162,2,0),\"\")","v":"Tuck ‘Russian’ Lever"},null,null,null,{"$f":"IF(ISNUMBER(SEARCH($B$18,CK74)),MAX($CJ$8:CJ73)+1,0)","v":66},"Tuck ‘Russian’ Lever",null,null,{"$f":"IFERROR(VLOOKUP(ROWS($CK$9:CK74),$CJ$9:$CK$162,2,0),\"\")","v":"Tuck ‘Russian’ Lever"}]
[null,null,null,null,null,null,null,null,null,null,null,{"$f":"IF(D5=\"Female\",IF(L51=\"Yes\",IF(L54=\"Yes\",IF(L65=\"Yes\",IF(L69=\"Yes\",IF(L72=\"Yes\",\"Yes\",\"No\"),\"No\"),\"No\"),\"No\"),\"No\"),IF(D5=\"Male\",IF(L54=\"Yes\",IF(L65=\"Yes\",IF(L69=\"Yes\",IF(L72=\"Yes\",\"Yes\",\"No\"),\"No\"),\"No\"),\"No\"),\"No\"))","v":"No"},null,null,null,{"$f":"IF(ISNUMBER(SEARCH($B$9,Q75)),MAX($P$8:P74)+1,0)","v":67},"Tucked hold (press off knees)",null,null,{"$f":"IFERROR(VLOOKUP(ROWS($Q$9:Q75),$P$9:$Q$162,2,0),\"\")","v":"Tucked hold (press off knees)"},null,null,null,{"$f":"IF(ISNUMBER(SEARCH($B$10,Y75)),MAX($X$8:X74)+1,0)","v":67},"Tucked hold (press off knees)",null,null,{"$f":"IFERROR(VLOOKUP(ROWS($Y$9:Y75),$X$9:$Y$162,2,0),\"\")","v":"Tucked hold (press off knees)"},null,null,null,{"$f":"IF(ISNUMBER(SEARCH($B$11,AG75)),MAX($AF$8:AF74)+1,0)","v":67},"Tucked hold (press off knees)",null,null,{"$f":"IFERROR(VLOOKUP(ROWS($AG$9:AG75),$AF$9:$AG$162,2,0),\"\")","v":"Tucked hold (press off knees)"},null,null,null,{"$f":"IF(ISNUMBER(SEARCH($B$12,AO75)),MAX($AN$8:AN74)+1,0)","v":67},"Tucked hold (press off knees)",null,null,{"$f":"IFERROR(VLOOKUP(ROWS($AO$9:AO75),$AN$9:$AO$162,2,0),\"\")","v":"Tucked hold (press off knees)"},null,null,null,{"$f":"IF(ISNUMBER(SEARCH($B$13,AW75)),MAX($AV$8:AV74)+1,0)","v":67},"Tucked hold (press off knees)",null,null,{"$f":"IFERROR(VLOOKUP(ROWS($AW$9:AW75),$AV$9:$AW$162,2,0),\"\")","v":"Tucked hold (press off knees)"},null,null,null,{"$f":"IF(ISNUMBER(SEARCH($B$14,BE75)),MAX($BD$8:BD74)+1,0)","v":67},"Tucked hold (press off knees)",null,null,{"$f":"IFERROR(VLOOKUP(ROWS($BE$9:BE75),$BD$9:$BE$162,2,0),\"\")","v":"Tucked hold (press off knees)"},null,null,null,{"$f":"IF(ISNUMBER(SEARCH($B$15,BM75)),MAX($BL$8:BL74)+1,0)","v":67},"Tucked hold (press off knees)",null,null,{"$f":"IFERROR(VLOOKUP(ROWS($BM$9:BM75),$BL$9:$BM$162,2,0),\"\")","v":"Tucked hold (press off knees)"},null,null,null,{"$f":"IF(ISNUMBER(SEARCH($B$16,BU75)),MAX($BT$8:BT74)+1,0)","v":67},"Tucked hold (press off knees)",null,null,{"$f":"IFERROR(VLOOKUP(ROWS($BU$9:BU75),$BT$9:$BU$162,2,0),\"\")","v":"Tucked hold (press off knees)"},null,null,null,{"$f":"IF(ISNUMBER(SEARCH($B$17,CC75)),MAX($CB$8:CB74)+1,0)","v":67},"Tucked hold (press off knees)",null,null,{"$f":"IFERROR(VLOOKUP(ROWS($CC$9:CC75),$CB$9:$CC$162,2,0),\"\")","v":"Tucked hold (press off knees)"},null,null,null,{"$f":"IF(ISNUMBER(SEARCH($B$18,CK75)),MAX($CJ$8:CJ74)+1,0)","v":67},"Tucked hold (press off knees)",null,null,{"$f":"IFERROR(VLOOKUP(ROWS($CK$9:CK75),$CJ$9:$CK$162,2,0),\"\")","v":"Tucked hold (press off knees)"}]
[null,null,null,null,null,null,null,null,null,null,null,null,null,null,null,{"$f":"IF(ISNUMBER(SEARCH($B$9,Q76)),MAX($P$8:P75)+1,0)","v":68},"1/2 lever held 2 secs (pike / straddle)",null,null,{"$f":"IFERROR(VLOOKUP(ROWS($Q$9:Q76),$P$9:$Q$162,2,0),\"\")","v":"1/2 lever held 2 secs (pike / straddle)"},null,null,null,{"$f":"IF(ISNUMBER(SEARCH($B$10,Y76)),MAX($X$8:X75)+1,0)","v":68},"1/2 lever held 2 secs (pike / straddle)",null,null,{"$f":"IFERROR(VLOOKUP(ROWS($Y$9:Y76),$X$9:$Y$162,2,0),\"\")","v":"1/2 lever held 2 secs (pike / straddle)"},null,null,null,{"$f":"IF(ISNUMBER(SEARCH($B$11,AG76)),MAX($AF$8:AF75)+1,0)","v":68},"1/2 lever held 2 secs (pike / straddle)",null,null,{"$f":"IFERROR(VLOOKUP(ROWS($AG$9:AG76),$AF$9:$AG$162,2,0),\"\")","v":"1/2 lever held 2 secs (pike / straddle)"},null,null,null,{"$f":"IF(ISNUMBER(SEARCH($B$12,AO76)),MAX($AN$8:AN75)+1,0)","v":68},"1/2 lever held 2 secs (pike / straddle)",null,null,{"$f":"IFERROR(VLOOKUP(ROWS($AO$9:AO76),$AN$9:$AO$162,2,0),\"\")","v":"1/2 lever held 2 secs (pike / straddle)"},null,null,null,{"$f":"IF(ISNUMBER(SEARCH($B$13,AW76)),MAX($AV$8:AV75)+1,0)","v":68},"1/2 lever held 2 secs (pike / straddle)",null,null,{"$f":"IFERROR(VLOOKUP(ROWS($AW$9:AW76),$AV$9:$AW$162,2,0),\"\")","v":"1/2 lever held 2 secs (pike / straddle)"},null,null,null,{"$f":"IF(ISNUMBER(SEARCH($B$14,BE76)),MAX($BD$8:BD75)+1,0)","v":68},"1/2 lever held 2 secs (pike / straddle)",null,null,{"$f":"IFERROR(VLOOKUP(ROWS($BE$9:BE76),$BD$9:$BE$162,2,0),\"\")","v":"1/2 lever held 2 secs (pike / straddle)"},null,null,null,{"$f":"IF(ISNUMBER(SEARCH($B$15,BM76)),MAX($BL$8:BL75)+1,0)","v":68},"1/2 lever held 2 secs (pike / straddle)",null,null,{"$f":"IFERROR(VLOOKUP(ROWS($BM$9:BM76),$BL$9:$BM$162,2,0),\"\")","v":"1/2 lever held 2 secs (pike / straddle)"},null,null,null,{"$f":"IF(ISNUMBER(SEARCH($B$16,BU76)),MAX($BT$8:BT75)+1,0)","v":68},"1/2 lever held 2 secs (pike / straddle)",null,null,{"$f":"IFERROR(VLOOKUP(ROWS($BU$9:BU76),$BT$9:$BU$162,2,0),\"\")","v":"1/2 lever held 2 secs (pike / straddle)"},null,null,null,{"$f":"IF(ISNUMBER(SEARCH($B$17,CC76)),MAX($CB$8:CB75)+1,0)","v":68},"1/2 lever held 2 secs (pike / straddle)",null,null,{"$f":"IFERROR(VLOOKUP(ROWS($CC$9:CC76),$CB$9:$CC$162,2,0),\"\")","v":"1/2 lever held 2 secs (pike / straddle)"},null,null,null,{"$f":"IF(ISNUMBER(SEARCH($B$18,CK76)),MAX($CJ$8:CJ75)+1,0)","v":68},"1/2 lever held 2 secs (pike / straddle)",null,null,{"$f":"IFERROR(VLOOKUP(ROWS($CK$9:CK76),$CJ$9:$CK$162,2,0),\"\")","v":"1/2 lever held 2 secs (pike / straddle)"}]
[null,null,null,null,null,null,null,null,null,null,null,null,null,null,null,{"$f":"IF(ISNUMBER(SEARCH($B$9,Q77)),MAX($P$8:P76)+1,0)","v":69},"Straddle stand press to h/stand",null,null,{"$f":"IFERROR(VLOOKUP(ROWS($Q$9:Q77),$P$9:$Q$162,2,0),\"\")","v":"Straddle stand press to h/stand"},null,null,null,{"$f":"IF(ISNUMBER(SEARCH($B$10,Y77)),MAX($X$8:X76)+1,0)","v":69},"Straddle stand press to h/stand",null,null,{"$f":"IFERROR(VLOOKUP(ROWS($Y$9:Y77),$X$9:$Y$162,2,0),\"\")","v":"Straddle stand press to h/stand"},null,null,null,{"$f":"IF(ISNUMBER(SEARCH($B$11,AG77)),MAX($AF$8:AF76)+1,0)","v":69},"Straddle stand press to h/stand",null,null,{"$f":"IFERROR(VLOOKUP(ROWS($AG$9:AG77),$AF$9:$AG$162,2,0),\"\")","v":"Straddle stand press to h/stand"},null,null,null,{"$f":"IF(ISNUMBER(SEARCH($B$12,AO77)),MAX($AN$8:AN76)+1,0)","v":69},"Straddle stand press to h/stand",null,null,{"$f":"IFERROR(VLOOKUP(ROWS($AO$9:AO77),$AN$9:$AO$162,2,0),\"\")","v":"Straddle stand press to h/stand"},null,null,null,{"$f":"IF(ISNUMBER(SEARCH($B$13,AW77)),MAX($AV$8:AV76)+1,0)","v":69},"Straddle stand press to h/stand",null,null,{"$f":"IFERROR(VLOOKUP(ROWS($AW$9:AW77),$AV$9:$AW$162,2,0),\"\")","v":"Straddle stand press to h/stand"},null,null,null,{"$f":"IF(ISNUMBER(SEARCH($B$14,BE77)),MAX($BD$8:BD76)+1,0)","v":69},"Straddle stand press to h/stand",null,null,{"$f":"IFERROR(VLOOKUP(ROWS($BE$9:BE77),$BD$9:$BE$162,2,0),\"\")","v":"Straddle stand press to h/stand"},null,null,null,{"$f":"IF(ISNUMBER(SEARCH($B$15,BM77)),MAX($BL$8:BL76)+1,0)","v":69},"Straddle stand press to h/stand",null,null,{"$f":"IFERROR(VLOOKUP(ROWS($BM$9:BM77),$BL$9:$BM$162,2,0),\"\")","v":"Straddle stand press to h/stand"},null,null,null,{"$f":"IF(ISNUMBER(SEARCH($B$16,BU77)),MAX($BT$8:BT76)+1,0)","v":69},"Straddle stand press to h/stand",null,null,{"$f":"IFERROR(VLOOKUP(ROWS($BU$9:BU77),$BT$9:$BU$162,2,0),\"\")","v":"Straddle stand press to h/stand"},null,null,null,{"$f":"IF(ISNUMBER(SEARCH($B$17,CC77)),MAX($CB$8:CB76)+1,0)","v":69},"Straddle stand press to h/stand",null,null,{"$f":"IFERROR(VLOOKUP(ROWS($CC$9:CC77),$CB$9:$CC$162,2,0),\"\")","v":"Straddle stand press to h/stand"},null,null,null,{"$f":"IF(ISNUMBER(SEARCH($B$18,CK77)),MAX($CJ$8:CJ76)+1,0)","v":69},"Straddle stand press to h/stand",null,null,{"$f":"IFERROR(VLOOKUP(ROWS($CK$9:CK77),$CJ$9:$CK$162,2,0),\"\")","v":"Straddle stand press to h/stand"}]
[null,null,null,null,null,null,null,null,null,null,null,null,null,null,null,{"$f":"IF(ISNUMBER(SEARCH($B$9,Q78)),MAX($P$8:P77)+1,0)","v":70},"Forward roll with straight legs",null,null,{"$f":"IFERROR(VLOOKUP(ROWS($Q$9:Q78),$P$9:$Q$162,2,0),\"\")","v":"Forward roll with straight legs"},null,null,null,{"$f":"IF(ISNUMBER(SEARCH($B$10,Y78)),MAX($X$8:X77)+1,0)","v":70},"Forward roll with straight legs",null,null,{"$f":"IFERROR(VLOOKUP(ROWS($Y$9:Y78),$X$9:$Y$162,2,0),\"\")","v":"Forward roll with straight legs"},null,null,null,{"$f":"IF(ISNUMBER(SEARCH($B$11,AG78)),MAX($AF$8:AF77)+1,0)","v":70},"Forward roll with straight legs",null,null,{"$f":"IFERROR(VLOOKUP(ROWS($AG$9:AG78),$AF$9:$AG$162,2,0),\"\")","v":"Forward roll with straight legs"},null,null,null,{"$f":"IF(ISNUMBER(SEARCH($B$12,AO78)),MAX($AN$8:AN77)+1,0)","v":70},"Forward roll with straight legs",null,null,{"$f":"IFERROR(VLOOKUP(ROWS($AO$9:AO78),$AN$9:$AO$162,2,0),\"\")","v":"Forward roll with straight legs"},null,null,null,{"$f":"IF(ISNUMBER(SEARCH($B$13,AW78)),MAX($AV$8:AV77)+1,0)","v":70},"Forward roll with straight legs",null,null,{"$f":"IFERROR(VLOOKUP(ROWS($AW$9:AW78),$AV$9:$AW$162,2,0),\"\")","v":"Forward roll with straight legs"},null,null,null,{"$f":"IF(ISNUMBER(SEARCH($B$14,BE78)),MAX($BD$8:BD77)+1,0)","v":70},"Forward roll with straight legs",null,null,{"$f":"IFERROR(VLOOKUP(ROWS($BE$9:BE78),$BD$9:$BE$162,2,0),\"\")","v":"Forward roll with straight legs"},null,null,null,{"$f":"IF(ISNUMBER(SEARCH($B$15,BM78)),MAX($BL$8:BL77)+1,0)","v":70},"Forward roll with straight legs",null,null,{"$f":"IFERROR(VLOOKUP(ROWS($BM$9:BM78),$BL$9:$BM$162,2,0),\"\")","v":"Forward roll with straight legs"},null,null,null,{"$f":"IF(ISNUMBER(SEARCH($B$16,BU78)),MAX($BT$8:BT77)+1,0)","v":70},"Forward roll with straight legs",null,null,{"$f":"IFERROR(VLOOKUP(ROWS($BU$9:BU78),$BT$9:$BU$162,2,0),\"\")","v":"Forward roll with straight legs"},null,null,null,{"$f":"IF(ISNUMBER(SEARCH($B$17,CC78)),MAX($CB$8:CB77)+1,0)","v":70},"Forward roll with straight legs",null,null,{"$f":"IFERROR(VLOOKUP(ROWS($CC$9:CC78),$CB$9:$CC$162,2,0),\"\")","v":"Forward roll with straight legs"},null,null,null,{"$f":"IF(ISNUMBER(SEARCH($B$18,CK78)),MAX($CJ$8:CJ77)+1,0)","v":70},"Forward roll with straight legs",null,null,{"$f":"IFERROR(VLOOKUP(ROWS($CK$9:CK78),$CJ$9:$CK$162,2,0),\"\")","v":"Forward roll with straight legs"}]
[null,null,null,null,null,null,null,null,null,null,null,null,null,null,null,{"$f":"IF(ISNUMBER(SEARCH($B$9,Q79)),MAX($P$8:P78)+1,0)","v":71},"H/stand F Roll straight arms",null,null,{"$f":"IFERROR(VLOOKUP(ROWS($Q$9:Q79),$P$9:$Q$162,2,0),\"\")","v":"H/stand F Roll straight arms"},null,null,null,{"$f":"IF(ISNUMBER(SEARCH($B$10,Y79)),MAX($X$8:X78)+1,0)","v":71},"H/stand F Roll straight arms",null,null,{"$f":"IFERROR(VLOOKUP(ROWS($Y$9:Y79),$X$9:$Y$162,2,0),\"\")","v":"H/stand F Roll straight arms"},null,null,null,{"$f":"IF(ISNUMBER(SEARCH($B$11,AG79)),MAX($AF$8:AF78)+1,0)","v":71},"H/stand F Roll straight arms",null,null,{"$f":"IFERROR(VLOOKUP(ROWS($AG$9:AG79),$AF$9:$AG$162,2,0),\"\")","v":"H/stand F Roll straight arms"},null,null,null,{"$f":"IF(ISNUMBER(SEARCH($B$12,AO79)),MAX($AN$8:AN78)+1,0)","v":71},"H/stand F Roll straight arms",null,null,{"$f":"IFERROR(VLOOKUP(ROWS($AO$9:AO79),$AN$9:$AO$162,2,0),\"\")","v":"H/stand F Roll straight arms"},null,null,null,{"$f":"IF(ISNUMBER(SEARCH($B$13,AW79)),MAX($AV$8:AV78)+1,0)","v":71},"H/stand F Roll straight arms",null,null,{"$f":"IFERROR(VLOOKUP(ROWS($AW$9:AW79),$AV$9:$AW$162,2,0),\"\")","v":"H/stand F Roll straight arms"},null,null,null,{"$f":"IF(ISNUMBER(SEARCH($B$14,BE79)),MAX($BD$8:BD78)+1,0)","v":71},"H/stand F Roll straight arms",null,null,{"$f":"IFERROR(VLOOKUP(ROWS($BE$9:BE79),$BD$9:$BE$162,2,0),\"\")","v":"H/stand F Roll straight arms"},null,null,null,{"$f":"IF(ISNUMBER(SEARCH($B$15,BM79)),MAX($BL$8:BL78)+1,0)","v":71},"H/stand F Roll straight arms",null,null,{"$f":"IFERROR(VLOOKUP(ROWS($BM$9:BM79),$BL$9:$BM$162,2,0),\"\")","v":"H/stand F Roll straight arms"},null,null,null,{"$f":"IF(ISNUMBER(SEARCH($B$16,BU79)),MAX($BT$8:BT78)+1,0)","v":71},"H/stand F Roll straight arms",null,null,{"$f":"IFERROR(VLOOKUP(ROWS($BU$9:BU79),$BT$9:$BU$162,2,0),\"\")","v":"H/stand F Roll straight arms"},null,null,null,{"$f":"IF(ISNUMBER(SEARCH($B$17,CC79)),MAX($CB$8:CB78)+1,0)","v":71},"H/stand F Roll straight arms",null,null,{"$f":"IFERROR(VLOOKUP(ROWS($CC$9:CC79),$CB$9:$CC$162,2,0),\"\")","v":"H/stand F Roll straight arms"},null,null,null,{"$f":"IF(ISNUMBER(SEARCH($B$18,CK79)),MAX($CJ$8:CJ78)+1,0)","v":71},"H/stand F Roll straight arms",null,null,{"$f":"IFERROR(VLOOKUP(ROWS($CK$9:CK79),$CJ$9:$CK$162,2,0),\"\")","v":"H/stand F Roll straight arms"}]
[null,null,null,null,null,null,null,null,null,null,null,null,null,null,null,{"$f":"IF(ISNUMBER(SEARCH($B$9,Q80)),MAX($P$8:P79)+1,0)","v":72},"B Roll through h/stand",null,null,{"$f":"IFERROR(VLOOKUP(ROWS($Q$9:Q80),$P$9:$Q$162,2,0),\"\")","v":"B Roll through h/stand"},null,null,null,{"$f":"IF(ISNUMBER(SEARCH($B$10,Y80)),MAX($X$8:X79)+1,0)","v":72},"B Roll through h/stand",null,null,{"$f":"IFERROR(VLOOKUP(ROWS($Y$9:Y80),$X$9:$Y$162,2,0),\"\")","v":"B Roll through h/stand"},null,null,null,{"$f":"IF(ISNUMBER(SEARCH($B$11,AG80)),MAX($AF$8:AF79)+1,0)","v":72},"B Roll through h/stand",null,null,{"$f":"IFERROR(VLOOKUP(ROWS($AG$9:AG80),$AF$9:$AG$162,2,0),\"\")","v":"B Roll through h/stand"},null,null,null,{"$f":"IF(ISNUMBER(SEARCH($B$12,AO80)),MAX($AN$8:AN79)+1,0)","v":72},"B Roll through h/stand",null,null,{"$f":"IFERROR(VLOOKUP(ROWS($AO$9:AO80),$AN$9:$AO$162,2,0),\"\")","v":"B Roll through h/stand"},null,null,null,{"$f":"IF(ISNUMBER(SEARCH($B$13,AW80)),MAX($AV$8:AV79)+1,0)","v":72},"B Roll through h/stand",null,null,{"$f":"IFERROR(VLOOKUP(ROWS($AW$9:AW80),$AV$9:$AW$162,2,0),\"\")","v":"B Roll through h/stand"},null,null,null,{"$f":"IF(ISNUMBER(SEARCH($B$14,BE80)),MAX($BD$8:BD79)+1,0)","v":72},"B Roll through h/stand",null,null,{"$f":"IFERROR(VLOOKUP(ROWS($BE$9:BE80),$BD$9:$BE$162,2,0),\"\")","v":"B Roll through h/stand"},null,null,null,{"$f":"IF(ISNUMBER(SEARCH($B$15,BM80)),MAX($BL$8:BL79)+1,0)","v":72},"B Roll through h/stand",null,null,{"$f":"IFERROR(VLOOKUP(ROWS($BM$9:BM80),$BL$9:$BM$162,2,0),\"\")","v":"B Roll through h/stand"},null,null,null,{"$f":"IF(ISNUMBER(SEARCH($B$16,BU80)),MAX($BT$8:BT79)+1,0)","v":72},"B Roll through h/stand",null,null,{"$f":"IFERROR(VLOOKUP(ROWS($BU$9:BU80),$BT$9:$BU$162,2,0),\"\")","v":"B Roll through h/stand"},null,null,null,{"$f":"IF(ISNUMBER(SEARCH($B$17,CC80)),MAX($CB$8:CB79)+1,0)","v":72},"B Roll through h/stand",null,null,{"$f":"IFERROR(VLOOKUP(ROWS($CC$9:CC80),$CB$9:$CC$162,2,0),\"\")","v":"B Roll through h/stand"},null,null,null,{"$f":"IF(ISNUMBER(SEARCH($B$18,CK80)),MAX($CJ$8:CJ79)+1,0)","v":72},"B Roll through h/stand",null,null,{"$f":"IFERROR(VLOOKUP(ROWS($CK$9:CK80),$CJ$9:$CK$162,2,0),\"\")","v":"B Roll through h/stand"}]
[null,null,null,null,null,null,null,null,null,null,null,null,null,null,null,{"$f":"IF(ISNUMBER(SEARCH($B$9,Q81)),MAX($P$8:P80)+1,0)","v":73},"Handstand full pirouette",null,null,{"$f":"IFERROR(VLOOKUP(ROWS($Q$9:Q81),$P$9:$Q$162,2,0),\"\")","v":"Handstand full pirouette"},null,null,null,{"$f":"IF(ISNUMBER(SEARCH($B$10,Y81)),MAX($X$8:X80)+1,0)","v":73},"Handstand full pirouette",null,null,{"$f":"IFERROR(VLOOKUP(ROWS($Y$9:Y81),$X$9:$Y$162,2,0),\"\")","v":"Handstand full pirouette"},null,null,null,{"$f":"IF(ISNUMBER(SEARCH($B$11,AG81)),MAX($AF$8:AF80)+1,0)","v":73},"Handstand full pirouette",null,null,{"$f":"IFERROR(VLOOKUP(ROWS($AG$9:AG81),$AF$9:$AG$162,2,0),\"\")","v":"Handstand full pirouette"},null,null,null,{"$f":"IF(ISNUMBER(SEARCH($B$12,AO81)),MAX($AN$8:AN80)+1,0)","v":73},"Handstand full pirouette",null,null,{"$f":"IFERROR(VLOOKUP(ROWS($AO$9:AO81),$AN$9:$AO$162,2,0),\"\")","v":"Handstand full pirouette"},null,null,null,{"$f":"IF(ISNUMBER(SEARCH($B$13,AW81)),MAX($AV$8:AV80)+1,0)","v":73},"Handstand full pirouette",null,null,{"$f":"IFERROR(VLOOKUP(ROWS($AW$9:AW81),$AV$9:$AW$162,2,0),\"\")","v":"Handstand full pirouette"},null,null,null,{"$f":"IF(ISNUMBER(SEARCH($B$14,BE81)),MAX($BD$8:BD80)+1,0)","v":73},"Handstand full pirouette",null,null,{"$f":"IFERROR(VLOOKUP(ROWS($BE$9:BE81),$BD$9:$BE$162,2,0),\"\")","v":"Handstand full pirouette"},null,null,null,{"$f":"IF(ISNUMBER(SEARCH($B$15,BM81)),MAX($BL$8:BL80)+1,0)","v":73},"Handstand full pirouette",null,null,{"$f":"IFERROR(VLOOKUP(ROWS($BM$9:BM81),$BL$9:$BM$162,2,0),\"\")","v":"Handstand full pirouette"},null,null,null,{"$f":"IF(ISNUMBER(SEARCH($B$16,BU81)),MAX($BT$8:BT80)+1,0)","v":73},"Handstand full pirouette",null,null,{"$f":"IFERROR(VLOOKUP(ROWS($BU$9:BU81),$BT$9:$BU$162,2,0),\"\")","v":"Handstand full pirouette"},null,null,null,{"$f":"IF(ISNUMBER(SEARCH($B$17,CC81)),MAX($CB$8:CB80)+1,0)","v":73},"Handstand full pirouette",null,null,{"$f":"IFERROR(VLOOKUP(ROWS($CC$9:CC81),$CB$9:$CC$162,2,0),\"\")","v":"Handstand full pirouette"},null,null,null,{"$f":"IF(ISNUMBER(SEARCH($B$18,CK81)),MAX($CJ$8:CJ80)+1,0)","v":73},"Handstand full pirouette",null,null,{"$f":"IFERROR(VLOOKUP(ROWS($CK$9:CK81),$CJ$9:$CK$162,2,0),\"\")","v":"Handstand full pirouette"}]
[null,null,null,null,null,null,null,null,null,null,null,null,null,null,null,{"$f":"IF(ISNUMBER(SEARCH($B$9,Q82)),MAX($P$8:P81)+1,0)","v":74},"Pike Bunny Hop to Handstand - ",null,null,{"$f":"IFERROR(VLOOKUP(ROWS($Q$9:Q82),$P$9:$Q$162,2,0),\"\")","v":"Pike Bunny Hop to Handstand - "},null,null,null,{"$f":"IF(ISNUMBER(SEARCH($B$10,Y82)),MAX($X$8:X81)+1,0)","v":74},"Pike Bunny Hop to Handstand - ",null,null,{"$f":"IFERROR(VLOOKUP(ROWS($Y$9:Y82),$X$9:$Y$162,2,0),\"\")","v":"Pike Bunny Hop to Handstand - "},null,null,null,{"$f":"IF(ISNUMBER(SEARCH($B$11,AG82)),MAX($AF$8:AF81)+1,0)","v":74},"Pike Bunny Hop to Handstand - ",null,null,{"$f":"IFERROR(VLOOKUP(ROWS($AG$9:AG82),$AF$9:$AG$162,2,0),\"\")","v":"Pike Bunny Hop to Handstand - "},null,null,null,{"$f":"IF(ISNUMBER(SEARCH($B$12,AO82)),MAX($AN$8:AN81)+1,0)","v":74},"Pike Bunny Hop to Handstand - ",null,null,{"$f":"IFERROR(VLOOKUP(ROWS($AO$9:AO82),$AN$9:$AO$162,2,0),\"\")","v":"Pike Bunny Hop to Handstand - "},null,null,null,{"$f":"IF(ISNUMBER(SEARCH($B$13,AW82)),MAX($AV$8:AV81)+1,0)","v":74},"Pike Bunny Hop to Handstand - ",null,null,{"$f":"IFERROR(VLOOKUP(ROWS($AW$9:AW82),$AV$9:$AW$162,2,0),\"\")","v":"Pike Bunny Hop to Handstand - "},null,null,null,{"$f":"IF(ISNUMBER(SEARCH($B$14,BE82)),MAX($BD$8:BD81)+1,0)","v":74},"Pike Bunny Hop to Handstand - ",null,null,{"$f":"IFERROR(VLOOKUP(ROWS($BE$9:BE82),$BD$9:$BE$162,2,0),\"\")","v":"Pike Bunny Hop to Handstand - "},null,null,null,{"$f":"IF(ISNUMBER(SEARCH($B$15,BM82)),MAX($BL$8:BL81)+1,0)","v":74},"Pike Bunny Hop to Handstand - ",null,null,{"$f":"IFERROR(VLOOKUP(ROWS($BM$9:BM82),$BL$9:$BM$162,2,0),\"\")","v":"Pike Bunny Hop to Handstand - "},null,null,null,{"$f":"IF(ISNUMBER(SEARCH($B$16,BU82)),MAX($BT$8:BT81)+1,0)","v":74},"Pike Bunny Hop to Handstand - ",null,null,{"$f":"IFERROR(VLOOKUP(ROWS($BU$9:BU82),$BT$9:$BU$162,2,0),\"\")","v":"Pike Bunny Hop to Handstand - "},null,null,null,{"$f":"IF(ISNUMBER(SEARCH($B$17,CC82)),MAX($CB$8:CB81)+1,0)","v":74},"Pike Bunny Hop to Handstand - ",null,null,{"$f":"IFERROR(VLOOKUP(ROWS($CC$9:CC82),$CB$9:$CC$162,2,0),\"\")","v":"Pike Bunny Hop to Handstand - "},null,null,null,{"$f":"IF(ISNUMBER(SEARCH($B$18,CK82)),MAX($CJ$8:CJ81)+1,0)","v":74},"Pike Bunny Hop to Handstand - ",null,null,{"$f":"IFERROR(VLOOKUP(ROWS($CK$9:CK82),$CJ$9:$CK$162,2,0),\"\")","v":"Pike Bunny Hop to Handstand - "}]
[null,null,null,null,null,null,null,null,null,null,null,null,null,null,null,{"$f":"IF(ISNUMBER(SEARCH($B$9,Q83)),MAX($P$8:P82)+1,0)","v":75},"Half Double Leg Circle",null,null,{"$f":"IFERROR(VLOOKUP(ROWS($Q$9:Q83),$P$9:$Q$162,2,0),\"\")","v":"Half Double Leg Circle"},null,null,null,{"$f":"IF(ISNUMBER(SEARCH($B$10,Y83)),MAX($X$8:X82)+1,0)","v":75},"Half Double Leg Circle",null,null,{"$f":"IFERROR(VLOOKUP(ROWS($Y$9:Y83),$X$9:$Y$162,2,0),\"\")","v":"Half Double Leg Circle"},null,null,null,{"$f":"IF(ISNUMBER(SEARCH($B$11,AG83)),MAX($AF$8:AF82)+1,0)","v":75},"Half Double Leg Circle",null,null,{"$f":"IFERROR(VLOOKUP(ROWS($AG$9:AG83),$AF$9:$AG$162,2,0),\"\")","v":"Half Double Leg Circle"},null,null,null,{"$f":"IF(ISNUMBER(SEARCH($B$12,AO83)),MAX($AN$8:AN82)+1,0)","v":75},"Half Double Leg Circle",null,null,{"$f":"IFERROR(VLOOKUP(ROWS($AO$9:AO83),$AN$9:$AO$162,2,0),\"\")","v":"Half Double Leg Circle"},null,null,null,{"$f":"IF(ISNUMBER(SEARCH($B$13,AW83)),MAX($AV$8:AV82)+1,0)","v":75},"Half Double Leg Circle",null,null,{"$f":"IFERROR(VLOOKUP(ROWS($AW$9:AW83),$AV$9:$AW$162,2,0),\"\")","v":"Half Double Leg Circle"},null,null,null,{"$f":"IF(ISNUMBER(SEARCH($B$14,BE83)),MAX($BD$8:BD82)+1,0)","v":75},"Half Double Leg Circle",null,null,{"$f":"IFERROR(VLOOKUP(ROWS($BE$9:BE83),$BD$9:$BE$162,2,0),\"\")","v":"Half Double Leg Circle"},null,null,null,{"$f":"IF(ISNUMBER(SEARCH($B$15,BM83)),MAX($BL$8:BL82)+1,0)","v":75},"Half Double Leg Circle",null,null,{"$f":"IFERROR(VLOOKUP(ROWS($BM$9:BM83),$BL$9:$BM$162,2,0),\"\")","v":"Half Double Leg Circle"},null,null,null,{"$f":"IF(ISNUMBER(SEARCH($B$16,BU83)),MAX($BT$8:BT82)+1,0)","v":75},"Half Double Leg Circle",null,null,{"$f":"IFERROR(VLOOKUP(ROWS($BU$9:BU83),$BT$9:$BU$162,2,0),\"\")","v":"Half Double Leg Circle"},null,null,null,{"$f":"IF(ISNUMBER(SEARCH($B$17,CC83)),MAX($CB$8:CB82)+1,0)","v":75},"Half Double Leg Circle",null,null,{"$f":"IFERROR(VLOOKUP(ROWS($CC$9:CC83),$CB$9:$CC$162,2,0),\"\")","v":"Half Double Leg Circle"},null,null,null,{"$f":"IF(ISNUMBER(SEARCH($B$18,CK83)),MAX($CJ$8:CJ82)+1,0)","v":75},"Half Double Leg Circle",null,null,{"$f":"IFERROR(VLOOKUP(ROWS($CK$9:CK83),$CJ$9:$CK$162,2,0),\"\")","v":"Half Double Leg Circle"}]
[null,null,null,null,null,null,null,null,null,null,null,null,null,null,null,{"$f":"IF(ISNUMBER(SEARCH($B$9,Q84)),MAX($P$8:P83)+1,0)","v":76},"Forward walkover",null,null,{"$f":"IFERROR(VLOOKUP(ROWS($Q$9:Q84),$P$9:$Q$162,2,0),\"\")","v":"Forward walkover"},null,null,null,{"$f":"IF(ISNUMBER(SEARCH($B$10,Y84)),MAX($X$8:X83)+1,0)","v":76},"Forward walkover",null,null,{"$f":"IFERROR(VLOOKUP(ROWS($Y$9:Y84),$X$9:$Y$162,2,0),\"\")","v":"Forward walkover"},null,null,null,{"$f":"IF(ISNUMBER(SEARCH($B$11,AG84)),MAX($AF$8:AF83)+1,0)","v":76},"Forward walkover",null,null,{"$f":"IFERROR(VLOOKUP(ROWS($AG$9:AG84),$AF$9:$AG$162,2,0),\"\")","v":"Forward walkover"},null,null,null,{"$f":"IF(ISNUMBER(SEARCH($B$12,AO84)),MAX($AN$8:AN83)+1,0)","v":76},"Forward walkover",null,null,{"$f":"IFERROR(VLOOKUP(ROWS($AO$9:AO84),$AN$9:$AO$162,2,0),\"\")","v":"Forward walkover"},null,null,null,{"$f":"IF(ISNUMBER(SEARCH($B$13,AW84)),MAX($AV$8:AV83)+1,0)","v":76},"Forward walkover",null,null,{"$f":"IFERROR(VLOOKUP(ROWS($AW$9:AW84),$AV$9:$AW$162,2,0),\"\")","v":"Forward walkover"},null,null,null,{"$f":"IF(ISNUMBER(SEARCH($B$14,BE84)),MAX($BD$8:BD83)+1,0)","v":76},"Forward walkover",null,null,{"$f":"IFERROR(VLOOKUP(ROWS($BE$9:BE84),$BD$9:$BE$162,2,0),\"\")","v":"Forward walkover"},null,null,null,{"$f":"IF(ISNUMBER(SEARCH($B$15,BM84)),MAX($BL$8:BL83)+1,0)","v":76},"Forward walkover",null,null,{"$f":"IFERROR(VLOOKUP(ROWS($BM$9:BM84),$BL$9:$BM$162,2,0),\"\")","v":"Forward walkover"},null,null,null,{"$f":"IF(ISNUMBER(SEARCH($B$16,BU84)),MAX($BT$8:BT83)+1,0)","v":76},"Forward walkover",null,null,{"$f":"IFERROR(VLOOKUP(ROWS($BU$9:BU84),$BT$9:$BU$162,2,0),\"\")","v":"Forward walkover"},null,null,null,{"$f":"IF(ISNUMBER(SEARCH($B$17,CC84)),MAX($CB$8:CB83)+1,0)","v":76},"Forward walkover",null,null,{"$f":"IFERROR(VLOOKUP(ROWS($CC$9:CC84),$CB$9:$CC$162,2,0),\"\")","v":"Forward walkover"},null,null,null,{"$f":"IF(ISNUMBER(SEARCH($B$18,CK84)),MAX($CJ$8:CJ83)+1,0)","v":76},"Forward walkover",null,null,{"$f":"IFERROR(VLOOKUP(ROWS($CK$9:CK84),$CJ$9:$CK$162,2,0),\"\")","v":"Forward walkover"}]
[null,null,null,null,null,null,null,null,null,null,null,null,null,null,null,{"$f":"IF(ISNUMBER(SEARCH($B$9,Q85)),MAX($P$8:P84)+1,0)","v":77},"Standing Flic to 2 feet",null,null,{"$f":"IFERROR(VLOOKUP(ROWS($Q$9:Q85),$P$9:$Q$162,2,0),\"\")","v":"Standing Flic to 2 feet"},null,null,null,{"$f":"IF(ISNUMBER(SEARCH($B$10,Y85)),MAX($X$8:X84)+1,0)","v":77},"Standing Flic to 2 feet",null,null,{"$f":"IFERROR(VLOOKUP(ROWS($Y$9:Y85),$X$9:$Y$162,2,0),\"\")","v":"Standing Flic to 2 feet"},null,null,null,{"$f":"IF(ISNUMBER(SEARCH($B$11,AG85)),MAX($AF$8:AF84)+1,0)","v":77},"Standing Flic to 2 feet",null,null,{"$f":"IFERROR(VLOOKUP(ROWS($AG$9:AG85),$AF$9:$AG$162,2,0),\"\")","v":"Standing Flic to 2 feet"},null,null,null,{"$f":"IF(ISNUMBER(SEARCH($B$12,AO85)),MAX($AN$8:AN84)+1,0)","v":77},"Standing Flic to 2 feet",null,null,{"$f":"IFERROR(VLOOKUP(ROWS($AO$9:AO85),$AN$9:$AO$162,2,0),\"\")","v":"Standing Flic to 2 feet"},null,null,null,{"$f":"IF(ISNUMBER(SEARCH($B$13,AW85)),MAX($AV$8:AV84)+1,0)","v":77},"Standing Flic to 2 feet",null,null,{"$f":"IFERROR(VLOOKUP(ROWS($AW$9:AW85),$AV$9:$AW$162,2,0),\"\")","v":"Standing Flic to 2 feet"},null,null,null,{"$f":"IF(ISNUMBER(SEARCH($B$14,BE85)),MAX($BD$8:BD84)+1,0)","v":77},"Standing Flic to 2 feet",null,null,{"$f":"IFERROR(VLOOKUP(ROWS($BE$9:BE85),$BD$9:$BE$162,2,0),\"\")","v":"Standing Flic to 2 feet"},null,null,null,{"$f":"IF(ISNUMBER(SEARCH($B$15,BM85)),MAX($BL$8:BL84)+1,0)","v":77},"Standing Flic to 2 feet",null,null,{"$f":"IFERROR(VLOOKUP(ROWS($BM$9:BM85),$BL$9:$BM$162,2,0),\"\")","v":"Standing Flic to 2 feet"},null,null,null,{"$f":"IF(ISNUMBER(SEARCH($B$16,BU85)),MAX($BT$8:BT84)+1,0)","v":77},"Standing Flic to 2 feet",null,null,{"$f":"IFERROR(VLOOKUP(ROWS($BU$9:BU85),$BT$9:$BU$162,2,0),\"\")","v":"Standing Flic to 2 feet"},null,null,null,{"$f":"IF(ISNUMBER(SEARCH($B$17,CC85)),MAX($CB$8:CB84)+1,0)","v":77},"Standing Flic to 2 feet",null,null,{"$f":"IFERROR(VLOOKUP(ROWS($CC$9:CC85),$CB$9:$CC$162,2,0),\"\")","v":"Standing Flic to 2 feet"},null,null,null,{"$f":"IF(ISNUMBER(SEARCH($B$18,CK85)),MAX($CJ$8:CJ84)+1,0)","v":77},"Standing Flic to 2 feet",null,null,{"$f":"IFERROR(VLOOKUP(ROWS($CK$9:CK85),$CJ$9:$CK$162,2,0),\"\")","v":"Standing Flic to 2 feet"}]
[null,null,null,null,null,null,null,null,null,null,null,null,null,null,null,{"$f":"IF(ISNUMBER(SEARCH($B$9,Q86)),MAX($P$8:P85)+1,0)","v":78},"Standing Flic to 1 foot",null,null,{"$f":"IFERROR(VLOOKUP(ROWS($Q$9:Q86),$P$9:$Q$162,2,0),\"\")","v":"Standing Flic to 1 foot"},null,null,null,{"$f":"IF(ISNUMBER(SEARCH($B$10,Y86)),MAX($X$8:X85)+1,0)","v":78},"Standing Flic to 1 foot",null,null,{"$f":"IFERROR(VLOOKUP(ROWS($Y$9:Y86),$X$9:$Y$162,2,0),\"\")","v":"Standing Flic to 1 foot"},null,null,null,{"$f":"IF(ISNUMBER(SEARCH($B$11,AG86)),MAX($AF$8:AF85)+1,0)","v":78},"Standing Flic to 1 foot",null,null,{"$f":"IFERROR(VLOOKUP(ROWS($AG$9:AG86),$AF$9:$AG$162,2,0),\"\")","v":"Standing Flic to 1 foot"},null,null,null,{"$f":"IF(ISNUMBER(SEARCH($B$12,AO86)),MAX($AN$8:AN85)+1,0)","v":78},"Standing Flic to 1 foot",null,null,{"$f":"IFERROR(VLOOKUP(ROWS($AO$9:AO86),$AN$9:$AO$162,2,0),\"\")","v":"Standing Flic to 1 foot"},null,null,null,{"$f":"IF(ISNUMBER(SEARCH($B$13,AW86)),MAX($AV$8:AV85)+1,0)","v":78},"Standing Flic to 1 foot",null,null,{"$f":"IFERROR(VLOOKUP(ROWS($AW$9:AW86),$AV$9:$AW$162,2,0),\"\")","v":"Standing Flic to 1 foot"},null,null,null,{"$f":"IF(ISNUMBER(SEARCH($B$14,BE86)),MAX($BD$8:BD85)+1,0)","v":78},"Standing Flic to 1 foot",null,null,{"$f":"IFERROR(VLOOKUP(ROWS($BE$9:BE86),$BD$9:$BE$162,2,0),\"\")","v":"Standing Flic to 1 foot"},null,null,null,{"$f":"IF(ISNUMBER(SEARCH($B$15,BM86)),MAX($BL$8:BL85)+1,0)","v":78},"Standing Flic to 1 foot",null,null,{"$f":"IFERROR(VLOOKUP(ROWS($BM$9:BM86),$BL$9:$BM$162,2,0),\"\")","v":"Standing Flic to 1 foot"},null,null,null,{"$f":"IF(ISNUMBER(SEARCH($B$16,BU86)),MAX($BT$8:BT85)+1,0)","v":78},"Standing Flic to 1 foot",null,null,{"$f":"IFERROR(VLOOKUP(ROWS($BU$9:BU86),$BT$9:$BU$162,2,0),\"\")","v":"Standing Flic to 1 foot"},null,null,null,{"$f":"IF(ISNUMBER(SEARCH($B$17,CC86)),MAX($CB$8:CB85)+1,0)","v":78},"Standing Flic to 1 foot",null,null,{"$f":"IFERROR(VLOOKUP(ROWS($CC$9:CC86),$CB$9:$CC$162,2,0),\"\")","v":"Standing Flic to 1 foot"},null,null,null,{"$f":"IF(ISNUMBER(SEARCH($B$18,CK86)),MAX($CJ$8:CJ85)+1,0)","v":78},"Standing Flic to 1 foot",null,null,{"$f":"IFERROR(VLOOKUP(ROWS($CK$9:CK86),$CJ$9:$CK$162,2,0),\"\")","v":"Standing Flic to 1 foot"}]
[null,null,null,null,null,null,null,null,null,null,null,null,null,null,null,{"$f":"IF(ISNUMBER(SEARCH($B$9,Q87)),MAX($P$8:P86)+1,0)","v":79},"Standing Flic to Front Support",null,null,{"$f":"IFERROR(VLOOKUP(ROWS($Q$9:Q87),$P$9:$Q$162,2,0),\"\")","v":"Standing Flic to Front Support"},null,null,null,{"$f":"IF(ISNUMBER(SEARCH($B$10,Y87)),MAX($X$8:X86)+1,0)","v":79},"Standing Flic to Front Support",null,null,{"$f":"IFERROR(VLOOKUP(ROWS($Y$9:Y87),$X$9:$Y$162,2,0),\"\")","v":"Standing Flic to Front Support"},null,null,null,{"$f":"IF(ISNUMBER(SEARCH($B$11,AG87)),MAX($AF$8:AF86)+1,0)","v":79},"Standing Flic to Front Support",null,null,{"$f":"IFERROR(VLOOKUP(ROWS($AG$9:AG87),$AF$9:$AG$162,2,0),\"\")","v":"Standing Flic to Front Support"},null,null,null,{"$f":"IF(ISNUMBER(SEARCH($B$12,AO87)),MAX($AN$8:AN86)+1,0)","v":79},"Standing Flic to Front Support",null,null,{"$f":"IFERROR(VLOOKUP(ROWS($AO$9:AO87),$AN$9:$AO$162,2,0),\"\")","v":"Standing Flic to Front Support"},null,null,null,{"$f":"IF(ISNUMBER(SEARCH($B$13,AW87)),MAX($AV$8:AV86)+1,0)","v":79},"Standing Flic to Front Support",null,null,{"$f":"IFERROR(VLOOKUP(ROWS($AW$9:AW87),$AV$9:$AW$162,2,0),\"\")","v":"Standing Flic to Front Support"},null,null,null,{"$f":"IF(ISNUMBER(SEARCH($B$14,BE87)),MAX($BD$8:BD86)+1,0)","v":79},"Standing Flic to Front Support",null,null,{"$f":"IFERROR(VLOOKUP(ROWS($BE$9:BE87),$BD$9:$BE$162,2,0),\"\")","v":"Standing Flic to Front Support"},null,null,null,{"$f":"IF(ISNUMBER(SEARCH($B$15,BM87)),MAX($BL$8:BL86)+1,0)","v":79},"Standing Flic to Front Support",null,null,{"$f":"IFERROR(VLOOKUP(ROWS($BM$9:BM87),$BL$9:$BM$162,2,0),\"\")","v":"Standing Flic to Front Support"},null,null,null,{"$f":"IF(ISNUMBER(SEARCH($B$16,BU87)),MAX($BT$8:BT86)+1,0)","v":79},"Standing Flic to Front Support",null,null,{"$f":"IFERROR(VLOOKUP(ROWS($BU$9:BU87),$BT$9:$BU$162,2,0),\"\")","v":"Standing Flic to Front Support"},null,null,null,{"$f":"IF(ISNUMBER(SEARCH($B$17,CC87)),MAX($CB$8:CB86)+1,0)","v":79},"Standing Flic to Front Support",null,null,{"$f":"IFERROR(VLOOKUP(ROWS($CC$9:CC87),$CB$9:$CC$162,2,0),\"\")","v":"Standing Flic to Front Support"},null,null,null,{"$f":"IF(ISNUMBER(SEARCH($B$18,CK87)),MAX($CJ$8:CJ86)+1,0)","v":79},"Standing Flic to Front Support",null,null,{"$f":"IFERROR(VLOOKUP(ROWS($CK$9:CK87),$CJ$9:$CK$162,2,0),\"\")","v":"Standing Flic to Front Support"}]
[null,null,null,null,null,null,null,null,null,null,null,null,null,null,null,{"$f":"IF(ISNUMBER(SEARCH($B$9,Q88)),MAX($P$8:P87)+1,0)","v":80},"Back Walkover, Flick (1or2 feet)",null,null,{"$f":"IFERROR(VLOOKUP(ROWS($Q$9:Q88),$P$9:$Q$162,2,0),\"\")","v":"Back Walkover, Flick (1or2 feet)"},null,null,null,{"$f":"IF(ISNUMBER(SEARCH($B$10,Y88)),MAX($X$8:X87)+1,0)","v":80},"Back Walkover, Flick (1or2 feet)",null,null,{"$f":"IFERROR(VLOOKUP(ROWS($Y$9:Y88),$X$9:$Y$162,2,0),\"\")","v":"Back Walkover, Flick (1or2 feet)"},null,null,null,{"$f":"IF(ISNUMBER(SEARCH($B$11,AG88)),MAX($AF$8:AF87)+1,0)","v":80},"Back Walkover, Flick (1or2 feet)",null,null,{"$f":"IFERROR(VLOOKUP(ROWS($AG$9:AG88),$AF$9:$AG$162,2,0),\"\")","v":"Back Walkover, Flick (1or2 feet)"},null,null,null,{"$f":"IF(ISNUMBER(SEARCH($B$12,AO88)),MAX($AN$8:AN87)+1,0)","v":80},"Back Walkover, Flick (1or2 feet)",null,null,{"$f":"IFERROR(VLOOKUP(ROWS($AO$9:AO88),$AN$9:$AO$162,2,0),\"\")","v":"Back Walkover, Flick (1or2 feet)"},null,null,null,{"$f":"IF(ISNUMBER(SEARCH($B$13,AW88)),MAX($AV$8:AV87)+1,0)","v":80},"Back Walkover, Flick (1or2 feet)",null,null,{"$f":"IFERROR(VLOOKUP(ROWS($AW$9:AW88),$AV$9:$AW$162,2,0),\"\")","v":"Back Walkover, Flick (1or2 feet)"},null,null,null,{"$f":"IF(ISNUMBER(SEARCH($B$14,BE88)),MAX($BD$8:BD87)+1,0)","v":80},"Back Walkover, Flick (1or2 feet)",null,null,{"$f":"IFERROR(VLOOKUP(ROWS($BE$9:BE88),$BD$9:$BE$162,2,0),\"\")","v":"Back Walkover, Flick (1or2 feet)"},null,null,null,{"$f":"IF(ISNUMBER(SEARCH($B$15,BM88)),MAX($BL$8:BL87)+1,0)","v":80},"Back Walkover, Flick (1or2 feet)",null,null,{"$f":"IFERROR(VLOOKUP(ROWS($BM$9:BM88),$BL$9:$BM$162,2,0),\"\")","v":"Back Walkover, Flick (1or2 feet)"},null,null,null,{"$f":"IF(ISNUMBER(SEARCH($B$16,BU88)),MAX($BT$8:BT87)+1,0)","v":80},"Back Walkover, Flick (1or2 feet)",null,null,{"$f":"IFERROR(VLOOKUP(ROWS($BU$9:BU88),$BT$9:$BU$162,2,0),\"\")","v":"Back Walkover, Flick (1or2 feet)"},null,null,null,{"$f":"IF(ISNUMBER(SEARCH($B$17,CC88)),MAX($CB$8:CB87)+1,0)","v":80},"Back Walkover, Flick (1or2 feet)",null,null,{"$f":"IFERROR(VLOOKUP(ROWS($CC$9:CC88),$CB$9:$CC$162,2,0),\"\")","v":"Back Walkover, Flick (1or2 feet)"},null,null,null,{"$f":"IF(ISNUMBER(SEARCH($B$18,CK88)),MAX($CJ$8:CJ87)+1,0)","v":80},"Back Walkover, Flick (1or2 feet)",null,null,{"$f":"IFERROR(VLOOKUP(ROWS($CK$9:CK88),$CJ$9:$CK$162,2,0),\"\")","v":"Back Walkover, Flick (1or2 feet)"}]
[null,null,null,null,null,null,null,null,null,null,null,null,null,null,null,{"$f":"IF(ISNUMBER(SEARCH($B$9,Q89)),MAX($P$8:P88)+1,0)","v":81},"Cartwheel, Flick",null,null,{"$f":"IFERROR(VLOOKUP(ROWS($Q$9:Q89),$P$9:$Q$162,2,0),\"\")","v":"Cartwheel, Flick"},null,null,null,{"$f":"IF(ISNUMBER(SEARCH($B$10,Y89)),MAX($X$8:X88)+1,0)","v":81},"Cartwheel, Flick",null,null,{"$f":"IFERROR(VLOOKUP(ROWS($Y$9:Y89),$X$9:$Y$162,2,0),\"\")","v":"Cartwheel, Flick"},null,null,null,{"$f":"IF(ISNUMBER(SEARCH($B$11,AG89)),MAX($AF$8:AF88)+1,0)","v":81},"Cartwheel, Flick",null,null,{"$f":"IFERROR(VLOOKUP(ROWS($AG$9:AG89),$AF$9:$AG$162,2,0),\"\")","v":"Cartwheel, Flick"},null,null,null,{"$f":"IF(ISNUMBER(SEARCH($B$12,AO89)),MAX($AN$8:AN88)+1,0)","v":81},"Cartwheel, Flick",null,null,{"$f":"IFERROR(VLOOKUP(ROWS($AO$9:AO89),$AN$9:$AO$162,2,0),\"\")","v":"Cartwheel, Flick"},null,null,null,{"$f":"IF(ISNUMBER(SEARCH($B$13,AW89)),MAX($AV$8:AV88)+1,0)","v":81},"Cartwheel, Flick",null,null,{"$f":"IFERROR(VLOOKUP(ROWS($AW$9:AW89),$AV$9:$AW$162,2,0),\"\")","v":"Cartwheel, Flick"},null,null,null,{"$f":"IF(ISNUMBER(SEARCH($B$14,BE89)),MAX($BD$8:BD88)+1,0)","v":81},"Cartwheel, Flick",null,null,{"$f":"IFERROR(VLOOKUP(ROWS($BE$9:BE89),$BD$9:$BE$162,2,0),\"\")","v":"Cartwheel, Flick"},null,null,null,{"$f":"IF(ISNUMBER(SEARCH($B$15,BM89)),MAX($BL$8:BL88)+1,0)","v":81},"Cartwheel, Flick",null,null,{"$f":"IFERROR(VLOOKUP(ROWS($BM$9:BM89),$BL$9:$BM$162,2,0),\"\")","v":"Cartwheel, Flick"},null,null,null,{"$f":"IF(ISNUMBER(SEARCH($B$16,BU89)),MAX($BT$8:BT88)+1,0)","v":81},"Cartwheel, Flick",null,null,{"$f":"IFERROR(VLOOKUP(ROWS($BU$9:BU89),$BT$9:$BU$162,2,0),\"\")","v":"Cartwheel, Flick"},null,null,null,{"$f":"IF(ISNUMBER(SEARCH($B$17,CC89)),MAX($CB$8:CB88)+1,0)","v":81},"Cartwheel, Flick",null,null,{"$f":"IFERROR(VLOOKUP(ROWS($CC$9:CC89),$CB$9:$CC$162,2,0),\"\")","v":"Cartwheel, Flick"},null,null,null,{"$f":"IF(ISNUMBER(SEARCH($B$18,CK89)),MAX($CJ$8:CJ88)+1,0)","v":81},"Cartwheel, Flick",null,null,{"$f":"IFERROR(VLOOKUP(ROWS($CK$9:CK89),$CJ$9:$CK$162,2,0),\"\")","v":"Cartwheel, Flick"}]
[null,null,null,null,null,null,null,null,null,null,null,null,null,null,null,{"$f":"IF(ISNUMBER(SEARCH($B$9,Q90)),MAX($P$8:P89)+1,0)","v":82},"Roundoff, Flic to 1 foot",null,null,{"$f":"IFERROR(VLOOKUP(ROWS($Q$9:Q90),$P$9:$Q$162,2,0),\"\")","v":"Roundoff, Flic to 1 foot"},null,null,null,{"$f":"IF(ISNUMBER(SEARCH($B$10,Y90)),MAX($X$8:X89)+1,0)","v":82},"Roundoff, Flic to 1 foot",null,null,{"$f":"IFERROR(VLOOKUP(ROWS($Y$9:Y90),$X$9:$Y$162,2,0),\"\")","v":"Roundoff, Flic to 1 foot"},null,null,null,{"$f":"IF(ISNUMBER(SEARCH($B$11,AG90)),MAX($AF$8:AF89)+1,0)","v":82},"Roundoff, Flic to 1 foot",null,null,{"$f":"IFERROR(VLOOKUP(ROWS($AG$9:AG90),$AF$9:$AG$162,2,0),\"\")","v":"Roundoff, Flic to 1 foot"},null,null,null,{"$f":"IF(ISNUMBER(SEARCH($B$12,AO90)),MAX($AN$8:AN89)+1,0)","v":82},"Roundoff, Flic to 1 foot",null,null,{"$f":"IFERROR(VLOOKUP(ROWS($AO$9:AO90),$AN$9:$AO$162,2,0),\"\")","v":"Roundoff, Flic to 1 foot"},null,null,null,{"$f":"IF(ISNUMBER(SEARCH($B$13,AW90)),MAX($AV$8:AV89)+1,0)","v":82},"Roundoff, Flic to 1 foot",null,null,{"$f":"IFERROR(VLOOKUP(ROWS($AW$9:AW90),$AV$9:$AW$162,2,0),\"\")","v":"Roundoff, Flic to 1 foot"},null,null,null,{"$f":"IF(ISNUMBER(SEARCH($B$14,BE90)),MAX($BD$8:BD89)+1,0)","v":82},"Roundoff, Flic to 1 foot",null,null,{"$f":"IFERROR(VLOOKUP(ROWS($BE$9:BE90),$BD$9:$BE$162,2,0),\"\")","v":"Roundoff, Flic to 1 foot"},null,null,null,{"$f":"IF(ISNUMBER(SEARCH($B$15,BM90)),MAX($BL$8:BL89)+1,0)","v":82},"Roundoff, Flic to 1 foot",null,null,{"$f":"IFERROR(VLOOKUP(ROWS($BM$9:BM90),$BL$9:$BM$162,2,0),\"\")","v":"Roundoff, Flic to 1 foot"},null,null,null,{"$f":"IF(ISNUMBER(SEARCH($B$16,BU90)),MAX($BT$8:BT89)+1,0)","v":82},"Roundoff, Flic to 1 foot",null,null,{"$f":"IFERROR(VLOOKUP(ROWS($BU$9:BU90),$BT$9:$BU$162,2,0),\"\")","v":"Roundoff, Flic to 1 foot"},null,null,null,{"$f":"IF(ISNUMBER(SEARCH($B$17,CC90)),MAX($CB$8:CB89)+1,0)","v":82},"Roundoff, Flic to 1 foot",null,null,{"$f":"IFERROR(VLOOKUP(ROWS($CC$9:CC90),$CB$9:$CC$162,2,0),\"\")","v":"Roundoff, Flic to 1 foot"},null,null,null,{"$f":"IF(ISNUMBER(SEARCH($B$18,CK90)),MAX($CJ$8:CJ89)+1,0)","v":82},"Roundoff, Flic to 1 foot",null,null,{"$f":"IFERROR(VLOOKUP(ROWS($CK$9:CK90),$CJ$9:$CK$162,2,0),\"\")","v":"Roundoff, Flic to 1 foot"}]
[null,null,null,null,null,null,null,null,null,null,null,null,null,null,null,{"$f":"IF(ISNUMBER(SEARCH($B$9,Q91)),MAX($P$8:P90)+1,0)","v":83},"Roundoff, Flic to 2 feet",null,null,{"$f":"IFERROR(VLOOKUP(ROWS($Q$9:Q91),$P$9:$Q$162,2,0),\"\")","v":"Roundoff, Flic to 2 feet"},null,null,null,{"$f":"IF(ISNUMBER(SEARCH($B$10,Y91)),MAX($X$8:X90)+1,0)","v":83},"Roundoff, Flic to 2 feet",null,null,{"$f":"IFERROR(VLOOKUP(ROWS($Y$9:Y91),$X$9:$Y$162,2,0),\"\")","v":"Roundoff, Flic to 2 feet"},null,null,null,{"$f":"IF(ISNUMBER(SEARCH($B$11,AG91)),MAX($AF$8:AF90)+1,0)","v":83},"Roundoff, Flic to 2 feet",null,null,{"$f":"IFERROR(VLOOKUP(ROWS($AG$9:AG91),$AF$9:$AG$162,2,0),\"\")","v":"Roundoff, Flic to 2 feet"},null,null,null,{"$f":"IF(ISNUMBER(SEARCH($B$12,AO91)),MAX($AN$8:AN90)+1,0)","v":83},"Roundoff, Flic to 2 feet",null,null,{"$f":"IFERROR(VLOOKUP(ROWS($AO$9:AO91),$AN$9:$AO$162,2,0),\"\")","v":"Roundoff, Flic to 2 feet"},null,null,null,{"$f":"IF(ISNUMBER(SEARCH($B$13,AW91)),MAX($AV$8:AV90)+1,0)","v":83},"Roundoff, Flic to 2 feet",null,null,{"$f":"IFERROR(VLOOKUP(ROWS($AW$9:AW91),$AV$9:$AW$162,2,0),\"\")","v":"Roundoff, Flic to 2 feet"},null,null,null,{"$f":"IF(ISNUMBER(SEARCH($B$14,BE91)),MAX($BD$8:BD90)+1,0)","v":83},"Roundoff, Flic to 2 feet",null,null,{"$f":"IFERROR(VLOOKUP(ROWS($BE$9:BE91),$BD$9:$BE$162,2,0),\"\")","v":"Roundoff, Flic to 2 feet"},null,null,null,{"$f":"IF(ISNUMBER(SEARCH($B$15,BM91)),MAX($BL$8:BL90)+1,0)","v":83},"Roundoff, Flic to 2 feet",null,null,{"$f":"IFERROR(VLOOKUP(ROWS($BM$9:BM91),$BL$9:$BM$162,2,0),\"\")","v":"Roundoff, Flic to 2 feet"},null,null,null,{"$f":"IF(ISNUMBER(SEARCH($B$16,BU91)),MAX($BT$8:BT90)+1,0)","v":83},"Roundoff, Flic to 2 feet",null,null,{"$f":"IFERROR(VLOOKUP(ROWS($BU$9:BU91),$BT$9:$BU$162,2,0),\"\")","v":"Roundoff, Flic to 2 feet"},null,null,null,{"$f":"IF(ISNUMBER(SEARCH($B$17,CC91)),MAX($CB$8:CB90)+1,0)","v":83},"Roundoff, Flic to 2 feet",null,null,{"$f":"IFERROR(VLOOKUP(ROWS($CC$9:CC91),$CB$9:$CC$162,2,0),\"\")","v":"Roundoff, Flic to 2 feet"},null,null,null,{"$f":"IF(ISNUMBER(SEARCH($B$18,CK91)),MAX($CJ$8:CJ90)+1,0)","v":83},"Roundoff, Flic to 2 feet",null,null,{"$f":"IFERROR(VLOOKUP(ROWS($CK$9:CK91),$CJ$9:$CK$162,2,0),\"\")","v":"Roundoff, Flic to 2 feet"}]
[null,null,null,null,null,null,null,null,null,null,null,null,null,null,null,{"$f":"IF(ISNUMBER(SEARCH($B$9,Q92)),MAX($P$8:P91)+1,0)","v":84},"Roundoff, Flic, Flic",null,null,{"$f":"IFERROR(VLOOKUP(ROWS($Q$9:Q92),$P$9:$Q$162,2,0),\"\")","v":"Roundoff, Flic, Flic"},null,null,null,{"$f":"IF(ISNUMBER(SEARCH($B$10,Y92)),MAX($X$8:X91)+1,0)","v":84},"Roundoff, Flic, Flic",null,null,{"$f":"IFERROR(VLOOKUP(ROWS($Y$9:Y92),$X$9:$Y$162,2,0),\"\")","v":"Roundoff, Flic, Flic"},null,null,null,{"$f":"IF(ISNUMBER(SEARCH($B$11,AG92)),MAX($AF$8:AF91)+1,0)","v":84},"Roundoff, Flic, Flic",null,null,{"$f":"IFERROR(VLOOKUP(ROWS($AG$9:AG92),$AF$9:$AG$162,2,0),\"\")","v":"Roundoff, Flic, Flic"},null,null,null,{"$f":"IF(ISNUMBER(SEARCH($B$12,AO92)),MAX($AN$8:AN91)+1,0)","v":84},"Roundoff, Flic, Flic",null,null,{"$f":"IFERROR(VLOOKUP(ROWS($AO$9:AO92),$AN$9:$AO$162,2,0),\"\")","v":"Roundoff, Flic, Flic"},null,null,null,{"$f":"IF(ISNUMBER(SEARCH($B$13,AW92)),MAX($AV$8:AV91)+1,0)","v":84},"Roundoff, Flic, Flic",null,null,{"$f":"IFERROR(VLOOKUP(ROWS($AW$9:AW92),$AV$9:$AW$162,2,0),\"\")","v":"Roundoff, Flic, Flic"},null,null,null,{"$f":"IF(ISNUMBER(SEARCH($B$14,BE92)),MAX($BD$8:BD91)+1,0)","v":84},"Roundoff, Flic, Flic",null,null,{"$f":"IFERROR(VLOOKUP(ROWS($BE$9:BE92),$BD$9:$BE$162,2,0),\"\")","v":"Roundoff, Flic, Flic"},null,null,null,{"$f":"IF(ISNUMBER(SEARCH($B$15,BM92)),MAX($BL$8:BL91)+1,0)","v":84},"Roundoff, Flic, Flic",null,null,{"$f":"IFERROR(VLOOKUP(ROWS($BM$9:BM92),$BL$9:$BM$162,2,0),\"\")","v":"Roundoff, Flic, Flic"},null,null,null,{"$f":"IF(ISNUMBER(SEARCH($B$16,BU92)),MAX($BT$8:BT91)+1,0)","v":84},"Roundoff, Flic, Flic",null,null,{"$f":"IFERROR(VLOOKUP(ROWS($BU$9:BU92),$BT$9:$BU$162,2,0),\"\")","v":"Roundoff, Flic, Flic"},null,null,null,{"$f":"IF(ISNUMBER(SEARCH($B$17,CC92)),MAX($CB$8:CB91)+1,0)","v":84},"Roundoff, Flic, Flic",null,null,{"$f":"IFERROR(VLOOKUP(ROWS($CC$9:CC92),$CB$9:$CC$162,2,0),\"\")","v":"Roundoff, Flic, Flic"},null,null,null,{"$f":"IF(ISNUMBER(SEARCH($B$18,CK92)),MAX($CJ$8:CJ91)+1,0)","v":84},"Roundoff, Flic, Flic",null,null,{"$f":"IFERROR(VLOOKUP(ROWS($CK$9:CK92),$CJ$9:$CK$162,2,0),\"\")","v":"Roundoff, Flic, Flic"}]
[null,null,null,null,null,null,null,null,null,null,null,null,null,null,null,{"$f":"IF(ISNUMBER(SEARCH($B$9,Q93)),MAX($P$8:P92)+1,0)","v":85},"Handspring to 2 feet",null,null,{"$f":"IFERROR(VLOOKUP(ROWS($Q$9:Q93),$P$9:$Q$162,2,0),\"\")","v":"Handspring to 2 feet"},null,null,null,{"$f":"IF(ISNUMBER(SEARCH($B$10,Y93)),MAX($X$8:X92)+1,0)","v":85},"Handspring to 2 feet",null,null,{"$f":"IFERROR(VLOOKUP(ROWS($Y$9:Y93),$X$9:$Y$162,2,0),\"\")","v":"Handspring to 2 feet"},null,null,null,{"$f":"IF(ISNUMBER(SEARCH($B$11,AG93)),MAX($AF$8:AF92)+1,0)","v":85},"Handspring to 2 feet",null,null,{"$f":"IFERROR(VLOOKUP(ROWS($AG$9:AG93),$AF$9:$AG$162,2,0),\"\")","v":"Handspring to 2 feet"},null,null,null,{"$f":"IF(ISNUMBER(SEARCH($B$12,AO93)),MAX($AN$8:AN92)+1,0)","v":85},"Handspring to 2 feet",null,null,{"$f":"IFERROR(VLOOKUP(ROWS($AO$9:AO93),$AN$9:$AO$162,2,0),\"\")","v":"Handspring to 2 feet"},null,null,null,{"$f":"IF(ISNUMBER(SEARCH($B$13,AW93)),MAX($AV$8:AV92)+1,0)","v":85},"Handspring to 2 feet",null,null,{"$f":"IFERROR(VLOOKUP(ROWS($AW$9:AW93),$AV$9:$AW$162,2,0),\"\")","v":"Handspring to 2 feet"},null,null,null,{"$f":"IF(ISNUMBER(SEARCH($B$14,BE93)),MAX($BD$8:BD92)+1,0)","v":85},"Handspring to 2 feet",null,null,{"$f":"IFERROR(VLOOKUP(ROWS($BE$9:BE93),$BD$9:$BE$162,2,0),\"\")","v":"Handspring to 2 feet"},null,null,null,{"$f":"IF(ISNUMBER(SEARCH($B$15,BM93)),MAX($BL$8:BL92)+1,0)","v":85},"Handspring to 2 feet",null,null,{"$f":"IFERROR(VLOOKUP(ROWS($BM$9:BM93),$BL$9:$BM$162,2,0),\"\")","v":"Handspring to 2 feet"},null,null,null,{"$f":"IF(ISNUMBER(SEARCH($B$16,BU93)),MAX($BT$8:BT92)+1,0)","v":85},"Handspring to 2 feet",null,null,{"$f":"IFERROR(VLOOKUP(ROWS($BU$9:BU93),$BT$9:$BU$162,2,0),\"\")","v":"Handspring to 2 feet"},null,null,null,{"$f":"IF(ISNUMBER(SEARCH($B$17,CC93)),MAX($CB$8:CB92)+1,0)","v":85},"Handspring to 2 feet",null,null,{"$f":"IFERROR(VLOOKUP(ROWS($CC$9:CC93),$CB$9:$CC$162,2,0),\"\")","v":"Handspring to 2 feet"},null,null,null,{"$f":"IF(ISNUMBER(SEARCH($B$18,CK93)),MAX($CJ$8:CJ92)+1,0)","v":85},"Handspring to 2 feet",null,null,{"$f":"IFERROR(VLOOKUP(ROWS($CK$9:CK93),$CJ$9:$CK$162,2,0),\"\")","v":"Handspring to 2 feet"}]
[null,null,null,null,null,null,null,null,null,null,null,null,null,null,null,{"$f":"IF(ISNUMBER(SEARCH($B$9,Q94)),MAX($P$8:P93)+1,0)","v":86},"Handspring to 1 foot",null,null,{"$f":"IFERROR(VLOOKUP(ROWS($Q$9:Q94),$P$9:$Q$162,2,0),\"\")","v":"Handspring to 1 foot"},null,null,null,{"$f":"IF(ISNUMBER(SEARCH($B$10,Y94)),MAX($X$8:X93)+1,0)","v":86},"Handspring to 1 foot",null,null,{"$f":"IFERROR(VLOOKUP(ROWS($Y$9:Y94),$X$9:$Y$162,2,0),\"\")","v":"Handspring to 1 foot"},null,null,null,{"$f":"IF(ISNUMBER(SEARCH($B$11,AG94)),MAX($AF$8:AF93)+1,0)","v":86},"Handspring to 1 foot",null,null,{"$f":"IFERROR(VLOOKUP(ROWS($AG$9:AG94),$AF$9:$AG$162,2,0),\"\")","v":"Handspring to 1 foot"},null,null,null,{"$f":"IF(ISNUMBER(SEARCH($B$12,AO94)),MAX($AN$8:AN93)+1,0)","v":86},"Handspring to 1 foot",null,null,{"$f":"IFERROR(VLOOKUP(ROWS($AO$9:AO94),$AN$9:$AO$162,2,0),\"\")","v":"Handspring to 1 foot"},null,null,null,{"$f":"IF(ISNUMBER(SEARCH($B$13,AW94)),MAX($AV$8:AV93)+1,0)","v":86},"Handspring to 1 foot",null,null,{"$f":"IFERROR(VLOOKUP(ROWS($AW$9:AW94),$AV$9:$AW$162,2,0),\"\")","v":"Handspring to 1 foot"},null,null,null,{"$f":"IF(ISNUMBER(SEARCH($B$14,BE94)),MAX($BD$8:BD93)+1,0)","v":86},"Handspring to 1 foot",null,null,{"$f":"IFERROR(VLOOKUP(ROWS($BE$9:BE94),$BD$9:$BE$162,2,0),\"\")","v":"Handspring to 1 foot"},null,null,null,{"$f":"IF(ISNUMBER(SEARCH($B$15,BM94)),MAX($BL$8:BL93)+1,0)","v":86},"Handspring to 1 foot",null,null,{"$f":"IFERROR(VLOOKUP(ROWS($BM$9:BM94),$BL$9:$BM$162,2,0),\"\")","v":"Handspring to 1 foot"},null,null,null,{"$f":"IF(ISNUMBER(SEARCH($B$16,BU94)),MAX($BT$8:BT93)+1,0)","v":86},"Handspring to 1 foot",null,null,{"$f":"IFERROR(VLOOKUP(ROWS($BU$9:BU94),$BT$9:$BU$162,2,0),\"\")","v":"Handspring to 1 foot"},null,null,null,{"$f":"IF(ISNUMBER(SEARCH($B$17,CC94)),MAX($CB$8:CB93)+1,0)","v":86},"Handspring to 1 foot",null,null,{"$f":"IFERROR(VLOOKUP(ROWS($CC$9:CC94),$CB$9:$CC$162,2,0),\"\")","v":"Handspring to 1 foot"},null,null,null,{"$f":"IF(ISNUMBER(SEARCH($B$18,CK94)),MAX($CJ$8:CJ93)+1,0)","v":86},"Handspring to 1 foot",null,null,{"$f":"IFERROR(VLOOKUP(ROWS($CK$9:CK94),$CJ$9:$CK$162,2,0),\"\")","v":"Handspring to 1 foot"}]
[null,null,null,null,null,null,null,null,null,null,null,null,null,null,null,{"$f":"IF(ISNUMBER(SEARCH($B$9,Q95)),MAX($P$8:P94)+1,0)","v":87},"Handspring to Roundoff ",null,null,{"$f":"IFERROR(VLOOKUP(ROWS($Q$9:Q95),$P$9:$Q$162,2,0),\"\")","v":"Handspring to Roundoff "},null,null,null,{"$f":"IF(ISNUMBER(SEARCH($B$10,Y95)),MAX($X$8:X94)+1,0)","v":87},"Handspring to Roundoff ",null,null,{"$f":"IFERROR(VLOOKUP(ROWS($Y$9:Y95),$X$9:$Y$162,2,0),\"\")","v":"Handspring to Roundoff "},null,null,null,{"$f":"IF(ISNUMBER(SEARCH($B$11,AG95)),MAX($AF$8:AF94)+1,0)","v":87},"Handspring to Roundoff ",null,null,{"$f":"IFERROR(VLOOKUP(ROWS($AG$9:AG95),$AF$9:$AG$162,2,0),\"\")","v":"Handspring to Roundoff "},null,null,null,{"$f":"IF(ISNUMBER(SEARCH($B$12,AO95)),MAX($AN$8:AN94)+1,0)","v":87},"Handspring to Roundoff ",null,null,{"$f":"IFERROR(VLOOKUP(ROWS($AO$9:AO95),$AN$9:$AO$162,2,0),\"\")","v":"Handspring to Roundoff "},null,null,null,{"$f":"IF(ISNUMBER(SEARCH($B$13,AW95)),MAX($AV$8:AV94)+1,0)","v":87},"Handspring to Roundoff ",null,null,{"$f":"IFERROR(VLOOKUP(ROWS($AW$9:AW95),$AV$9:$AW$162,2,0),\"\")","v":"Handspring to Roundoff "},null,null,null,{"$f":"IF(ISNUMBER(SEARCH($B$14,BE95)),MAX($BD$8:BD94)+1,0)","v":87},"Handspring to Roundoff ",null,null,{"$f":"IFERROR(VLOOKUP(ROWS($BE$9:BE95),$BD$9:$BE$162,2,0),\"\")","v":"Handspring to Roundoff "},null,null,null,{"$f":"IF(ISNUMBER(SEARCH($B$15,BM95)),MAX($BL$8:BL94)+1,0)","v":87},"Handspring to Roundoff ",null,null,{"$f":"IFERROR(VLOOKUP(ROWS($BM$9:BM95),$BL$9:$BM$162,2,0),\"\")","v":"Handspring to Roundoff "},null,null,null,{"$f":"IF(ISNUMBER(SEARCH($B$16,BU95)),MAX($BT$8:BT94)+1,0)","v":87},"Handspring to Roundoff ",null,null,{"$f":"IFERROR(VLOOKUP(ROWS($BU$9:BU95),$BT$9:$BU$162,2,0),\"\")","v":"Handspring to Roundoff "},null,null,null,{"$f":"IF(ISNUMBER(SEARCH($B$17,CC95)),MAX($CB$8:CB94)+1,0)","v":87},"Handspring to Roundoff ",null,null,{"$f":"IFERROR(VLOOKUP(ROWS($CC$9:CC95),$CB$9:$CC$162,2,0),\"\")","v":"Handspring to Roundoff "},null,null,null,{"$f":"IF(ISNUMBER(SEARCH($B$18,CK95)),MAX($CJ$8:CJ94)+1,0)","v":87},"Handspring to Roundoff ",null,null,{"$f":"IFERROR(VLOOKUP(ROWS($CK$9:CK95),$CJ$9:$CK$162,2,0),\"\")","v":"Handspring to Roundoff "}]
[null,null,null,null,null,null,null,null,null,null,null,null,null,null,null,{"$f":"IF(ISNUMBER(SEARCH($B$9,Q96)),MAX($P$8:P95)+1,0)","v":88},"2 Handsprings 1 – 2 feet",null,null,{"$f":"IFERROR(VLOOKUP(ROWS($Q$9:Q96),$P$9:$Q$162,2,0),\"\")","v":"2 Handsprings 1 – 2 feet"},null,null,null,{"$f":"IF(ISNUMBER(SEARCH($B$10,Y96)),MAX($X$8:X95)+1,0)","v":88},"2 Handsprings 1 – 2 feet",null,null,{"$f":"IFERROR(VLOOKUP(ROWS($Y$9:Y96),$X$9:$Y$162,2,0),\"\")","v":"2 Handsprings 1 – 2 feet"},null,null,null,{"$f":"IF(ISNUMBER(SEARCH($B$11,AG96)),MAX($AF$8:AF95)+1,0)","v":88},"2 Handsprings 1 – 2 feet",null,null,{"$f":"IFERROR(VLOOKUP(ROWS($AG$9:AG96),$AF$9:$AG$162,2,0),\"\")","v":"2 Handsprings 1 – 2 feet"},null,null,null,{"$f":"IF(ISNUMBER(SEARCH($B$12,AO96)),MAX($AN$8:AN95)+1,0)","v":88},"2 Handsprings 1 – 2 feet",null,null,{"$f":"IFERROR(VLOOKUP(ROWS($AO$9:AO96),$AN$9:$AO$162,2,0),\"\")","v":"2 Handsprings 1 – 2 feet"},null,null,null,{"$f":"IF(ISNUMBER(SEARCH($B$13,AW96)),MAX($AV$8:AV95)+1,0)","v":88},"2 Handsprings 1 – 2 feet",null,null,{"$f":"IFERROR(VLOOKUP(ROWS($AW$9:AW96),$AV$9:$AW$162,2,0),\"\")","v":"2 Handsprings 1 – 2 feet"},null,null,null,{"$f":"IF(ISNUMBER(SEARCH($B$14,BE96)),MAX($BD$8:BD95)+1,0)","v":88},"2 Handsprings 1 – 2 feet",null,null,{"$f":"IFERROR(VLOOKUP(ROWS($BE$9:BE96),$BD$9:$BE$162,2,0),\"\")","v":"2 Handsprings 1 – 2 feet"},null,null,null,{"$f":"IF(ISNUMBER(SEARCH($B$15,BM96)),MAX($BL$8:BL95)+1,0)","v":88},"2 Handsprings 1 – 2 feet",null,null,{"$f":"IFERROR(VLOOKUP(ROWS($BM$9:BM96),$BL$9:$BM$162,2,0),\"\")","v":"2 Handsprings 1 – 2 feet"},null,null,null,{"$f":"IF(ISNUMBER(SEARCH($B$16,BU96)),MAX($BT$8:BT95)+1,0)","v":88},"2 Handsprings 1 – 2 feet",null,null,{"$f":"IFERROR(VLOOKUP(ROWS($BU$9:BU96),$BT$9:$BU$162,2,0),\"\")","v":"2 Handsprings 1 – 2 feet"},null,null,null,{"$f":"IF(ISNUMBER(SEARCH($B$17,CC96)),MAX($CB$8:CB95)+1,0)","v":88},"2 Handsprings 1 – 2 feet",null,null,{"$f":"IFERROR(VLOOKUP(ROWS($CC$9:CC96),$CB$9:$CC$162,2,0),\"\")","v":"2 Handsprings 1 – 2 feet"},null,null,null,{"$f":"IF(ISNUMBER(SEARCH($B$18,CK96)),MAX($CJ$8:CJ95)+1,0)","v":88},"2 Handsprings 1 – 2 feet",null,null,{"$f":"IFERROR(VLOOKUP(ROWS($CK$9:CK96),$CJ$9:$CK$162,2,0),\"\")","v":"2 Handsprings 1 – 2 feet"}]
[null,null,null,null,null,null,null,null,null,null,null,null,null,null,null,{"$f":"IF(ISNUMBER(SEARCH($B$9,Q97)),MAX($P$8:P96)+1,0)","v":89},"Handspring, Roundoff, Flic",null,null,{"$f":"IFERROR(VLOOKUP(ROWS($Q$9:Q97),$P$9:$Q$162,2,0),\"\")","v":"Handspring, Roundoff, Flic"},null,null,null,{"$f":"IF(ISNUMBER(SEARCH($B$10,Y97)),MAX($X$8:X96)+1,0)","v":89},"Handspring, Roundoff, Flic",null,null,{"$f":"IFERROR(VLOOKUP(ROWS($Y$9:Y97),$X$9:$Y$162,2,0),\"\")","v":"Handspring, Roundoff, Flic"},null,null,null,{"$f":"IF(ISNUMBER(SEARCH($B$11,AG97)),MAX($AF$8:AF96)+1,0)","v":89},"Handspring, Roundoff, Flic",null,null,{"$f":"IFERROR(VLOOKUP(ROWS($AG$9:AG97),$AF$9:$AG$162,2,0),\"\")","v":"Handspring, Roundoff, Flic"},null,null,null,{"$f":"IF(ISNUMBER(SEARCH($B$12,AO97)),MAX($AN$8:AN96)+1,0)","v":89},"Handspring, Roundoff, Flic",null,null,{"$f":"IFERROR(VLOOKUP(ROWS($AO$9:AO97),$AN$9:$AO$162,2,0),\"\")","v":"Handspring, Roundoff, Flic"},null,null,null,{"$f":"IF(ISNUMBER(SEARCH($B$13,AW97)),MAX($AV$8:AV96)+1,0)","v":89},"Handspring, Roundoff, Flic",null,null,{"$f":"IFERROR(VLOOKUP(ROWS($AW$9:AW97),$AV$9:$AW$162,2,0),\"\")","v":"Handspring, Roundoff, Flic"},null,null,null,{"$f":"IF(ISNUMBER(SEARCH($B$14,BE97)),MAX($BD$8:BD96)+1,0)","v":89},"Handspring, Roundoff, Flic",null,null,{"$f":"IFERROR(VLOOKUP(ROWS($BE$9:BE97),$BD$9:$BE$162,2,0),\"\")","v":"Handspring, Roundoff, Flic"},null,null,null,{"$f":"IF(ISNUMBER(SEARCH($B$15,BM97)),MAX($BL$8:BL96)+1,0)","v":89},"Handspring, Roundoff, Flic",null,null,{"$f":"IFERROR(VLOOKUP(ROWS($BM$9:BM97),$BL$9:$BM$162,2,0),\"\")","v":"Handspring, Roundoff, Flic"},null,null,null,{"$f":"IF(ISNUMBER(SEARCH($B$16,BU97)),MAX($BT$8:BT96)+1,0)","v":89},"Handspring, Roundoff, Flic",null,null,{"$f":"IFERROR(VLOOKUP(ROWS($BU$9:BU97),$BT$9:$BU$162,2,0),\"\")","v":"Handspring, Roundoff, Flic"},null,null,null,{"$f":"IF(ISNUMBER(SEARCH($B$17,CC97)),MAX($CB$8:CB96)+1,0)","v":89},"Handspring, Roundoff, Flic",null,null,{"$f":"IFERROR(VLOOKUP(ROWS($CC$9:CC97),$CB$9:$CC$162,2,0),\"\")","v":"Handspring, Roundoff, Flic"},null,null,null,{"$f":"IF(ISNUMBER(SEARCH($B$18,CK97)),MAX($CJ$8:CJ96)+1,0)","v":89},"Handspring, Roundoff, Flic",null,null,{"$f":"IFERROR(VLOOKUP(ROWS($CK$9:CK97),$CJ$9:$CK$162,2,0),\"\")","v":"Handspring, Roundoff, Flic"}]
[null,null,null,null,null,null,null,null,null,null,null,null,null,null,null,{"$f":"IF(ISNUMBER(SEARCH($B$9,Q98)),MAX($P$8:P97)+1,0)","v":90},"Split leap or jump (180° split)",null,null,{"$f":"IFERROR(VLOOKUP(ROWS($Q$9:Q98),$P$9:$Q$162,2,0),\"\")","v":"Split leap or jump (180° split)"},null,null,null,{"$f":"IF(ISNUMBER(SEARCH($B$10,Y98)),MAX($X$8:X97)+1,0)","v":90},"Split leap or jump (180° split)",null,null,{"$f":"IFERROR(VLOOKUP(ROWS($Y$9:Y98),$X$9:$Y$162,2,0),\"\")","v":"Split leap or jump (180° split)"},null,null,null,{"$f":"IF(ISNUMBER(SEARCH($B$11,AG98)),MAX($AF$8:AF97)+1,0)","v":90},"Split leap or jump (180° split)",null,null,{"$f":"IFERROR(VLOOKUP(ROWS($AG$9:AG98),$AF$9:$AG$162,2,0),\"\")","v":"Split leap or jump (180° split)"},null,null,null,{"$f":"IF(ISNUMBER(SEARCH($B$12,AO98)),MAX($AN$8:AN97)+1,0)","v":90},"Split leap or jump (180° split)",null,null,{"$f":"IFERROR(VLOOKUP(ROWS($AO$9:AO98),$AN$9:$AO$162,2,0),\"\")","v":"Split leap or jump (180° split)"},null,null,null,{"$f":"IF(ISNUMBER(SEARCH($B$13,AW98)),MAX($AV$8:AV97)+1,0)","v":90},"Split leap or jump (180° split)",null,null,{"$f":"IFERROR(VLOOKUP(ROWS($AW$9:AW98),$AV$9:$AW$162,2,0),\"\")","v":"Split leap or jump (180° split)"},null,null,null,{"$f":"IF(ISNUMBER(SEARCH($B$14,BE98)),MAX($BD$8:BD97)+1,0)","v":90},"Split leap or jump (180° split)",null,null,{"$f":"IFERROR(VLOOKUP(ROWS($BE$9:BE98),$BD$9:$BE$162,2,0),\"\")","v":"Split leap or jump (180° split)"},null,null,null,{"$f":"IF(ISNUMBER(SEARCH($B$15,BM98)),MAX($BL$8:BL97)+1,0)","v":90},"Split leap or jump (180° split)",null,null,{"$f":"IFERROR(VLOOKUP(ROWS($BM$9:BM98),$BL$9:$BM$162,2,0),\"\")","v":"Split leap or jump (180° split)"},null,null,null,{"$f":"IF(ISNUMBER(SEARCH($B$16,BU98)),MAX($BT$8:BT97)+1,0)","v":90},"Split leap or jump (180° split)",null,null,{"$f":"IFERROR(VLOOKUP(ROWS($BU$9:BU98),$BT$9:$BU$162,2,0),\"\")","v":"Split leap or jump (180° split)"},null,null,null,{"$f":"IF(ISNUMBER(SEARCH($B$17,CC98)),MAX($CB$8:CB97)+1,0)","v":90},"Split leap or jump (180° split)",null,null,{"$f":"IFERROR(VLOOKUP(ROWS($CC$9:CC98),$CB$9:$CC$162,2,0),\"\")","v":"Split leap or jump (180° split)"},null,null,null,{"$f":"IF(ISNUMBER(SEARCH($B$18,CK98)),MAX($CJ$8:CJ97)+1,0)","v":90},"Split leap or jump (180° split)",null,null,{"$f":"IFERROR(VLOOKUP(ROWS($CK$9:CK98),$CJ$9:$CK$162,2,0),\"\")","v":"Split leap or jump (180° split)"}]
[null,null,null,null,null,null,null,null,null,null,null,null,null,null,null,{"$f":"IF(ISNUMBER(SEARCH($B$9,Q99)),MAX($P$8:P98)+1,0)","v":91},"Change leg split leap or jump ↓(180° split)",null,null,{"$f":"IFERROR(VLOOKUP(ROWS($Q$9:Q99),$P$9:$Q$162,2,0),\"\")","v":"Change leg split leap or jump ↓(180° split)"},null,null,null,{"$f":"IF(ISNUMBER(SEARCH($B$10,Y99)),MAX($X$8:X98)+1,0)","v":91},"Change leg split leap or jump ↓(180° split)",null,null,{"$f":"IFERROR(VLOOKUP(ROWS($Y$9:Y99),$X$9:$Y$162,2,0),\"\")","v":"Change leg split leap or jump ↓(180° split)"},null,null,null,{"$f":"IF(ISNUMBER(SEARCH($B$11,AG99)),MAX($AF$8:AF98)+1,0)","v":91},"Change leg split leap or jump ↓(180° split)",null,null,{"$f":"IFERROR(VLOOKUP(ROWS($AG$9:AG99),$AF$9:$AG$162,2,0),\"\")","v":"Change leg split leap or jump ↓(180° split)"},null,null,null,{"$f":"IF(ISNUMBER(SEARCH($B$12,AO99)),MAX($AN$8:AN98)+1,0)","v":91},"Change leg split leap or jump ↓(180° split)",null,null,{"$f":"IFERROR(VLOOKUP(ROWS($AO$9:AO99),$AN$9:$AO$162,2,0),\"\")","v":"Change leg split leap or jump ↓(180° split)"},null,null,null,{"$f":"IF(ISNUMBER(SEARCH($B$13,AW99)),MAX($AV$8:AV98)+1,0)","v":91},"Change leg split leap or jump ↓(180° split)",null,null,{"$f":"IFERROR(VLOOKUP(ROWS($AW$9:AW99),$AV$9:$AW$162,2,0),\"\")","v":"Change leg split leap or jump ↓(180° split)"},null,null,null,{"$f":"IF(ISNUMBER(SEARCH($B$14,BE99)),MAX($BD$8:BD98)+1,0)","v":91},"Change leg split leap or jump ↓(180° split)",null,null,{"$f":"IFERROR(VLOOKUP(ROWS($BE$9:BE99),$BD$9:$BE$162,2,0),\"\")","v":"Change leg split leap or jump ↓(180° split)"},null,null,null,{"$f":"IF(ISNUMBER(SEARCH($B$15,BM99)),MAX($BL$8:BL98)+1,0)","v":91},"Change leg split leap or jump ↓(180° split)",null,null,{"$f":"IFERROR(VLOOKUP(ROWS($BM$9:BM99),$BL$9:$BM$162,2,0),\"\")","v":"Change leg split leap or jump ↓(180° split)"},null,null,null,{"$f":"IF(ISNUMBER(SEARCH($B$16,BU99)),MAX($BT$8:BT98)+1,0)","v":91},"Change leg split leap or jump ↓(180° split)",null,null,{"$f":"IFERROR(VLOOKUP(ROWS($BU$9:BU99),$BT$9:$BU$162,2,0),\"\")","v":"Change leg split leap or jump ↓(180° split)"},null,null,null,{"$f":"IF(ISNUMBER(SEARCH($B$17,CC99)),MAX($CB$8:CB98)+1,0)","v":91},"Change leg split leap or jump ↓(180° split)",null,null,{"$f":"IFERROR(VLOOKUP(ROWS($CC$9:CC99),$CB$9:$CC$162,2,0),\"\")","v":"Change leg split leap or jump ↓(180° split)"},null,null,null,{"$f":"IF(ISNUMBER(SEARCH($B$18,CK99)),MAX($CJ$8:CJ98)+1,0)","v":91},"Change leg split leap or jump ↓(180° split)",null,null,{"$f":"IFERROR(VLOOKUP(ROWS($CK$9:CK99),$CJ$9:$CK$162,2,0),\"\")","v":"Change leg split leap or jump ↓(180° split)"}]
[null,null,null,null,null,null,null,null,null,null,null,null,null,null,null,{"$f":"IF(ISNUMBER(SEARCH($B$9,Q100)),MAX($P$8:P99)+1,0)","v":92},"Sissone",null,null,{"$f":"IFERROR(VLOOKUP(ROWS($Q$9:Q100),$P$9:$Q$162,2,0),\"\")","v":"Sissone"},null,null,null,{"$f":"IF(ISNUMBER(SEARCH($B$10,Y100)),MAX($X$8:X99)+1,0)","v":92},"Sissone",null,null,{"$f":"IFERROR(VLOOKUP(ROWS($Y$9:Y100),$X$9:$Y$162,2,0),\"\")","v":"Sissone"},null,null,null,{"$f":"IF(ISNUMBER(SEARCH($B$11,AG100)),MAX($AF$8:AF99)+1,0)","v":92},"Sissone",null,null,{"$f":"IFERROR(VLOOKUP(ROWS($AG$9:AG100),$AF$9:$AG$162,2,0),\"\")","v":"Sissone"},null,null,null,{"$f":"IF(ISNUMBER(SEARCH($B$12,AO100)),MAX($AN$8:AN99)+1,0)","v":92},"Sissone",null,null,{"$f":"IFERROR(VLOOKUP(ROWS($AO$9:AO100),$AN$9:$AO$162,2,0),\"\")","v":"Sissone"},null,null,null,{"$f":"IF(ISNUMBER(SEARCH($B$13,AW100)),MAX($AV$8:AV99)+1,0)","v":92},"Sissone",null,null,{"$f":"IFERROR(VLOOKUP(ROWS($AW$9:AW100),$AV$9:$AW$162,2,0),\"\")","v":"Sissone"},null,null,null,{"$f":"IF(ISNUMBER(SEARCH($B$14,BE100)),MAX($BD$8:BD99)+1,0)","v":92},"Sissone",null,null,{"$f":"IFERROR(VLOOKUP(ROWS($BE$9:BE100),$BD$9:$BE$162,2,0),\"\")","v":"Sissone"},null,null,null,{"$f":"IF(ISNUMBER(SEARCH($B$15,BM100)),MAX($BL$8:BL99)+1,0)","v":92},"Sissone",null,null,{"$f":"IFERROR(VLOOKUP(ROWS($BM$9:BM100),$BL$9:$BM$162,2,0),\"\")","v":"Sissone"},null,null,null,{"$f":"IF(ISNUMBER(SEARCH($B$16,BU100)),MAX($BT$8:BT99)+1,0)","v":92},"Sissone",null,null,{"$f":"IFERROR(VLOOKUP(ROWS($BU$9:BU100),$BT$9:$BU$162,2,0),\"\")","v":"Sissone"},null,null,null,{"$f":"IF(ISNUMBER(SEARCH($B$17,CC100)),MAX($CB$8:CB99)+1,0)","v":92},"Sissone",null,null,{"$f":"IFERROR(VLOOKUP(ROWS($CC$9:CC100),$CB$9:$CC$162,2,0),\"\")","v":"Sissone"},null,null,null,{"$f":"IF(ISNUMBER(SEARCH($B$18,CK100)),MAX($CJ$8:CJ99)+1,0)","v":92},"Sissone",null,null,{"$f":"IFERROR(VLOOKUP(ROWS($CK$9:CK100),$CJ$9:$CK$162,2,0),\"\")","v":"Sissone"}]
[null,null,null,null,null,null,null,null,null,null,null,null,null,null,null,{"$f":"IF(ISNUMBER(SEARCH($B$9,Q101)),MAX($P$8:P100)+1,0)","v":93},"Cat leap full turn",null,null,{"$f":"IFERROR(VLOOKUP(ROWS($Q$9:Q101),$P$9:$Q$162,2,0),\"\")","v":"Cat leap full turn"},null,null,null,{"$f":"IF(ISNUMBER(SEARCH($B$10,Y101)),MAX($X$8:X100)+1,0)","v":93},"Cat leap full turn",null,null,{"$f":"IFERROR(VLOOKUP(ROWS($Y$9:Y101),$X$9:$Y$162,2,0),\"\")","v":"Cat leap full turn"},null,null,null,{"$f":"IF(ISNUMBER(SEARCH($B$11,AG101)),MAX($AF$8:AF100)+1,0)","v":93},"Cat leap full turn",null,null,{"$f":"IFERROR(VLOOKUP(ROWS($AG$9:AG101),$AF$9:$AG$162,2,0),\"\")","v":"Cat leap full turn"},null,null,null,{"$f":"IF(ISNUMBER(SEARCH($B$12,AO101)),MAX($AN$8:AN100)+1,0)","v":93},"Cat leap full turn",null,null,{"$f":"IFERROR(VLOOKUP(ROWS($AO$9:AO101),$AN$9:$AO$162,2,0),\"\")","v":"Cat leap full turn"},null,null,null,{"$f":"IF(ISNUMBER(SEARCH($B$13,AW101)),MAX($AV$8:AV100)+1,0)","v":93},"Cat leap full turn",null,null,{"$f":"IFERROR(VLOOKUP(ROWS($AW$9:AW101),$AV$9:$AW$162,2,0),\"\")","v":"Cat leap full turn"},null,null,null,{"$f":"IF(ISNUMBER(SEARCH($B$14,BE101)),MAX($BD$8:BD100)+1,0)","v":93},"Cat leap full turn",null,null,{"$f":"IFERROR(VLOOKUP(ROWS($BE$9:BE101),$BD$9:$BE$162,2,0),\"\")","v":"Cat leap full turn"},null,null,null,{"$f":"IF(ISNUMBER(SEARCH($B$15,BM101)),MAX($BL$8:BL100)+1,0)","v":93},"Cat leap full turn",null,null,{"$f":"IFERROR(VLOOKUP(ROWS($BM$9:BM101),$BL$9:$BM$162,2,0),\"\")","v":"Cat leap full turn"},null,null,null,{"$f":"IF(ISNUMBER(SEARCH($B$16,BU101)),MAX($BT$8:BT100)+1,0)","v":93},"Cat leap full turn",null,null,{"$f":"IFERROR(VLOOKUP(ROWS($BU$9:BU101),$BT$9:$BU$162,2,0),\"\")","v":"Cat leap full turn"},null,null,null,{"$f":"IF(ISNUMBER(SEARCH($B$17,CC101)),MAX($CB$8:CB100)+1,0)","v":93},"Cat leap full turn",null,null,{"$f":"IFERROR(VLOOKUP(ROWS($CC$9:CC101),$CB$9:$CC$162,2,0),\"\")","v":"Cat leap full turn"},null,null,null,{"$f":"IF(ISNUMBER(SEARCH($B$18,CK101)),MAX($CJ$8:CJ100)+1,0)","v":93},"Cat leap full turn",null,null,{"$f":"IFERROR(VLOOKUP(ROWS($CK$9:CK101),$CJ$9:$CK$162,2,0),\"\")","v":"Cat leap full turn"}]
[null,null,null,null,null,null,null,null,null,null,null,null,null,null,null,{"$f":"IF(ISNUMBER(SEARCH($B$9,Q102)),MAX($P$8:P101)+1,0)","v":94},"Jump double turn  ",null,null,{"$f":"IFERROR(VLOOKUP(ROWS($Q$9:Q102),$P$9:$Q$162,2,0),\"\")","v":"Jump double turn  "},null,null,null,{"$f":"IF(ISNUMBER(SEARCH($B$10,Y102)),MAX($X$8:X101)+1,0)","v":94},"Jump double turn  ",null,null,{"$f":"IFERROR(VLOOKUP(ROWS($Y$9:Y102),$X$9:$Y$162,2,0),\"\")","v":"Jump double turn  "},null,null,null,{"$f":"IF(ISNUMBER(SEARCH($B$11,AG102)),MAX($AF$8:AF101)+1,0)","v":94},"Jump double turn  ",null,null,{"$f":"IFERROR(VLOOKUP(ROWS($AG$9:AG102),$AF$9:$AG$162,2,0),\"\")","v":"Jump double turn  "},null,null,null,{"$f":"IF(ISNUMBER(SEARCH($B$12,AO102)),MAX($AN$8:AN101)+1,0)","v":94},"Jump double turn  ",null,null,{"$f":"IFERROR(VLOOKUP(ROWS($AO$9:AO102),$AN$9:$AO$162,2,0),\"\")","v":"Jump double turn  "},null,null,null,{"$f":"IF(ISNUMBER(SEARCH($B$13,AW102)),MAX($AV$8:AV101)+1,0)","v":94},"Jump double turn  ",null,null,{"$f":"IFERROR(VLOOKUP(ROWS($AW$9:AW102),$AV$9:$AW$162,2,0),\"\")","v":"Jump double turn  "},null,null,null,{"$f":"IF(ISNUMBER(SEARCH($B$14,BE102)),MAX($BD$8:BD101)+1,0)","v":94},"Jump double turn  ",null,null,{"$f":"IFERROR(VLOOKUP(ROWS($BE$9:BE102),$BD$9:$BE$162,2,0),\"\")","v":"Jump double turn  "},null,null,null,{"$f":"IF(ISNUMBER(SEARCH($B$15,BM102)),MAX($BL$8:BL101)+1,0)","v":94},"Jump double turn  ",null,null,{"$f":"IFERROR(VLOOKUP(ROWS($BM$9:BM102),$BL$9:$BM$162,2,0),\"\")","v":"Jump double turn  "},null,null,null,{"$f":"IF(ISNUMBER(SEARCH($B$16,BU102)),MAX($BT$8:BT101)+1,0)","v":94},"Jump double turn  ",null,null,{"$f":"IFERROR(VLOOKUP(ROWS($BU$9:BU102),$BT$9:$BU$162,2,0),\"\")","v":"Jump double turn  "},null,null,null,{"$f":"IF(ISNUMBER(SEARCH($B$17,CC102)),MAX($CB$8:CB101)+1,0)","v":94},"Jump double turn  ",null,null,{"$f":"IFERROR(VLOOKUP(ROWS($CC$9:CC102),$CB$9:$CC$162,2,0),\"\")","v":"Jump double turn  "},null,null,null,{"$f":"IF(ISNUMBER(SEARCH($B$18,CK102)),MAX($CJ$8:CJ101)+1,0)","v":94},"Jump double turn  ",null,null,{"$f":"IFERROR(VLOOKUP(ROWS($CK$9:CK102),$CJ$9:$CK$162,2,0),\"\")","v":"Jump double turn  "}]
[null,null,null,null,null,null,null,null,null,null,null,null,null,null,null,{"$f":"IF(ISNUMBER(SEARCH($B$9,Q103)),MAX($P$8:P102)+1,0)","v":95},"Jump to Prone",null,null,{"$f":"IFERROR(VLOOKUP(ROWS($Q$9:Q103),$P$9:$Q$162,2,0),\"\")","v":"Jump to Prone"},null,null,null,{"$f":"IF(ISNUMBER(SEARCH($B$10,Y103)),MAX($X$8:X102)+1,0)","v":95},"Jump to Prone",null,null,{"$f":"IFERROR(VLOOKUP(ROWS($Y$9:Y103),$X$9:$Y$162,2,0),\"\")","v":"Jump to Prone"},null,null,null,{"$f":"IF(ISNUMBER(SEARCH($B$11,AG103)),MAX($AF$8:AF102)+1,0)","v":95},"Jump to Prone",null,null,{"$f":"IFERROR(VLOOKUP(ROWS($AG$9:AG103),$AF$9:$AG$162,2,0),\"\")","v":"Jump to Prone"},null,null,null,{"$f":"IF(ISNUMBER(SEARCH($B$12,AO103)),MAX($AN$8:AN102)+1,0)","v":95},"Jump to Prone",null,null,{"$f":"IFERROR(VLOOKUP(ROWS($AO$9:AO103),$AN$9:$AO$162,2,0),\"\")","v":"Jump to Prone"},null,null,null,{"$f":"IF(ISNUMBER(SEARCH($B$13,AW103)),MAX($AV$8:AV102)+1,0)","v":95},"Jump to Prone",null,null,{"$f":"IFERROR(VLOOKUP(ROWS($AW$9:AW103),$AV$9:$AW$162,2,0),\"\")","v":"Jump to Prone"},null,null,null,{"$f":"IF(ISNUMBER(SEARCH($B$14,BE103)),MAX($BD$8:BD102)+1,0)","v":95},"Jump to Prone",null,null,{"$f":"IFERROR(VLOOKUP(ROWS($BE$9:BE103),$BD$9:$BE$162,2,0),\"\")","v":"Jump to Prone"},null,null,null,{"$f":"IF(ISNUMBER(SEARCH($B$15,BM103)),MAX($BL$8:BL102)+1,0)","v":95},"Jump to Prone",null,null,{"$f":"IFERROR(VLOOKUP(ROWS($BM$9:BM103),$BL$9:$BM$162,2,0),\"\")","v":"Jump to Prone"},null,null,null,{"$f":"IF(ISNUMBER(SEARCH($B$16,BU103)),MAX($BT$8:BT102)+1,0)","v":95},"Jump to Prone",null,null,{"$f":"IFERROR(VLOOKUP(ROWS($BU$9:BU103),$BT$9:$BU$162,2,0),\"\")","v":"Jump to Prone"},null,null,null,{"$f":"IF(ISNUMBER(SEARCH($B$17,CC103)),MAX($CB$8:CB102)+1,0)","v":95},"Jump to Prone",null,null,{"$f":"IFERROR(VLOOKUP(ROWS($CC$9:CC103),$CB$9:$CC$162,2,0),\"\")","v":"Jump to Prone"},null,null,null,{"$f":"IF(ISNUMBER(SEARCH($B$18,CK103)),MAX($CJ$8:CJ102)+1,0)","v":95},"Jump to Prone",null,null,{"$f":"IFERROR(VLOOKUP(ROWS($CK$9:CK103),$CJ$9:$CK$162,2,0),\"\")","v":"Jump to Prone"}]
[null,null,null,null,null,null,null,null,null,null,null,null,null,null,null,{"$f":"IF(ISNUMBER(SEARCH($B$9,Q104)),MAX($P$8:P103)+1,0)","v":96},"Straddle jump (feet hip high)",null,null,{"$f":"IFERROR(VLOOKUP(ROWS($Q$9:Q104),$P$9:$Q$162,2,0),\"\")","v":"Straddle jump (feet hip high)"},null,null,null,{"$f":"IF(ISNUMBER(SEARCH($B$10,Y104)),MAX($X$8:X103)+1,0)","v":96},"Straddle jump (feet hip high)",null,null,{"$f":"IFERROR(VLOOKUP(ROWS($Y$9:Y104),$X$9:$Y$162,2,0),\"\")","v":"Straddle jump (feet hip high)"},null,null,null,{"$f":"IF(ISNUMBER(SEARCH($B$11,AG104)),MAX($AF$8:AF103)+1,0)","v":96},"Straddle jump (feet hip high)",null,null,{"$f":"IFERROR(VLOOKUP(ROWS($AG$9:AG104),$AF$9:$AG$162,2,0),\"\")","v":"Straddle jump (feet hip high)"},null,null,null,{"$f":"IF(ISNUMBER(SEARCH($B$12,AO104)),MAX($AN$8:AN103)+1,0)","v":96},"Straddle jump (feet hip high)",null,null,{"$f":"IFERROR(VLOOKUP(ROWS($AO$9:AO104),$AN$9:$AO$162,2,0),\"\")","v":"Straddle jump (feet hip high)"},null,null,null,{"$f":"IF(ISNUMBER(SEARCH($B$13,AW104)),MAX($AV$8:AV103)+1,0)","v":96},"Straddle jump (feet hip high)",null,null,{"$f":"IFERROR(VLOOKUP(ROWS($AW$9:AW104),$AV$9:$AW$162,2,0),\"\")","v":"Straddle jump (feet hip high)"},null,null,null,{"$f":"IF(ISNUMBER(SEARCH($B$14,BE104)),MAX($BD$8:BD103)+1,0)","v":96},"Straddle jump (feet hip high)",null,null,{"$f":"IFERROR(VLOOKUP(ROWS($BE$9:BE104),$BD$9:$BE$162,2,0),\"\")","v":"Straddle jump (feet hip high)"},null,null,null,{"$f":"IF(ISNUMBER(SEARCH($B$15,BM104)),MAX($BL$8:BL103)+1,0)","v":96},"Straddle jump (feet hip high)",null,null,{"$f":"IFERROR(VLOOKUP(ROWS($BM$9:BM104),$BL$9:$BM$162,2,0),\"\")","v":"Straddle jump (feet hip high)"},null,null,null,{"$f":"IF(ISNUMBER(SEARCH($B$16,BU104)),MAX($BT$8:BT103)+1,0)","v":96},"Straddle jump (feet hip high)",null,null,{"$f":"IFERROR(VLOOKUP(ROWS($BU$9:BU104),$BT$9:$BU$162,2,0),\"\")","v":"Straddle jump (feet hip high)"},null,null,null,{"$f":"IF(ISNUMBER(SEARCH($B$17,CC104)),MAX($CB$8:CB103)+1,0)","v":96},"Straddle jump (feet hip high)",null,null,{"$f":"IFERROR(VLOOKUP(ROWS($CC$9:CC104),$CB$9:$CC$162,2,0),\"\")","v":"Straddle jump (feet hip high)"},null,null,null,{"$f":"IF(ISNUMBER(SEARCH($B$18,CK104)),MAX($CJ$8:CJ103)+1,0)","v":96},"Straddle jump (feet hip high)",null,null,{"$f":"IFERROR(VLOOKUP(ROWS($CK$9:CK104),$CJ$9:$CK$162,2,0),\"\")","v":"Straddle jump (feet hip high)"}]
[null,null,null,null,null,null,null,null,null,null,null,null,null,null,null,{"$f":"IF(ISNUMBER(SEARCH($B$9,Q105)),MAX($P$8:P104)+1,0)","v":97},"Tuck jump full turn",null,null,{"$f":"IFERROR(VLOOKUP(ROWS($Q$9:Q105),$P$9:$Q$162,2,0),\"\")","v":"Tuck jump full turn"},null,null,null,{"$f":"IF(ISNUMBER(SEARCH($B$10,Y105)),MAX($X$8:X104)+1,0)","v":97},"Tuck jump full turn",null,null,{"$f":"IFERROR(VLOOKUP(ROWS($Y$9:Y105),$X$9:$Y$162,2,0),\"\")","v":"Tuck jump full turn"},null,null,null,{"$f":"IF(ISNUMBER(SEARCH($B$11,AG105)),MAX($AF$8:AF104)+1,0)","v":97},"Tuck jump full turn",null,null,{"$f":"IFERROR(VLOOKUP(ROWS($AG$9:AG105),$AF$9:$AG$162,2,0),\"\")","v":"Tuck jump full turn"},null,null,null,{"$f":"IF(ISNUMBER(SEARCH($B$12,AO105)),MAX($AN$8:AN104)+1,0)","v":97},"Tuck jump full turn",null,null,{"$f":"IFERROR(VLOOKUP(ROWS($AO$9:AO105),$AN$9:$AO$162,2,0),\"\")","v":"Tuck jump full turn"},null,null,null,{"$f":"IF(ISNUMBER(SEARCH($B$13,AW105)),MAX($AV$8:AV104)+1,0)","v":97},"Tuck jump full turn",null,null,{"$f":"IFERROR(VLOOKUP(ROWS($AW$9:AW105),$AV$9:$AW$162,2,0),\"\")","v":"Tuck jump full turn"},null,null,null,{"$f":"IF(ISNUMBER(SEARCH($B$14,BE105)),MAX($BD$8:BD104)+1,0)","v":97},"Tuck jump full turn",null,null,{"$f":"IFERROR(VLOOKUP(ROWS($BE$9:BE105),$BD$9:$BE$162,2,0),\"\")","v":"Tuck jump full turn"},null,null,null,{"$f":"IF(ISNUMBER(SEARCH($B$15,BM105)),MAX($BL$8:BL104)+1,0)","v":97},"Tuck jump full turn",null,null,{"$f":"IFERROR(VLOOKUP(ROWS($BM$9:BM105),$BL$9:$BM$162,2,0),\"\")","v":"Tuck jump full turn"},null,null,null,{"$f":"IF(ISNUMBER(SEARCH($B$16,BU105)),MAX($BT$8:BT104)+1,0)","v":97},"Tuck jump full turn",null,null,{"$f":"IFERROR(VLOOKUP(ROWS($BU$9:BU105),$BT$9:$BU$162,2,0),\"\")","v":"Tuck jump full turn"},null,null,null,{"$f":"IF(ISNUMBER(SEARCH($B$17,CC105)),MAX($CB$8:CB104)+1,0)","v":97},"Tuck jump full turn",null,null,{"$f":"IFERROR(VLOOKUP(ROWS($CC$9:CC105),$CB$9:$CC$162,2,0),\"\")","v":"Tuck jump full turn"},null,null,null,{"$f":"IF(ISNUMBER(SEARCH($B$18,CK105)),MAX($CJ$8:CJ104)+1,0)","v":97},"Tuck jump full turn",null,null,{"$f":"IFERROR(VLOOKUP(ROWS($CK$9:CK105),$CJ$9:$CK$162,2,0),\"\")","v":"Tuck jump full turn"}]
[null,null,null,null,null,null,null,null,null,null,null,null,null,null,null,{"$f":"IF(ISNUMBER(SEARCH($B$9,Q106)),MAX($P$8:P105)+1,0)","v":98},"1½  Spin",null,null,{"$f":"IFERROR(VLOOKUP(ROWS($Q$9:Q106),$P$9:$Q$162,2,0),\"\")","v":"1½  Spin"},null,null,null,{"$f":"IF(ISNUMBER(SEARCH($B$10,Y106)),MAX($X$8:X105)+1,0)","v":98},"1½  Spin",null,null,{"$f":"IFERROR(VLOOKUP(ROWS($Y$9:Y106),$X$9:$Y$162,2,0),\"\")","v":"1½  Spin"},null,null,null,{"$f":"IF(ISNUMBER(SEARCH($B$11,AG106)),MAX($AF$8:AF105)+1,0)","v":98},"1½  Spin",null,null,{"$f":"IFERROR(VLOOKUP(ROWS($AG$9:AG106),$AF$9:$AG$162,2,0),\"\")","v":"1½  Spin"},null,null,null,{"$f":"IF(ISNUMBER(SEARCH($B$12,AO106)),MAX($AN$8:AN105)+1,0)","v":98},"1½  Spin",null,null,{"$f":"IFERROR(VLOOKUP(ROWS($AO$9:AO106),$AN$9:$AO$162,2,0),\"\")","v":"1½  Spin"},null,null,null,{"$f":"IF(ISNUMBER(SEARCH($B$13,AW106)),MAX($AV$8:AV105)+1,0)","v":98},"1½  Spin",null,null,{"$f":"IFERROR(VLOOKUP(ROWS($AW$9:AW106),$AV$9:$AW$162,2,0),\"\")","v":"1½  Spin"},null,null,null,{"$f":"IF(ISNUMBER(SEARCH($B$14,BE106)),MAX($BD$8:BD105)+1,0)","v":98},"1½  Spin",null,null,{"$f":"IFERROR(VLOOKUP(ROWS($BE$9:BE106),$BD$9:$BE$162,2,0),\"\")","v":"1½  Spin"},null,null,null,{"$f":"IF(ISNUMBER(SEARCH($B$15,BM106)),MAX($BL$8:BL105)+1,0)","v":98},"1½  Spin",null,null,{"$f":"IFERROR(VLOOKUP(ROWS($BM$9:BM106),$BL$9:$BM$162,2,0),\"\")","v":"1½  Spin"},null,null,null,{"$f":"IF(ISNUMBER(SEARCH($B$16,BU106)),MAX($BT$8:BT105)+1,0)","v":98},"1½  Spin",null,null,{"$f":"IFERROR(VLOOKUP(ROWS($BU$9:BU106),$BT$9:$BU$162,2,0),\"\")","v":"1½  Spin"},null,null,null,{"$f":"IF(ISNUMBER(SEARCH($B$17,CC106)),MAX($CB$8:CB105)+1,0)","v":98},"1½  Spin",null,null,{"$f":"IFERROR(VLOOKUP(ROWS($CC$9:CC106),$CB$9:$CC$162,2,0),\"\")","v":"1½  Spin"},null,null,null,{"$f":"IF(ISNUMBER(SEARCH($B$18,CK106)),MAX($CJ$8:CJ105)+1,0)","v":98},"1½  Spin",null,null,{"$f":"IFERROR(VLOOKUP(ROWS($CK$9:CK106),$CJ$9:$CK$162,2,0),\"\")","v":"1½  Spin"}]
[null,null,null,null,null,null,null,null,null,null,null,null,null,null,null,{"$f":"IF(ISNUMBER(SEARCH($B$9,Q107)),MAX($P$8:P106)+1,0)","v":99},"Y Scale (leg at  shoulder height)",null,null,{"$f":"IFERROR(VLOOKUP(ROWS($Q$9:Q107),$P$9:$Q$162,2,0),\"\")","v":"Y Scale (leg at  shoulder height)"},null,null,null,{"$f":"IF(ISNUMBER(SEARCH($B$10,Y107)),MAX($X$8:X106)+1,0)","v":99},"Y Scale (leg at  shoulder height)",null,null,{"$f":"IFERROR(VLOOKUP(ROWS($Y$9:Y107),$X$9:$Y$162,2,0),\"\")","v":"Y Scale (leg at  shoulder height)"},null,null,null,{"$f":"IF(ISNUMBER(SEARCH($B$11,AG107)),MAX($AF$8:AF106)+1,0)","v":99},"Y Scale (leg at  shoulder height)",null,null,{"$f":"IFERROR(VLOOKUP(ROWS($AG$9:AG107),$AF$9:$AG$162,2,0),\"\")","v":"Y Scale (leg at  shoulder height)"},null,null,null,{"$f":"IF(ISNUMBER(SEARCH($B$12,AO107)),MAX($AN$8:AN106)+1,0)","v":99},"Y Scale (leg at  shoulder height)",null,null,{"$f":"IFERROR(VLOOKUP(ROWS($AO$9:AO107),$AN$9:$AO$162,2,0),\"\")","v":"Y Scale (leg at  shoulder height)"},null,null,null,{"$f":"IF(ISNUMBER(SEARCH($B$13,AW107)),MAX($AV$8:AV106)+1,0)","v":99},"Y Scale (leg at  shoulder height)",null,null,{"$f":"IFERROR(VLOOKUP(ROWS($AW$9:AW107),$AV$9:$AW$162,2,0),\"\")","v":"Y Scale (leg at  shoulder height)"},null,null,null,{"$f":"IF(ISNUMBER(SEARCH($B$14,BE107)),MAX($BD$8:BD106)+1,0)","v":99},"Y Scale (leg at  shoulder height)",null,null,{"$f":"IFERROR(VLOOKUP(ROWS($BE$9:BE107),$BD$9:$BE$162,2,0),\"\")","v":"Y Scale (leg at  shoulder height)"},null,null,null,{"$f":"IF(ISNUMBER(SEARCH($B$15,BM107)),MAX($BL$8:BL106)+1,0)","v":99},"Y Scale (leg at  shoulder height)",null,null,{"$f":"IFERROR(VLOOKUP(ROWS($BM$9:BM107),$BL$9:$BM$162,2,0),\"\")","v":"Y Scale (leg at  shoulder height)"},null,null,null,{"$f":"IF(ISNUMBER(SEARCH($B$16,BU107)),MAX($BT$8:BT106)+1,0)","v":99},"Y Scale (leg at  shoulder height)",null,null,{"$f":"IFERROR(VLOOKUP(ROWS($BU$9:BU107),$BT$9:$BU$162,2,0),\"\")","v":"Y Scale (leg at  shoulder height)"},null,null,null,{"$f":"IF(ISNUMBER(SEARCH($B$17,CC107)),MAX($CB$8:CB106)+1,0)","v":99},"Y Scale (leg at  shoulder height)",null,null,{"$f":"IFERROR(VLOOKUP(ROWS($CC$9:CC107),$CB$9:$CC$162,2,0),\"\")","v":"Y Scale (leg at  shoulder height)"},null,null,null,{"$f":"IF(ISNUMBER(SEARCH($B$18,CK107)),MAX($CJ$8:CJ106)+1,0)","v":99},"Y Scale (leg at  shoulder height)",null,null,{"$f":"IFERROR(VLOOKUP(ROWS($CK$9:CK107),$CJ$9:$CK$162,2,0),\"\")","v":"Y Scale (leg at  shoulder height)"}]
[null,null,null,null,null,null,null,null,null,null,null,null,null,null,null,{"$f":"IF(ISNUMBER(SEARCH($B$9,Q108)),MAX($P$8:P107)+1,0)","v":100},"3 way Splits ",null,null,{"$f":"IFERROR(VLOOKUP(ROWS($Q$9:Q108),$P$9:$Q$162,2,0),\"\")","v":"3 way Splits "},null,null,null,{"$f":"IF(ISNUMBER(SEARCH($B$10,Y108)),MAX($X$8:X107)+1,0)","v":100},"3 way Splits ",null,null,{"$f":"IFERROR(VLOOKUP(ROWS($Y$9:Y108),$X$9:$Y$162,2,0),\"\")","v":"3 way Splits "},null,null,null,{"$f":"IF(ISNUMBER(SEARCH($B$11,AG108)),MAX($AF$8:AF107)+1,0)","v":100},"3 way Splits ",null,null,{"$f":"IFERROR(VLOOKUP(ROWS($AG$9:AG108),$AF$9:$AG$162,2,0),\"\")","v":"3 way Splits "},null,null,null,{"$f":"IF(ISNUMBER(SEARCH($B$12,AO108)),MAX($AN$8:AN107)+1,0)","v":100},"3 way Splits ",null,null,{"$f":"IFERROR(VLOOKUP(ROWS($AO$9:AO108),$AN$9:$AO$162,2,0),\"\")","v":"3 way Splits "},null,null,null,{"$f":"IF(ISNUMBER(SEARCH($B$13,AW108)),MAX($AV$8:AV107)+1,0)","v":100},"3 way Splits ",null,null,{"$f":"IFERROR(VLOOKUP(ROWS($AW$9:AW108),$AV$9:$AW$162,2,0),\"\")","v":"3 way Splits "},null,null,null,{"$f":"IF(ISNUMBER(SEARCH($B$14,BE108)),MAX($BD$8:BD107)+1,0)","v":100},"3 way Splits ",null,null,{"$f":"IFERROR(VLOOKUP(ROWS($BE$9:BE108),$BD$9:$BE$162,2,0),\"\")","v":"3 way Splits "},null,null,null,{"$f":"IF(ISNUMBER(SEARCH($B$15,BM108)),MAX($BL$8:BL107)+1,0)","v":100},"3 way Splits ",null,null,{"$f":"IFERROR(VLOOKUP(ROWS($BM$9:BM108),$BL$9:$BM$162,2,0),\"\")","v":"3 way Splits "},null,null,null,{"$f":"IF(ISNUMBER(SEARCH($B$16,BU108)),MAX($BT$8:BT107)+1,0)","v":100},"3 way Splits ",null,null,{"$f":"IFERROR(VLOOKUP(ROWS($BU$9:BU108),$BT$9:$BU$162,2,0),\"\")","v":"3 way Splits "},null,null,null,{"$f":"IF(ISNUMBER(SEARCH($B$17,CC108)),MAX($CB$8:CB107)+1,0)","v":100},"3 way Splits ",null,null,{"$f":"IFERROR(VLOOKUP(ROWS($CC$9:CC108),$CB$9:$CC$162,2,0),\"\")","v":"3 way Splits "},null,null,null,{"$f":"IF(ISNUMBER(SEARCH($B$18,CK108)),MAX($CJ$8:CJ107)+1,0)","v":100},"3 way Splits ",null,null,{"$f":"IFERROR(VLOOKUP(ROWS($CK$9:CK108),$CJ$9:$CK$162,2,0),\"\")","v":"3 way Splits "}]
[null,null,null,null,null,null,null,null,null,null,null,null,null,null,null,{"$f":"IF(ISNUMBER(SEARCH($B$9,Q109)),MAX($P$8:P108)+1,0)","v":101},"F Supp jump legs through straddle -",null,null,{"$f":"IFERROR(VLOOKUP(ROWS($Q$9:Q109),$P$9:$Q$162,2,0),\"\")","v":"F Supp jump legs through straddle -"},null,null,null,{"$f":"IF(ISNUMBER(SEARCH($B$10,Y109)),MAX($X$8:X108)+1,0)","v":101},"F Supp jump legs through straddle -",null,null,{"$f":"IFERROR(VLOOKUP(ROWS($Y$9:Y109),$X$9:$Y$162,2,0),\"\")","v":"F Supp jump legs through straddle -"},null,null,null,{"$f":"IF(ISNUMBER(SEARCH($B$11,AG109)),MAX($AF$8:AF108)+1,0)","v":101},"F Supp jump legs through straddle -",null,null,{"$f":"IFERROR(VLOOKUP(ROWS($AG$9:AG109),$AF$9:$AG$162,2,0),\"\")","v":"F Supp jump legs through straddle -"},null,null,null,{"$f":"IF(ISNUMBER(SEARCH($B$12,AO109)),MAX($AN$8:AN108)+1,0)","v":101},"F Supp jump legs through straddle -",null,null,{"$f":"IFERROR(VLOOKUP(ROWS($AO$9:AO109),$AN$9:$AO$162,2,0),\"\")","v":"F Supp jump legs through straddle -"},null,null,null,{"$f":"IF(ISNUMBER(SEARCH($B$13,AW109)),MAX($AV$8:AV108)+1,0)","v":101},"F Supp jump legs through straddle -",null,null,{"$f":"IFERROR(VLOOKUP(ROWS($AW$9:AW109),$AV$9:$AW$162,2,0),\"\")","v":"F Supp jump legs through straddle -"},null,null,null,{"$f":"IF(ISNUMBER(SEARCH($B$14,BE109)),MAX($BD$8:BD108)+1,0)","v":101},"F Supp jump legs through straddle -",null,null,{"$f":"IFERROR(VLOOKUP(ROWS($BE$9:BE109),$BD$9:$BE$162,2,0),\"\")","v":"F Supp jump legs through straddle -"},null,null,null,{"$f":"IF(ISNUMBER(SEARCH($B$15,BM109)),MAX($BL$8:BL108)+1,0)","v":101},"F Supp jump legs through straddle -",null,null,{"$f":"IFERROR(VLOOKUP(ROWS($BM$9:BM109),$BL$9:$BM$162,2,0),\"\")","v":"F Supp jump legs through straddle -"},null,null,null,{"$f":"IF(ISNUMBER(SEARCH($B$16,BU109)),MAX($BT$8:BT108)+1,0)","v":101},"F Supp jump legs through straddle -",null,null,{"$f":"IFERROR(VLOOKUP(ROWS($BU$9:BU109),$BT$9:$BU$162,2,0),\"\")","v":"F Supp jump legs through straddle -"},null,null,null,{"$f":"IF(ISNUMBER(SEARCH($B$17,CC109)),MAX($CB$8:CB108)+1,0)","v":101},"F Supp jump legs through straddle -",null,null,{"$f":"IFERROR(VLOOKUP(ROWS($CC$9:CC109),$CB$9:$CC$162,2,0),\"\")","v":"F Supp jump legs through straddle -"},null,null,null,{"$f":"IF(ISNUMBER(SEARCH($B$18,CK109)),MAX($CJ$8:CJ108)+1,0)","v":101},"F Supp jump legs through straddle -",null,null,{"$f":"IFERROR(VLOOKUP(ROWS($CK$9:CK109),$CJ$9:$CK$162,2,0),\"\")","v":"F Supp jump legs through straddle -"}]
[null,null,null,null,null,null,null,null,null,null,null,null,null,null,null,{"$f":"IF(ISNUMBER(SEARCH($B$9,Q110)),MAX($P$8:P109)+1,0)","v":102},"Straddle 'Russian' Lever",null,null,{"$f":"IFERROR(VLOOKUP(ROWS($Q$9:Q110),$P$9:$Q$162,2,0),\"\")","v":"Straddle 'Russian' Lever"},null,null,null,{"$f":"IF(ISNUMBER(SEARCH($B$10,Y110)),MAX($X$8:X109)+1,0)","v":102},"Straddle 'Russian' Lever",null,null,{"$f":"IFERROR(VLOOKUP(ROWS($Y$9:Y110),$X$9:$Y$162,2,0),\"\")","v":"Straddle 'Russian' Lever"},null,null,null,{"$f":"IF(ISNUMBER(SEARCH($B$11,AG110)),MAX($AF$8:AF109)+1,0)","v":102},"Straddle 'Russian' Lever",null,null,{"$f":"IFERROR(VLOOKUP(ROWS($AG$9:AG110),$AF$9:$AG$162,2,0),\"\")","v":"Straddle 'Russian' Lever"},null,null,null,{"$f":"IF(ISNUMBER(SEARCH($B$12,AO110)),MAX($AN$8:AN109)+1,0)","v":102},"Straddle 'Russian' Lever",null,null,{"$f":"IFERROR(VLOOKUP(ROWS($AO$9:AO110),$AN$9:$AO$162,2,0),\"\")","v":"Straddle 'Russian' Lever"},null,null,null,{"$f":"IF(ISNUMBER(SEARCH($B$13,AW110)),MAX($AV$8:AV109)+1,0)","v":102},"Straddle 'Russian' Lever",null,null,{"$f":"IFERROR(VLOOKUP(ROWS($AW$9:AW110),$AV$9:$AW$162,2,0),\"\")","v":"Straddle 'Russian' Lever"},null,null,null,{"$f":"IF(ISNUMBER(SEARCH($B$14,BE110)),MAX($BD$8:BD109)+1,0)","v":102},"Straddle 'Russian' Lever",null,null,{"$f":"IFERROR(VLOOKUP(ROWS($BE$9:BE110),$BD$9:$BE$162,2,0),\"\")","v":"Straddle 'Russian' Lever"},null,null,null,{"$f":"IF(ISNUMBER(SEARCH($B$15,BM110)),MAX($BL$8:BL109)+1,0)","v":102},"Straddle 'Russian' Lever",null,null,{"$f":"IFERROR(VLOOKUP(ROWS($BM$9:BM110),$BL$9:$BM$162,2,0),\"\")","v":"Straddle 'Russian' Lever"},null,null,null,{"$f":"IF(ISNUMBER(SEARCH($B$16,BU110)),MAX($BT$8:BT109)+1,0)","v":102},"Straddle 'Russian' Lever",null,null,{"$f":"IFERROR(VLOOKUP(ROWS($BU$9:BU110),$BT$9:$BU$162,2,0),\"\")","v":"Straddle 'Russian' Lever"},null,null,null,{"$f":"IF(ISNUMBER(SEARCH($B$17,CC110)),MAX($CB$8:CB109)+1,0)","v":102},"Straddle 'Russian' Lever",null,null,{"$f":"IFERROR(VLOOKUP(ROWS($CC$9:CC110),$CB$9:$CC$162,2,0),\"\")","v":"Straddle 'Russian' Lever"},null,null,null,{"$f":"IF(ISNUMBER(SEARCH($B$18,CK110)),MAX($CJ$8:CJ109)+1,0)","v":102},"Straddle 'Russian' Lever",null,null,{"$f":"IFERROR(VLOOKUP(ROWS($CK$9:CK110),$CJ$9:$CK$162,2,0),\"\")","v":"Straddle 'Russian' Lever"}]
[null,null,null,null,null,null,null,null,null,null,null,null,null,null,null,{"$f":"IF(ISNUMBER(SEARCH($B$9,Q111)),MAX($P$8:P110)+1,0)","v":103},"Straddle 1/2 Lever lift to Stand",null,null,{"$f":"IFERROR(VLOOKUP(ROWS($Q$9:Q111),$P$9:$Q$162,2,0),\"\")","v":"Straddle 1/2 Lever lift to Stand"},null,null,null,{"$f":"IF(ISNUMBER(SEARCH($B$10,Y111)),MAX($X$8:X110)+1,0)","v":103},"Straddle 1/2 Lever lift to Stand",null,null,{"$f":"IFERROR(VLOOKUP(ROWS($Y$9:Y111),$X$9:$Y$162,2,0),\"\")","v":"Straddle 1/2 Lever lift to Stand"},null,null,null,{"$f":"IF(ISNUMBER(SEARCH($B$11,AG111)),MAX($AF$8:AF110)+1,0)","v":103},"Straddle 1/2 Lever lift to Stand",null,null,{"$f":"IFERROR(VLOOKUP(ROWS($AG$9:AG111),$AF$9:$AG$162,2,0),\"\")","v":"Straddle 1/2 Lever lift to Stand"},null,null,null,{"$f":"IF(ISNUMBER(SEARCH($B$12,AO111)),MAX($AN$8:AN110)+1,0)","v":103},"Straddle 1/2 Lever lift to Stand",null,null,{"$f":"IFERROR(VLOOKUP(ROWS($AO$9:AO111),$AN$9:$AO$162,2,0),\"\")","v":"Straddle 1/2 Lever lift to Stand"},null,null,null,{"$f":"IF(ISNUMBER(SEARCH($B$13,AW111)),MAX($AV$8:AV110)+1,0)","v":103},"Straddle 1/2 Lever lift to Stand",null,null,{"$f":"IFERROR(VLOOKUP(ROWS($AW$9:AW111),$AV$9:$AW$162,2,0),\"\")","v":"Straddle 1/2 Lever lift to Stand"},null,null,null,{"$f":"IF(ISNUMBER(SEARCH($B$14,BE111)),MAX($BD$8:BD110)+1,0)","v":103},"Straddle 1/2 Lever lift to Stand",null,null,{"$f":"IFERROR(VLOOKUP(ROWS($BE$9:BE111),$BD$9:$BE$162,2,0),\"\")","v":"Straddle 1/2 Lever lift to Stand"},null,null,null,{"$f":"IF(ISNUMBER(SEARCH($B$15,BM111)),MAX($BL$8:BL110)+1,0)","v":103},"Straddle 1/2 Lever lift to Stand",null,null,{"$f":"IFERROR(VLOOKUP(ROWS($BM$9:BM111),$BL$9:$BM$162,2,0),\"\")","v":"Straddle 1/2 Lever lift to Stand"},null,null,null,{"$f":"IF(ISNUMBER(SEARCH($B$16,BU111)),MAX($BT$8:BT110)+1,0)","v":103},"Straddle 1/2 Lever lift to Stand",null,null,{"$f":"IFERROR(VLOOKUP(ROWS($BU$9:BU111),$BT$9:$BU$162,2,0),\"\")","v":"Straddle 1/2 Lever lift to Stand"},null,null,null,{"$f":"IF(ISNUMBER(SEARCH($B$17,CC111)),MAX($CB$8:CB110)+1,0)","v":103},"Straddle 1/2 Lever lift to Stand",null,null,{"$f":"IFERROR(VLOOKUP(ROWS($CC$9:CC111),$CB$9:$CC$162,2,0),\"\")","v":"Straddle 1/2 Lever lift to Stand"},null,null,null,{"$f":"IF(ISNUMBER(SEARCH($B$18,CK111)),MAX($CJ$8:CJ110)+1,0)","v":103},"Straddle 1/2 Lever lift to Stand",null,null,{"$f":"IFERROR(VLOOKUP(ROWS($CK$9:CK111),$CJ$9:$CK$162,2,0),\"\")","v":"Straddle 1/2 Lever lift to Stand"}]
[null,null,null,null,null,null,null,null,null,null,null,null,null,null,null,{"$f":"IF(ISNUMBER(SEARCH($B$9,Q112)),MAX($P$8:P111)+1,0)","v":104},"H/stand from straddle stand full turn",null,null,{"$f":"IFERROR(VLOOKUP(ROWS($Q$9:Q112),$P$9:$Q$162,2,0),\"\")","v":"H/stand from straddle stand full turn"},null,null,null,{"$f":"IF(ISNUMBER(SEARCH($B$10,Y112)),MAX($X$8:X111)+1,0)","v":104},"H/stand from straddle stand full turn",null,null,{"$f":"IFERROR(VLOOKUP(ROWS($Y$9:Y112),$X$9:$Y$162,2,0),\"\")","v":"H/stand from straddle stand full turn"},null,null,null,{"$f":"IF(ISNUMBER(SEARCH($B$11,AG112)),MAX($AF$8:AF111)+1,0)","v":104},"H/stand from straddle stand full turn",null,null,{"$f":"IFERROR(VLOOKUP(ROWS($AG$9:AG112),$AF$9:$AG$162,2,0),\"\")","v":"H/stand from straddle stand full turn"},null,null,null,{"$f":"IF(ISNUMBER(SEARCH($B$12,AO112)),MAX($AN$8:AN111)+1,0)","v":104},"H/stand from straddle stand full turn",null,null,{"$f":"IFERROR(VLOOKUP(ROWS($AO$9:AO112),$AN$9:$AO$162,2,0),\"\")","v":"H/stand from straddle stand full turn"},null,null,null,{"$f":"IF(ISNUMBER(SEARCH($B$13,AW112)),MAX($AV$8:AV111)+1,0)","v":104},"H/stand from straddle stand full turn",null,null,{"$f":"IFERROR(VLOOKUP(ROWS($AW$9:AW112),$AV$9:$AW$162,2,0),\"\")","v":"H/stand from straddle stand full turn"},null,null,null,{"$f":"IF(ISNUMBER(SEARCH($B$14,BE112)),MAX($BD$8:BD111)+1,0)","v":104},"H/stand from straddle stand full turn",null,null,{"$f":"IFERROR(VLOOKUP(ROWS($BE$9:BE112),$BD$9:$BE$162,2,0),\"\")","v":"H/stand from straddle stand full turn"},null,null,null,{"$f":"IF(ISNUMBER(SEARCH($B$15,BM112)),MAX($BL$8:BL111)+1,0)","v":104},"H/stand from straddle stand full turn",null,null,{"$f":"IFERROR(VLOOKUP(ROWS($BM$9:BM112),$BL$9:$BM$162,2,0),\"\")","v":"H/stand from straddle stand full turn"},null,null,null,{"$f":"IF(ISNUMBER(SEARCH($B$16,BU112)),MAX($BT$8:BT111)+1,0)","v":104},"H/stand from straddle stand full turn",null,null,{"$f":"IFERROR(VLOOKUP(ROWS($BU$9:BU112),$BT$9:$BU$162,2,0),\"\")","v":"H/stand from straddle stand full turn"},null,null,null,{"$f":"IF(ISNUMBER(SEARCH($B$17,CC112)),MAX($CB$8:CB111)+1,0)","v":104},"H/stand from straddle stand full turn",null,null,{"$f":"IFERROR(VLOOKUP(ROWS($CC$9:CC112),$CB$9:$CC$162,2,0),\"\")","v":"H/stand from straddle stand full turn"},null,null,null,{"$f":"IF(ISNUMBER(SEARCH($B$18,CK112)),MAX($CJ$8:CJ111)+1,0)","v":104},"H/stand from straddle stand full turn",null,null,{"$f":"IFERROR(VLOOKUP(ROWS($CK$9:CK112),$CJ$9:$CK$162,2,0),\"\")","v":"H/stand from straddle stand full turn"}]
[null,null,null,null,null,null,null,null,null,null,null,null,null,null,null,{"$f":"IF(ISNUMBER(SEARCH($B$9,Q113)),MAX($P$8:P112)+1,0)","v":105},"H/stand lower to Straddle 1/2 Lever",null,null,{"$f":"IFERROR(VLOOKUP(ROWS($Q$9:Q113),$P$9:$Q$162,2,0),\"\")","v":"H/stand lower to Straddle 1/2 Lever"},null,null,null,{"$f":"IF(ISNUMBER(SEARCH($B$10,Y113)),MAX($X$8:X112)+1,0)","v":105},"H/stand lower to Straddle 1/2 Lever",null,null,{"$f":"IFERROR(VLOOKUP(ROWS($Y$9:Y113),$X$9:$Y$162,2,0),\"\")","v":"H/stand lower to Straddle 1/2 Lever"},null,null,null,{"$f":"IF(ISNUMBER(SEARCH($B$11,AG113)),MAX($AF$8:AF112)+1,0)","v":105},"H/stand lower to Straddle 1/2 Lever",null,null,{"$f":"IFERROR(VLOOKUP(ROWS($AG$9:AG113),$AF$9:$AG$162,2,0),\"\")","v":"H/stand lower to Straddle 1/2 Lever"},null,null,null,{"$f":"IF(ISNUMBER(SEARCH($B$12,AO113)),MAX($AN$8:AN112)+1,0)","v":105},"H/stand lower to Straddle 1/2 Lever",null,null,{"$f":"IFERROR(VLOOKUP(ROWS($AO$9:AO113),$AN$9:$AO$162,2,0),\"\")","v":"H/stand lower to Straddle 1/2 Lever"},null,null,null,{"$f":"IF(ISNUMBER(SEARCH($B$13,AW113)),MAX($AV$8:AV112)+1,0)","v":105},"H/stand lower to Straddle 1/2 Lever",null,null,{"$f":"IFERROR(VLOOKUP(ROWS($AW$9:AW113),$AV$9:$AW$162,2,0),\"\")","v":"H/stand lower to Straddle 1/2 Lever"},null,null,null,{"$f":"IF(ISNUMBER(SEARCH($B$14,BE113)),MAX($BD$8:BD112)+1,0)","v":105},"H/stand lower to Straddle 1/2 Lever",null,null,{"$f":"IFERROR(VLOOKUP(ROWS($BE$9:BE113),$BD$9:$BE$162,2,0),\"\")","v":"H/stand lower to Straddle 1/2 Lever"},null,null,null,{"$f":"IF(ISNUMBER(SEARCH($B$15,BM113)),MAX($BL$8:BL112)+1,0)","v":105},"H/stand lower to Straddle 1/2 Lever",null,null,{"$f":"IFERROR(VLOOKUP(ROWS($BM$9:BM113),$BL$9:$BM$162,2,0),\"\")","v":"H/stand lower to Straddle 1/2 Lever"},null,null,null,{"$f":"IF(ISNUMBER(SEARCH($B$16,BU113)),MAX($BT$8:BT112)+1,0)","v":105},"H/stand lower to Straddle 1/2 Lever",null,null,{"$f":"IFERROR(VLOOKUP(ROWS($BU$9:BU113),$BT$9:$BU$162,2,0),\"\")","v":"H/stand lower to Straddle 1/2 Lever"},null,null,null,{"$f":"IF(ISNUMBER(SEARCH($B$17,CC113)),MAX($CB$8:CB112)+1,0)","v":105},"H/stand lower to Straddle 1/2 Lever",null,null,{"$f":"IFERROR(VLOOKUP(ROWS($CC$9:CC113),$CB$9:$CC$162,2,0),\"\")","v":"H/stand lower to Straddle 1/2 Lever"},null,null,null,{"$f":"IF(ISNUMBER(SEARCH($B$18,CK113)),MAX($CJ$8:CJ112)+1,0)","v":105},"H/stand lower to Straddle 1/2 Lever",null,null,{"$f":"IFERROR(VLOOKUP(ROWS($CK$9:CK113),$CJ$9:$CK$162,2,0),\"\")","v":"H/stand lower to Straddle 1/2 Lever"}]
[null,null,null,null,null,null,null,null,null,null,null,null,null,null,null,{"$f":"IF(ISNUMBER(SEARCH($B$9,Q114)),MAX($P$8:P113)+1,0)","v":106},"Chest Roll to Bent Arms Handstand",null,null,{"$f":"IFERROR(VLOOKUP(ROWS($Q$9:Q114),$P$9:$Q$162,2,0),\"\")","v":"Chest Roll to Bent Arms Handstand"},null,null,null,{"$f":"IF(ISNUMBER(SEARCH($B$10,Y114)),MAX($X$8:X113)+1,0)","v":106},"Chest Roll to Bent Arms Handstand",null,null,{"$f":"IFERROR(VLOOKUP(ROWS($Y$9:Y114),$X$9:$Y$162,2,0),\"\")","v":"Chest Roll to Bent Arms Handstand"},null,null,null,{"$f":"IF(ISNUMBER(SEARCH($B$11,AG114)),MAX($AF$8:AF113)+1,0)","v":106},"Chest Roll to Bent Arms Handstand",null,null,{"$f":"IFERROR(VLOOKUP(ROWS($AG$9:AG114),$AF$9:$AG$162,2,0),\"\")","v":"Chest Roll to Bent Arms Handstand"},null,null,null,{"$f":"IF(ISNUMBER(SEARCH($B$12,AO114)),MAX($AN$8:AN113)+1,0)","v":106},"Chest Roll to Bent Arms Handstand",null,null,{"$f":"IFERROR(VLOOKUP(ROWS($AO$9:AO114),$AN$9:$AO$162,2,0),\"\")","v":"Chest Roll to Bent Arms Handstand"},null,null,null,{"$f":"IF(ISNUMBER(SEARCH($B$13,AW114)),MAX($AV$8:AV113)+1,0)","v":106},"Chest Roll to Bent Arms Handstand",null,null,{"$f":"IFERROR(VLOOKUP(ROWS($AW$9:AW114),$AV$9:$AW$162,2,0),\"\")","v":"Chest Roll to Bent Arms Handstand"},null,null,null,{"$f":"IF(ISNUMBER(SEARCH($B$14,BE114)),MAX($BD$8:BD113)+1,0)","v":106},"Chest Roll to Bent Arms Handstand",null,null,{"$f":"IFERROR(VLOOKUP(ROWS($BE$9:BE114),$BD$9:$BE$162,2,0),\"\")","v":"Chest Roll to Bent Arms Handstand"},null,null,null,{"$f":"IF(ISNUMBER(SEARCH($B$15,BM114)),MAX($BL$8:BL113)+1,0)","v":106},"Chest Roll to Bent Arms Handstand",null,null,{"$f":"IFERROR(VLOOKUP(ROWS($BM$9:BM114),$BL$9:$BM$162,2,0),\"\")","v":"Chest Roll to Bent Arms Handstand"},null,null,null,{"$f":"IF(ISNUMBER(SEARCH($B$16,BU114)),MAX($BT$8:BT113)+1,0)","v":106},"Chest Roll to Bent Arms Handstand",null,null,{"$f":"IFERROR(VLOOKUP(ROWS($BU$9:BU114),$BT$9:$BU$162,2,0),\"\")","v":"Chest Roll to Bent Arms Handstand"},null,null,null,{"$f":"IF(ISNUMBER(SEARCH($B$17,CC114)),MAX($CB$8:CB113)+1,0)","v":106},"Chest Roll to Bent Arms Handstand",null,null,{"$f":"IFERROR(VLOOKUP(ROWS($CC$9:CC114),$CB$9:$CC$162,2,0),\"\")","v":"Chest Roll to Bent Arms Handstand"},null,null,null,{"$f":"IF(ISNUMBER(SEARCH($B$18,CK114)),MAX($CJ$8:CJ113)+1,0)","v":106},"Chest Roll to Bent Arms Handstand",null,null,{"$f":"IFERROR(VLOOKUP(ROWS($CK$9:CK114),$CJ$9:$CK$162,2,0),\"\")","v":"Chest Roll to Bent Arms Handstand"}]
[null,null,null,null,null,null,null,null,null,null,null,null,null,null,null,{"$f":"IF(ISNUMBER(SEARCH($B$9,Q115)),MAX($P$8:P114)+1,0)","v":107},"H/stand FR piked exit (straight arms)",null,null,{"$f":"IFERROR(VLOOKUP(ROWS($Q$9:Q115),$P$9:$Q$162,2,0),\"\")","v":"H/stand FR piked exit (straight arms)"},null,null,null,{"$f":"IF(ISNUMBER(SEARCH($B$10,Y115)),MAX($X$8:X114)+1,0)","v":107},"H/stand FR piked exit (straight arms)",null,null,{"$f":"IFERROR(VLOOKUP(ROWS($Y$9:Y115),$X$9:$Y$162,2,0),\"\")","v":"H/stand FR piked exit (straight arms)"},null,null,null,{"$f":"IF(ISNUMBER(SEARCH($B$11,AG115)),MAX($AF$8:AF114)+1,0)","v":107},"H/stand FR piked exit (straight arms)",null,null,{"$f":"IFERROR(VLOOKUP(ROWS($AG$9:AG115),$AF$9:$AG$162,2,0),\"\")","v":"H/stand FR piked exit (straight arms)"},null,null,null,{"$f":"IF(ISNUMBER(SEARCH($B$12,AO115)),MAX($AN$8:AN114)+1,0)","v":107},"H/stand FR piked exit (straight arms)",null,null,{"$f":"IFERROR(VLOOKUP(ROWS($AO$9:AO115),$AN$9:$AO$162,2,0),\"\")","v":"H/stand FR piked exit (straight arms)"},null,null,null,{"$f":"IF(ISNUMBER(SEARCH($B$13,AW115)),MAX($AV$8:AV114)+1,0)","v":107},"H/stand FR piked exit (straight arms)",null,null,{"$f":"IFERROR(VLOOKUP(ROWS($AW$9:AW115),$AV$9:$AW$162,2,0),\"\")","v":"H/stand FR piked exit (straight arms)"},null,null,null,{"$f":"IF(ISNUMBER(SEARCH($B$14,BE115)),MAX($BD$8:BD114)+1,0)","v":107},"H/stand FR piked exit (straight arms)",null,null,{"$f":"IFERROR(VLOOKUP(ROWS($BE$9:BE115),$BD$9:$BE$162,2,0),\"\")","v":"H/stand FR piked exit (straight arms)"},null,null,null,{"$f":"IF(ISNUMBER(SEARCH($B$15,BM115)),MAX($BL$8:BL114)+1,0)","v":107},"H/stand FR piked exit (straight arms)",null,null,{"$f":"IFERROR(VLOOKUP(ROWS($BM$9:BM115),$BL$9:$BM$162,2,0),\"\")","v":"H/stand FR piked exit (straight arms)"},null,null,null,{"$f":"IF(ISNUMBER(SEARCH($B$16,BU115)),MAX($BT$8:BT114)+1,0)","v":107},"H/stand FR piked exit (straight arms)",null,null,{"$f":"IFERROR(VLOOKUP(ROWS($BU$9:BU115),$BT$9:$BU$162,2,0),\"\")","v":"H/stand FR piked exit (straight arms)"},null,null,null,{"$f":"IF(ISNUMBER(SEARCH($B$17,CC115)),MAX($CB$8:CB114)+1,0)","v":107},"H/stand FR piked exit (straight arms)",null,null,{"$f":"IFERROR(VLOOKUP(ROWS($CC$9:CC115),$CB$9:$CC$162,2,0),\"\")","v":"H/stand FR piked exit (straight arms)"},null,null,null,{"$f":"IF(ISNUMBER(SEARCH($B$18,CK115)),MAX($CJ$8:CJ114)+1,0)","v":107},"H/stand FR piked exit (straight arms)",null,null,{"$f":"IFERROR(VLOOKUP(ROWS($CK$9:CK115),$CJ$9:$CK$162,2,0),\"\")","v":"H/stand FR piked exit (straight arms)"}]
[null,null,null,null,null,null,null,null,null,null,null,null,null,null,null,{"$f":"IF(ISNUMBER(SEARCH($B$9,Q116)),MAX($P$8:P115)+1,0)","v":108},"B Roll to h/stand (straight arms)",null,null,{"$f":"IFERROR(VLOOKUP(ROWS($Q$9:Q116),$P$9:$Q$162,2,0),\"\")","v":"B Roll to h/stand (straight arms)"},null,null,null,{"$f":"IF(ISNUMBER(SEARCH($B$10,Y116)),MAX($X$8:X115)+1,0)","v":108},"B Roll to h/stand (straight arms)",null,null,{"$f":"IFERROR(VLOOKUP(ROWS($Y$9:Y116),$X$9:$Y$162,2,0),\"\")","v":"B Roll to h/stand (straight arms)"},null,null,null,{"$f":"IF(ISNUMBER(SEARCH($B$11,AG116)),MAX($AF$8:AF115)+1,0)","v":108},"B Roll to h/stand (straight arms)",null,null,{"$f":"IFERROR(VLOOKUP(ROWS($AG$9:AG116),$AF$9:$AG$162,2,0),\"\")","v":"B Roll to h/stand (straight arms)"},null,null,null,{"$f":"IF(ISNUMBER(SEARCH($B$12,AO116)),MAX($AN$8:AN115)+1,0)","v":108},"B Roll to h/stand (straight arms)",null,null,{"$f":"IFERROR(VLOOKUP(ROWS($AO$9:AO116),$AN$9:$AO$162,2,0),\"\")","v":"B Roll to h/stand (straight arms)"},null,null,null,{"$f":"IF(ISNUMBER(SEARCH($B$13,AW116)),MAX($AV$8:AV115)+1,0)","v":108},"B Roll to h/stand (straight arms)",null,null,{"$f":"IFERROR(VLOOKUP(ROWS($AW$9:AW116),$AV$9:$AW$162,2,0),\"\")","v":"B Roll to h/stand (straight arms)"},null,null,null,{"$f":"IF(ISNUMBER(SEARCH($B$14,BE116)),MAX($BD$8:BD115)+1,0)","v":108},"B Roll to h/stand (straight arms)",null,null,{"$f":"IFERROR(VLOOKUP(ROWS($BE$9:BE116),$BD$9:$BE$162,2,0),\"\")","v":"B Roll to h/stand (straight arms)"},null,null,null,{"$f":"IF(ISNUMBER(SEARCH($B$15,BM116)),MAX($BL$8:BL115)+1,0)","v":108},"B Roll to h/stand (straight arms)",null,null,{"$f":"IFERROR(VLOOKUP(ROWS($BM$9:BM116),$BL$9:$BM$162,2,0),\"\")","v":"B Roll to h/stand (straight arms)"},null,null,null,{"$f":"IF(ISNUMBER(SEARCH($B$16,BU116)),MAX($BT$8:BT115)+1,0)","v":108},"B Roll to h/stand (straight arms)",null,null,{"$f":"IFERROR(VLOOKUP(ROWS($BU$9:BU116),$BT$9:$BU$162,2,0),\"\")","v":"B Roll to h/stand (straight arms)"},null,null,null,{"$f":"IF(ISNUMBER(SEARCH($B$17,CC116)),MAX($CB$8:CB115)+1,0)","v":108},"B Roll to h/stand (straight arms)",null,null,{"$f":"IFERROR(VLOOKUP(ROWS($CC$9:CC116),$CB$9:$CC$162,2,0),\"\")","v":"B Roll to h/stand (straight arms)"},null,null,null,{"$f":"IF(ISNUMBER(SEARCH($B$18,CK116)),MAX($CJ$8:CJ115)+1,0)","v":108},"B Roll to h/stand (straight arms)",null,null,{"$f":"IFERROR(VLOOKUP(ROWS($CK$9:CK116),$CJ$9:$CK$162,2,0),\"\")","v":"B Roll to h/stand (straight arms)"}]
[null,null,null,null,null,null,null,null,null,null,null,null,null,null,null,{"$f":"IF(ISNUMBER(SEARCH($B$9,Q117)),MAX($P$8:P116)+1,0)","v":109},"Handstand 1½ pirouette",null,null,{"$f":"IFERROR(VLOOKUP(ROWS($Q$9:Q117),$P$9:$Q$162,2,0),\"\")","v":"Handstand 1½ pirouette"},null,null,null,{"$f":"IF(ISNUMBER(SEARCH($B$10,Y117)),MAX($X$8:X116)+1,0)","v":109},"Handstand 1½ pirouette",null,null,{"$f":"IFERROR(VLOOKUP(ROWS($Y$9:Y117),$X$9:$Y$162,2,0),\"\")","v":"Handstand 1½ pirouette"},null,null,null,{"$f":"IF(ISNUMBER(SEARCH($B$11,AG117)),MAX($AF$8:AF116)+1,0)","v":109},"Handstand 1½ pirouette",null,null,{"$f":"IFERROR(VLOOKUP(ROWS($AG$9:AG117),$AF$9:$AG$162,2,0),\"\")","v":"Handstand 1½ pirouette"},null,null,null,{"$f":"IF(ISNUMBER(SEARCH($B$12,AO117)),MAX($AN$8:AN116)+1,0)","v":109},"Handstand 1½ pirouette",null,null,{"$f":"IFERROR(VLOOKUP(ROWS($AO$9:AO117),$AN$9:$AO$162,2,0),\"\")","v":"Handstand 1½ pirouette"},null,null,null,{"$f":"IF(ISNUMBER(SEARCH($B$13,AW117)),MAX($AV$8:AV116)+1,0)","v":109},"Handstand 1½ pirouette",null,null,{"$f":"IFERROR(VLOOKUP(ROWS($AW$9:AW117),$AV$9:$AW$162,2,0),\"\")","v":"Handstand 1½ pirouette"},null,null,null,{"$f":"IF(ISNUMBER(SEARCH($B$14,BE117)),MAX($BD$8:BD116)+1,0)","v":109},"Handstand 1½ pirouette",null,null,{"$f":"IFERROR(VLOOKUP(ROWS($BE$9:BE117),$BD$9:$BE$162,2,0),\"\")","v":"Handstand 1½ pirouette"},null,null,null,{"$f":"IF(ISNUMBER(SEARCH($B$15,BM117)),MAX($BL$8:BL116)+1,0)","v":109},"Handstand 1½ pirouette",null,null,{"$f":"IFERROR(VLOOKUP(ROWS($BM$9:BM117),$BL$9:$BM$162,2,0),\"\")","v":"Handstand 1½ pirouette"},null,null,null,{"$f":"IF(ISNUMBER(SEARCH($B$16,BU117)),MAX($BT$8:BT116)+1,0)","v":109},"Handstand 1½ pirouette",null,null,{"$f":"IFERROR(VLOOKUP(ROWS($BU$9:BU117),$BT$9:$BU$162,2,0),\"\")","v":"Handstand 1½ pirouette"},null,null,null,{"$f":"IF(ISNUMBER(SEARCH($B$17,CC117)),MAX($CB$8:CB116)+1,0)","v":109},"Handstand 1½ pirouette",null,null,{"$f":"IFERROR(VLOOKUP(ROWS($CC$9:CC117),$CB$9:$CC$162,2,0),\"\")","v":"Handstand 1½ pirouette"},null,null,null,{"$f":"IF(ISNUMBER(SEARCH($B$18,CK117)),MAX($CJ$8:CJ116)+1,0)","v":109},"Handstand 1½ pirouette",null,null,{"$f":"IFERROR(VLOOKUP(ROWS($CK$9:CK117),$CJ$9:$CK$162,2,0),\"\")","v":"Handstand 1½ pirouette"}]
[null,null,null,null,null,null,null,null,null,null,null,null,null,null,null,{"$f":"IF(ISNUMBER(SEARCH($B$9,Q118)),MAX($P$8:P117)+1,0)","v":110},"Tic toc",null,null,{"$f":"IFERROR(VLOOKUP(ROWS($Q$9:Q118),$P$9:$Q$162,2,0),\"\")","v":"Tic toc"},null,null,null,{"$f":"IF(ISNUMBER(SEARCH($B$10,Y118)),MAX($X$8:X117)+1,0)","v":110},"Tic toc",null,null,{"$f":"IFERROR(VLOOKUP(ROWS($Y$9:Y118),$X$9:$Y$162,2,0),\"\")","v":"Tic toc"},null,null,null,{"$f":"IF(ISNUMBER(SEARCH($B$11,AG118)),MAX($AF$8:AF117)+1,0)","v":110},"Tic toc",null,null,{"$f":"IFERROR(VLOOKUP(ROWS($AG$9:AG118),$AF$9:$AG$162,2,0),\"\")","v":"Tic toc"},null,null,null,{"$f":"IF(ISNUMBER(SEARCH($B$12,AO118)),MAX($AN$8:AN117)+1,0)","v":110},"Tic toc",null,null,{"$f":"IFERROR(VLOOKUP(ROWS($AO$9:AO118),$AN$9:$AO$162,2,0),\"\")","v":"Tic toc"},null,null,null,{"$f":"IF(ISNUMBER(SEARCH($B$13,AW118)),MAX($AV$8:AV117)+1,0)","v":110},"Tic toc",null,null,{"$f":"IFERROR(VLOOKUP(ROWS($AW$9:AW118),$AV$9:$AW$162,2,0),\"\")","v":"Tic toc"},null,null,null,{"$f":"IF(ISNUMBER(SEARCH($B$14,BE118)),MAX($BD$8:BD117)+1,0)","v":110},"Tic toc",null,null,{"$f":"IFERROR(VLOOKUP(ROWS($BE$9:BE118),$BD$9:$BE$162,2,0),\"\")","v":"Tic toc"},null,null,null,{"$f":"IF(ISNUMBER(SEARCH($B$15,BM118)),MAX($BL$8:BL117)+1,0)","v":110},"Tic toc",null,null,{"$f":"IFERROR(VLOOKUP(ROWS($BM$9:BM118),$BL$9:$BM$162,2,0),\"\")","v":"Tic toc"},null,null,null,{"$f":"IF(ISNUMBER(SEARCH($B$16,BU118)),MAX($BT$8:BT117)+1,0)","v":110},"Tic toc",null,null,{"$f":"IFERROR(VLOOKUP(ROWS($BU$9:BU118),$BT$9:$BU$162,2,0),\"\")","v":"Tic toc"},null,null,null,{"$f":"IF(ISNUMBER(SEARCH($B$17,CC118)),MAX($CB$8:CB117)+1,0)","v":110},"Tic toc",null,null,{"$f":"IFERROR(VLOOKUP(ROWS($CC$9:CC118),$CB$9:$CC$162,2,0),\"\")","v":"Tic toc"},null,null,null,{"$f":"IF(ISNUMBER(SEARCH($B$18,CK118)),MAX($CJ$8:CJ117)+1,0)","v":110},"Tic toc",null,null,{"$f":"IFERROR(VLOOKUP(ROWS($CK$9:CK118),$CJ$9:$CK$162,2,0),\"\")","v":"Tic toc"}]
[null,null,null,null,null,null,null,null,null,null,null,null,null,null,null,{"$f":"IF(ISNUMBER(SEARCH($B$9,Q119)),MAX($P$8:P118)+1,0)","v":111},"Flyspring",null,null,{"$f":"IFERROR(VLOOKUP(ROWS($Q$9:Q119),$P$9:$Q$162,2,0),\"\")","v":"Flyspring"},null,null,null,{"$f":"IF(ISNUMBER(SEARCH($B$10,Y119)),MAX($X$8:X118)+1,0)","v":111},"Flyspring",null,null,{"$f":"IFERROR(VLOOKUP(ROWS($Y$9:Y119),$X$9:$Y$162,2,0),\"\")","v":"Flyspring"},null,null,null,{"$f":"IF(ISNUMBER(SEARCH($B$11,AG119)),MAX($AF$8:AF118)+1,0)","v":111},"Flyspring",null,null,{"$f":"IFERROR(VLOOKUP(ROWS($AG$9:AG119),$AF$9:$AG$162,2,0),\"\")","v":"Flyspring"},null,null,null,{"$f":"IF(ISNUMBER(SEARCH($B$12,AO119)),MAX($AN$8:AN118)+1,0)","v":111},"Flyspring",null,null,{"$f":"IFERROR(VLOOKUP(ROWS($AO$9:AO119),$AN$9:$AO$162,2,0),\"\")","v":"Flyspring"},null,null,null,{"$f":"IF(ISNUMBER(SEARCH($B$13,AW119)),MAX($AV$8:AV118)+1,0)","v":111},"Flyspring",null,null,{"$f":"IFERROR(VLOOKUP(ROWS($AW$9:AW119),$AV$9:$AW$162,2,0),\"\")","v":"Flyspring"},null,null,null,{"$f":"IF(ISNUMBER(SEARCH($B$14,BE119)),MAX($BD$8:BD118)+1,0)","v":111},"Flyspring",null,null,{"$f":"IFERROR(VLOOKUP(ROWS($BE$9:BE119),$BD$9:$BE$162,2,0),\"\")","v":"Flyspring"},null,null,null,{"$f":"IF(ISNUMBER(SEARCH($B$15,BM119)),MAX($BL$8:BL118)+1,0)","v":111},"Flyspring",null,null,{"$f":"IFERROR(VLOOKUP(ROWS($BM$9:BM119),$BL$9:$BM$162,2,0),\"\")","v":"Flyspring"},null,null,null,{"$f":"IF(ISNUMBER(SEARCH($B$16,BU119)),MAX($BT$8:BT118)+1,0)","v":111},"Flyspring",null,null,{"$f":"IFERROR(VLOOKUP(ROWS($BU$9:BU119),$BT$9:$BU$162,2,0),\"\")","v":"Flyspring"},null,null,null,{"$f":"IF(ISNUMBER(SEARCH($B$17,CC119)),MAX($CB$8:CB118)+1,0)","v":111},"Flyspring",null,null,{"$f":"IFERROR(VLOOKUP(ROWS($CC$9:CC119),$CB$9:$CC$162,2,0),\"\")","v":"Flyspring"},null,null,null,{"$f":"IF(ISNUMBER(SEARCH($B$18,CK119)),MAX($CJ$8:CJ118)+1,0)","v":111},"Flyspring",null,null,{"$f":"IFERROR(VLOOKUP(ROWS($CK$9:CK119),$CJ$9:$CK$162,2,0),\"\")","v":"Flyspring"}]
[null,null,null,null,null,null,null,null,null,null,null,null,null,null,null,{"$f":"IF(ISNUMBER(SEARCH($B$9,Q120)),MAX($P$8:P119)+1,0)","v":112},"Tucked Front Salto",null,null,{"$f":"IFERROR(VLOOKUP(ROWS($Q$9:Q120),$P$9:$Q$162,2,0),\"\")","v":"Tucked Front Salto"},null,null,null,{"$f":"IF(ISNUMBER(SEARCH($B$10,Y120)),MAX($X$8:X119)+1,0)","v":112},"Tucked Front Salto",null,null,{"$f":"IFERROR(VLOOKUP(ROWS($Y$9:Y120),$X$9:$Y$162,2,0),\"\")","v":"Tucked Front Salto"},null,null,null,{"$f":"IF(ISNUMBER(SEARCH($B$11,AG120)),MAX($AF$8:AF119)+1,0)","v":112},"Tucked Front Salto",null,null,{"$f":"IFERROR(VLOOKUP(ROWS($AG$9:AG120),$AF$9:$AG$162,2,0),\"\")","v":"Tucked Front Salto"},null,null,null,{"$f":"IF(ISNUMBER(SEARCH($B$12,AO120)),MAX($AN$8:AN119)+1,0)","v":112},"Tucked Front Salto",null,null,{"$f":"IFERROR(VLOOKUP(ROWS($AO$9:AO120),$AN$9:$AO$162,2,0),\"\")","v":"Tucked Front Salto"},null,null,null,{"$f":"IF(ISNUMBER(SEARCH($B$13,AW120)),MAX($AV$8:AV119)+1,0)","v":112},"Tucked Front Salto",null,null,{"$f":"IFERROR(VLOOKUP(ROWS($AW$9:AW120),$AV$9:$AW$162,2,0),\"\")","v":"Tucked Front Salto"},null,null,null,{"$f":"IF(ISNUMBER(SEARCH($B$14,BE120)),MAX($BD$8:BD119)+1,0)","v":112},"Tucked Front Salto",null,null,{"$f":"IFERROR(VLOOKUP(ROWS($BE$9:BE120),$BD$9:$BE$162,2,0),\"\")","v":"Tucked Front Salto"},null,null,null,{"$f":"IF(ISNUMBER(SEARCH($B$15,BM120)),MAX($BL$8:BL119)+1,0)","v":112},"Tucked Front Salto",null,null,{"$f":"IFERROR(VLOOKUP(ROWS($BM$9:BM120),$BL$9:$BM$162,2,0),\"\")","v":"Tucked Front Salto"},null,null,null,{"$f":"IF(ISNUMBER(SEARCH($B$16,BU120)),MAX($BT$8:BT119)+1,0)","v":112},"Tucked Front Salto",null,null,{"$f":"IFERROR(VLOOKUP(ROWS($BU$9:BU120),$BT$9:$BU$162,2,0),\"\")","v":"Tucked Front Salto"},null,null,null,{"$f":"IF(ISNUMBER(SEARCH($B$17,CC120)),MAX($CB$8:CB119)+1,0)","v":112},"Tucked Front Salto",null,null,{"$f":"IFERROR(VLOOKUP(ROWS($CC$9:CC120),$CB$9:$CC$162,2,0),\"\")","v":"Tucked Front Salto"},null,null,null,{"$f":"IF(ISNUMBER(SEARCH($B$18,CK120)),MAX($CJ$8:CJ119)+1,0)","v":112},"Tucked Front Salto",null,null,{"$f":"IFERROR(VLOOKUP(ROWS($CK$9:CK120),$CJ$9:$CK$162,2,0),\"\")","v":"Tucked Front Salto"}]
[null,null,null,null,null,null,null,null,null,null,null,null,null,null,null,{"$f":"IF(ISNUMBER(SEARCH($B$9,Q121)),MAX($P$8:P120)+1,0)","v":113},"Tucked Back Salto FS",null,null,{"$f":"IFERROR(VLOOKUP(ROWS($Q$9:Q121),$P$9:$Q$162,2,0),\"\")","v":"Tucked Back Salto FS"},null,null,null,{"$f":"IF(ISNUMBER(SEARCH($B$10,Y121)),MAX($X$8:X120)+1,0)","v":113},"Tucked Back Salto FS",null,null,{"$f":"IFERROR(VLOOKUP(ROWS($Y$9:Y121),$X$9:$Y$162,2,0),\"\")","v":"Tucked Back Salto FS"},null,null,null,{"$f":"IF(ISNUMBER(SEARCH($B$11,AG121)),MAX($AF$8:AF120)+1,0)","v":113},"Tucked Back Salto FS",null,null,{"$f":"IFERROR(VLOOKUP(ROWS($AG$9:AG121),$AF$9:$AG$162,2,0),\"\")","v":"Tucked Back Salto FS"},null,null,null,{"$f":"IF(ISNUMBER(SEARCH($B$12,AO121)),MAX($AN$8:AN120)+1,0)","v":113},"Tucked Back Salto FS",null,null,{"$f":"IFERROR(VLOOKUP(ROWS($AO$9:AO121),$AN$9:$AO$162,2,0),\"\")","v":"Tucked Back Salto FS"},null,null,null,{"$f":"IF(ISNUMBER(SEARCH($B$13,AW121)),MAX($AV$8:AV120)+1,0)","v":113},"Tucked Back Salto FS",null,null,{"$f":"IFERROR(VLOOKUP(ROWS($AW$9:AW121),$AV$9:$AW$162,2,0),\"\")","v":"Tucked Back Salto FS"},null,null,null,{"$f":"IF(ISNUMBER(SEARCH($B$14,BE121)),MAX($BD$8:BD120)+1,0)","v":113},"Tucked Back Salto FS",null,null,{"$f":"IFERROR(VLOOKUP(ROWS($BE$9:BE121),$BD$9:$BE$162,2,0),\"\")","v":"Tucked Back Salto FS"},null,null,null,{"$f":"IF(ISNUMBER(SEARCH($B$15,BM121)),MAX($BL$8:BL120)+1,0)","v":113},"Tucked Back Salto FS",null,null,{"$f":"IFERROR(VLOOKUP(ROWS($BM$9:BM121),$BL$9:$BM$162,2,0),\"\")","v":"Tucked Back Salto FS"},null,null,null,{"$f":"IF(ISNUMBER(SEARCH($B$16,BU121)),MAX($BT$8:BT120)+1,0)","v":113},"Tucked Back Salto FS",null,null,{"$f":"IFERROR(VLOOKUP(ROWS($BU$9:BU121),$BT$9:$BU$162,2,0),\"\")","v":"Tucked Back Salto FS"},null,null,null,{"$f":"IF(ISNUMBER(SEARCH($B$17,CC121)),MAX($CB$8:CB120)+1,0)","v":113},"Tucked Back Salto FS",null,null,{"$f":"IFERROR(VLOOKUP(ROWS($CC$9:CC121),$CB$9:$CC$162,2,0),\"\")","v":"Tucked Back Salto FS"},null,null,null,{"$f":"IF(ISNUMBER(SEARCH($B$18,CK121)),MAX($CJ$8:CJ120)+1,0)","v":113},"Tucked Back Salto FS",null,null,{"$f":"IFERROR(VLOOKUP(ROWS($CK$9:CK121),$CJ$9:$CK$162,2,0),\"\")","v":"Tucked Back Salto FS"}]
[null,null,null,null,null,null,null,null,null,null,null,null,null,null,null,{"$f":"IF(ISNUMBER(SEARCH($B$9,Q122)),MAX($P$8:P121)+1,0)","v":114},"Free Cartwheel",null,null,{"$f":"IFERROR(VLOOKUP(ROWS($Q$9:Q122),$P$9:$Q$162,2,0),\"\")","v":"Free Cartwheel"},null,null,null,{"$f":"IF(ISNUMBER(SEARCH($B$10,Y122)),MAX($X$8:X121)+1,0)","v":114},"Free Cartwheel",null,null,{"$f":"IFERROR(VLOOKUP(ROWS($Y$9:Y122),$X$9:$Y$162,2,0),\"\")","v":"Free Cartwheel"},null,null,null,{"$f":"IF(ISNUMBER(SEARCH($B$11,AG122)),MAX($AF$8:AF121)+1,0)","v":114},"Free Cartwheel",null,null,{"$f":"IFERROR(VLOOKUP(ROWS($AG$9:AG122),$AF$9:$AG$162,2,0),\"\")","v":"Free Cartwheel"},null,null,null,{"$f":"IF(ISNUMBER(SEARCH($B$12,AO122)),MAX($AN$8:AN121)+1,0)","v":114},"Free Cartwheel",null,null,{"$f":"IFERROR(VLOOKUP(ROWS($AO$9:AO122),$AN$9:$AO$162,2,0),\"\")","v":"Free Cartwheel"},null,null,null,{"$f":"IF(ISNUMBER(SEARCH($B$13,AW122)),MAX($AV$8:AV121)+1,0)","v":114},"Free Cartwheel",null,null,{"$f":"IFERROR(VLOOKUP(ROWS($AW$9:AW122),$AV$9:$AW$162,2,0),\"\")","v":"Free Cartwheel"},null,null,null,{"$f":"IF(ISNUMBER(SEARCH($B$14,BE122)),MAX($BD$8:BD121)+1,0)","v":114},"Free Cartwheel",null,null,{"$f":"IFERROR(VLOOKUP(ROWS($BE$9:BE122),$BD$9:$BE$162,2,0),\"\")","v":"Free Cartwheel"},null,null,null,{"$f":"IF(ISNUMBER(SEARCH($B$15,BM122)),MAX($BL$8:BL121)+1,0)","v":114},"Free Cartwheel",null,null,{"$f":"IFERROR(VLOOKUP(ROWS($BM$9:BM122),$BL$9:$BM$162,2,0),\"\")","v":"Free Cartwheel"},null,null,null,{"$f":"IF(ISNUMBER(SEARCH($B$16,BU122)),MAX($BT$8:BT121)+1,0)","v":114},"Free Cartwheel",null,null,{"$f":"IFERROR(VLOOKUP(ROWS($BU$9:BU122),$BT$9:$BU$162,2,0),\"\")","v":"Free Cartwheel"},null,null,null,{"$f":"IF(ISNUMBER(SEARCH($B$17,CC122)),MAX($CB$8:CB121)+1,0)","v":114},"Free Cartwheel",null,null,{"$f":"IFERROR(VLOOKUP(ROWS($CC$9:CC122),$CB$9:$CC$162,2,0),\"\")","v":"Free Cartwheel"},null,null,null,{"$f":"IF(ISNUMBER(SEARCH($B$18,CK122)),MAX($CJ$8:CJ121)+1,0)","v":114},"Free Cartwheel",null,null,{"$f":"IFERROR(VLOOKUP(ROWS($CK$9:CK122),$CJ$9:$CK$162,2,0),\"\")","v":"Free Cartwheel"}]
[null,null,null,null,null,null,null,null,null,null,null,null,null,null,null,{"$f":"IF(ISNUMBER(SEARCH($B$9,Q123)),MAX($P$8:P122)+1,0)","v":115},"Free Cartwheel Flick",null,null,{"$f":"IFERROR(VLOOKUP(ROWS($Q$9:Q123),$P$9:$Q$162,2,0),\"\")","v":"Free Cartwheel Flick"},null,null,null,{"$f":"IF(ISNUMBER(SEARCH($B$10,Y123)),MAX($X$8:X122)+1,0)","v":115},"Free Cartwheel Flick",null,null,{"$f":"IFERROR(VLOOKUP(ROWS($Y$9:Y123),$X$9:$Y$162,2,0),\"\")","v":"Free Cartwheel Flick"},null,null,null,{"$f":"IF(ISNUMBER(SEARCH($B$11,AG123)),MAX($AF$8:AF122)+1,0)","v":115},"Free Cartwheel Flick",null,null,{"$f":"IFERROR(VLOOKUP(ROWS($AG$9:AG123),$AF$9:$AG$162,2,0),\"\")","v":"Free Cartwheel Flick"},null,null,null,{"$f":"IF(ISNUMBER(SEARCH($B$12,AO123)),MAX($AN$8:AN122)+1,0)","v":115},"Free Cartwheel Flick",null,null,{"$f":"IFERROR(VLOOKUP(ROWS($AO$9:AO123),$AN$9:$AO$162,2,0),\"\")","v":"Free Cartwheel Flick"},null,null,null,{"$f":"IF(ISNUMBER(SEARCH($B$13,AW123)),MAX($AV$8:AV122)+1,0)","v":115},"Free Cartwheel Flick",null,null,{"$f":"IFERROR(VLOOKUP(ROWS($AW$9:AW123),$AV$9:$AW$162,2,0),\"\")","v":"Free Cartwheel Flick"},null,null,null,{"$f":"IF(ISNUMBER(SEARCH($B$14,BE123)),MAX($BD$8:BD122)+1,0)","v":115},"Free Cartwheel Flick",null,null,{"$f":"IFERROR(VLOOKUP(ROWS($BE$9:BE123),$BD$9:$BE$162,2,0),\"\")","v":"Free Cartwheel Flick"},null,null,null,{"$f":"IF(ISNUMBER(SEARCH($B$15,BM123)),MAX($BL$8:BL122)+1,0)","v":115},"Free Cartwheel Flick",null,null,{"$f":"IFERROR(VLOOKUP(ROWS($BM$9:BM123),$BL$9:$BM$162,2,0),\"\")","v":"Free Cartwheel Flick"},null,null,null,{"$f":"IF(ISNUMBER(SEARCH($B$16,BU123)),MAX($BT$8:BT122)+1,0)","v":115},"Free Cartwheel Flick",null,null,{"$f":"IFERROR(VLOOKUP(ROWS($BU$9:BU123),$BT$9:$BU$162,2,0),\"\")","v":"Free Cartwheel Flick"},null,null,null,{"$f":"IF(ISNUMBER(SEARCH($B$17,CC123)),MAX($CB$8:CB122)+1,0)","v":115},"Free Cartwheel Flick",null,null,{"$f":"IFERROR(VLOOKUP(ROWS($CC$9:CC123),$CB$9:$CC$162,2,0),\"\")","v":"Free Cartwheel Flick"},null,null,null,{"$f":"IF(ISNUMBER(SEARCH($B$18,CK123)),MAX($CJ$8:CJ122)+1,0)","v":115},"Free Cartwheel Flick",null,null,{"$f":"IFERROR(VLOOKUP(ROWS($CK$9:CK123),$CJ$9:$CK$162,2,0),\"\")","v":"Free Cartwheel Flick"}]
[null,null,null,null,null,null,null,null,null,null,null,null,null,null,null,{"$f":"IF(ISNUMBER(SEARCH($B$9,Q124)),MAX($P$8:P123)+1,0)","v":116},"Front Salto to 1 R/O",null,null,{"$f":"IFERROR(VLOOKUP(ROWS($Q$9:Q124),$P$9:$Q$162,2,0),\"\")","v":"Front Salto to 1 R/O"},null,null,null,{"$f":"IF(ISNUMBER(SEARCH($B$10,Y124)),MAX($X$8:X123)+1,0)","v":116},"Front Salto to 1 R/O",null,null,{"$f":"IFERROR(VLOOKUP(ROWS($Y$9:Y124),$X$9:$Y$162,2,0),\"\")","v":"Front Salto to 1 R/O"},null,null,null,{"$f":"IF(ISNUMBER(SEARCH($B$11,AG124)),MAX($AF$8:AF123)+1,0)","v":116},"Front Salto to 1 R/O",null,null,{"$f":"IFERROR(VLOOKUP(ROWS($AG$9:AG124),$AF$9:$AG$162,2,0),\"\")","v":"Front Salto to 1 R/O"},null,null,null,{"$f":"IF(ISNUMBER(SEARCH($B$12,AO124)),MAX($AN$8:AN123)+1,0)","v":116},"Front Salto to 1 R/O",null,null,{"$f":"IFERROR(VLOOKUP(ROWS($AO$9:AO124),$AN$9:$AO$162,2,0),\"\")","v":"Front Salto to 1 R/O"},null,null,null,{"$f":"IF(ISNUMBER(SEARCH($B$13,AW124)),MAX($AV$8:AV123)+1,0)","v":116},"Front Salto to 1 R/O",null,null,{"$f":"IFERROR(VLOOKUP(ROWS($AW$9:AW124),$AV$9:$AW$162,2,0),\"\")","v":"Front Salto to 1 R/O"},null,null,null,{"$f":"IF(ISNUMBER(SEARCH($B$14,BE124)),MAX($BD$8:BD123)+1,0)","v":116},"Front Salto to 1 R/O",null,null,{"$f":"IFERROR(VLOOKUP(ROWS($BE$9:BE124),$BD$9:$BE$162,2,0),\"\")","v":"Front Salto to 1 R/O"},null,null,null,{"$f":"IF(ISNUMBER(SEARCH($B$15,BM124)),MAX($BL$8:BL123)+1,0)","v":116},"Front Salto to 1 R/O",null,null,{"$f":"IFERROR(VLOOKUP(ROWS($BM$9:BM124),$BL$9:$BM$162,2,0),\"\")","v":"Front Salto to 1 R/O"},null,null,null,{"$f":"IF(ISNUMBER(SEARCH($B$16,BU124)),MAX($BT$8:BT123)+1,0)","v":116},"Front Salto to 1 R/O",null,null,{"$f":"IFERROR(VLOOKUP(ROWS($BU$9:BU124),$BT$9:$BU$162,2,0),\"\")","v":"Front Salto to 1 R/O"},null,null,null,{"$f":"IF(ISNUMBER(SEARCH($B$17,CC124)),MAX($CB$8:CB123)+1,0)","v":116},"Front Salto to 1 R/O",null,null,{"$f":"IFERROR(VLOOKUP(ROWS($CC$9:CC124),$CB$9:$CC$162,2,0),\"\")","v":"Front Salto to 1 R/O"},null,null,null,{"$f":"IF(ISNUMBER(SEARCH($B$18,CK124)),MAX($CJ$8:CJ123)+1,0)","v":116},"Front Salto to 1 R/O",null,null,{"$f":"IFERROR(VLOOKUP(ROWS($CK$9:CK124),$CJ$9:$CK$162,2,0),\"\")","v":"Front Salto to 1 R/O"}]
[null,null,null,null,null,null,null,null,null,null,null,null,null,null,null,{"$f":"IF(ISNUMBER(SEARCH($B$9,Q125)),MAX($P$8:P124)+1,0)","v":117},"Front Salto, R/O, flic",null,null,{"$f":"IFERROR(VLOOKUP(ROWS($Q$9:Q125),$P$9:$Q$162,2,0),\"\")","v":"Front Salto, R/O, flic"},null,null,null,{"$f":"IF(ISNUMBER(SEARCH($B$10,Y125)),MAX($X$8:X124)+1,0)","v":117},"Front Salto, R/O, flic",null,null,{"$f":"IFERROR(VLOOKUP(ROWS($Y$9:Y125),$X$9:$Y$162,2,0),\"\")","v":"Front Salto, R/O, flic"},null,null,null,{"$f":"IF(ISNUMBER(SEARCH($B$11,AG125)),MAX($AF$8:AF124)+1,0)","v":117},"Front Salto, R/O, flic",null,null,{"$f":"IFERROR(VLOOKUP(ROWS($AG$9:AG125),$AF$9:$AG$162,2,0),\"\")","v":"Front Salto, R/O, flic"},null,null,null,{"$f":"IF(ISNUMBER(SEARCH($B$12,AO125)),MAX($AN$8:AN124)+1,0)","v":117},"Front Salto, R/O, flic",null,null,{"$f":"IFERROR(VLOOKUP(ROWS($AO$9:AO125),$AN$9:$AO$162,2,0),\"\")","v":"Front Salto, R/O, flic"},null,null,null,{"$f":"IF(ISNUMBER(SEARCH($B$13,AW125)),MAX($AV$8:AV124)+1,0)","v":117},"Front Salto, R/O, flic",null,null,{"$f":"IFERROR(VLOOKUP(ROWS($AW$9:AW125),$AV$9:$AW$162,2,0),\"\")","v":"Front Salto, R/O, flic"},null,null,null,{"$f":"IF(ISNUMBER(SEARCH($B$14,BE125)),MAX($BD$8:BD124)+1,0)","v":117},"Front Salto, R/O, flic",null,null,{"$f":"IFERROR(VLOOKUP(ROWS($BE$9:BE125),$BD$9:$BE$162,2,0),\"\")","v":"Front Salto, R/O, flic"},null,null,null,{"$f":"IF(ISNUMBER(SEARCH($B$15,BM125)),MAX($BL$8:BL124)+1,0)","v":117},"Front Salto, R/O, flic",null,null,{"$f":"IFERROR(VLOOKUP(ROWS($BM$9:BM125),$BL$9:$BM$162,2,0),\"\")","v":"Front Salto, R/O, flic"},null,null,null,{"$f":"IF(ISNUMBER(SEARCH($B$16,BU125)),MAX($BT$8:BT124)+1,0)","v":117},"Front Salto, R/O, flic",null,null,{"$f":"IFERROR(VLOOKUP(ROWS($BU$9:BU125),$BT$9:$BU$162,2,0),\"\")","v":"Front Salto, R/O, flic"},null,null,null,{"$f":"IF(ISNUMBER(SEARCH($B$17,CC125)),MAX($CB$8:CB124)+1,0)","v":117},"Front Salto, R/O, flic",null,null,{"$f":"IFERROR(VLOOKUP(ROWS($CC$9:CC125),$CB$9:$CC$162,2,0),\"\")","v":"Front Salto, R/O, flic"},null,null,null,{"$f":"IF(ISNUMBER(SEARCH($B$18,CK125)),MAX($CJ$8:CJ124)+1,0)","v":117},"Front Salto, R/O, flic",null,null,{"$f":"IFERROR(VLOOKUP(ROWS($CK$9:CK125),$CJ$9:$CK$162,2,0),\"\")","v":"Front Salto, R/O, flic"}]
[null,null,null,null,null,null,null,null,null,null,null,null,null,null,null,{"$f":"IF(ISNUMBER(SEARCH($B$9,Q126)),MAX($P$8:P125)+1,0)","v":118},"F Salto step out, R/O, B Salto",null,null,{"$f":"IFERROR(VLOOKUP(ROWS($Q$9:Q126),$P$9:$Q$162,2,0),\"\")","v":"F Salto step out, R/O, B Salto"},null,null,null,{"$f":"IF(ISNUMBER(SEARCH($B$10,Y126)),MAX($X$8:X125)+1,0)","v":118},"F Salto step out, R/O, B Salto",null,null,{"$f":"IFERROR(VLOOKUP(ROWS($Y$9:Y126),$X$9:$Y$162,2,0),\"\")","v":"F Salto step out, R/O, B Salto"},null,null,null,{"$f":"IF(ISNUMBER(SEARCH($B$11,AG126)),MAX($AF$8:AF125)+1,0)","v":118},"F Salto step out, R/O, B Salto",null,null,{"$f":"IFERROR(VLOOKUP(ROWS($AG$9:AG126),$AF$9:$AG$162,2,0),\"\")","v":"F Salto step out, R/O, B Salto"},null,null,null,{"$f":"IF(ISNUMBER(SEARCH($B$12,AO126)),MAX($AN$8:AN125)+1,0)","v":118},"F Salto step out, R/O, B Salto",null,null,{"$f":"IFERROR(VLOOKUP(ROWS($AO$9:AO126),$AN$9:$AO$162,2,0),\"\")","v":"F Salto step out, R/O, B Salto"},null,null,null,{"$f":"IF(ISNUMBER(SEARCH($B$13,AW126)),MAX($AV$8:AV125)+1,0)","v":118},"F Salto step out, R/O, B Salto",null,null,{"$f":"IFERROR(VLOOKUP(ROWS($AW$9:AW126),$AV$9:$AW$162,2,0),\"\")","v":"F Salto step out, R/O, B Salto"},null,null,null,{"$f":"IF(ISNUMBER(SEARCH($B$14,BE126)),MAX($BD$8:BD125)+1,0)","v":118},"F Salto step out, R/O, B Salto",null,null,{"$f":"IFERROR(VLOOKUP(ROWS($BE$9:BE126),$BD$9:$BE$162,2,0),\"\")","v":"F Salto step out, R/O, B Salto"},null,null,null,{"$f":"IF(ISNUMBER(SEARCH($B$15,BM126)),MAX($BL$8:BL125)+1,0)","v":118},"F Salto step out, R/O, B Salto",null,null,{"$f":"IFERROR(VLOOKUP(ROWS($BM$9:BM126),$BL$9:$BM$162,2,0),\"\")","v":"F Salto step out, R/O, B Salto"},null,null,null,{"$f":"IF(ISNUMBER(SEARCH($B$16,BU126)),MAX($BT$8:BT125)+1,0)","v":118},"F Salto step out, R/O, B Salto",null,null,{"$f":"IFERROR(VLOOKUP(ROWS($BU$9:BU126),$BT$9:$BU$162,2,0),\"\")","v":"F Salto step out, R/O, B Salto"},null,null,null,{"$f":"IF(ISNUMBER(SEARCH($B$17,CC126)),MAX($CB$8:CB125)+1,0)","v":118},"F Salto step out, R/O, B Salto",null,null,{"$f":"IFERROR(VLOOKUP(ROWS($CC$9:CC126),$CB$9:$CC$162,2,0),\"\")","v":"F Salto step out, R/O, B Salto"},null,null,null,{"$f":"IF(ISNUMBER(SEARCH($B$18,CK126)),MAX($CJ$8:CJ125)+1,0)","v":118},"F Salto step out, R/O, B Salto",null,null,{"$f":"IFERROR(VLOOKUP(ROWS($CK$9:CK126),$CJ$9:$CK$162,2,0),\"\")","v":"F Salto step out, R/O, B Salto"}]
[null,null,null,null,null,null,null,null,null,null,null,null,null,null,null,{"$f":"IF(ISNUMBER(SEARCH($B$9,Q127)),MAX($P$8:P126)+1,0)","v":119},"R/O Tuck Back Salto",null,null,{"$f":"IFERROR(VLOOKUP(ROWS($Q$9:Q127),$P$9:$Q$162,2,0),\"\")","v":"R/O Tuck Back Salto"},null,null,null,{"$f":"IF(ISNUMBER(SEARCH($B$10,Y127)),MAX($X$8:X126)+1,0)","v":119},"R/O Tuck Back Salto",null,null,{"$f":"IFERROR(VLOOKUP(ROWS($Y$9:Y127),$X$9:$Y$162,2,0),\"\")","v":"R/O Tuck Back Salto"},null,null,null,{"$f":"IF(ISNUMBER(SEARCH($B$11,AG127)),MAX($AF$8:AF126)+1,0)","v":119},"R/O Tuck Back Salto",null,null,{"$f":"IFERROR(VLOOKUP(ROWS($AG$9:AG127),$AF$9:$AG$162,2,0),\"\")","v":"R/O Tuck Back Salto"},null,null,null,{"$f":"IF(ISNUMBER(SEARCH($B$12,AO127)),MAX($AN$8:AN126)+1,0)","v":119},"R/O Tuck Back Salto",null,null,{"$f":"IFERROR(VLOOKUP(ROWS($AO$9:AO127),$AN$9:$AO$162,2,0),\"\")","v":"R/O Tuck Back Salto"},null,null,null,{"$f":"IF(ISNUMBER(SEARCH($B$13,AW127)),MAX($AV$8:AV126)+1,0)","v":119},"R/O Tuck Back Salto",null,null,{"$f":"IFERROR(VLOOKUP(ROWS($AW$9:AW127),$AV$9:$AW$162,2,0),\"\")","v":"R/O Tuck Back Salto"},null,null,null,{"$f":"IF(ISNUMBER(SEARCH($B$14,BE127)),MAX($BD$8:BD126)+1,0)","v":119},"R/O Tuck Back Salto",null,null,{"$f":"IFERROR(VLOOKUP(ROWS($BE$9:BE127),$BD$9:$BE$162,2,0),\"\")","v":"R/O Tuck Back Salto"},null,null,null,{"$f":"IF(ISNUMBER(SEARCH($B$15,BM127)),MAX($BL$8:BL126)+1,0)","v":119},"R/O Tuck Back Salto",null,null,{"$f":"IFERROR(VLOOKUP(ROWS($BM$9:BM127),$BL$9:$BM$162,2,0),\"\")","v":"R/O Tuck Back Salto"},null,null,null,{"$f":"IF(ISNUMBER(SEARCH($B$16,BU127)),MAX($BT$8:BT126)+1,0)","v":119},"R/O Tuck Back Salto",null,null,{"$f":"IFERROR(VLOOKUP(ROWS($BU$9:BU127),$BT$9:$BU$162,2,0),\"\")","v":"R/O Tuck Back Salto"},null,null,null,{"$f":"IF(ISNUMBER(SEARCH($B$17,CC127)),MAX($CB$8:CB126)+1,0)","v":119},"R/O Tuck Back Salto",null,null,{"$f":"IFERROR(VLOOKUP(ROWS($CC$9:CC127),$CB$9:$CC$162,2,0),\"\")","v":"R/O Tuck Back Salto"},null,null,null,{"$f":"IF(ISNUMBER(SEARCH($B$18,CK127)),MAX($CJ$8:CJ126)+1,0)","v":119},"R/O Tuck Back Salto",null,null,{"$f":"IFERROR(VLOOKUP(ROWS($CK$9:CK127),$CJ$9:$CK$162,2,0),\"\")","v":"R/O Tuck Back Salto"}]
[null,null,null,null,null,null,null,null,null,null,null,null,null,null,null,{"$f":"IF(ISNUMBER(SEARCH($B$9,Q128)),MAX($P$8:P127)+1,0)","v":120},"R/O, Flic, Tuck Back Salto",null,null,{"$f":"IFERROR(VLOOKUP(ROWS($Q$9:Q128),$P$9:$Q$162,2,0),\"\")","v":"R/O, Flic, Tuck Back Salto"},null,null,null,{"$f":"IF(ISNUMBER(SEARCH($B$10,Y128)),MAX($X$8:X127)+1,0)","v":120},"R/O, Flic, Tuck Back Salto",null,null,{"$f":"IFERROR(VLOOKUP(ROWS($Y$9:Y128),$X$9:$Y$162,2,0),\"\")","v":"R/O, Flic, Tuck Back Salto"},null,null,null,{"$f":"IF(ISNUMBER(SEARCH($B$11,AG128)),MAX($AF$8:AF127)+1,0)","v":120},"R/O, Flic, Tuck Back Salto",null,null,{"$f":"IFERROR(VLOOKUP(ROWS($AG$9:AG128),$AF$9:$AG$162,2,0),\"\")","v":"R/O, Flic, Tuck Back Salto"},null,null,null,{"$f":"IF(ISNUMBER(SEARCH($B$12,AO128)),MAX($AN$8:AN127)+1,0)","v":120},"R/O, Flic, Tuck Back Salto",null,null,{"$f":"IFERROR(VLOOKUP(ROWS($AO$9:AO128),$AN$9:$AO$162,2,0),\"\")","v":"R/O, Flic, Tuck Back Salto"},null,null,null,{"$f":"IF(ISNUMBER(SEARCH($B$13,AW128)),MAX($AV$8:AV127)+1,0)","v":120},"R/O, Flic, Tuck Back Salto",null,null,{"$f":"IFERROR(VLOOKUP(ROWS($AW$9:AW128),$AV$9:$AW$162,2,0),\"\")","v":"R/O, Flic, Tuck Back Salto"},null,null,null,{"$f":"IF(ISNUMBER(SEARCH($B$14,BE128)),MAX($BD$8:BD127)+1,0)","v":120},"R/O, Flic, Tuck Back Salto",null,null,{"$f":"IFERROR(VLOOKUP(ROWS($BE$9:BE128),$BD$9:$BE$162,2,0),\"\")","v":"R/O, Flic, Tuck Back Salto"},null,null,null,{"$f":"IF(ISNUMBER(SEARCH($B$15,BM128)),MAX($BL$8:BL127)+1,0)","v":120},"R/O, Flic, Tuck Back Salto",null,null,{"$f":"IFERROR(VLOOKUP(ROWS($BM$9:BM128),$BL$9:$BM$162,2,0),\"\")","v":"R/O, Flic, Tuck Back Salto"},null,null,null,{"$f":"IF(ISNUMBER(SEARCH($B$16,BU128)),MAX($BT$8:BT127)+1,0)","v":120},"R/O, Flic, Tuck Back Salto",null,null,{"$f":"IFERROR(VLOOKUP(ROWS($BU$9:BU128),$BT$9:$BU$162,2,0),\"\")","v":"R/O, Flic, Tuck Back Salto"},null,null,null,{"$f":"IF(ISNUMBER(SEARCH($B$17,CC128)),MAX($CB$8:CB127)+1,0)","v":120},"R/O, Flic, Tuck Back Salto",null,null,{"$f":"IFERROR(VLOOKUP(ROWS($CC$9:CC128),$CB$9:$CC$162,2,0),\"\")","v":"R/O, Flic, Tuck Back Salto"},null,null,null,{"$f":"IF(ISNUMBER(SEARCH($B$18,CK128)),MAX($CJ$8:CJ127)+1,0)","v":120},"R/O, Flic, Tuck Back Salto",null,null,{"$f":"IFERROR(VLOOKUP(ROWS($CK$9:CK128),$CJ$9:$CK$162,2,0),\"\")","v":"R/O, Flic, Tuck Back Salto"}]
[null,null,null,null,null,null,null,null,null,null,null,null,null,null,null,{"$f":"IF(ISNUMBER(SEARCH($B$9,Q129)),MAX($P$8:P128)+1,0)","v":121},"Handspring Flyspring",null,null,{"$f":"IFERROR(VLOOKUP(ROWS($Q$9:Q129),$P$9:$Q$162,2,0),\"\")","v":"Handspring Flyspring"},null,null,null,{"$f":"IF(ISNUMBER(SEARCH($B$10,Y129)),MAX($X$8:X128)+1,0)","v":121},"Handspring Flyspring",null,null,{"$f":"IFERROR(VLOOKUP(ROWS($Y$9:Y129),$X$9:$Y$162,2,0),\"\")","v":"Handspring Flyspring"},null,null,null,{"$f":"IF(ISNUMBER(SEARCH($B$11,AG129)),MAX($AF$8:AF128)+1,0)","v":121},"Handspring Flyspring",null,null,{"$f":"IFERROR(VLOOKUP(ROWS($AG$9:AG129),$AF$9:$AG$162,2,0),\"\")","v":"Handspring Flyspring"},null,null,null,{"$f":"IF(ISNUMBER(SEARCH($B$12,AO129)),MAX($AN$8:AN128)+1,0)","v":121},"Handspring Flyspring",null,null,{"$f":"IFERROR(VLOOKUP(ROWS($AO$9:AO129),$AN$9:$AO$162,2,0),\"\")","v":"Handspring Flyspring"},null,null,null,{"$f":"IF(ISNUMBER(SEARCH($B$13,AW129)),MAX($AV$8:AV128)+1,0)","v":121},"Handspring Flyspring",null,null,{"$f":"IFERROR(VLOOKUP(ROWS($AW$9:AW129),$AV$9:$AW$162,2,0),\"\")","v":"Handspring Flyspring"},null,null,null,{"$f":"IF(ISNUMBER(SEARCH($B$14,BE129)),MAX($BD$8:BD128)+1,0)","v":121},"Handspring Flyspring",null,null,{"$f":"IFERROR(VLOOKUP(ROWS($BE$9:BE129),$BD$9:$BE$162,2,0),\"\")","v":"Handspring Flyspring"},null,null,null,{"$f":"IF(ISNUMBER(SEARCH($B$15,BM129)),MAX($BL$8:BL128)+1,0)","v":121},"Handspring Flyspring",null,null,{"$f":"IFERROR(VLOOKUP(ROWS($BM$9:BM129),$BL$9:$BM$162,2,0),\"\")","v":"Handspring Flyspring"},null,null,null,{"$f":"IF(ISNUMBER(SEARCH($B$16,BU129)),MAX($BT$8:BT128)+1,0)","v":121},"Handspring Flyspring",null,null,{"$f":"IFERROR(VLOOKUP(ROWS($BU$9:BU129),$BT$9:$BU$162,2,0),\"\")","v":"Handspring Flyspring"},null,null,null,{"$f":"IF(ISNUMBER(SEARCH($B$17,CC129)),MAX($CB$8:CB128)+1,0)","v":121},"Handspring Flyspring",null,null,{"$f":"IFERROR(VLOOKUP(ROWS($CC$9:CC129),$CB$9:$CC$162,2,0),\"\")","v":"Handspring Flyspring"},null,null,null,{"$f":"IF(ISNUMBER(SEARCH($B$18,CK129)),MAX($CJ$8:CJ128)+1,0)","v":121},"Handspring Flyspring",null,null,{"$f":"IFERROR(VLOOKUP(ROWS($CK$9:CK129),$CJ$9:$CK$162,2,0),\"\")","v":"Handspring Flyspring"}]
[null,null,null,null,null,null,null,null,null,null,null,null,null,null,null,{"$f":"IF(ISNUMBER(SEARCH($B$9,Q130)),MAX($P$8:P129)+1,0)","v":122},"Handspring, Front Salto",null,null,{"$f":"IFERROR(VLOOKUP(ROWS($Q$9:Q130),$P$9:$Q$162,2,0),\"\")","v":"Handspring, Front Salto"},null,null,null,{"$f":"IF(ISNUMBER(SEARCH($B$10,Y130)),MAX($X$8:X129)+1,0)","v":122},"Handspring, Front Salto",null,null,{"$f":"IFERROR(VLOOKUP(ROWS($Y$9:Y130),$X$9:$Y$162,2,0),\"\")","v":"Handspring, Front Salto"},null,null,null,{"$f":"IF(ISNUMBER(SEARCH($B$11,AG130)),MAX($AF$8:AF129)+1,0)","v":122},"Handspring, Front Salto",null,null,{"$f":"IFERROR(VLOOKUP(ROWS($AG$9:AG130),$AF$9:$AG$162,2,0),\"\")","v":"Handspring, Front Salto"},null,null,null,{"$f":"IF(ISNUMBER(SEARCH($B$12,AO130)),MAX($AN$8:AN129)+1,0)","v":122},"Handspring, Front Salto",null,null,{"$f":"IFERROR(VLOOKUP(ROWS($AO$9:AO130),$AN$9:$AO$162,2,0),\"\")","v":"Handspring, Front Salto"},null,null,null,{"$f":"IF(ISNUMBER(SEARCH($B$13,AW130)),MAX($AV$8:AV129)+1,0)","v":122},"Handspring, Front Salto",null,null,{"$f":"IFERROR(VLOOKUP(ROWS($AW$9:AW130),$AV$9:$AW$162,2,0),\"\")","v":"Handspring, Front Salto"},null,null,null,{"$f":"IF(ISNUMBER(SEARCH($B$14,BE130)),MAX($BD$8:BD129)+1,0)","v":122},"Handspring, Front Salto",null,null,{"$f":"IFERROR(VLOOKUP(ROWS($BE$9:BE130),$BD$9:$BE$162,2,0),\"\")","v":"Handspring, Front Salto"},null,null,null,{"$f":"IF(ISNUMBER(SEARCH($B$15,BM130)),MAX($BL$8:BL129)+1,0)","v":122},"Handspring, Front Salto",null,null,{"$f":"IFERROR(VLOOKUP(ROWS($BM$9:BM130),$BL$9:$BM$162,2,0),\"\")","v":"Handspring, Front Salto"},null,null,null,{"$f":"IF(ISNUMBER(SEARCH($B$16,BU130)),MAX($BT$8:BT129)+1,0)","v":122},"Handspring, Front Salto",null,null,{"$f":"IFERROR(VLOOKUP(ROWS($BU$9:BU130),$BT$9:$BU$162,2,0),\"\")","v":"Handspring, Front Salto"},null,null,null,{"$f":"IF(ISNUMBER(SEARCH($B$17,CC130)),MAX($CB$8:CB129)+1,0)","v":122},"Handspring, Front Salto",null,null,{"$f":"IFERROR(VLOOKUP(ROWS($CC$9:CC130),$CB$9:$CC$162,2,0),\"\")","v":"Handspring, Front Salto"},null,null,null,{"$f":"IF(ISNUMBER(SEARCH($B$18,CK130)),MAX($CJ$8:CJ129)+1,0)","v":122},"Handspring, Front Salto",null,null,{"$f":"IFERROR(VLOOKUP(ROWS($CK$9:CK130),$CJ$9:$CK$162,2,0),\"\")","v":"Handspring, Front Salto"}]
[null,null,null,null,null,null,null,null,null,null,null,null,null,null,null,{"$f":"IF(ISNUMBER(SEARCH($B$9,Q131)),MAX($P$8:P130)+1,0)","v":123},"Split leap - sissone",null,null,{"$f":"IFERROR(VLOOKUP(ROWS($Q$9:Q131),$P$9:$Q$162,2,0),\"\")","v":"Split leap - sissone"},null,null,null,{"$f":"IF(ISNUMBER(SEARCH($B$10,Y131)),MAX($X$8:X130)+1,0)","v":123},"Split leap - sissone",null,null,{"$f":"IFERROR(VLOOKUP(ROWS($Y$9:Y131),$X$9:$Y$162,2,0),\"\")","v":"Split leap - sissone"},null,null,null,{"$f":"IF(ISNUMBER(SEARCH($B$11,AG131)),MAX($AF$8:AF130)+1,0)","v":123},"Split leap - sissone",null,null,{"$f":"IFERROR(VLOOKUP(ROWS($AG$9:AG131),$AF$9:$AG$162,2,0),\"\")","v":"Split leap - sissone"},null,null,null,{"$f":"IF(ISNUMBER(SEARCH($B$12,AO131)),MAX($AN$8:AN130)+1,0)","v":123},"Split leap - sissone",null,null,{"$f":"IFERROR(VLOOKUP(ROWS($AO$9:AO131),$AN$9:$AO$162,2,0),\"\")","v":"Split leap - sissone"},null,null,null,{"$f":"IF(ISNUMBER(SEARCH($B$13,AW131)),MAX($AV$8:AV130)+1,0)","v":123},"Split leap - sissone",null,null,{"$f":"IFERROR(VLOOKUP(ROWS($AW$9:AW131),$AV$9:$AW$162,2,0),\"\")","v":"Split leap - sissone"},null,null,null,{"$f":"IF(ISNUMBER(SEARCH($B$14,BE131)),MAX($BD$8:BD130)+1,0)","v":123},"Split leap - sissone",null,null,{"$f":"IFERROR(VLOOKUP(ROWS($BE$9:BE131),$BD$9:$BE$162,2,0),\"\")","v":"Split leap - sissone"},null,null,null,{"$f":"IF(ISNUMBER(SEARCH($B$15,BM131)),MAX($BL$8:BL130)+1,0)","v":123},"Split leap - sissone",null,null,{"$f":"IFERROR(VLOOKUP(ROWS($BM$9:BM131),$BL$9:$BM$162,2,0),\"\")","v":"Split leap - sissone"},null,null,null,{"$f":"IF(ISNUMBER(SEARCH($B$16,BU131)),MAX($BT$8:BT130)+1,0)","v":123},"Split leap - sissone",null,null,{"$f":"IFERROR(VLOOKUP(ROWS($BU$9:BU131),$BT$9:$BU$162,2,0),\"\")","v":"Split leap - sissone"},null,null,null,{"$f":"IF(ISNUMBER(SEARCH($B$17,CC131)),MAX($CB$8:CB130)+1,0)","v":123},"Split leap - sissone",null,null,{"$f":"IFERROR(VLOOKUP(ROWS($CC$9:CC131),$CB$9:$CC$162,2,0),\"\")","v":"Split leap - sissone"},null,null,null,{"$f":"IF(ISNUMBER(SEARCH($B$18,CK131)),MAX($CJ$8:CJ130)+1,0)","v":123},"Split leap - sissone",null,null,{"$f":"IFERROR(VLOOKUP(ROWS($CK$9:CK131),$CJ$9:$CK$162,2,0),\"\")","v":"Split leap - sissone"}]
[null,null,null,null,null,null,null,null,null,null,null,null,null,null,null,{"$f":"IF(ISNUMBER(SEARCH($B$9,Q132)),MAX($P$8:P131)+1,0)","v":124},"Split leap - cat leap full turn",null,null,{"$f":"IFERROR(VLOOKUP(ROWS($Q$9:Q132),$P$9:$Q$162,2,0),\"\")","v":"Split leap - cat leap full turn"},null,null,null,{"$f":"IF(ISNUMBER(SEARCH($B$10,Y132)),MAX($X$8:X131)+1,0)","v":124},"Split leap - cat leap full turn",null,null,{"$f":"IFERROR(VLOOKUP(ROWS($Y$9:Y132),$X$9:$Y$162,2,0),\"\")","v":"Split leap - cat leap full turn"},null,null,null,{"$f":"IF(ISNUMBER(SEARCH($B$11,AG132)),MAX($AF$8:AF131)+1,0)","v":124},"Split leap - cat leap full turn",null,null,{"$f":"IFERROR(VLOOKUP(ROWS($AG$9:AG132),$AF$9:$AG$162,2,0),\"\")","v":"Split leap - cat leap full turn"},null,null,null,{"$f":"IF(ISNUMBER(SEARCH($B$12,AO132)),MAX($AN$8:AN131)+1,0)","v":124},"Split leap - cat leap full turn",null,null,{"$f":"IFERROR(VLOOKUP(ROWS($AO$9:AO132),$AN$9:$AO$162,2,0),\"\")","v":"Split leap - cat leap full turn"},null,null,null,{"$f":"IF(ISNUMBER(SEARCH($B$13,AW132)),MAX($AV$8:AV131)+1,0)","v":124},"Split leap - cat leap full turn",null,null,{"$f":"IFERROR(VLOOKUP(ROWS($AW$9:AW132),$AV$9:$AW$162,2,0),\"\")","v":"Split leap - cat leap full turn"},null,null,null,{"$f":"IF(ISNUMBER(SEARCH($B$14,BE132)),MAX($BD$8:BD131)+1,0)","v":124},"Split leap - cat leap full turn",null,null,{"$f":"IFERROR(VLOOKUP(ROWS($BE$9:BE132),$BD$9:$BE$162,2,0),\"\")","v":"Split leap - cat leap full turn"},null,null,null,{"$f":"IF(ISNUMBER(SEARCH($B$15,BM132)),MAX($BL$8:BL131)+1,0)","v":124},"Split leap - cat leap full turn",null,null,{"$f":"IFERROR(VLOOKUP(ROWS($BM$9:BM132),$BL$9:$BM$162,2,0),\"\")","v":"Split leap - cat leap full turn"},null,null,null,{"$f":"IF(ISNUMBER(SEARCH($B$16,BU132)),MAX($BT$8:BT131)+1,0)","v":124},"Split leap - cat leap full turn",null,null,{"$f":"IFERROR(VLOOKUP(ROWS($BU$9:BU132),$BT$9:$BU$162,2,0),\"\")","v":"Split leap - cat leap full turn"},null,null,null,{"$f":"IF(ISNUMBER(SEARCH($B$17,CC132)),MAX($CB$8:CB131)+1,0)","v":124},"Split leap - cat leap full turn",null,null,{"$f":"IFERROR(VLOOKUP(ROWS($CC$9:CC132),$CB$9:$CC$162,2,0),\"\")","v":"Split leap - cat leap full turn"},null,null,null,{"$f":"IF(ISNUMBER(SEARCH($B$18,CK132)),MAX($CJ$8:CJ131)+1,0)","v":124},"Split leap - cat leap full turn",null,null,{"$f":"IFERROR(VLOOKUP(ROWS($CK$9:CK132),$CJ$9:$CK$162,2,0),\"\")","v":"Split leap - cat leap full turn"}]
[null,null,null,null,null,null,null,null,null,null,null,null,null,null,null,{"$f":"IF(ISNUMBER(SEARCH($B$9,Q133)),MAX($P$8:P132)+1,0)","v":125},"Change leg split leap - split leap",null,null,{"$f":"IFERROR(VLOOKUP(ROWS($Q$9:Q133),$P$9:$Q$162,2,0),\"\")","v":"Change leg split leap - split leap"},null,null,null,{"$f":"IF(ISNUMBER(SEARCH($B$10,Y133)),MAX($X$8:X132)+1,0)","v":125},"Change leg split leap - split leap",null,null,{"$f":"IFERROR(VLOOKUP(ROWS($Y$9:Y133),$X$9:$Y$162,2,0),\"\")","v":"Change leg split leap - split leap"},null,null,null,{"$f":"IF(ISNUMBER(SEARCH($B$11,AG133)),MAX($AF$8:AF132)+1,0)","v":125},"Change leg split leap - split leap",null,null,{"$f":"IFERROR(VLOOKUP(ROWS($AG$9:AG133),$AF$9:$AG$162,2,0),\"\")","v":"Change leg split leap - split leap"},null,null,null,{"$f":"IF(ISNUMBER(SEARCH($B$12,AO133)),MAX($AN$8:AN132)+1,0)","v":125},"Change leg split leap - split leap",null,null,{"$f":"IFERROR(VLOOKUP(ROWS($AO$9:AO133),$AN$9:$AO$162,2,0),\"\")","v":"Change leg split leap - split leap"},null,null,null,{"$f":"IF(ISNUMBER(SEARCH($B$13,AW133)),MAX($AV$8:AV132)+1,0)","v":125},"Change leg split leap - split leap",null,null,{"$f":"IFERROR(VLOOKUP(ROWS($AW$9:AW133),$AV$9:$AW$162,2,0),\"\")","v":"Change leg split leap - split leap"},null,null,null,{"$f":"IF(ISNUMBER(SEARCH($B$14,BE133)),MAX($BD$8:BD132)+1,0)","v":125},"Change leg split leap - split leap",null,null,{"$f":"IFERROR(VLOOKUP(ROWS($BE$9:BE133),$BD$9:$BE$162,2,0),\"\")","v":"Change leg split leap - split leap"},null,null,null,{"$f":"IF(ISNUMBER(SEARCH($B$15,BM133)),MAX($BL$8:BL132)+1,0)","v":125},"Change leg split leap - split leap",null,null,{"$f":"IFERROR(VLOOKUP(ROWS($BM$9:BM133),$BL$9:$BM$162,2,0),\"\")","v":"Change leg split leap - split leap"},null,null,null,{"$f":"IF(ISNUMBER(SEARCH($B$16,BU133)),MAX($BT$8:BT132)+1,0)","v":125},"Change leg split leap - split leap",null,null,{"$f":"IFERROR(VLOOKUP(ROWS($BU$9:BU133),$BT$9:$BU$162,2,0),\"\")","v":"Change leg split leap - split leap"},null,null,null,{"$f":"IF(ISNUMBER(SEARCH($B$17,CC133)),MAX($CB$8:CB132)+1,0)","v":125},"Change leg split leap - split leap",null,null,{"$f":"IFERROR(VLOOKUP(ROWS($CC$9:CC133),$CB$9:$CC$162,2,0),\"\")","v":"Change leg split leap - split leap"},null,null,null,{"$f":"IF(ISNUMBER(SEARCH($B$18,CK133)),MAX($CJ$8:CJ132)+1,0)","v":125},"Change leg split leap - split leap",null,null,{"$f":"IFERROR(VLOOKUP(ROWS($CK$9:CK133),$CJ$9:$CK$162,2,0),\"\")","v":"Change leg split leap - split leap"}]
[null,null,null,null,null,null,null,null,null,null,null,null,null,null,null,{"$f":"IF(ISNUMBER(SEARCH($B$9,Q134)),MAX($P$8:P133)+1,0)","v":126},"Split leap - W jump",null,null,{"$f":"IFERROR(VLOOKUP(ROWS($Q$9:Q134),$P$9:$Q$162,2,0),\"\")","v":"Split leap - W jump"},null,null,null,{"$f":"IF(ISNUMBER(SEARCH($B$10,Y134)),MAX($X$8:X133)+1,0)","v":126},"Split leap - W jump",null,null,{"$f":"IFERROR(VLOOKUP(ROWS($Y$9:Y134),$X$9:$Y$162,2,0),\"\")","v":"Split leap - W jump"},null,null,null,{"$f":"IF(ISNUMBER(SEARCH($B$11,AG134)),MAX($AF$8:AF133)+1,0)","v":126},"Split leap - W jump",null,null,{"$f":"IFERROR(VLOOKUP(ROWS($AG$9:AG134),$AF$9:$AG$162,2,0),\"\")","v":"Split leap - W jump"},null,null,null,{"$f":"IF(ISNUMBER(SEARCH($B$12,AO134)),MAX($AN$8:AN133)+1,0)","v":126},"Split leap - W jump",null,null,{"$f":"IFERROR(VLOOKUP(ROWS($AO$9:AO134),$AN$9:$AO$162,2,0),\"\")","v":"Split leap - W jump"},null,null,null,{"$f":"IF(ISNUMBER(SEARCH($B$13,AW134)),MAX($AV$8:AV133)+1,0)","v":126},"Split leap - W jump",null,null,{"$f":"IFERROR(VLOOKUP(ROWS($AW$9:AW134),$AV$9:$AW$162,2,0),\"\")","v":"Split leap - W jump"},null,null,null,{"$f":"IF(ISNUMBER(SEARCH($B$14,BE134)),MAX($BD$8:BD133)+1,0)","v":126},"Split leap - W jump",null,null,{"$f":"IFERROR(VLOOKUP(ROWS($BE$9:BE134),$BD$9:$BE$162,2,0),\"\")","v":"Split leap - W jump"},null,null,null,{"$f":"IF(ISNUMBER(SEARCH($B$15,BM134)),MAX($BL$8:BL133)+1,0)","v":126},"Split leap - W jump",null,null,{"$f":"IFERROR(VLOOKUP(ROWS($BM$9:BM134),$BL$9:$BM$162,2,0),\"\")","v":"Split leap - W jump"},null,null,null,{"$f":"IF(ISNUMBER(SEARCH($B$16,BU134)),MAX($BT$8:BT133)+1,0)","v":126},"Split leap - W jump",null,null,{"$f":"IFERROR(VLOOKUP(ROWS($BU$9:BU134),$BT$9:$BU$162,2,0),\"\")","v":"Split leap - W jump"},null,null,null,{"$f":"IF(ISNUMBER(SEARCH($B$17,CC134)),MAX($CB$8:CB133)+1,0)","v":126},"Split leap - W jump",null,null,{"$f":"IFERROR(VLOOKUP(ROWS($CC$9:CC134),$CB$9:$CC$162,2,0),\"\")","v":"Split leap - W jump"},null,null,null,{"$f":"IF(ISNUMBER(SEARCH($B$18,CK134)),MAX($CJ$8:CJ133)+1,0)","v":126},"Split leap - W jump",null,null,{"$f":"IFERROR(VLOOKUP(ROWS($CK$9:CK134),$CJ$9:$CK$162,2,0),\"\")","v":"Split leap - W jump"}]
[null,null,null,null,null,null,null,null,null,null,null,null,null,null,null,{"$f":"IF(ISNUMBER(SEARCH($B$9,Q135)),MAX($P$8:P134)+1,0)","v":127},"Full turn jump - straddle jump",null,null,{"$f":"IFERROR(VLOOKUP(ROWS($Q$9:Q135),$P$9:$Q$162,2,0),\"\")","v":"Full turn jump - straddle jump"},null,null,null,{"$f":"IF(ISNUMBER(SEARCH($B$10,Y135)),MAX($X$8:X134)+1,0)","v":127},"Full turn jump - straddle jump",null,null,{"$f":"IFERROR(VLOOKUP(ROWS($Y$9:Y135),$X$9:$Y$162,2,0),\"\")","v":"Full turn jump - straddle jump"},null,null,null,{"$f":"IF(ISNUMBER(SEARCH($B$11,AG135)),MAX($AF$8:AF134)+1,0)","v":127},"Full turn jump - straddle jump",null,null,{"$f":"IFERROR(VLOOKUP(ROWS($AG$9:AG135),$AF$9:$AG$162,2,0),\"\")","v":"Full turn jump - straddle jump"},null,null,null,{"$f":"IF(ISNUMBER(SEARCH($B$12,AO135)),MAX($AN$8:AN134)+1,0)","v":127},"Full turn jump - straddle jump",null,null,{"$f":"IFERROR(VLOOKUP(ROWS($AO$9:AO135),$AN$9:$AO$162,2,0),\"\")","v":"Full turn jump - straddle jump"},null,null,null,{"$f":"IF(ISNUMBER(SEARCH($B$13,AW135)),MAX($AV$8:AV134)+1,0)","v":127},"Full turn jump - straddle jump",null,null,{"$f":"IFERROR(VLOOKUP(ROWS($AW$9:AW135),$AV$9:$AW$162,2,0),\"\")","v":"Full turn jump - straddle jump"},null,null,null,{"$f":"IF(ISNUMBER(SEARCH($B$14,BE135)),MAX($BD$8:BD134)+1,0)","v":127},"Full turn jump - straddle jump",null,null,{"$f":"IFERROR(VLOOKUP(ROWS($BE$9:BE135),$BD$9:$BE$162,2,0),\"\")","v":"Full turn jump - straddle jump"},null,null,null,{"$f":"IF(ISNUMBER(SEARCH($B$15,BM135)),MAX($BL$8:BL134)+1,0)","v":127},"Full turn jump - straddle jump",null,null,{"$f":"IFERROR(VLOOKUP(ROWS($BM$9:BM135),$BL$9:$BM$162,2,0),\"\")","v":"Full turn jump - straddle jump"},null,null,null,{"$f":"IF(ISNUMBER(SEARCH($B$16,BU135)),MAX($BT$8:BT134)+1,0)","v":127},"Full turn jump - straddle jump",null,null,{"$f":"IFERROR(VLOOKUP(ROWS($BU$9:BU135),$BT$9:$BU$162,2,0),\"\")","v":"Full turn jump - straddle jump"},null,null,null,{"$f":"IF(ISNUMBER(SEARCH($B$17,CC135)),MAX($CB$8:CB134)+1,0)","v":127},"Full turn jump - straddle jump",null,null,{"$f":"IFERROR(VLOOKUP(ROWS($CC$9:CC135),$CB$9:$CC$162,2,0),\"\")","v":"Full turn jump - straddle jump"},null,null,null,{"$f":"IF(ISNUMBER(SEARCH($B$18,CK135)),MAX($CJ$8:CJ134)+1,0)","v":127},"Full turn jump - straddle jump",null,null,{"$f":"IFERROR(VLOOKUP(ROWS($CK$9:CK135),$CJ$9:$CK$162,2,0),\"\")","v":"Full turn jump - straddle jump"}]
[null,null,null,null,null,null,null,null,null,null,null,null,null,null,null,{"$f":"IF(ISNUMBER(SEARCH($B$9,Q136)),MAX($P$8:P135)+1,0)","v":128},"Jump 1/2 Turn to Prone",null,null,{"$f":"IFERROR(VLOOKUP(ROWS($Q$9:Q136),$P$9:$Q$162,2,0),\"\")","v":"Jump 1/2 Turn to Prone"},null,null,null,{"$f":"IF(ISNUMBER(SEARCH($B$10,Y136)),MAX($X$8:X135)+1,0)","v":128},"Jump 1/2 Turn to Prone",null,null,{"$f":"IFERROR(VLOOKUP(ROWS($Y$9:Y136),$X$9:$Y$162,2,0),\"\")","v":"Jump 1/2 Turn to Prone"},null,null,null,{"$f":"IF(ISNUMBER(SEARCH($B$11,AG136)),MAX($AF$8:AF135)+1,0)","v":128},"Jump 1/2 Turn to Prone",null,null,{"$f":"IFERROR(VLOOKUP(ROWS($AG$9:AG136),$AF$9:$AG$162,2,0),\"\")","v":"Jump 1/2 Turn to Prone"},null,null,null,{"$f":"IF(ISNUMBER(SEARCH($B$12,AO136)),MAX($AN$8:AN135)+1,0)","v":128},"Jump 1/2 Turn to Prone",null,null,{"$f":"IFERROR(VLOOKUP(ROWS($AO$9:AO136),$AN$9:$AO$162,2,0),\"\")","v":"Jump 1/2 Turn to Prone"},null,null,null,{"$f":"IF(ISNUMBER(SEARCH($B$13,AW136)),MAX($AV$8:AV135)+1,0)","v":128},"Jump 1/2 Turn to Prone",null,null,{"$f":"IFERROR(VLOOKUP(ROWS($AW$9:AW136),$AV$9:$AW$162,2,0),\"\")","v":"Jump 1/2 Turn to Prone"},null,null,null,{"$f":"IF(ISNUMBER(SEARCH($B$14,BE136)),MAX($BD$8:BD135)+1,0)","v":128},"Jump 1/2 Turn to Prone",null,null,{"$f":"IFERROR(VLOOKUP(ROWS($BE$9:BE136),$BD$9:$BE$162,2,0),\"\")","v":"Jump 1/2 Turn to Prone"},null,null,null,{"$f":"IF(ISNUMBER(SEARCH($B$15,BM136)),MAX($BL$8:BL135)+1,0)","v":128},"Jump 1/2 Turn to Prone",null,null,{"$f":"IFERROR(VLOOKUP(ROWS($BM$9:BM136),$BL$9:$BM$162,2,0),\"\")","v":"Jump 1/2 Turn to Prone"},null,null,null,{"$f":"IF(ISNUMBER(SEARCH($B$16,BU136)),MAX($BT$8:BT135)+1,0)","v":128},"Jump 1/2 Turn to Prone",null,null,{"$f":"IFERROR(VLOOKUP(ROWS($BU$9:BU136),$BT$9:$BU$162,2,0),\"\")","v":"Jump 1/2 Turn to Prone"},null,null,null,{"$f":"IF(ISNUMBER(SEARCH($B$17,CC136)),MAX($CB$8:CB135)+1,0)","v":128},"Jump 1/2 Turn to Prone",null,null,{"$f":"IFERROR(VLOOKUP(ROWS($CC$9:CC136),$CB$9:$CC$162,2,0),\"\")","v":"Jump 1/2 Turn to Prone"},null,null,null,{"$f":"IF(ISNUMBER(SEARCH($B$18,CK136)),MAX($CJ$8:CJ135)+1,0)","v":128},"Jump 1/2 Turn to Prone",null,null,{"$f":"IFERROR(VLOOKUP(ROWS($CK$9:CK136),$CJ$9:$CK$162,2,0),\"\")","v":"Jump 1/2 Turn to Prone"}]
[null,null,null,null,null,null,null,null,null,null,null,null,null,null,null,{"$f":"IF(ISNUMBER(SEARCH($B$9,Q137)),MAX($P$8:P136)+1,0)","v":129},"Straddle jump Shushunova",null,null,{"$f":"IFERROR(VLOOKUP(ROWS($Q$9:Q137),$P$9:$Q$162,2,0),\"\")","v":"Straddle jump Shushunova"},null,null,null,{"$f":"IF(ISNUMBER(SEARCH($B$10,Y137)),MAX($X$8:X136)+1,0)","v":129},"Straddle jump Shushunova",null,null,{"$f":"IFERROR(VLOOKUP(ROWS($Y$9:Y137),$X$9:$Y$162,2,0),\"\")","v":"Straddle jump Shushunova"},null,null,null,{"$f":"IF(ISNUMBER(SEARCH($B$11,AG137)),MAX($AF$8:AF136)+1,0)","v":129},"Straddle jump Shushunova",null,null,{"$f":"IFERROR(VLOOKUP(ROWS($AG$9:AG137),$AF$9:$AG$162,2,0),\"\")","v":"Straddle jump Shushunova"},null,null,null,{"$f":"IF(ISNUMBER(SEARCH($B$12,AO137)),MAX($AN$8:AN136)+1,0)","v":129},"Straddle jump Shushunova",null,null,{"$f":"IFERROR(VLOOKUP(ROWS($AO$9:AO137),$AN$9:$AO$162,2,0),\"\")","v":"Straddle jump Shushunova"},null,null,null,{"$f":"IF(ISNUMBER(SEARCH($B$13,AW137)),MAX($AV$8:AV136)+1,0)","v":129},"Straddle jump Shushunova",null,null,{"$f":"IFERROR(VLOOKUP(ROWS($AW$9:AW137),$AV$9:$AW$162,2,0),\"\")","v":"Straddle jump Shushunova"},null,null,null,{"$f":"IF(ISNUMBER(SEARCH($B$14,BE137)),MAX($BD$8:BD136)+1,0)","v":129},"Straddle jump Shushunova",null,null,{"$f":"IFERROR(VLOOKUP(ROWS($BE$9:BE137),$BD$9:$BE$162,2,0),\"\")","v":"Straddle jump Shushunova"},null,null,null,{"$f":"IF(ISNUMBER(SEARCH($B$15,BM137)),MAX($BL$8:BL136)+1,0)","v":129},"Straddle jump Shushunova",null,null,{"$f":"IFERROR(VLOOKUP(ROWS($BM$9:BM137),$BL$9:$BM$162,2,0),\"\")","v":"Straddle jump Shushunova"},null,null,null,{"$f":"IF(ISNUMBER(SEARCH($B$16,BU137)),MAX($BT$8:BT136)+1,0)","v":129},"Straddle jump Shushunova",null,null,{"$f":"IFERROR(VLOOKUP(ROWS($BU$9:BU137),$BT$9:$BU$162,2,0),\"\")","v":"Straddle jump Shushunova"},null,null,null,{"$f":"IF(ISNUMBER(SEARCH($B$17,CC137)),MAX($CB$8:CB136)+1,0)","v":129},"Straddle jump Shushunova",null,null,{"$f":"IFERROR(VLOOKUP(ROWS($CC$9:CC137),$CB$9:$CC$162,2,0),\"\")","v":"Straddle jump Shushunova"},null,null,null,{"$f":"IF(ISNUMBER(SEARCH($B$18,CK137)),MAX($CJ$8:CJ136)+1,0)","v":129},"Straddle jump Shushunova",null,null,{"$f":"IFERROR(VLOOKUP(ROWS($CK$9:CK137),$CJ$9:$CK$162,2,0),\"\")","v":"Straddle jump Shushunova"}]
[null,null,null,null,null,null,null,null,null,null,null,null,null,null,null,{"$f":"IF(ISNUMBER(SEARCH($B$9,Q138)),MAX($P$8:P137)+1,0)","v":130},"Straddle jump - pike jump",null,null,{"$f":"IFERROR(VLOOKUP(ROWS($Q$9:Q138),$P$9:$Q$162,2,0),\"\")","v":"Straddle jump - pike jump"},null,null,null,{"$f":"IF(ISNUMBER(SEARCH($B$10,Y138)),MAX($X$8:X137)+1,0)","v":130},"Straddle jump - pike jump",null,null,{"$f":"IFERROR(VLOOKUP(ROWS($Y$9:Y138),$X$9:$Y$162,2,0),\"\")","v":"Straddle jump - pike jump"},null,null,null,{"$f":"IF(ISNUMBER(SEARCH($B$11,AG138)),MAX($AF$8:AF137)+1,0)","v":130},"Straddle jump - pike jump",null,null,{"$f":"IFERROR(VLOOKUP(ROWS($AG$9:AG138),$AF$9:$AG$162,2,0),\"\")","v":"Straddle jump - pike jump"},null,null,null,{"$f":"IF(ISNUMBER(SEARCH($B$12,AO138)),MAX($AN$8:AN137)+1,0)","v":130},"Straddle jump - pike jump",null,null,{"$f":"IFERROR(VLOOKUP(ROWS($AO$9:AO138),$AN$9:$AO$162,2,0),\"\")","v":"Straddle jump - pike jump"},null,null,null,{"$f":"IF(ISNUMBER(SEARCH($B$13,AW138)),MAX($AV$8:AV137)+1,0)","v":130},"Straddle jump - pike jump",null,null,{"$f":"IFERROR(VLOOKUP(ROWS($AW$9:AW138),$AV$9:$AW$162,2,0),\"\")","v":"Straddle jump - pike jump"},null,null,null,{"$f":"IF(ISNUMBER(SEARCH($B$14,BE138)),MAX($BD$8:BD137)+1,0)","v":130},"Straddle jump - pike jump",null,null,{"$f":"IFERROR(VLOOKUP(ROWS($BE$9:BE138),$BD$9:$BE$162,2,0),\"\")","v":"Straddle jump - pike jump"},null,null,null,{"$f":"IF(ISNUMBER(SEARCH($B$15,BM138)),MAX($BL$8:BL137)+1,0)","v":130},"Straddle jump - pike jump",null,null,{"$f":"IFERROR(VLOOKUP(ROWS($BM$9:BM138),$BL$9:$BM$162,2,0),\"\")","v":"Straddle jump - pike jump"},null,null,null,{"$f":"IF(ISNUMBER(SEARCH($B$16,BU138)),MAX($BT$8:BT137)+1,0)","v":130},"Straddle jump - pike jump",null,null,{"$f":"IFERROR(VLOOKUP(ROWS($BU$9:BU138),$BT$9:$BU$162,2,0),\"\")","v":"Straddle jump - pike jump"},null,null,null,{"$f":"IF(ISNUMBER(SEARCH($B$17,CC138)),MAX($CB$8:CB137)+1,0)","v":130},"Straddle jump - pike jump",null,null,{"$f":"IFERROR(VLOOKUP(ROWS($CC$9:CC138),$CB$9:$CC$162,2,0),\"\")","v":"Straddle jump - pike jump"},null,null,null,{"$f":"IF(ISNUMBER(SEARCH($B$18,CK138)),MAX($CJ$8:CJ137)+1,0)","v":130},"Straddle jump - pike jump",null,null,{"$f":"IFERROR(VLOOKUP(ROWS($CK$9:CK138),$CJ$9:$CK$162,2,0),\"\")","v":"Straddle jump - pike jump"}]
[null,null,null,null,null,null,null,null,null,null,null,null,null,null,null,{"$f":"IF(ISNUMBER(SEARCH($B$9,Q139)),MAX($P$8:P138)+1,0)","v":131},"Double spin",null,null,{"$f":"IFERROR(VLOOKUP(ROWS($Q$9:Q139),$P$9:$Q$162,2,0),\"\")","v":"Double spin"},null,null,null,{"$f":"IF(ISNUMBER(SEARCH($B$10,Y139)),MAX($X$8:X138)+1,0)","v":131},"Double spin",null,null,{"$f":"IFERROR(VLOOKUP(ROWS($Y$9:Y139),$X$9:$Y$162,2,0),\"\")","v":"Double spin"},null,null,null,{"$f":"IF(ISNUMBER(SEARCH($B$11,AG139)),MAX($AF$8:AF138)+1,0)","v":131},"Double spin",null,null,{"$f":"IFERROR(VLOOKUP(ROWS($AG$9:AG139),$AF$9:$AG$162,2,0),\"\")","v":"Double spin"},null,null,null,{"$f":"IF(ISNUMBER(SEARCH($B$12,AO139)),MAX($AN$8:AN138)+1,0)","v":131},"Double spin",null,null,{"$f":"IFERROR(VLOOKUP(ROWS($AO$9:AO139),$AN$9:$AO$162,2,0),\"\")","v":"Double spin"},null,null,null,{"$f":"IF(ISNUMBER(SEARCH($B$13,AW139)),MAX($AV$8:AV138)+1,0)","v":131},"Double spin",null,null,{"$f":"IFERROR(VLOOKUP(ROWS($AW$9:AW139),$AV$9:$AW$162,2,0),\"\")","v":"Double spin"},null,null,null,{"$f":"IF(ISNUMBER(SEARCH($B$14,BE139)),MAX($BD$8:BD138)+1,0)","v":131},"Double spin",null,null,{"$f":"IFERROR(VLOOKUP(ROWS($BE$9:BE139),$BD$9:$BE$162,2,0),\"\")","v":"Double spin"},null,null,null,{"$f":"IF(ISNUMBER(SEARCH($B$15,BM139)),MAX($BL$8:BL138)+1,0)","v":131},"Double spin",null,null,{"$f":"IFERROR(VLOOKUP(ROWS($BM$9:BM139),$BL$9:$BM$162,2,0),\"\")","v":"Double spin"},null,null,null,{"$f":"IF(ISNUMBER(SEARCH($B$16,BU139)),MAX($BT$8:BT138)+1,0)","v":131},"Double spin",null,null,{"$f":"IFERROR(VLOOKUP(ROWS($BU$9:BU139),$BT$9:$BU$162,2,0),\"\")","v":"Double spin"},null,null,null,{"$f":"IF(ISNUMBER(SEARCH($B$17,CC139)),MAX($CB$8:CB138)+1,0)","v":131},"Double spin",null,null,{"$f":"IFERROR(VLOOKUP(ROWS($CC$9:CC139),$CB$9:$CC$162,2,0),\"\")","v":"Double spin"},null,null,null,{"$f":"IF(ISNUMBER(SEARCH($B$18,CK139)),MAX($CJ$8:CJ138)+1,0)","v":131},"Double spin",null,null,{"$f":"IFERROR(VLOOKUP(ROWS($CK$9:CK139),$CJ$9:$CK$162,2,0),\"\")","v":"Double spin"}]
[null,null,null,null,null,null,null,null,null,null,null,null,null,null,null,{"$f":"IF(ISNUMBER(SEARCH($B$9,Q140)),MAX($P$8:P139)+1,0)","v":132},"Full spin 1 leg extended, min 45 deg",null,null,{"$f":"IFERROR(VLOOKUP(ROWS($Q$9:Q140),$P$9:$Q$162,2,0),\"\")","v":"Full spin 1 leg extended, min 45 deg"},null,null,null,{"$f":"IF(ISNUMBER(SEARCH($B$10,Y140)),MAX($X$8:X139)+1,0)","v":132},"Full spin 1 leg extended, min 45 deg",null,null,{"$f":"IFERROR(VLOOKUP(ROWS($Y$9:Y140),$X$9:$Y$162,2,0),\"\")","v":"Full spin 1 leg extended, min 45 deg"},null,null,null,{"$f":"IF(ISNUMBER(SEARCH($B$11,AG140)),MAX($AF$8:AF139)+1,0)","v":132},"Full spin 1 leg extended, min 45 deg",null,null,{"$f":"IFERROR(VLOOKUP(ROWS($AG$9:AG140),$AF$9:$AG$162,2,0),\"\")","v":"Full spin 1 leg extended, min 45 deg"},null,null,null,{"$f":"IF(ISNUMBER(SEARCH($B$12,AO140)),MAX($AN$8:AN139)+1,0)","v":132},"Full spin 1 leg extended, min 45 deg",null,null,{"$f":"IFERROR(VLOOKUP(ROWS($AO$9:AO140),$AN$9:$AO$162,2,0),\"\")","v":"Full spin 1 leg extended, min 45 deg"},null,null,null,{"$f":"IF(ISNUMBER(SEARCH($B$13,AW140)),MAX($AV$8:AV139)+1,0)","v":132},"Full spin 1 leg extended, min 45 deg",null,null,{"$f":"IFERROR(VLOOKUP(ROWS($AW$9:AW140),$AV$9:$AW$162,2,0),\"\")","v":"Full spin 1 leg extended, min 45 deg"},null,null,null,{"$f":"IF(ISNUMBER(SEARCH($B$14,BE140)),MAX($BD$8:BD139)+1,0)","v":132},"Full spin 1 leg extended, min 45 deg",null,null,{"$f":"IFERROR(VLOOKUP(ROWS($BE$9:BE140),$BD$9:$BE$162,2,0),\"\")","v":"Full spin 1 leg extended, min 45 deg"},null,null,null,{"$f":"IF(ISNUMBER(SEARCH($B$15,BM140)),MAX($BL$8:BL139)+1,0)","v":132},"Full spin 1 leg extended, min 45 deg",null,null,{"$f":"IFERROR(VLOOKUP(ROWS($BM$9:BM140),$BL$9:$BM$162,2,0),\"\")","v":"Full spin 1 leg extended, min 45 deg"},null,null,null,{"$f":"IF(ISNUMBER(SEARCH($B$16,BU140)),MAX($BT$8:BT139)+1,0)","v":132},"Full spin 1 leg extended, min 45 deg",null,null,{"$f":"IFERROR(VLOOKUP(ROWS($BU$9:BU140),$BT$9:$BU$162,2,0),\"\")","v":"Full spin 1 leg extended, min 45 deg"},null,null,null,{"$f":"IF(ISNUMBER(SEARCH($B$17,CC140)),MAX($CB$8:CB139)+1,0)","v":132},"Full spin 1 leg extended, min 45 deg",null,null,{"$f":"IFERROR(VLOOKUP(ROWS($CC$9:CC140),$CB$9:$CC$162,2,0),\"\")","v":"Full spin 1 leg extended, min 45 deg"},null,null,null,{"$f":"IF(ISNUMBER(SEARCH($B$18,CK140)),MAX($CJ$8:CJ139)+1,0)","v":132},"Full spin 1 leg extended, min 45 deg",null,null,{"$f":"IFERROR(VLOOKUP(ROWS($CK$9:CK140),$CJ$9:$CK$162,2,0),\"\")","v":"Full spin 1 leg extended, min 45 deg"}]
[null,null,null,null,null,null,null,null,null,null,null,null,null,null,null,{"$f":"IF(ISNUMBER(SEARCH($B$9,Q141)),MAX($P$8:P140)+1,0)","v":133},"From Splits position lift to H/stand ",null,null,{"$f":"IFERROR(VLOOKUP(ROWS($Q$9:Q141),$P$9:$Q$162,2,0),\"\")","v":"From Splits position lift to H/stand "},null,null,null,{"$f":"IF(ISNUMBER(SEARCH($B$10,Y141)),MAX($X$8:X140)+1,0)","v":133},"From Splits position lift to H/stand ",null,null,{"$f":"IFERROR(VLOOKUP(ROWS($Y$9:Y141),$X$9:$Y$162,2,0),\"\")","v":"From Splits position lift to H/stand "},null,null,null,{"$f":"IF(ISNUMBER(SEARCH($B$11,AG141)),MAX($AF$8:AF140)+1,0)","v":133},"From Splits position lift to H/stand ",null,null,{"$f":"IFERROR(VLOOKUP(ROWS($AG$9:AG141),$AF$9:$AG$162,2,0),\"\")","v":"From Splits position lift to H/stand "},null,null,null,{"$f":"IF(ISNUMBER(SEARCH($B$12,AO141)),MAX($AN$8:AN140)+1,0)","v":133},"From Splits position lift to H/stand ",null,null,{"$f":"IFERROR(VLOOKUP(ROWS($AO$9:AO141),$AN$9:$AO$162,2,0),\"\")","v":"From Splits position lift to H/stand "},null,null,null,{"$f":"IF(ISNUMBER(SEARCH($B$13,AW141)),MAX($AV$8:AV140)+1,0)","v":133},"From Splits position lift to H/stand ",null,null,{"$f":"IFERROR(VLOOKUP(ROWS($AW$9:AW141),$AV$9:$AW$162,2,0),\"\")","v":"From Splits position lift to H/stand "},null,null,null,{"$f":"IF(ISNUMBER(SEARCH($B$14,BE141)),MAX($BD$8:BD140)+1,0)","v":133},"From Splits position lift to H/stand ",null,null,{"$f":"IFERROR(VLOOKUP(ROWS($BE$9:BE141),$BD$9:$BE$162,2,0),\"\")","v":"From Splits position lift to H/stand "},null,null,null,{"$f":"IF(ISNUMBER(SEARCH($B$15,BM141)),MAX($BL$8:BL140)+1,0)","v":133},"From Splits position lift to H/stand ",null,null,{"$f":"IFERROR(VLOOKUP(ROWS($BM$9:BM141),$BL$9:$BM$162,2,0),\"\")","v":"From Splits position lift to H/stand "},null,null,null,{"$f":"IF(ISNUMBER(SEARCH($B$16,BU141)),MAX($BT$8:BT140)+1,0)","v":133},"From Splits position lift to H/stand ",null,null,{"$f":"IFERROR(VLOOKUP(ROWS($BU$9:BU141),$BT$9:$BU$162,2,0),\"\")","v":"From Splits position lift to H/stand "},null,null,null,{"$f":"IF(ISNUMBER(SEARCH($B$17,CC141)),MAX($CB$8:CB140)+1,0)","v":133},"From Splits position lift to H/stand ",null,null,{"$f":"IFERROR(VLOOKUP(ROWS($CC$9:CC141),$CB$9:$CC$162,2,0),\"\")","v":"From Splits position lift to H/stand "},null,null,null,{"$f":"IF(ISNUMBER(SEARCH($B$18,CK141)),MAX($CJ$8:CJ140)+1,0)","v":133},"From Splits position lift to H/stand ",null,null,{"$f":"IFERROR(VLOOKUP(ROWS($CK$9:CK141),$CJ$9:$CK$162,2,0),\"\")","v":"From Splits position lift to H/stand "}]
[null,null,null,null,null,null,null,null,null,null,null,null,null,null,null,{"$f":"IF(ISNUMBER(SEARCH($B$9,Q142)),MAX($P$8:P141)+1,0)","v":134},"Full V ‘Russian’ lever",null,null,{"$f":"IFERROR(VLOOKUP(ROWS($Q$9:Q142),$P$9:$Q$162,2,0),\"\")","v":"Full V ‘Russian’ lever"},null,null,null,{"$f":"IF(ISNUMBER(SEARCH($B$10,Y142)),MAX($X$8:X141)+1,0)","v":134},"Full V ‘Russian’ lever",null,null,{"$f":"IFERROR(VLOOKUP(ROWS($Y$9:Y142),$X$9:$Y$162,2,0),\"\")","v":"Full V ‘Russian’ lever"},null,null,null,{"$f":"IF(ISNUMBER(SEARCH($B$11,AG142)),MAX($AF$8:AF141)+1,0)","v":134},"Full V ‘Russian’ lever",null,null,{"$f":"IFERROR(VLOOKUP(ROWS($AG$9:AG142),$AF$9:$AG$162,2,0),\"\")","v":"Full V ‘Russian’ lever"},null,null,null,{"$f":"IF(ISNUMBER(SEARCH($B$12,AO142)),MAX($AN$8:AN141)+1,0)","v":134},"Full V ‘Russian’ lever",null,null,{"$f":"IFERROR(VLOOKUP(ROWS($AO$9:AO142),$AN$9:$AO$162,2,0),\"\")","v":"Full V ‘Russian’ lever"},null,null,null,{"$f":"IF(ISNUMBER(SEARCH($B$13,AW142)),MAX($AV$8:AV141)+1,0)","v":134},"Full V ‘Russian’ lever",null,null,{"$f":"IFERROR(VLOOKUP(ROWS($AW$9:AW142),$AV$9:$AW$162,2,0),\"\")","v":"Full V ‘Russian’ lever"},null,null,null,{"$f":"IF(ISNUMBER(SEARCH($B$14,BE142)),MAX($BD$8:BD141)+1,0)","v":134},"Full V ‘Russian’ lever",null,null,{"$f":"IFERROR(VLOOKUP(ROWS($BE$9:BE142),$BD$9:$BE$162,2,0),\"\")","v":"Full V ‘Russian’ lever"},null,null,null,{"$f":"IF(ISNUMBER(SEARCH($B$15,BM142)),MAX($BL$8:BL141)+1,0)","v":134},"Full V ‘Russian’ lever",null,null,{"$f":"IFERROR(VLOOKUP(ROWS($BM$9:BM142),$BL$9:$BM$162,2,0),\"\")","v":"Full V ‘Russian’ lever"},null,null,null,{"$f":"IF(ISNUMBER(SEARCH($B$16,BU142)),MAX($BT$8:BT141)+1,0)","v":134},"Full V ‘Russian’ lever",null,null,{"$f":"IFERROR(VLOOKUP(ROWS($BU$9:BU142),$BT$9:$BU$162,2,0),\"\")","v":"Full V ‘Russian’ lever"},null,null,null,{"$f":"IF(ISNUMBER(SEARCH($B$17,CC142)),MAX($CB$8:CB141)+1,0)","v":134},"Full V ‘Russian’ lever",null,null,{"$f":"IFERROR(VLOOKUP(ROWS($CC$9:CC142),$CB$9:$CC$162,2,0),\"\")","v":"Full V ‘Russian’ lever"},null,null,null,{"$f":"IF(ISNUMBER(SEARCH($B$18,CK142)),MAX($CJ$8:CJ141)+1,0)","v":134},"Full V ‘Russian’ lever",null,null,{"$f":"IFERROR(VLOOKUP(ROWS($CK$9:CK142),$CJ$9:$CK$162,2,0),\"\")","v":"Full V ‘Russian’ lever"}]
[null,null,null,null,null,null,null,null,null,null,null,null,null,null,null,{"$f":"IF(ISNUMBER(SEARCH($B$9,Q143)),MAX($P$8:P142)+1,0)","v":135},"Tucked top planchě (held)",null,null,{"$f":"IFERROR(VLOOKUP(ROWS($Q$9:Q143),$P$9:$Q$162,2,0),\"\")","v":"Tucked top planchě (held)"},null,null,null,{"$f":"IF(ISNUMBER(SEARCH($B$10,Y143)),MAX($X$8:X142)+1,0)","v":135},"Tucked top planchě (held)",null,null,{"$f":"IFERROR(VLOOKUP(ROWS($Y$9:Y143),$X$9:$Y$162,2,0),\"\")","v":"Tucked top planchě (held)"},null,null,null,{"$f":"IF(ISNUMBER(SEARCH($B$11,AG143)),MAX($AF$8:AF142)+1,0)","v":135},"Tucked top planchě (held)",null,null,{"$f":"IFERROR(VLOOKUP(ROWS($AG$9:AG143),$AF$9:$AG$162,2,0),\"\")","v":"Tucked top planchě (held)"},null,null,null,{"$f":"IF(ISNUMBER(SEARCH($B$12,AO143)),MAX($AN$8:AN142)+1,0)","v":135},"Tucked top planchě (held)",null,null,{"$f":"IFERROR(VLOOKUP(ROWS($AO$9:AO143),$AN$9:$AO$162,2,0),\"\")","v":"Tucked top planchě (held)"},null,null,null,{"$f":"IF(ISNUMBER(SEARCH($B$13,AW143)),MAX($AV$8:AV142)+1,0)","v":135},"Tucked top planchě (held)",null,null,{"$f":"IFERROR(VLOOKUP(ROWS($AW$9:AW143),$AV$9:$AW$162,2,0),\"\")","v":"Tucked top planchě (held)"},null,null,null,{"$f":"IF(ISNUMBER(SEARCH($B$14,BE143)),MAX($BD$8:BD142)+1,0)","v":135},"Tucked top planchě (held)",null,null,{"$f":"IFERROR(VLOOKUP(ROWS($BE$9:BE143),$BD$9:$BE$162,2,0),\"\")","v":"Tucked top planchě (held)"},null,null,null,{"$f":"IF(ISNUMBER(SEARCH($B$15,BM143)),MAX($BL$8:BL142)+1,0)","v":135},"Tucked top planchě (held)",null,null,{"$f":"IFERROR(VLOOKUP(ROWS($BM$9:BM143),$BL$9:$BM$162,2,0),\"\")","v":"Tucked top planchě (held)"},null,null,null,{"$f":"IF(ISNUMBER(SEARCH($B$16,BU143)),MAX($BT$8:BT142)+1,0)","v":135},"Tucked top planchě (held)",null,null,{"$f":"IFERROR(VLOOKUP(ROWS($BU$9:BU143),$BT$9:$BU$162,2,0),\"\")","v":"Tucked top planchě (held)"},null,null,null,{"$f":"IF(ISNUMBER(SEARCH($B$17,CC143)),MAX($CB$8:CB142)+1,0)","v":135},"Tucked top planchě (held)",null,null,{"$f":"IFERROR(VLOOKUP(ROWS($CC$9:CC143),$CB$9:$CC$162,2,0),\"\")","v":"Tucked top planchě (held)"},null,null,null,{"$f":"IF(ISNUMBER(SEARCH($B$18,CK143)),MAX($CJ$8:CJ142)+1,0)","v":135},"Tucked top planchě (held)",null,null,{"$f":"IFERROR(VLOOKUP(ROWS($CK$9:CK143),$CJ$9:$CK$162,2,0),\"\")","v":"Tucked top planchě (held)"}]
[null,null,null,null,null,null,null,null,null,null,null,null,null,null,null,{"$f":"IF(ISNUMBER(SEARCH($B$9,Q144)),MAX($P$8:P143)+1,0)","v":136},"Straddle lever to handstand",null,null,{"$f":"IFERROR(VLOOKUP(ROWS($Q$9:Q144),$P$9:$Q$162,2,0),\"\")","v":"Straddle lever to handstand"},null,null,null,{"$f":"IF(ISNUMBER(SEARCH($B$10,Y144)),MAX($X$8:X143)+1,0)","v":136},"Straddle lever to handstand",null,null,{"$f":"IFERROR(VLOOKUP(ROWS($Y$9:Y144),$X$9:$Y$162,2,0),\"\")","v":"Straddle lever to handstand"},null,null,null,{"$f":"IF(ISNUMBER(SEARCH($B$11,AG144)),MAX($AF$8:AF143)+1,0)","v":136},"Straddle lever to handstand",null,null,{"$f":"IFERROR(VLOOKUP(ROWS($AG$9:AG144),$AF$9:$AG$162,2,0),\"\")","v":"Straddle lever to handstand"},null,null,null,{"$f":"IF(ISNUMBER(SEARCH($B$12,AO144)),MAX($AN$8:AN143)+1,0)","v":136},"Straddle lever to handstand",null,null,{"$f":"IFERROR(VLOOKUP(ROWS($AO$9:AO144),$AN$9:$AO$162,2,0),\"\")","v":"Straddle lever to handstand"},null,null,null,{"$f":"IF(ISNUMBER(SEARCH($B$13,AW144)),MAX($AV$8:AV143)+1,0)","v":136},"Straddle lever to handstand",null,null,{"$f":"IFERROR(VLOOKUP(ROWS($AW$9:AW144),$AV$9:$AW$162,2,0),\"\")","v":"Straddle lever to handstand"},null,null,null,{"$f":"IF(ISNUMBER(SEARCH($B$14,BE144)),MAX($BD$8:BD143)+1,0)","v":136},"Straddle lever to handstand",null,null,{"$f":"IFERROR(VLOOKUP(ROWS($BE$9:BE144),$BD$9:$BE$162,2,0),\"\")","v":"Straddle lever to handstand"},null,null,null,{"$f":"IF(ISNUMBER(SEARCH($B$15,BM144)),MAX($BL$8:BL143)+1,0)","v":136},"Straddle lever to handstand",null,null,{"$f":"IFERROR(VLOOKUP(ROWS($BM$9:BM144),$BL$9:$BM$162,2,0),\"\")","v":"Straddle lever to handstand"},null,null,null,{"$f":"IF(ISNUMBER(SEARCH($B$16,BU144)),MAX($BT$8:BT143)+1,0)","v":136},"Straddle lever to handstand",null,null,{"$f":"IFERROR(VLOOKUP(ROWS($BU$9:BU144),$BT$9:$BU$162,2,0),\"\")","v":"Straddle lever to handstand"},null,null,null,{"$f":"IF(ISNUMBER(SEARCH($B$17,CC144)),MAX($CB$8:CB143)+1,0)","v":136},"Straddle lever to handstand",null,null,{"$f":"IFERROR(VLOOKUP(ROWS($CC$9:CC144),$CB$9:$CC$162,2,0),\"\")","v":"Straddle lever to handstand"},null,null,null,{"$f":"IF(ISNUMBER(SEARCH($B$18,CK144)),MAX($CJ$8:CJ143)+1,0)","v":136},"Straddle lever to handstand",null,null,{"$f":"IFERROR(VLOOKUP(ROWS($CK$9:CK144),$CJ$9:$CK$162,2,0),\"\")","v":"Straddle lever to handstand"}]
[null,null,null,null,null,null,null,null,null,null,null,null,null,null,null,{"$f":"IF(ISNUMBER(SEARCH($B$9,Q145)),MAX($P$8:P144)+1,0)","v":137},"Straddle lever to h/stand full turn ",null,null,{"$f":"IFERROR(VLOOKUP(ROWS($Q$9:Q145),$P$9:$Q$162,2,0),\"\")","v":"Straddle lever to h/stand full turn "},null,null,null,{"$f":"IF(ISNUMBER(SEARCH($B$10,Y145)),MAX($X$8:X144)+1,0)","v":137},"Straddle lever to h/stand full turn ",null,null,{"$f":"IFERROR(VLOOKUP(ROWS($Y$9:Y145),$X$9:$Y$162,2,0),\"\")","v":"Straddle lever to h/stand full turn "},null,null,null,{"$f":"IF(ISNUMBER(SEARCH($B$11,AG145)),MAX($AF$8:AF144)+1,0)","v":137},"Straddle lever to h/stand full turn ",null,null,{"$f":"IFERROR(VLOOKUP(ROWS($AG$9:AG145),$AF$9:$AG$162,2,0),\"\")","v":"Straddle lever to h/stand full turn "},null,null,null,{"$f":"IF(ISNUMBER(SEARCH($B$12,AO145)),MAX($AN$8:AN144)+1,0)","v":137},"Straddle lever to h/stand full turn ",null,null,{"$f":"IFERROR(VLOOKUP(ROWS($AO$9:AO145),$AN$9:$AO$162,2,0),\"\")","v":"Straddle lever to h/stand full turn "},null,null,null,{"$f":"IF(ISNUMBER(SEARCH($B$13,AW145)),MAX($AV$8:AV144)+1,0)","v":137},"Straddle lever to h/stand full turn ",null,null,{"$f":"IFERROR(VLOOKUP(ROWS($AW$9:AW145),$AV$9:$AW$162,2,0),\"\")","v":"Straddle lever to h/stand full turn "},null,null,null,{"$f":"IF(ISNUMBER(SEARCH($B$14,BE145)),MAX($BD$8:BD144)+1,0)","v":137},"Straddle lever to h/stand full turn ",null,null,{"$f":"IFERROR(VLOOKUP(ROWS($BE$9:BE145),$BD$9:$BE$162,2,0),\"\")","v":"Straddle lever to h/stand full turn "},null,null,null,{"$f":"IF(ISNUMBER(SEARCH($B$15,BM145)),MAX($BL$8:BL144)+1,0)","v":137},"Straddle lever to h/stand full turn ",null,null,{"$f":"IFERROR(VLOOKUP(ROWS($BM$9:BM145),$BL$9:$BM$162,2,0),\"\")","v":"Straddle lever to h/stand full turn "},null,null,null,{"$f":"IF(ISNUMBER(SEARCH($B$16,BU145)),MAX($BT$8:BT144)+1,0)","v":137},"Straddle lever to h/stand full turn ",null,null,{"$f":"IFERROR(VLOOKUP(ROWS($BU$9:BU145),$BT$9:$BU$162,2,0),\"\")","v":"Straddle lever to h/stand full turn "},null,null,null,{"$f":"IF(ISNUMBER(SEARCH($B$17,CC145)),MAX($CB$8:CB144)+1,0)","v":137},"Straddle lever to h/stand full turn ",null,null,{"$f":"IFERROR(VLOOKUP(ROWS($CC$9:CC145),$CB$9:$CC$162,2,0),\"\")","v":"Straddle lever to h/stand full turn "},null,null,null,{"$f":"IF(ISNUMBER(SEARCH($B$18,CK145)),MAX($CJ$8:CJ144)+1,0)","v":137},"Straddle lever to h/stand full turn ",null,null,{"$f":"IFERROR(VLOOKUP(ROWS($CK$9:CK145),$CJ$9:$CK$162,2,0),\"\")","v":"Straddle lever to h/stand full turn "}]
[null,null,null,null,null,null,null,null,null,null,null,null,null,null,null,{"$f":"IF(ISNUMBER(SEARCH($B$9,Q146)),MAX($P$8:P145)+1,0)","v":138},"Chest Roll to Handstand",null,null,{"$f":"IFERROR(VLOOKUP(ROWS($Q$9:Q146),$P$9:$Q$162,2,0),\"\")","v":"Chest Roll to Handstand"},null,null,null,{"$f":"IF(ISNUMBER(SEARCH($B$10,Y146)),MAX($X$8:X145)+1,0)","v":138},"Chest Roll to Handstand",null,null,{"$f":"IFERROR(VLOOKUP(ROWS($Y$9:Y146),$X$9:$Y$162,2,0),\"\")","v":"Chest Roll to Handstand"},null,null,null,{"$f":"IF(ISNUMBER(SEARCH($B$11,AG146)),MAX($AF$8:AF145)+1,0)","v":138},"Chest Roll to Handstand",null,null,{"$f":"IFERROR(VLOOKUP(ROWS($AG$9:AG146),$AF$9:$AG$162,2,0),\"\")","v":"Chest Roll to Handstand"},null,null,null,{"$f":"IF(ISNUMBER(SEARCH($B$12,AO146)),MAX($AN$8:AN145)+1,0)","v":138},"Chest Roll to Handstand",null,null,{"$f":"IFERROR(VLOOKUP(ROWS($AO$9:AO146),$AN$9:$AO$162,2,0),\"\")","v":"Chest Roll to Handstand"},null,null,null,{"$f":"IF(ISNUMBER(SEARCH($B$13,AW146)),MAX($AV$8:AV145)+1,0)","v":138},"Chest Roll to Handstand",null,null,{"$f":"IFERROR(VLOOKUP(ROWS($AW$9:AW146),$AV$9:$AW$162,2,0),\"\")","v":"Chest Roll to Handstand"},null,null,null,{"$f":"IF(ISNUMBER(SEARCH($B$14,BE146)),MAX($BD$8:BD145)+1,0)","v":138},"Chest Roll to Handstand",null,null,{"$f":"IFERROR(VLOOKUP(ROWS($BE$9:BE146),$BD$9:$BE$162,2,0),\"\")","v":"Chest Roll to Handstand"},null,null,null,{"$f":"IF(ISNUMBER(SEARCH($B$15,BM146)),MAX($BL$8:BL145)+1,0)","v":138},"Chest Roll to Handstand",null,null,{"$f":"IFERROR(VLOOKUP(ROWS($BM$9:BM146),$BL$9:$BM$162,2,0),\"\")","v":"Chest Roll to Handstand"},null,null,null,{"$f":"IF(ISNUMBER(SEARCH($B$16,BU146)),MAX($BT$8:BT145)+1,0)","v":138},"Chest Roll to Handstand",null,null,{"$f":"IFERROR(VLOOKUP(ROWS($BU$9:BU146),$BT$9:$BU$162,2,0),\"\")","v":"Chest Roll to Handstand"},null,null,null,{"$f":"IF(ISNUMBER(SEARCH($B$17,CC146)),MAX($CB$8:CB145)+1,0)","v":138},"Chest Roll to Handstand",null,null,{"$f":"IFERROR(VLOOKUP(ROWS($CC$9:CC146),$CB$9:$CC$162,2,0),\"\")","v":"Chest Roll to Handstand"},null,null,null,{"$f":"IF(ISNUMBER(SEARCH($B$18,CK146)),MAX($CJ$8:CJ145)+1,0)","v":138},"Chest Roll to Handstand",null,null,{"$f":"IFERROR(VLOOKUP(ROWS($CK$9:CK146),$CJ$9:$CK$162,2,0),\"\")","v":"Chest Roll to Handstand"}]
[null,null,null,null,null,null,null,null,null,null,null,null,null,null,null,{"$f":"IF(ISNUMBER(SEARCH($B$9,Q147)),MAX($P$8:P146)+1,0)","v":139},"B Roll to h/stand, 1/2 or full turn",null,null,{"$f":"IFERROR(VLOOKUP(ROWS($Q$9:Q147),$P$9:$Q$162,2,0),\"\")","v":"B Roll to h/stand, 1/2 or full turn"},null,null,null,{"$f":"IF(ISNUMBER(SEARCH($B$10,Y147)),MAX($X$8:X146)+1,0)","v":139},"B Roll to h/stand, 1/2 or full turn",null,null,{"$f":"IFERROR(VLOOKUP(ROWS($Y$9:Y147),$X$9:$Y$162,2,0),\"\")","v":"B Roll to h/stand, 1/2 or full turn"},null,null,null,{"$f":"IF(ISNUMBER(SEARCH($B$11,AG147)),MAX($AF$8:AF146)+1,0)","v":139},"B Roll to h/stand, 1/2 or full turn",null,null,{"$f":"IFERROR(VLOOKUP(ROWS($AG$9:AG147),$AF$9:$AG$162,2,0),\"\")","v":"B Roll to h/stand, 1/2 or full turn"},null,null,null,{"$f":"IF(ISNUMBER(SEARCH($B$12,AO147)),MAX($AN$8:AN146)+1,0)","v":139},"B Roll to h/stand, 1/2 or full turn",null,null,{"$f":"IFERROR(VLOOKUP(ROWS($AO$9:AO147),$AN$9:$AO$162,2,0),\"\")","v":"B Roll to h/stand, 1/2 or full turn"},null,null,null,{"$f":"IF(ISNUMBER(SEARCH($B$13,AW147)),MAX($AV$8:AV146)+1,0)","v":139},"B Roll to h/stand, 1/2 or full turn",null,null,{"$f":"IFERROR(VLOOKUP(ROWS($AW$9:AW147),$AV$9:$AW$162,2,0),\"\")","v":"B Roll to h/stand, 1/2 or full turn"},null,null,null,{"$f":"IF(ISNUMBER(SEARCH($B$14,BE147)),MAX($BD$8:BD146)+1,0)","v":139},"B Roll to h/stand, 1/2 or full turn",null,null,{"$f":"IFERROR(VLOOKUP(ROWS($BE$9:BE147),$BD$9:$BE$162,2,0),\"\")","v":"B Roll to h/stand, 1/2 or full turn"},null,null,null,{"$f":"IF(ISNUMBER(SEARCH($B$15,BM147)),MAX($BL$8:BL146)+1,0)","v":139},"B Roll to h/stand, 1/2 or full turn",null,null,{"$f":"IFERROR(VLOOKUP(ROWS($BM$9:BM147),$BL$9:$BM$162,2,0),\"\")","v":"B Roll to h/stand, 1/2 or full turn"},null,null,null,{"$f":"IF(ISNUMBER(SEARCH($B$16,BU147)),MAX($BT$8:BT146)+1,0)","v":139},"B Roll to h/stand, 1/2 or full turn",null,null,{"$f":"IFERROR(VLOOKUP(ROWS($BU$9:BU147),$BT$9:$BU$162,2,0),\"\")","v":"B Roll to h/stand, 1/2 or full turn"},null,null,null,{"$f":"IF(ISNUMBER(SEARCH($B$17,CC147)),MAX($CB$8:CB146)+1,0)","v":139},"B Roll to h/stand, 1/2 or full turn",null,null,{"$f":"IFERROR(VLOOKUP(ROWS($CC$9:CC147),$CB$9:$CC$162,2,0),\"\")","v":"B Roll to h/stand, 1/2 or full turn"},null,null,null,{"$f":"IF(ISNUMBER(SEARCH($B$18,CK147)),MAX($CJ$8:CJ146)+1,0)","v":139},"B Roll to h/stand, 1/2 or full turn",null,null,{"$f":"IFERROR(VLOOKUP(ROWS($CK$9:CK147),$CJ$9:$CK$162,2,0),\"\")","v":"B Roll to h/stand, 1/2 or full turn"}]
[null,null,null,null,null,null,null,null,null,null,null,null,null,null,null,{"$f":"IF(ISNUMBER(SEARCH($B$9,Q148)),MAX($P$8:P147)+1,0)","v":140},"Handstand double pirouette",null,null,{"$f":"IFERROR(VLOOKUP(ROWS($Q$9:Q148),$P$9:$Q$162,2,0),\"\")","v":"Handstand double pirouette"},null,null,null,{"$f":"IF(ISNUMBER(SEARCH($B$10,Y148)),MAX($X$8:X147)+1,0)","v":140},"Handstand double pirouette",null,null,{"$f":"IFERROR(VLOOKUP(ROWS($Y$9:Y148),$X$9:$Y$162,2,0),\"\")","v":"Handstand double pirouette"},null,null,null,{"$f":"IF(ISNUMBER(SEARCH($B$11,AG148)),MAX($AF$8:AF147)+1,0)","v":140},"Handstand double pirouette",null,null,{"$f":"IFERROR(VLOOKUP(ROWS($AG$9:AG148),$AF$9:$AG$162,2,0),\"\")","v":"Handstand double pirouette"},null,null,null,{"$f":"IF(ISNUMBER(SEARCH($B$12,AO148)),MAX($AN$8:AN147)+1,0)","v":140},"Handstand double pirouette",null,null,{"$f":"IFERROR(VLOOKUP(ROWS($AO$9:AO148),$AN$9:$AO$162,2,0),\"\")","v":"Handstand double pirouette"},null,null,null,{"$f":"IF(ISNUMBER(SEARCH($B$13,AW148)),MAX($AV$8:AV147)+1,0)","v":140},"Handstand double pirouette",null,null,{"$f":"IFERROR(VLOOKUP(ROWS($AW$9:AW148),$AV$9:$AW$162,2,0),\"\")","v":"Handstand double pirouette"},null,null,null,{"$f":"IF(ISNUMBER(SEARCH($B$14,BE148)),MAX($BD$8:BD147)+1,0)","v":140},"Handstand double pirouette",null,null,{"$f":"IFERROR(VLOOKUP(ROWS($BE$9:BE148),$BD$9:$BE$162,2,0),\"\")","v":"Handstand double pirouette"},null,null,null,{"$f":"IF(ISNUMBER(SEARCH($B$15,BM148)),MAX($BL$8:BL147)+1,0)","v":140},"Handstand double pirouette",null,null,{"$f":"IFERROR(VLOOKUP(ROWS($BM$9:BM148),$BL$9:$BM$162,2,0),\"\")","v":"Handstand double pirouette"},null,null,null,{"$f":"IF(ISNUMBER(SEARCH($B$16,BU148)),MAX($BT$8:BT147)+1,0)","v":140},"Handstand double pirouette",null,null,{"$f":"IFERROR(VLOOKUP(ROWS($BU$9:BU148),$BT$9:$BU$162,2,0),\"\")","v":"Handstand double pirouette"},null,null,null,{"$f":"IF(ISNUMBER(SEARCH($B$17,CC148)),MAX($CB$8:CB147)+1,0)","v":140},"Handstand double pirouette",null,null,{"$f":"IFERROR(VLOOKUP(ROWS($CC$9:CC148),$CB$9:$CC$162,2,0),\"\")","v":"Handstand double pirouette"},null,null,null,{"$f":"IF(ISNUMBER(SEARCH($B$18,CK148)),MAX($CJ$8:CJ147)+1,0)","v":140},"Handstand double pirouette",null,null,{"$f":"IFERROR(VLOOKUP(ROWS($CK$9:CK148),$CJ$9:$CK$162,2,0),\"\")","v":"Handstand double pirouette"}]
[null,null,null,null,null,null,null,null,null,null,null,null,null,null,null,{"$f":"IF(ISNUMBER(SEARCH($B$9,Q149)),MAX($P$8:P148)+1,0)","v":141},"Double Leg Circle",null,null,{"$f":"IFERROR(VLOOKUP(ROWS($Q$9:Q149),$P$9:$Q$162,2,0),\"\")","v":"Double Leg Circle"},null,null,null,{"$f":"IF(ISNUMBER(SEARCH($B$10,Y149)),MAX($X$8:X148)+1,0)","v":141},"Double Leg Circle",null,null,{"$f":"IFERROR(VLOOKUP(ROWS($Y$9:Y149),$X$9:$Y$162,2,0),\"\")","v":"Double Leg Circle"},null,null,null,{"$f":"IF(ISNUMBER(SEARCH($B$11,AG149)),MAX($AF$8:AF148)+1,0)","v":141},"Double Leg Circle",null,null,{"$f":"IFERROR(VLOOKUP(ROWS($AG$9:AG149),$AF$9:$AG$162,2,0),\"\")","v":"Double Leg Circle"},null,null,null,{"$f":"IF(ISNUMBER(SEARCH($B$12,AO149)),MAX($AN$8:AN148)+1,0)","v":141},"Double Leg Circle",null,null,{"$f":"IFERROR(VLOOKUP(ROWS($AO$9:AO149),$AN$9:$AO$162,2,0),\"\")","v":"Double Leg Circle"},null,null,null,{"$f":"IF(ISNUMBER(SEARCH($B$13,AW149)),MAX($AV$8:AV148)+1,0)","v":141},"Double Leg Circle",null,null,{"$f":"IFERROR(VLOOKUP(ROWS($AW$9:AW149),$AV$9:$AW$162,2,0),\"\")","v":"Double Leg Circle"},null,null,null,{"$f":"IF(ISNUMBER(SEARCH($B$14,BE149)),MAX($BD$8:BD148)+1,0)","v":141},"Double Leg Circle",null,null,{"$f":"IFERROR(VLOOKUP(ROWS($BE$9:BE149),$BD$9:$BE$162,2,0),\"\")","v":"Double Leg Circle"},null,null,null,{"$f":"IF(ISNUMBER(SEARCH($B$15,BM149)),MAX($BL$8:BL148)+1,0)","v":141},"Double Leg Circle",null,null,{"$f":"IFERROR(VLOOKUP(ROWS($BM$9:BM149),$BL$9:$BM$162,2,0),\"\")","v":"Double Leg Circle"},null,null,null,{"$f":"IF(ISNUMBER(SEARCH($B$16,BU149)),MAX($BT$8:BT148)+1,0)","v":141},"Double Leg Circle",null,null,{"$f":"IFERROR(VLOOKUP(ROWS($BU$9:BU149),$BT$9:$BU$162,2,0),\"\")","v":"Double Leg Circle"},null,null,null,{"$f":"IF(ISNUMBER(SEARCH($B$17,CC149)),MAX($CB$8:CB148)+1,0)","v":141},"Double Leg Circle",null,null,{"$f":"IFERROR(VLOOKUP(ROWS($CC$9:CC149),$CB$9:$CC$162,2,0),\"\")","v":"Double Leg Circle"},null,null,null,{"$f":"IF(ISNUMBER(SEARCH($B$18,CK149)),MAX($CJ$8:CJ148)+1,0)","v":141},"Double Leg Circle",null,null,{"$f":"IFERROR(VLOOKUP(ROWS($CK$9:CK149),$CJ$9:$CK$162,2,0),\"\")","v":"Double Leg Circle"}]
[null,null,null,null,null,null,null,null,null,null,null,null,null,null,null,{"$f":"IF(ISNUMBER(SEARCH($B$9,Q150)),MAX($P$8:P149)+1,0)","v":142},"Valdez",null,null,{"$f":"IFERROR(VLOOKUP(ROWS($Q$9:Q150),$P$9:$Q$162,2,0),\"\")","v":"Valdez"},null,null,null,{"$f":"IF(ISNUMBER(SEARCH($B$10,Y150)),MAX($X$8:X149)+1,0)","v":142},"Valdez",null,null,{"$f":"IFERROR(VLOOKUP(ROWS($Y$9:Y150),$X$9:$Y$162,2,0),\"\")","v":"Valdez"},null,null,null,{"$f":"IF(ISNUMBER(SEARCH($B$11,AG150)),MAX($AF$8:AF149)+1,0)","v":142},"Valdez",null,null,{"$f":"IFERROR(VLOOKUP(ROWS($AG$9:AG150),$AF$9:$AG$162,2,0),\"\")","v":"Valdez"},null,null,null,{"$f":"IF(ISNUMBER(SEARCH($B$12,AO150)),MAX($AN$8:AN149)+1,0)","v":142},"Valdez",null,null,{"$f":"IFERROR(VLOOKUP(ROWS($AO$9:AO150),$AN$9:$AO$162,2,0),\"\")","v":"Valdez"},null,null,null,{"$f":"IF(ISNUMBER(SEARCH($B$13,AW150)),MAX($AV$8:AV149)+1,0)","v":142},"Valdez",null,null,{"$f":"IFERROR(VLOOKUP(ROWS($AW$9:AW150),$AV$9:$AW$162,2,0),\"\")","v":"Valdez"},null,null,null,{"$f":"IF(ISNUMBER(SEARCH($B$14,BE150)),MAX($BD$8:BD149)+1,0)","v":142},"Valdez",null,null,{"$f":"IFERROR(VLOOKUP(ROWS($BE$9:BE150),$BD$9:$BE$162,2,0),\"\")","v":"Valdez"},null,null,null,{"$f":"IF(ISNUMBER(SEARCH($B$15,BM150)),MAX($BL$8:BL149)+1,0)","v":142},"Valdez",null,null,{"$f":"IFERROR(VLOOKUP(ROWS($BM$9:BM150),$BL$9:$BM$162,2,0),\"\")","v":"Valdez"},null,null,null,{"$f":"IF(ISNUMBER(SEARCH($B$16,BU150)),MAX($BT$8:BT149)+1,0)","v":142},"Valdez",null,null,{"$f":"IFERROR(VLOOKUP(ROWS($BU$9:BU150),$BT$9:$BU$162,2,0),\"\")","v":"Valdez"},null,null,null,{"$f":"IF(ISNUMBER(SEARCH($B$17,CC150)),MAX($CB$8:CB149)+1,0)","v":142},"Valdez",null,null,{"$f":"IFERROR(VLOOKUP(ROWS($CC$9:CC150),$CB$9:$CC$162,2,0),\"\")","v":"Valdez"},null,null,null,{"$f":"IF(ISNUMBER(SEARCH($B$18,CK150)),MAX($CJ$8:CJ149)+1,0)","v":142},"Valdez",null,null,{"$f":"IFERROR(VLOOKUP(ROWS($CK$9:CK150),$CJ$9:$CK$162,2,0),\"\")","v":"Valdez"}]
[null,null,null,null,null,null,null,null,null,null,null,null,null,null,null,{"$f":"IF(ISNUMBER(SEARCH($B$9,Q151)),MAX($P$8:P150)+1,0)","v":143},"Flyspring Front Salto",null,null,{"$f":"IFERROR(VLOOKUP(ROWS($Q$9:Q151),$P$9:$Q$162,2,0),\"\")","v":"Flyspring Front Salto"},null,null,null,{"$f":"IF(ISNUMBER(SEARCH($B$10,Y151)),MAX($X$8:X150)+1,0)","v":143},"Flyspring Front Salto",null,null,{"$f":"IFERROR(VLOOKUP(ROWS($Y$9:Y151),$X$9:$Y$162,2,0),\"\")","v":"Flyspring Front Salto"},null,null,null,{"$f":"IF(ISNUMBER(SEARCH($B$11,AG151)),MAX($AF$8:AF150)+1,0)","v":143},"Flyspring Front Salto",null,null,{"$f":"IFERROR(VLOOKUP(ROWS($AG$9:AG151),$AF$9:$AG$162,2,0),\"\")","v":"Flyspring Front Salto"},null,null,null,{"$f":"IF(ISNUMBER(SEARCH($B$12,AO151)),MAX($AN$8:AN150)+1,0)","v":143},"Flyspring Front Salto",null,null,{"$f":"IFERROR(VLOOKUP(ROWS($AO$9:AO151),$AN$9:$AO$162,2,0),\"\")","v":"Flyspring Front Salto"},null,null,null,{"$f":"IF(ISNUMBER(SEARCH($B$13,AW151)),MAX($AV$8:AV150)+1,0)","v":143},"Flyspring Front Salto",null,null,{"$f":"IFERROR(VLOOKUP(ROWS($AW$9:AW151),$AV$9:$AW$162,2,0),\"\")","v":"Flyspring Front Salto"},null,null,null,{"$f":"IF(ISNUMBER(SEARCH($B$14,BE151)),MAX($BD$8:BD150)+1,0)","v":143},"Flyspring Front Salto",null,null,{"$f":"IFERROR(VLOOKUP(ROWS($BE$9:BE151),$BD$9:$BE$162,2,0),\"\")","v":"Flyspring Front Salto"},null,null,null,{"$f":"IF(ISNUMBER(SEARCH($B$15,BM151)),MAX($BL$8:BL150)+1,0)","v":143},"Flyspring Front Salto",null,null,{"$f":"IFERROR(VLOOKUP(ROWS($BM$9:BM151),$BL$9:$BM$162,2,0),\"\")","v":"Flyspring Front Salto"},null,null,null,{"$f":"IF(ISNUMBER(SEARCH($B$16,BU151)),MAX($BT$8:BT150)+1,0)","v":143},"Flyspring Front Salto",null,null,{"$f":"IFERROR(VLOOKUP(ROWS($BU$9:BU151),$BT$9:$BU$162,2,0),\"\")","v":"Flyspring Front Salto"},null,null,null,{"$f":"IF(ISNUMBER(SEARCH($B$17,CC151)),MAX($CB$8:CB150)+1,0)","v":143},"Flyspring Front Salto",null,null,{"$f":"IFERROR(VLOOKUP(ROWS($CC$9:CC151),$CB$9:$CC$162,2,0),\"\")","v":"Flyspring Front Salto"},null,null,null,{"$f":"IF(ISNUMBER(SEARCH($B$18,CK151)),MAX($CJ$8:CJ150)+1,0)","v":143},"Flyspring Front Salto",null,null,{"$f":"IFERROR(VLOOKUP(ROWS($CK$9:CK151),$CJ$9:$CK$162,2,0),\"\")","v":"Flyspring Front Salto"}]
[null,null,null,null,null,null,null,null,null,null,null,null,null,null,null,{"$f":"IF(ISNUMBER(SEARCH($B$9,Q152)),MAX($P$8:P151)+1,0)","v":144},"Dive Forward Roll (with flight)",null,null,{"$f":"IFERROR(VLOOKUP(ROWS($Q$9:Q152),$P$9:$Q$162,2,0),\"\")","v":"Dive Forward Roll (with flight)"},null,null,null,{"$f":"IF(ISNUMBER(SEARCH($B$10,Y152)),MAX($X$8:X151)+1,0)","v":144},"Dive Forward Roll (with flight)",null,null,{"$f":"IFERROR(VLOOKUP(ROWS($Y$9:Y152),$X$9:$Y$162,2,0),\"\")","v":"Dive Forward Roll (with flight)"},null,null,null,{"$f":"IF(ISNUMBER(SEARCH($B$11,AG152)),MAX($AF$8:AF151)+1,0)","v":144},"Dive Forward Roll (with flight)",null,null,{"$f":"IFERROR(VLOOKUP(ROWS($AG$9:AG152),$AF$9:$AG$162,2,0),\"\")","v":"Dive Forward Roll (with flight)"},null,null,null,{"$f":"IF(ISNUMBER(SEARCH($B$12,AO152)),MAX($AN$8:AN151)+1,0)","v":144},"Dive Forward Roll (with flight)",null,null,{"$f":"IFERROR(VLOOKUP(ROWS($AO$9:AO152),$AN$9:$AO$162,2,0),\"\")","v":"Dive Forward Roll (with flight)"},null,null,null,{"$f":"IF(ISNUMBER(SEARCH($B$13,AW152)),MAX($AV$8:AV151)+1,0)","v":144},"Dive Forward Roll (with flight)",null,null,{"$f":"IFERROR(VLOOKUP(ROWS($AW$9:AW152),$AV$9:$AW$162,2,0),\"\")","v":"Dive Forward Roll (with flight)"},null,null,null,{"$f":"IF(ISNUMBER(SEARCH($B$14,BE152)),MAX($BD$8:BD151)+1,0)","v":144},"Dive Forward Roll (with flight)",null,null,{"$f":"IFERROR(VLOOKUP(ROWS($BE$9:BE152),$BD$9:$BE$162,2,0),\"\")","v":"Dive Forward Roll (with flight)"},null,null,null,{"$f":"IF(ISNUMBER(SEARCH($B$15,BM152)),MAX($BL$8:BL151)+1,0)","v":144},"Dive Forward Roll (with flight)",null,null,{"$f":"IFERROR(VLOOKUP(ROWS($BM$9:BM152),$BL$9:$BM$162,2,0),\"\")","v":"Dive Forward Roll (with flight)"},null,null,null,{"$f":"IF(ISNUMBER(SEARCH($B$16,BU152)),MAX($BT$8:BT151)+1,0)","v":144},"Dive Forward Roll (with flight)",null,null,{"$f":"IFERROR(VLOOKUP(ROWS($BU$9:BU152),$BT$9:$BU$162,2,0),\"\")","v":"Dive Forward Roll (with flight)"},null,null,null,{"$f":"IF(ISNUMBER(SEARCH($B$17,CC152)),MAX($CB$8:CB151)+1,0)","v":144},"Dive Forward Roll (with flight)",null,null,{"$f":"IFERROR(VLOOKUP(ROWS($CC$9:CC152),$CB$9:$CC$162,2,0),\"\")","v":"Dive Forward Roll (with flight)"},null,null,null,{"$f":"IF(ISNUMBER(SEARCH($B$18,CK152)),MAX($CJ$8:CJ151)+1,0)","v":144},"Dive Forward Roll (with flight)",null,null,{"$f":"IFERROR(VLOOKUP(ROWS($CK$9:CK152),$CJ$9:$CK$162,2,0),\"\")","v":"Dive Forward Roll (with flight)"}]
[null,null,null,null,null,null,null,null,null,null,null,null,null,null,null,{"$f":"IF(ISNUMBER(SEARCH($B$9,Q153)),MAX($P$8:P152)+1,0)","v":145},"Pike Front Salto",null,null,{"$f":"IFERROR(VLOOKUP(ROWS($Q$9:Q153),$P$9:$Q$162,2,0),\"\")","v":"Pike Front Salto"},null,null,null,{"$f":"IF(ISNUMBER(SEARCH($B$10,Y153)),MAX($X$8:X152)+1,0)","v":145},"Pike Front Salto",null,null,{"$f":"IFERROR(VLOOKUP(ROWS($Y$9:Y153),$X$9:$Y$162,2,0),\"\")","v":"Pike Front Salto"},null,null,null,{"$f":"IF(ISNUMBER(SEARCH($B$11,AG153)),MAX($AF$8:AF152)+1,0)","v":145},"Pike Front Salto",null,null,{"$f":"IFERROR(VLOOKUP(ROWS($AG$9:AG153),$AF$9:$AG$162,2,0),\"\")","v":"Pike Front Salto"},null,null,null,{"$f":"IF(ISNUMBER(SEARCH($B$12,AO153)),MAX($AN$8:AN152)+1,0)","v":145},"Pike Front Salto",null,null,{"$f":"IFERROR(VLOOKUP(ROWS($AO$9:AO153),$AN$9:$AO$162,2,0),\"\")","v":"Pike Front Salto"},null,null,null,{"$f":"IF(ISNUMBER(SEARCH($B$13,AW153)),MAX($AV$8:AV152)+1,0)","v":145},"Pike Front Salto",null,null,{"$f":"IFERROR(VLOOKUP(ROWS($AW$9:AW153),$AV$9:$AW$162,2,0),\"\")","v":"Pike Front Salto"},null,null,null,{"$f":"IF(ISNUMBER(SEARCH($B$14,BE153)),MAX($BD$8:BD152)+1,0)","v":145},"Pike Front Salto",null,null,{"$f":"IFERROR(VLOOKUP(ROWS($BE$9:BE153),$BD$9:$BE$162,2,0),\"\")","v":"Pike Front Salto"},null,null,null,{"$f":"IF(ISNUMBER(SEARCH($B$15,BM153)),MAX($BL$8:BL152)+1,0)","v":145},"Pike Front Salto",null,null,{"$f":"IFERROR(VLOOKUP(ROWS($BM$9:BM153),$BL$9:$BM$162,2,0),\"\")","v":"Pike Front Salto"},null,null,null,{"$f":"IF(ISNUMBER(SEARCH($B$16,BU153)),MAX($BT$8:BT152)+1,0)","v":145},"Pike Front Salto",null,null,{"$f":"IFERROR(VLOOKUP(ROWS($BU$9:BU153),$BT$9:$BU$162,2,0),\"\")","v":"Pike Front Salto"},null,null,null,{"$f":"IF(ISNUMBER(SEARCH($B$17,CC153)),MAX($CB$8:CB152)+1,0)","v":145},"Pike Front Salto",null,null,{"$f":"IFERROR(VLOOKUP(ROWS($CC$9:CC153),$CB$9:$CC$162,2,0),\"\")","v":"Pike Front Salto"},null,null,null,{"$f":"IF(ISNUMBER(SEARCH($B$18,CK153)),MAX($CJ$8:CJ152)+1,0)","v":145},"Pike Front Salto",null,null,{"$f":"IFERROR(VLOOKUP(ROWS($CK$9:CK153),$CJ$9:$CK$162,2,0),\"\")","v":"Pike Front Salto"}]
[null,null,null,null,null,null,null,null,null,null,null,null,null,null,null,{"$f":"IF(ISNUMBER(SEARCH($B$9,Q154)),MAX($P$8:P153)+1,0)","v":146},"Straight Front Salto",null,null,{"$f":"IFERROR(VLOOKUP(ROWS($Q$9:Q154),$P$9:$Q$162,2,0),\"\")","v":"Straight Front Salto"},null,null,null,{"$f":"IF(ISNUMBER(SEARCH($B$10,Y154)),MAX($X$8:X153)+1,0)","v":146},"Straight Front Salto",null,null,{"$f":"IFERROR(VLOOKUP(ROWS($Y$9:Y154),$X$9:$Y$162,2,0),\"\")","v":"Straight Front Salto"},null,null,null,{"$f":"IF(ISNUMBER(SEARCH($B$11,AG154)),MAX($AF$8:AF153)+1,0)","v":146},"Straight Front Salto",null,null,{"$f":"IFERROR(VLOOKUP(ROWS($AG$9:AG154),$AF$9:$AG$162,2,0),\"\")","v":"Straight Front Salto"},null,null,null,{"$f":"IF(ISNUMBER(SEARCH($B$12,AO154)),MAX($AN$8:AN153)+1,0)","v":146},"Straight Front Salto",null,null,{"$f":"IFERROR(VLOOKUP(ROWS($AO$9:AO154),$AN$9:$AO$162,2,0),\"\")","v":"Straight Front Salto"},null,null,null,{"$f":"IF(ISNUMBER(SEARCH($B$13,AW154)),MAX($AV$8:AV153)+1,0)","v":146},"Straight Front Salto",null,null,{"$f":"IFERROR(VLOOKUP(ROWS($AW$9:AW154),$AV$9:$AW$162,2,0),\"\")","v":"Straight Front Salto"},null,null,null,{"$f":"IF(ISNUMBER(SEARCH($B$14,BE154)),MAX($BD$8:BD153)+1,0)","v":146},"Straight Front Salto",null,null,{"$f":"IFERROR(VLOOKUP(ROWS($BE$9:BE154),$BD$9:$BE$162,2,0),\"\")","v":"Straight Front Salto"},null,null,null,{"$f":"IF(ISNUMBER(SEARCH($B$15,BM154)),MAX($BL$8:BL153)+1,0)","v":146},"Straight Front Salto",null,null,{"$f":"IFERROR(VLOOKUP(ROWS($BM$9:BM154),$BL$9:$BM$162,2,0),\"\")","v":"Straight Front Salto"},null,null,null,{"$f":"IF(ISNUMBER(SEARCH($B$16,BU154)),MAX($BT$8:BT153)+1,0)","v":146},"Straight Front Salto",null,null,{"$f":"IFERROR(VLOOKUP(ROWS($BU$9:BU154),$BT$9:$BU$162,2,0),\"\")","v":"Straight Front Salto"},null,null,null,{"$f":"IF(ISNUMBER(SEARCH($B$17,CC154)),MAX($CB$8:CB153)+1,0)","v":146},"Straight Front Salto",null,null,{"$f":"IFERROR(VLOOKUP(ROWS($CC$9:CC154),$CB$9:$CC$162,2,0),\"\")","v":"Straight Front Salto"},null,null,null,{"$f":"IF(ISNUMBER(SEARCH($B$18,CK154)),MAX($CJ$8:CJ153)+1,0)","v":146},"Straight Front Salto",null,null,{"$f":"IFERROR(VLOOKUP(ROWS($CK$9:CK154),$CJ$9:$CK$162,2,0),\"\")","v":"Straight Front Salto"}]
[null,null,null,null,null,null,null,null,null,null,null,null,null,null,null,{"$f":"IF(ISNUMBER(SEARCH($B$9,Q155)),MAX($P$8:P154)+1,0)","v":147},"F Salto step out, R/O, Flic, B Salto",null,null,{"$f":"IFERROR(VLOOKUP(ROWS($Q$9:Q155),$P$9:$Q$162,2,0),\"\")","v":"F Salto step out, R/O, Flic, B Salto"},null,null,null,{"$f":"IF(ISNUMBER(SEARCH($B$10,Y155)),MAX($X$8:X154)+1,0)","v":147},"F Salto step out, R/O, Flic, B Salto",null,null,{"$f":"IFERROR(VLOOKUP(ROWS($Y$9:Y155),$X$9:$Y$162,2,0),\"\")","v":"F Salto step out, R/O, Flic, B Salto"},null,null,null,{"$f":"IF(ISNUMBER(SEARCH($B$11,AG155)),MAX($AF$8:AF154)+1,0)","v":147},"F Salto step out, R/O, Flic, B Salto",null,null,{"$f":"IFERROR(VLOOKUP(ROWS($AG$9:AG155),$AF$9:$AG$162,2,0),\"\")","v":"F Salto step out, R/O, Flic, B Salto"},null,null,null,{"$f":"IF(ISNUMBER(SEARCH($B$12,AO155)),MAX($AN$8:AN154)+1,0)","v":147},"F Salto step out, R/O, Flic, B Salto",null,null,{"$f":"IFERROR(VLOOKUP(ROWS($AO$9:AO155),$AN$9:$AO$162,2,0),\"\")","v":"F Salto step out, R/O, Flic, B Salto"},null,null,null,{"$f":"IF(ISNUMBER(SEARCH($B$13,AW155)),MAX($AV$8:AV154)+1,0)","v":147},"F Salto step out, R/O, Flic, B Salto",null,null,{"$f":"IFERROR(VLOOKUP(ROWS($AW$9:AW155),$AV$9:$AW$162,2,0),\"\")","v":"F Salto step out, R/O, Flic, B Salto"},null,null,null,{"$f":"IF(ISNUMBER(SEARCH($B$14,BE155)),MAX($BD$8:BD154)+1,0)","v":147},"F Salto step out, R/O, Flic, B Salto",null,null,{"$f":"IFERROR(VLOOKUP(ROWS($BE$9:BE155),$BD$9:$BE$162,2,0),\"\")","v":"F Salto step out, R/O, Flic, B Salto"},null,null,null,{"$f":"IF(ISNUMBER(SEARCH($B$15,BM155)),MAX($BL$8:BL154)+1,0)","v":147},"F Salto step out, R/O, Flic, B Salto",null,null,{"$f":"IFERROR(VLOOKUP(ROWS($BM$9:BM155),$BL$9:$BM$162,2,0),\"\")","v":"F Salto step out, R/O, Flic, B Salto"},null,null,null,{"$f":"IF(ISNUMBER(SEARCH($B$16,BU155)),MAX($BT$8:BT154)+1,0)","v":147},"F Salto step out, R/O, Flic, B Salto",null,null,{"$f":"IFERROR(VLOOKUP(ROWS($BU$9:BU155),$BT$9:$BU$162,2,0),\"\")","v":"F Salto step out, R/O, Flic, B Salto"},null,null,null,{"$f":"IF(ISNUMBER(SEARCH($B$17,CC155)),MAX($CB$8:CB154)+1,0)","v":147},"F Salto step out, R/O, Flic, B Salto",null,null,{"$f":"IFERROR(VLOOKUP(ROWS($CC$9:CC155),$CB$9:$CC$162,2,0),\"\")","v":"F Salto step out, R/O, Flic, B Salto"},null,null,null,{"$f":"IF(ISNUMBER(SEARCH($B$18,CK155)),MAX($CJ$8:CJ154)+1,0)","v":147},"F Salto step out, R/O, Flic, B Salto",null,null,{"$f":"IFERROR(VLOOKUP(ROWS($CK$9:CK155),$CJ$9:$CK$162,2,0),\"\")","v":"F Salto step out, R/O, Flic, B Salto"}]
[null,null,null,null,null,null,null,null,null,null,null,null,null,null,null,{"$f":"IF(ISNUMBER(SEARCH($B$9,Q156)),MAX($P$8:P155)+1,0)","v":148},"R/O, Flic, Pike/ Straight B Salto",null,null,{"$f":"IFERROR(VLOOKUP(ROWS($Q$9:Q156),$P$9:$Q$162,2,0),\"\")","v":"R/O, Flic, Pike/ Straight B Salto"},null,null,null,{"$f":"IF(ISNUMBER(SEARCH($B$10,Y156)),MAX($X$8:X155)+1,0)","v":148},"R/O, Flic, Pike/ Straight B Salto",null,null,{"$f":"IFERROR(VLOOKUP(ROWS($Y$9:Y156),$X$9:$Y$162,2,0),\"\")","v":"R/O, Flic, Pike/ Straight B Salto"},null,null,null,{"$f":"IF(ISNUMBER(SEARCH($B$11,AG156)),MAX($AF$8:AF155)+1,0)","v":148},"R/O, Flic, Pike/ Straight B Salto",null,null,{"$f":"IFERROR(VLOOKUP(ROWS($AG$9:AG156),$AF$9:$AG$162,2,0),\"\")","v":"R/O, Flic, Pike/ Straight B Salto"},null,null,null,{"$f":"IF(ISNUMBER(SEARCH($B$12,AO156)),MAX($AN$8:AN155)+1,0)","v":148},"R/O, Flic, Pike/ Straight B Salto",null,null,{"$f":"IFERROR(VLOOKUP(ROWS($AO$9:AO156),$AN$9:$AO$162,2,0),\"\")","v":"R/O, Flic, Pike/ Straight B Salto"},null,null,null,{"$f":"IF(ISNUMBER(SEARCH($B$13,AW156)),MAX($AV$8:AV155)+1,0)","v":148},"R/O, Flic, Pike/ Straight B Salto",null,null,{"$f":"IFERROR(VLOOKUP(ROWS($AW$9:AW156),$AV$9:$AW$162,2,0),\"\")","v":"R/O, Flic, Pike/ Straight B Salto"},null,null,null,{"$f":"IF(ISNUMBER(SEARCH($B$14,BE156)),MAX($BD$8:BD155)+1,0)","v":148},"R/O, Flic, Pike/ Straight B Salto",null,null,{"$f":"IFERROR(VLOOKUP(ROWS($BE$9:BE156),$BD$9:$BE$162,2,0),\"\")","v":"R/O, Flic, Pike/ Straight B Salto"},null,null,null,{"$f":"IF(ISNUMBER(SEARCH($B$15,BM156)),MAX($BL$8:BL155)+1,0)","v":148},"R/O, Flic, Pike/ Straight B Salto",null,null,{"$f":"IFERROR(VLOOKUP(ROWS($BM$9:BM156),$BL$9:$BM$162,2,0),\"\")","v":"R/O, Flic, Pike/ Straight B Salto"},null,null,null,{"$f":"IF(ISNUMBER(SEARCH($B$16,BU156)),MAX($BT$8:BT155)+1,0)","v":148},"R/O, Flic, Pike/ Straight B Salto",null,null,{"$f":"IFERROR(VLOOKUP(ROWS($BU$9:BU156),$BT$9:$BU$162,2,0),\"\")","v":"R/O, Flic, Pike/ Straight B Salto"},null,null,null,{"$f":"IF(ISNUMBER(SEARCH($B$17,CC156)),MAX($CB$8:CB155)+1,0)","v":148},"R/O, Flic, Pike/ Straight B Salto",null,null,{"$f":"IFERROR(VLOOKUP(ROWS($CC$9:CC156),$CB$9:$CC$162,2,0),\"\")","v":"R/O, Flic, Pike/ Straight B Salto"},null,null,null,{"$f":"IF(ISNUMBER(SEARCH($B$18,CK156)),MAX($CJ$8:CJ155)+1,0)","v":148},"R/O, Flic, Pike/ Straight B Salto",null,null,{"$f":"IFERROR(VLOOKUP(ROWS($CK$9:CK156),$CJ$9:$CK$162,2,0),\"\")","v":"R/O, Flic, Pike/ Straight B Salto"}]
[null,null,null,null,null,null,null,null,null,null,null,null,null,null,null,{"$f":"IF(ISNUMBER(SEARCH($B$9,Q157)),MAX($P$8:P156)+1,0)","v":149},"R/O, Flic, B Salto with ½ twist",null,null,{"$f":"IFERROR(VLOOKUP(ROWS($Q$9:Q157),$P$9:$Q$162,2,0),\"\")","v":"R/O, Flic, B Salto with ½ twist"},null,null,null,{"$f":"IF(ISNUMBER(SEARCH($B$10,Y157)),MAX($X$8:X156)+1,0)","v":149},"R/O, Flic, B Salto with ½ twist",null,null,{"$f":"IFERROR(VLOOKUP(ROWS($Y$9:Y157),$X$9:$Y$162,2,0),\"\")","v":"R/O, Flic, B Salto with ½ twist"},null,null,null,{"$f":"IF(ISNUMBER(SEARCH($B$11,AG157)),MAX($AF$8:AF156)+1,0)","v":149},"R/O, Flic, B Salto with ½ twist",null,null,{"$f":"IFERROR(VLOOKUP(ROWS($AG$9:AG157),$AF$9:$AG$162,2,0),\"\")","v":"R/O, Flic, B Salto with ½ twist"},null,null,null,{"$f":"IF(ISNUMBER(SEARCH($B$12,AO157)),MAX($AN$8:AN156)+1,0)","v":149},"R/O, Flic, B Salto with ½ twist",null,null,{"$f":"IFERROR(VLOOKUP(ROWS($AO$9:AO157),$AN$9:$AO$162,2,0),\"\")","v":"R/O, Flic, B Salto with ½ twist"},null,null,null,{"$f":"IF(ISNUMBER(SEARCH($B$13,AW157)),MAX($AV$8:AV156)+1,0)","v":149},"R/O, Flic, B Salto with ½ twist",null,null,{"$f":"IFERROR(VLOOKUP(ROWS($AW$9:AW157),$AV$9:$AW$162,2,0),\"\")","v":"R/O, Flic, B Salto with ½ twist"},null,null,null,{"$f":"IF(ISNUMBER(SEARCH($B$14,BE157)),MAX($BD$8:BD156)+1,0)","v":149},"R/O, Flic, B Salto with ½ twist",null,null,{"$f":"IFERROR(VLOOKUP(ROWS($BE$9:BE157),$BD$9:$BE$162,2,0),\"\")","v":"R/O, Flic, B Salto with ½ twist"},null,null,null,{"$f":"IF(ISNUMBER(SEARCH($B$15,BM157)),MAX($BL$8:BL156)+1,0)","v":149},"R/O, Flic, B Salto with ½ twist",null,null,{"$f":"IFERROR(VLOOKUP(ROWS($BM$9:BM157),$BL$9:$BM$162,2,0),\"\")","v":"R/O, Flic, B Salto with ½ twist"},null,null,null,{"$f":"IF(ISNUMBER(SEARCH($B$16,BU157)),MAX($BT$8:BT156)+1,0)","v":149},"R/O, Flic, B Salto with ½ twist",null,null,{"$f":"IFERROR(VLOOKUP(ROWS($BU$9:BU157),$BT$9:$BU$162,2,0),\"\")","v":"R/O, Flic, B Salto with ½ twist"},null,null,null,{"$f":"IF(ISNUMBER(SEARCH($B$17,CC157)),MAX($CB$8:CB156)+1,0)","v":149},"R/O, Flic, B Salto with ½ twist",null,null,{"$f":"IFERROR(VLOOKUP(ROWS($CC$9:CC157),$CB$9:$CC$162,2,0),\"\")","v":"R/O, Flic, B Salto with ½ twist"},null,null,null,{"$f":"IF(ISNUMBER(SEARCH($B$18,CK157)),MAX($CJ$8:CJ156)+1,0)","v":149},"R/O, Flic, B Salto with ½ twist",null,null,{"$f":"IFERROR(VLOOKUP(ROWS($CK$9:CK157),$CJ$9:$CK$162,2,0),\"\")","v":"R/O, Flic, B Salto with ½ twist"}]
[null,null,null,null,null,null,null,null,null,null,null,null,null,null,null,{"$f":"IF(ISNUMBER(SEARCH($B$9,Q158)),MAX($P$8:P157)+1,0)","v":150},"R/O, Flic, B Salto with 1/1  twist",null,null,{"$f":"IFERROR(VLOOKUP(ROWS($Q$9:Q158),$P$9:$Q$162,2,0),\"\")","v":"R/O, Flic, B Salto with 1/1  twist"},null,null,null,{"$f":"IF(ISNUMBER(SEARCH($B$10,Y158)),MAX($X$8:X157)+1,0)","v":150},"R/O, Flic, B Salto with 1/1  twist",null,null,{"$f":"IFERROR(VLOOKUP(ROWS($Y$9:Y158),$X$9:$Y$162,2,0),\"\")","v":"R/O, Flic, B Salto with 1/1  twist"},null,null,null,{"$f":"IF(ISNUMBER(SEARCH($B$11,AG158)),MAX($AF$8:AF157)+1,0)","v":150},"R/O, Flic, B Salto with 1/1  twist",null,null,{"$f":"IFERROR(VLOOKUP(ROWS($AG$9:AG158),$AF$9:$AG$162,2,0),\"\")","v":"R/O, Flic, B Salto with 1/1  twist"},null,null,null,{"$f":"IF(ISNUMBER(SEARCH($B$12,AO158)),MAX($AN$8:AN157)+1,0)","v":150},"R/O, Flic, B Salto with 1/1  twist",null,null,{"$f":"IFERROR(VLOOKUP(ROWS($AO$9:AO158),$AN$9:$AO$162,2,0),\"\")","v":"R/O, Flic, B Salto with 1/1  twist"},null,null,null,{"$f":"IF(ISNUMBER(SEARCH($B$13,AW158)),MAX($AV$8:AV157)+1,0)","v":150},"R/O, Flic, B Salto with 1/1  twist",null,null,{"$f":"IFERROR(VLOOKUP(ROWS($AW$9:AW158),$AV$9:$AW$162,2,0),\"\")","v":"R/O, Flic, B Salto with 1/1  twist"},null,null,null,{"$f":"IF(ISNUMBER(SEARCH($B$14,BE158)),MAX($BD$8:BD157)+1,0)","v":150},"R/O, Flic, B Salto with 1/1  twist",null,null,{"$f":"IFERROR(VLOOKUP(ROWS($BE$9:BE158),$BD$9:$BE$162,2,0),\"\")","v":"R/O, Flic, B Salto with 1/1  twist"},null,null,null,{"$f":"IF(ISNUMBER(SEARCH($B$15,BM158)),MAX($BL$8:BL157)+1,0)","v":150},"R/O, Flic, B Salto with 1/1  twist",null,null,{"$f":"IFERROR(VLOOKUP(ROWS($BM$9:BM158),$BL$9:$BM$162,2,0),\"\")","v":"R/O, Flic, B Salto with 1/1  twist"},null,null,null,{"$f":"IF(ISNUMBER(SEARCH($B$16,BU158)),MAX($BT$8:BT157)+1,0)","v":150},"R/O, Flic, B Salto with 1/1  twist",null,null,{"$f":"IFERROR(VLOOKUP(ROWS($BU$9:BU158),$BT$9:$BU$162,2,0),\"\")","v":"R/O, Flic, B Salto with 1/1  twist"},null,null,null,{"$f":"IF(ISNUMBER(SEARCH($B$17,CC158)),MAX($CB$8:CB157)+1,0)","v":150},"R/O, Flic, B Salto with 1/1  twist",null,null,{"$f":"IFERROR(VLOOKUP(ROWS($CC$9:CC158),$CB$9:$CC$162,2,0),\"\")","v":"R/O, Flic, B Salto with 1/1  twist"},null,null,null,{"$f":"IF(ISNUMBER(SEARCH($B$18,CK158)),MAX($CJ$8:CJ157)+1,0)","v":150},"R/O, Flic, B Salto with 1/1  twist",null,null,{"$f":"IFERROR(VLOOKUP(ROWS($CK$9:CK158),$CJ$9:$CK$162,2,0),\"\")","v":"R/O, Flic, B Salto with 1/1  twist"}]
[null,null,null,null,null,null,null,null,null,null,null,null,null,null,null,{"$f":"IF(ISNUMBER(SEARCH($B$9,Q159)),MAX($P$8:P158)+1,0)","v":151},"R/O, 2 Flics, straight Back Salto",null,null,{"$f":"IFERROR(VLOOKUP(ROWS($Q$9:Q159),$P$9:$Q$162,2,0),\"\")","v":"R/O, 2 Flics, straight Back Salto"},null,null,null,{"$f":"IF(ISNUMBER(SEARCH($B$10,Y159)),MAX($X$8:X158)+1,0)","v":151},"R/O, 2 Flics, straight Back Salto",null,null,{"$f":"IFERROR(VLOOKUP(ROWS($Y$9:Y159),$X$9:$Y$162,2,0),\"\")","v":"R/O, 2 Flics, straight Back Salto"},null,null,null,{"$f":"IF(ISNUMBER(SEARCH($B$11,AG159)),MAX($AF$8:AF158)+1,0)","v":151},"R/O, 2 Flics, straight Back Salto",null,null,{"$f":"IFERROR(VLOOKUP(ROWS($AG$9:AG159),$AF$9:$AG$162,2,0),\"\")","v":"R/O, 2 Flics, straight Back Salto"},null,null,null,{"$f":"IF(ISNUMBER(SEARCH($B$12,AO159)),MAX($AN$8:AN158)+1,0)","v":151},"R/O, 2 Flics, straight Back Salto",null,null,{"$f":"IFERROR(VLOOKUP(ROWS($AO$9:AO159),$AN$9:$AO$162,2,0),\"\")","v":"R/O, 2 Flics, straight Back Salto"},null,null,null,{"$f":"IF(ISNUMBER(SEARCH($B$13,AW159)),MAX($AV$8:AV158)+1,0)","v":151},"R/O, 2 Flics, straight Back Salto",null,null,{"$f":"IFERROR(VLOOKUP(ROWS($AW$9:AW159),$AV$9:$AW$162,2,0),\"\")","v":"R/O, 2 Flics, straight Back Salto"},null,null,null,{"$f":"IF(ISNUMBER(SEARCH($B$14,BE159)),MAX($BD$8:BD158)+1,0)","v":151},"R/O, 2 Flics, straight Back Salto",null,null,{"$f":"IFERROR(VLOOKUP(ROWS($BE$9:BE159),$BD$9:$BE$162,2,0),\"\")","v":"R/O, 2 Flics, straight Back Salto"},null,null,null,{"$f":"IF(ISNUMBER(SEARCH($B$15,BM159)),MAX($BL$8:BL158)+1,0)","v":151},"R/O, 2 Flics, straight Back Salto",null,null,{"$f":"IFERROR(VLOOKUP(ROWS($BM$9:BM159),$BL$9:$BM$162,2,0),\"\")","v":"R/O, 2 Flics, straight Back Salto"},null,null,null,{"$f":"IF(ISNUMBER(SEARCH($B$16,BU159)),MAX($BT$8:BT158)+1,0)","v":151},"R/O, 2 Flics, straight Back Salto",null,null,{"$f":"IFERROR(VLOOKUP(ROWS($BU$9:BU159),$BT$9:$BU$162,2,0),\"\")","v":"R/O, 2 Flics, straight Back Salto"},null,null,null,{"$f":"IF(ISNUMBER(SEARCH($B$17,CC159)),MAX($CB$8:CB158)+1,0)","v":151},"R/O, 2 Flics, straight Back Salto",null,null,{"$f":"IFERROR(VLOOKUP(ROWS($CC$9:CC159),$CB$9:$CC$162,2,0),\"\")","v":"R/O, 2 Flics, straight Back Salto"},null,null,null,{"$f":"IF(ISNUMBER(SEARCH($B$18,CK159)),MAX($CJ$8:CJ158)+1,0)","v":151},"R/O, 2 Flics, straight Back Salto",null,null,{"$f":"IFERROR(VLOOKUP(ROWS($CK$9:CK159),$CJ$9:$CK$162,2,0),\"\")","v":"R/O, 2 Flics, straight Back Salto"}]
[null,null,null,null,null,null,null,null,null,null,null,null,null,null,null,{"$f":"IF(ISNUMBER(SEARCH($B$9,Q160)),MAX($P$8:P159)+1,0)","v":152},"R/O Flick Arabian",null,null,{"$f":"IFERROR(VLOOKUP(ROWS($Q$9:Q160),$P$9:$Q$162,2,0),\"\")","v":"R/O Flick Arabian"},null,null,null,{"$f":"IF(ISNUMBER(SEARCH($B$10,Y160)),MAX($X$8:X159)+1,0)","v":152},"R/O Flick Arabian",null,null,{"$f":"IFERROR(VLOOKUP(ROWS($Y$9:Y160),$X$9:$Y$162,2,0),\"\")","v":"R/O Flick Arabian"},null,null,null,{"$f":"IF(ISNUMBER(SEARCH($B$11,AG160)),MAX($AF$8:AF159)+1,0)","v":152},"R/O Flick Arabian",null,null,{"$f":"IFERROR(VLOOKUP(ROWS($AG$9:AG160),$AF$9:$AG$162,2,0),\"\")","v":"R/O Flick Arabian"},null,null,null,{"$f":"IF(ISNUMBER(SEARCH($B$12,AO160)),MAX($AN$8:AN159)+1,0)","v":152},"R/O Flick Arabian",null,null,{"$f":"IFERROR(VLOOKUP(ROWS($AO$9:AO160),$AN$9:$AO$162,2,0),\"\")","v":"R/O Flick Arabian"},null,null,null,{"$f":"IF(ISNUMBER(SEARCH($B$13,AW160)),MAX($AV$8:AV159)+1,0)","v":152},"R/O Flick Arabian",null,null,{"$f":"IFERROR(VLOOKUP(ROWS($AW$9:AW160),$AV$9:$AW$162,2,0),\"\")","v":"R/O Flick Arabian"},null,null,null,{"$f":"IF(ISNUMBER(SEARCH($B$14,BE160)),MAX($BD$8:BD159)+1,0)","v":152},"R/O Flick Arabian",null,null,{"$f":"IFERROR(VLOOKUP(ROWS($BE$9:BE160),$BD$9:$BE$162,2,0),\"\")","v":"R/O Flick Arabian"},null,null,null,{"$f":"IF(ISNUMBER(SEARCH($B$15,BM160)),MAX($BL$8:BL159)+1,0)","v":152},"R/O Flick Arabian",null,null,{"$f":"IFERROR(VLOOKUP(ROWS($BM$9:BM160),$BL$9:$BM$162,2,0),\"\")","v":"R/O Flick Arabian"},null,null,null,{"$f":"IF(ISNUMBER(SEARCH($B$16,BU160)),MAX($BT$8:BT159)+1,0)","v":152},"R/O Flick Arabian",null,null,{"$f":"IFERROR(VLOOKUP(ROWS($BU$9:BU160),$BT$9:$BU$162,2,0),\"\")","v":"R/O Flick Arabian"},null,null,null,{"$f":"IF(ISNUMBER(SEARCH($B$17,CC160)),MAX($CB$8:CB159)+1,0)","v":152},"R/O Flick Arabian",null,null,{"$f":"IFERROR(VLOOKUP(ROWS($CC$9:CC160),$CB$9:$CC$162,2,0),\"\")","v":"R/O Flick Arabian"},null,null,null,{"$f":"IF(ISNUMBER(SEARCH($B$18,CK160)),MAX($CJ$8:CJ159)+1,0)","v":152},"R/O Flick Arabian",null,null,{"$f":"IFERROR(VLOOKUP(ROWS($CK$9:CK160),$CJ$9:$CK$162,2,0),\"\")","v":"R/O Flick Arabian"}]
[null,null,null,null,null,null,null,null,null,null,null,null,null,null,null,{"$f":"IF(ISNUMBER(SEARCH($B$9,Q161)),MAX($P$8:P160)+1,0)","v":153},"H/spring to 1, H/spring to 2, F Salto",null,null,{"$f":"IFERROR(VLOOKUP(ROWS($Q$9:Q161),$P$9:$Q$162,2,0),\"\")","v":"H/spring to 1, H/spring to 2, F Salto"},null,null,null,{"$f":"IF(ISNUMBER(SEARCH($B$10,Y161)),MAX($X$8:X160)+1,0)","v":153},"H/spring to 1, H/spring to 2, F Salto",null,null,{"$f":"IFERROR(VLOOKUP(ROWS($Y$9:Y161),$X$9:$Y$162,2,0),\"\")","v":"H/spring to 1, H/spring to 2, F Salto"},null,null,null,{"$f":"IF(ISNUMBER(SEARCH($B$11,AG161)),MAX($AF$8:AF160)+1,0)","v":153},"H/spring to 1, H/spring to 2, F Salto",null,null,{"$f":"IFERROR(VLOOKUP(ROWS($AG$9:AG161),$AF$9:$AG$162,2,0),\"\")","v":"H/spring to 1, H/spring to 2, F Salto"},null,null,null,{"$f":"IF(ISNUMBER(SEARCH($B$12,AO161)),MAX($AN$8:AN160)+1,0)","v":153},"H/spring to 1, H/spring to 2, F Salto",null,null,{"$f":"IFERROR(VLOOKUP(ROWS($AO$9:AO161),$AN$9:$AO$162,2,0),\"\")","v":"H/spring to 1, H/spring to 2, F Salto"},null,null,null,{"$f":"IF(ISNUMBER(SEARCH($B$13,AW161)),MAX($AV$8:AV160)+1,0)","v":153},"H/spring to 1, H/spring to 2, F Salto",null,null,{"$f":"IFERROR(VLOOKUP(ROWS($AW$9:AW161),$AV$9:$AW$162,2,0),\"\")","v":"H/spring to 1, H/spring to 2, F Salto"},null,null,null,{"$f":"IF(ISNUMBER(SEARCH($B$14,BE161)),MAX($BD$8:BD160)+1,0)","v":153},"H/spring to 1, H/spring to 2, F Salto",null,null,{"$f":"IFERROR(VLOOKUP(ROWS($BE$9:BE161),$BD$9:$BE$162,2,0),\"\")","v":"H/spring to 1, H/spring to 2, F Salto"},null,null,null,{"$f":"IF(ISNUMBER(SEARCH($B$15,BM161)),MAX($BL$8:BL160)+1,0)","v":153},"H/spring to 1, H/spring to 2, F Salto",null,null,{"$f":"IFERROR(VLOOKUP(ROWS($BM$9:BM161),$BL$9:$BM$162,2,0),\"\")","v":"H/spring to 1, H/spring to 2, F Salto"},null,null,null,{"$f":"IF(ISNUMBER(SEARCH($B$16,BU161)),MAX($BT$8:BT160)+1,0)","v":153},"H/spring to 1, H/spring to 2, F Salto",null,null,{"$f":"IFERROR(VLOOKUP(ROWS($BU$9:BU161),$BT$9:$BU$162,2,0),\"\")","v":"H/spring to 1, H/spring to 2, F Salto"},null,null,null,{"$f":"IF(ISNUMBER(SEARCH($B$17,CC161)),MAX($CB$8:CB160)+1,0)","v":153},"H/spring to 1, H/spring to 2, F Salto",null,null,{"$f":"IFERROR(VLOOKUP(ROWS($CC$9:CC161),$CB$9:$CC$162,2,0),\"\")","v":"H/spring to 1, H/spring to 2, F Salto"},null,null,null,{"$f":"IF(ISNUMBER(SEARCH($B$18,CK161)),MAX($CJ$8:CJ160)+1,0)","v":153},"H/spring to 1, H/spring to 2, F Salto",null,null,{"$f":"IFERROR(VLOOKUP(ROWS($CK$9:CK161),$CJ$9:$CK$162,2,0),\"\")","v":"H/spring to 1, H/spring to 2, F Salto"}]
[null,null,null,null,null,null,null,null,null,null,null,null,null,null,null,{"$f":"IF(ISNUMBER(SEARCH($B$9,Q162)),MAX($P$8:P161)+1,0)","v":154},"Headspring",null,null,{"$f":"IFERROR(VLOOKUP(ROWS($Q$9:Q162),$P$9:$Q$162,2,0),\"\")","v":"Headspring"},null,null,null,{"$f":"IF(ISNUMBER(SEARCH($B$10,Y162)),MAX($X$8:X161)+1,0)","v":154},"Headspring",null,null,{"$f":"IFERROR(VLOOKUP(ROWS($Y$9:Y162),$X$9:$Y$162,2,0),\"\")","v":"Headspring"},null,null,null,{"$f":"IF(ISNUMBER(SEARCH($B$11,AG162)),MAX($AF$8:AF161)+1,0)","v":154},"Headspring",null,null,{"$f":"IFERROR(VLOOKUP(ROWS($AG$9:AG162),$AF$9:$AG$162,2,0),\"\")","v":"Headspring"},null,null,null,{"$f":"IF(ISNUMBER(SEARCH($B$12,AO162)),MAX($AN$8:AN161)+1,0)","v":154},"Headspring",null,null,{"$f":"IFERROR(VLOOKUP(ROWS($AO$9:AO162),$AN$9:$AO$162,2,0),\"\")","v":"Headspring"},null,null,null,{"$f":"IF(ISNUMBER(SEARCH($B$13,AW162)),MAX($AV$8:AV161)+1,0)","v":154},"Headspring",null,null,{"$f":"IFERROR(VLOOKUP(ROWS($AW$9:AW162),$AV$9:$AW$162,2,0),\"\")","v":"Headspring"},null,null,null,{"$f":"IF(ISNUMBER(SEARCH($B$14,BE162)),MAX($BD$8:BD161)+1,0)","v":154},"Headspring",null,null,{"$f":"IFERROR(VLOOKUP(ROWS($BE$9:BE162),$BD$9:$BE$162,2,0),\"\")","v":"Headspring"},null,null,null,{"$f":"IF(ISNUMBER(SEARCH($B$15,BM162)),MAX($BL$8:BL161)+1,0)","v":154},"Headspring",null,null,{"$f":"IFERROR(VLOOKUP(ROWS($BM$9:BM162),$BL$9:$BM$162,2,0),\"\")","v":"Headspring"},null,null,null,{"$f":"IF(ISNUMBER(SEARCH($B$16,BU162)),MAX($BT$8:BT161)+1,0)","v":154},"Headspring",null,null,{"$f":"IFERROR(VLOOKUP(ROWS($BU$9:BU162),$BT$9:$BU$162,2,0),\"\")","v":"Headspring"},null,null,null,{"$f":"IF(ISNUMBER(SEARCH($B$17,CC162)),MAX($CB$8:CB161)+1,0)","v":154},"Headspring",null,null,{"$f":"IFERROR(VLOOKUP(ROWS($CC$9:CC162),$CB$9:$CC$162,2,0),\"\")","v":"Headspring"},null,null,null,{"$f":"IF(ISNUMBER(SEARCH($B$18,CK162)),MAX($CJ$8:CJ161)+1,0)","v":154},"Headspring",null,null,{"$f":"IFERROR(VLOOKUP(ROWS($CK$9:CK162),$CJ$9:$CK$162,2,0),\"\")","v":"Headspring"}]

{"sheet":"Moves","index":1,"n_rows":154,"n_cols":99,"rows_kept":154,"cut":false,"hidden":true,"merged":[]}
["Straight jump","A",1,"Leap/Hop"]
["Jump ½ turn ","A",1,"Leap/Hop"]
["Star jump ","A",1,"Leap/Hop"]
["Tuck jump","A",1,"Leap/Hop"]
["2 x dynamic 1/2 turns on knees","A",1,"Leap/Hop"]
["1 leg balance ","A",2]
["Splits (F or S) ","A",2]
["Japana (up to 45⁰ chest)","A",2]
["D Shape","A",2,null,null,null,null,null,null,null,null,null,null,null,null,null,null,null,null,null,null,null,null,null,null,null,null,null,null,null,null,null,null,null,null,null,null,null,null,null,null,null,null,null,null,null,null,null,null,null,null,null,null,null,null,null,null,null,null,null,null,null,null,null,null,null,null,null,null,null,null,null,null,null,null,null,null,null,null,null,null,null,null,null,null,null,null,null,null,null,null,null,null,null,null,null,null,null,{"$f":"IF(M9<>$M$39,\"\")","v":false}]
["Bridge","A",2]
["F or B support (lower or push up) ","A",2]
["F Support turn to B Support","A",2]
["Piked V sit (hand supp.)","A",2]
["½ lever (1 foot on floor)","A",2]
["Headstand  (leg optional)","A",2]
["Shoulder stand (hip supp)","A",2]
["Forward Roll ","A",3]
["Back Roll & to straddle","A",3]
["Circle (‘teddy bear’) roll","A",3]
["Side Roll (various shapes)","A",3]
["Egg roll (leg shape optional)","A",3]
["Tuck Bunny Hop to Handstand ","A",3]
["Handstand return to feet","A",4]
["Cartwheel","A",4]
["Bunny Hop / Jump - (Long)","A",4]
["Bunny Hop / Jump - (High)","A",4]
["Split leap / jump (120° )","B",1,"Leap/Hop"]
["Stag leap or jump ","B",1,"Leap/Hop"]
["Cat leap","B",1,"Leap/Hop"]
["Jump full turn ","B",1,"Leap/Hop"]
["Scissor jump ","B",1,"Leap/Hop"]
["W jump","B",1,"Leap/Hop"]
["Arabesque","B",2]
["Japana (flat back, chest to floor)","B",2]
["Fall to prone push to Front Support","B",2]
["Swedish Fall","B",2]
["Piked V sit (no supp.)","B",2]
["1/2 lever shown (straight or straddled) ","B",2]
["Shoulder stand (no support)","B",2]
["F Roll to straddle stand","B",3]
["Handstand F roll ","B",3]
["B Roll to pike stand","B",3]
["Handstand ½ turn","B",3]
["Straddle Bunny Hop to Handstand","B",3]
["Single Leg Circle","B",3]
["Backward walkover","B",3]
["Cartwheel ¼ turn in (Front to Back)↓","B",4]
["Cartwheel ¼ turn out","B",4]
["1 Arm Cartwheel ","B",4]
["2 x side C/wheels (opt. entry / exit)","B",4]
["Dive C/wheel (must show flight)","B",4,"FS"]
["Roundoff","B",4,"FS"]
["Roundoff jump (optional shape)","B",4,"FS"]
["Split leap or jump (150°)","C",1,"Leap/Hop"]
["Fouette Turn","C",1,"Leap/Hop"]
["Cat leap ½ turn","C",1,"Leap/Hop"]
["Jump 1 ½  turn ","C",1,"Leap/Hop"]
["Straddle jump","C",1,"Leap/Hop"]
["Tuck jump ½ turn","C",1,"Leap/Hop"]
["Full Spin","C",1,"Leap/Hop"]
["Y scale (leg above waist height) ","C",2]
["2 way Splits","C",2]
["Japana Swim Through","C",2]
["Fall to Prone Jump to Straddle Stand","C",2]
["F Supp jump legs through straddle -","C",2]
["Tuck ‘Russian’ Lever","C",2]
["Tucked hold (press off knees)","C",2]
["1/2 lever held 2 secs (pike / straddle)","C",2]
["Straddle stand press to h/stand","C",2]
["Forward roll with straight legs","C",3]
["H/stand F Roll straight arms","C",3]
["B Roll through h/stand","C",3]
["Handstand full pirouette","C",3]
["Pike Bunny Hop to Handstand - ","C",3]
["Half Double Leg Circle","C",3]
["Forward walkover","C",3]
["Standing Flic to 2 feet","C",4,"FS"]
["Standing Flic to 1 foot","C",4,"FS"]
["Standing Flic to Front Support","C",4,"AFS"]
["Back Walkover, Flick (1or2 feet)","C",4,"AFS"]
["Cartwheel, Flick","C",4,"AFS"]
["Roundoff, Flic to 1 foot","C",4,"AFS2"]
["Roundoff, Flic to 2 feet","C",4,"AFS2"]
["Roundoff, Flic, Flic","C",4,"AFS2"]
["Handspring to 2 feet","C",4,"FS"]
["Handspring to 1 foot","C",4,"FS"]
["Handspring to Roundoff ","C",4,"AFS2"]
["2 Handsprings 1 – 2 feet","C",4,"AFS2"]
["Handspring, Roundoff, Flic","C",4,"AFS2"]
["Split leap or jump (180° split)","D",1,"Leap/Hop"]
["Change leg split leap or jump ↓(180° split)","D",1,"Leap/Hop"]
["Sissone","D",1,"Leap/Hop"]
["Cat leap full turn","D",1,"Leap/Hop"]
["Jump double turn  ","D",1,"Leap/Hop"]
["Jump to Prone","D",1,"Leap/Hop"]
["Straddle jump (feet hip high)","D",1,"Leap/Hop"]
["Tuck jump full turn","D",1,"Leap/Hop"]
["1½  Spin","D",1,"Leap/Hop"]
["Y Scale (leg at  shoulder height)","D",2]
["3 way Splits ","D",2]
["F Supp jump legs through straddle -","D",2]
["Straddle 'Russian' Lever","D",2]
["Straddle 1/2 Lever lift to Stand","D",2]
["H/stand from straddle stand full turn","D",2]
["H/stand lower to Straddle 1/2 Lever","D",2]
["Chest Roll to Bent Arms Handstand","D",2]
["H/stand FR piked exit (straight arms)","D",3]
["B Roll to h/stand (straight arms)","D",3]
["Handstand 1½ pirouette","D",3]
["Tic toc","D",3]
["Flyspring","D",4,"FS"]
["Tucked Front Salto","D",4,"FS"]
["Tucked Back Salto FS","D",4,"FS"]
["Free Cartwheel","D",4,"FS"]
["Free Cartwheel Flick","D",4,"AFS2"]
["Front Salto to 1 R/O","D",4,"AFS2"]
["Front Salto, R/O, flic","D",4,"AFS2"]
["F Salto step out, R/O, B Salto","D",4,"AFS2"]
["R/O Tuck Back Salto","D",4,"AFS2"]
["R/O, Flic, Tuck Back Salto","D",4,"AFS2"]
["Handspring Flyspring","D",4,"AFS2"]
["Handspring, Front Salto","D",4,"AFS2"]
["Split leap - sissone","E",1,"Leap/Hop"]
["Split leap - cat leap full turn","E",1,"Leap/Hop"]
["Change leg split leap - split leap","E",1,"Leap/Hop"]
["Split leap - W jump","E",1,"Leap/Hop"]
["Full turn jump - straddle jump","E",1,"Leap/Hop"]
["Jump 1/2 Turn to Prone","E",1,"Leap/Hop"]
["Straddle jump Shushunova","E",1,"Leap/Hop"]
["Straddle jump - pike jump","E",1,"Leap/Hop"]
["Double spin","E",1,"Leap/Hop"]
["Full spin 1 leg extended, min 45 deg","E",1,"Leap/Hop"]
["From Splits position lift to H/stand ","E",2]
["Full V ‘Russian’ lever","E",2]
["Tucked top planchě (held)","E",2]
["Straddle lever to handstand","E",2]
["Straddle lever to h/stand full turn ","E",2]
["Chest Roll to Handstand","E",2]
["B Roll to h/stand, 1/2 or full turn","E",3]
["Handstand double pirouette","E",3]
["Double Leg Circle","E",3]
["Valdez","E",3]
["Flyspring Front Salto","E",4,"AFS2"]
["Dive Forward Roll (with flight)","E",4,"FS"]
["Pike Front Salto","E",4,"FS"]
["Straight Front Salto","E",4,"FS"]
["F Salto step out, R/O, Flic, B Salto","E",4,"AFS2"]
["R/O, Flic, Pike/ Straight B Salto","E",4,"AFS2"]
["R/O, Flic, B Salto with ½ twist","E",4,"AFS2"]
["R/O, Flic, B Salto with 1/1  twist","E",4,"AFS2"]
["R/O, 2 Flics, straight Back Salto","E",4,"AFS2"]
["R/O Flick Arabian","E",4,"AFS2"]
["H/spring to 1, H/spring to 2, F Salto","E",4,"AFS2"]
["Headspring","E",4,"FS"]